Workbook

Sheet 1) Main Input
A3: Universal Calculation Spreadsheets applicable for the Emissions of Ethanol Industry
A4: Main Input Sheet
B6: Questions | C6: Answers
B7: Is this application concerning a construction or an operating permit? | D7: =IF(C7="Operating Permit",1,0) -> 0
B8: Is the construction permit for an existing plant or a new plant? | D8: =IF(C8="New Construction",1,0) -> 0
D9: =IF(OR(C9="Yes",C9="NO"),1,0) -> 0
C11: =IF(C10="YES",1,0) -> 0
A17: Instructions for use:
A18: - The Calculation Sheet has tabs to navigate through the emission units by using the "Next" and "Previous" Buttons
A19: - You can always jump to any tab required by choosing from the Tabs bar
A20: - Fill only data required in the tan color. Complete color coding is explained below
A21: - Cells in blue color could be changed only by NDEQ personnel
A22: - If you are working on a construction permit for an existing plant: Orange is the exisiting plant before modification and Orange is the expected plant after project
A23: - Detailed results are presented in the Results Tab and a summary of results is given in results summary
A24: - You can review the calculations at cells in the claculation tab. You cannot change the formulas
A25: - You can visually look at your inputs for emission units in the Schematic Tab
A26: - Some tabs include essential unit conversions for your convinience
B28: Before Project
B29: After Project
B30: Default Value of the NDEQ
B31: Final PTE
B32: Calculations
B33: Carry over from user input or other calculated values

Sheet 2) Production Rates
A3: Universal Calculation Spreadsheets applicable for the Emissions of Ethanol Industry
A4: Production Rates
B7: Please Enter the Current and Maximum Proposed Facility Information:
C9: Current Capacity | E9: Maximum Proposed Capacity
B10: Denatured Ethanol (Annual) | D10: MMGal/year | F10: MMGal/year
B11: Denatured Ethanol (Hourly) | D11: Gal/hr | F11: Gal/hr
B12: Anhydrous Ethanol | D12: MMGal/year | F12: MMGal/year
B13: Wet Distilled Grain Soluble (WDGS) - 50% H2O | D13: tons/year | F13: tons/year
B14: Modified WDGS (MWDGS) - % H2O | D14: tons/year | F14: tons/year
B15: Dry Distilled Grain Soluble (DDGS) - 15% H2O | D15: tons/year | F15: tons/year
B16: Max corn throughput required for maximum ethanol production | D16: tons/year | F16: tons/year
B17: Max milo throughput required for maximum ethanol production | D17: tons/year | F17: tons/year

Sheet 3) Dump Pit
A2: Universal Calculation Spreadsheets applicable for the Emissions of Ethanol Industry
A3: Dump Pits | C3: SCC 3-02-005-05
D6: Current Capacity | M6: Maximum Proposed Capacity
A7: Grain throughput based on maximum production | D7: ='2) Production Rates'!C16 -> 0 | G7: tons/year | J7: Grain throughput based on maximum production | M7: ='2) Production Rates'!E16 -> 0 | P7: tons/year
A8: Enter other throughput value based on other limitations | G8: tons/year | J8: Enter other throughput value based on other limitations | P8: tons/year
A9: What is the raw material used? | D9: Corn | E9: 56 | G9: lb/bushel | J9: What is the raw material used? | M9: Corn | N9: 56 | P9: lb/bushel
A10: Maximum Grain Receiving Rate | D10: =MIN(D7:F8)*2000/E9/8760 -> 0 | G10: bu/hr | J10: Maximum Grain Receiving Rate | M10: =MIN(M7:O8)*2000/N9/8760 -> 0 | P10: bu/hr
A12: Total Number of Control Equipment | J12: Total Number of Control Equipment
A14: Total Number of Dump Pits (Controlled and Uncontrolled) | J14: Total Number of Dump Pits (Controlled and Uncontrolled)
A16: Uncontrolled Grain Handling Rate | E16: bu/hr | G16: ton/yr | J16: Uncontrolled Grain Handling Rate | N16: bu/hr | P16: ton/yr
A18: Please, enter information describing control equipment
B19: ID | C19: CE Name | D19: Control Efficiency | E19: Capture Efficiency | F19: Permit Limit, grains/min (If applicable) | G19: Grain Handling Rate, bu/hr | H19: Grain Handling Rate, ton/yr* | K19: ID | L19: CE Name | M19: Control Efficiency | N19: Capture Efficiency | O19: Permit Limit, grains/min (If applicable) | P19: Grain Handling Rate, bu/hr | Q19: Grain Handling Rate, ton/yr* | U19: Datasets!$Y$3
A20: 1st Control Equipment | D20: 0.99 | E20: 0.95 | J20: 1st Control Equipment | M20: 0.99 | N20: 0.95 | U20: Datasets!$Y$2
A21: 2nd Control Equipment | D21: 0.99 | E21: 0.95 | J21: 2nd Control Equipment | M21: 0.99 | N21: 0.95
A22: 3rd Control Equipment | D22: 0.99 | E22: 0.95 | J22: 3rd Control Equipment | M22: 0.99 | N22: 0.95
A23: 4th Control Equipment | D23: 0.99 | E23: 0.95 | J23: 4th Control Equipment | M23: 0.99 | N23: 0.95
A24: 5th Control Equipment | D24: 0.99 | E24: 0.95 | J24: 5th Control Equipment | M24: 0.99 | N24: 0.95
A25: 6th Control Equipment | D25: 0.99 | E25: 0.95 | J25: 6th Control Equipment | M25: 0.99 | N25: 0.95
A26: 7th Control Equipment | D26: 0.99 | E26: 0.95 | J26: 7th Control Equipment | M26: 0.99 | N26: 0.95
A27: 8th Control Equipment | D27: 0.99 | E27: 0.95 | J27: 8th Control Equipment | M27: 0.99 | N27: 0.95
A28: 9th Control Equipment | D28: 0.99 | E28: 0.95 | J28: 9th Control Equipment | M28: 0.99 | N28: 0.95
A29: 10th Control Equipment | D29: 0.99 | E29: 0.95 | J29: 10th Control Equipment | M29: 0.99 | N29: 0.95
A30: * Enter value only if an additional permit condition exists. | J30: * Enter value only if an additional permit condition exists.
A31: Please, enter information describing specific Dump Pits properties
B32: ID | C32: Emission Unit Name | D32: Enclosure | E32: Maximum grain receiving rate (bu/hr) | F32: Permit Limit, ton/yr (If applicable) | G32: Control type | H32: Control Name | I32: Truck or Rail | K32: ID | L32: Emission Unit Name | M32: Enclosure | N32: Maximum grain receiving rate (bu/hr) | O32: Permit Limit, ton/yr (If applicable) | P32: Control type | Q32: Control Name | R32: Truck or Rail
A33: 1st Dump Pit | J33: 1st Dump Pit
A34: 2nd Dump Pit | J34: 2nd Dump Pit
A35: 3rd Dump Pit | J35: 3rd Dump Pit
A36: 4th Dump Pit | J36: 4th Dump Pit
A37: 5th Dump Pit | J37: 5th Dump Pit
A38: 6th Dump Pit | J38: 6th Dump Pit
A39: 7th Dump Pit | J39: 7th Dump Pit
A40: 8th Dump Pit | J40: 8th Dump Pit
A41: 9th Dump Pit | J41: 9th Dump Pit
A42: 10th Dump Pit | J42: 10th Dump Pit

Sheet 4) Grain Storage
A2: Universal Calculation Spreadsheets applicable for the Emissions of Ethanol Industry
A3: Grain Storage
A5: Please, enter information describing the grain receiving capacity
A7: Questions | D7: Current Capacity | I7: Maximum Proposed Capacity
A8: Grain throughput based on maximum production | D8: ='2) Production Rates'!C16 -> 0 | G8: tons/year | I8: ='2) Production Rates'!E16 -> 0 | L8: tons/year
A9: Maximum Grain Receiving Rate | D9: ='3) Dump Pit'!D10 -> 0 | G9: bu/hr | I9: ='3) Dump Pit'!M10 -> 0 | L9: bu/hr
A11: Number of Storage Bin
A12: Number of Storage Pile
A14: Wind Speed (m/sec) | C14: 3
A16: Please, enter information describing specific storage bin properties
B17: ID | C17: Emission Unit Name | D17: Capacity, bu | E17: Height, m | F17: Diameter, m | G17: Control Type | I17: ID | J17: Emission Unit Name | K17: Capacity, bu | L17: Height, m | M17: Diameter, m | N17: Control Type
A18: 1st Storage Bin | H18: 1st Storage Bin
A19: 2nd Storage Bin | H19: 2nd Storage Bin
A20: 3rd Storage Bin | H20: 3rd Storage Bin
A21: 4th Storage Bin | H21: 4th Storage Bin
A22: 5th Storage Bin | H22: 5th Storage Bin
A23: 6th Storage Bin | H23: 6th Storage Bin
A24: 7th Storage Bin | H24: 7th Storage Bin
A25: 8th Storage Bin | H25: 8th Storage Bin
A26: 9th Storage Bin | H26: 9th Storage Bin
A27: 10th Storage Bin | H27: 10th Storage Bin
B30: ID | C30: Emission Unit Name | D30: Pile Capacity, bu | E30: Moisture content, % | F30: Transfer type | G30: Control | I30: ID | J30: Emission Unit Name | K30: Pile Capacity, bu | L30: Moisture content, % | M30: Transfer type | N30: Control
A31: 1st Storage Pile | H31: 1st Storage Pile
A32: 2nd Storage Pile | H32: 2nd Storage Pile
A33: 3rd Storage Pile | H33: 3rd Storage Pile
A34: 4th Storage Pile | H34: 4th Storage Pile
A35: 5th Storage Pile | H35: 5th Storage Pile
A36: 6th Storage Pile | H36: 6th Storage Pile
A37: 7th Storage Pile | H37: 7th Storage Pile
A38: 8th Storage Pile | H38: 8th Storage Pile
A39: 9th Storage Pile | H39: 9th Storage Pile
A40: 10th Storage Pile | H40: 10th Storage Pile

Sheet 5) Dryer
R1: Essential Unit Conversion
A2: Universal Calculation Spreadsheets applicable for the Emissions of Ethanol Industry
A3: Grain Dryers | R3: From | T3: To
S4: MMSCF | T4: =R4*1020 -> 0 | U4: MMBtu
A5: Please, enter information describing the Grain Dryer
S6: lb/MMSCF | T6: =R6/1020 -> 0 | U6: lb/MMBtu
D7: Current Capacity | M7: Maximum Proposed Capacity
A8: Grain throughput based on maximum production | D8: ='2) Production Rates'!C16 -> 0 | G8: tons/year | J8: Grain throughput based on maximum production | M8: ='2) Production Rates'!E16 -> 0 | P8: tons/year | S8: lb/hr | T8: =R8/R9 -> 0 | U8: lb/MMBtu
A9: Maximum grain throughput based on dryer capacity | D9: =SUM(D17:D26) -> 0 | G9: ton/hr | M9: =SUM(M17:M26) -> 0 | P9: ton/hr | R9: 1 | S9: MMBtu/hr
A11: Number of Grain Dryers | G11: Units | J11: Number of Grain Dryers | P11: Units | S11: hr/yr | T11: =R11*R12 -> 0 | U11: ton/yr
A12: Maximum permitted hourly grain throughput | G12: ton/hr | J12: Maximum permitted hourly grain throughput | P12: ton/hr | S12: ton/hr
A13: Maximum permitted annual grain throughput | G13: ton/year | J13: Maximum permitted annual grain throughput | P13: ton/year
A15: Please, enter information describing specific Grain dryer properties
B16: ID | C16: Emission Unit Name | D16: Capacity, tons/hr | E16: Control Type* | F16: Maximum Rated Capacity, MMBtu/hr | G16: Dryer Type | H16: Particulate Control | I16: Maximum permitted annual throughput, ton/yr | K16: ID | L16: Emission Unit Name | M16: Capacity, tons/hr | N16: Control Type* | O16: Maximum Rated Capacity, MMBtu/hr | P16: Dryer Type | Q16: Particulate Control | R16: Maximum permitted annual throughput, ton/yr
A17: 1st Dryer | J17: 1st Dryer
A18: 2nd Dryer | J18: 2nd Dryer
A19: 3rd Dryer | J19: 3rd Dryer
A20: 4th Dryer | J20: 4th Dryer
A21: 5th Dryer | J21: 5th Dryer
A22: 6th Dryer | J22: 6th Dryer
A23: 7th Dryer | J23: 7th Dryer
A24: 8th Dryer | J24: 8th Dryer
A25: 9th Dryer | J25: 9th Dryer
A26: 10th Dryer | J26: 10th Dryer
A28: Please, enter information describing specific permit limits or source specific emissions
A29: If the limit or data are in other units, please, convert them to lb/MMBtu
C30: 1st Dryer Limit (lb/MMBtu) | D30: 2nd Dryer Limit (lb/MMBtu) | E30: 3rd Dryer Limit (lb/MMBtu) | F30: 4th Dryer Limit (lb/MMBtu) | G30: 5th Dryer Limit (lb/MMBtu) | H30: 6th Dryer Limit (lb/MMBtu) | I30: 7th Dryer Limit (lb/MMBtu) | J30: 8th Dryer Limit (lb/MMBtu) | K30: 9th Dryer Limit (lb/MMBtu) | L30: 10th Dryer Limit (lb/MMBtu)
A31: PMfilterable
A32: PM10
A33: PM2.5
A34: SO2
A35: NOx
A36: CO
A37: VOC
A38: Individual HAP
A39: Benzene
A40: Dichlorobenzene
A41: Hexane
A42: Lead Compounds
A43: Naphthalene
A44: Polycyclic Organic Matter
A45: Toluene
A46: Arsenic Compounds
A47: Beryllium Compounds
A48: Cadmium Compounds
A49: Chromium Compounds
A50: Cobalt Compounds
A51: Manganese Compounds
A52: Mercury Compounds
A53: Nickel Compounds
A54: Selenium Compounds
A55: Total HAPs
A56: Carbon Dioxide (CO2)
A57: Methane (CH4)
A58: Nitrous Oxide (N2O)
C61: 1st Dryer Limit (lb/MMBtu) | D61: 2nd Dryer Limit (lb/MMBtu) | E61: 3rd Dryer Limit (lb/MMBtu) | F61: 4th Dryer Limit (lb/MMBtu) | G61: 5th Dryer Limit (lb/MMBtu) | H61: 6th Dryer Limit (lb/MMBtu) | I61: 7th Dryer Limit (lb/MMBtu) | J61: 8th Dryer Limit (lb/MMBtu) | K61: 9th Dryer Limit (lb/MMBtu) | L61: 10th Dryer Limit (lb/MMBtu)
A62: PMfilterable
A63: PM10
A64: PM2.5
A65: SO2
A66: NOx
A67: CO
A68: VOC
A69: Individual HAP
A70: Benzene
A71: Dichlorobenzene
A72: Hexane
A73: Lead Compounds
A74: Naphthalene
A75: Polycyclic Organic Matter
A76: Toluene
A77: Arsenic Compounds
A78: Beryllium Compounds
A79: Cadmium Compounds
A80: Chromium Compounds
A81: Cobalt Compounds
A82: Manganese Compounds
A83: Mercury Compounds
A84: Nickel Compounds
A85: Selenium Compounds
A86: Total HAPs
A87: Carbon Dioxide (CO2)
A88: Methane (CH4)
A89: Nitrous Oxide (N2O)

Sheet 6) Hammermill
A2: Universal Calculation Spreadsheets applicable for the Emissions of Ethanol Industry
A3: Hammer Milling
D6: Current Capacity | L6: Maximum Proposed Capacity
A7: Grain throughput based on maximum production | D7: ='2) Production Rates'!C16 -> 0 | G7: tons/year | I7: Grain throughput based on maximum production | L7: ='2) Production Rates'!E16 -> 0 | O7: tons/year
A8: Maximum Grain Receiving Rate | D8: ='3) Dump Pit'!D10 -> 0 | G8: bu/hr | I8: Maximum Grain Receiving Rate | L8: ='3) Dump Pit'!M10 -> 0 | O8: bu/hr
A10: Scalper | G10: Units | I10: Scalper | O10: Units
A11: Hammer Mill | G11: Units | I11: Hammer Mill | O11: Units
A13: Please, enter information describing specific Scalper properties
B14: ID | C14: Emission Unit Name | D14: Surge Unit? | E14: Capacity, bu | F14: Control type | G14: Permit Limit, grains/min (If applicable)* | J14: ID | K14: Emission Unit Name | L14: Surge Unit? | M14: Capacity, bu | N14: Control type | O14: Permit Limit, grains/min (If applicable)*
A15: 1st Scalper | I15: 1st Scalper
A16: 2nd Scalper | I16: 2nd Scalper
A17: 3rd Scalper | I17: 3rd Scalper
A18: 4th Scalper | I18: 4th Scalper
A19: 5th Scalper | I19: 5th Scalper
A20: 6th Scalper | I20: 6th Scalper
A21: 7th Scalper | I21: 7th Scalper
A22: 8th Scalper | I22: 8th Scalper
A23: 9th Scalper | I23: 9th Scalper
A24: 10th Scalper | I24: 10th Scalper
A26: Please, enter information describing specific Hammer Mill properties
B27: ID | C27: Emission Unit Name | D27: Surge Unit? | E27: Capacity, bu | F27: Control type | G27: Permit Limit, grains/min (If applicable)* | J27: ID | K27: Emission Unit Name | L27: Surge Unit? | M27: Capacity, bu | N27: Control type | O27: Permit Limit, grains/min (If applicable)*
A28: 1st Hammer Mill | I28: 1st Hammer Mill
A29: 2nd Hammer Mill | I29: 2nd Hammer Mill
A30: 3rd Hammer Mill | I30: 3rd Hammer Mill
A31: 4th Hammer Mill | I31: 4th Hammer Mill
A32: 5th Hammer Mill | I32: 5th Hammer Mill
A33: 6th Hammer Mill | I33: 6th Hammer Mill
A34: 7th Hammer Mill | I34: 7th Hammer Mill
A35: 8th Hammer Mill | I35: 8th Hammer Mill
A36: 9th Hammer Mill | I36: 9th Hammer Mill
A37: 10th Hammer Mill | I37: 10th Hammer Mill
A39: * If more than one emission unit are controlled by the same control and have a permit limit, please, divide the the permit limit equally by the emission units.

Sheet 7) Ferm
A2: Universal Calculation Spreadsheets applicable for the Emissions of Ethanol Industry
A3: Fermentation, Process Tanks, Distillation, and Propagators
A6: Questions | D6: Current Capacity | L6: Maximum Proposed Capacity
A7: Grain throughput based on maximum production | D7: ='2) Production Rates'!C16 -> 0 | G7: tons/year | I7: Grain throughput based on maximum production | L7: ='2) Production Rates'!E16 -> 0 | O7: tons/year
A8: Anhydrous Ethanol | D8: ='2) Production Rates'!C12 -> 0 | G8: ='2) Production Rates'!D12 -> MMGal/year | I8: ='2) Production Rates'!B12 -> Anhydrous Ethanol | L8: ='2) Production Rates'!E12 -> 0 | O8: ='2) Production Rates'!F12 -> MMGal/year
A9: Number of Fermenters and Beerwells | G9: Units | I9: Number of Fermenters and Beerwells | O9: Units
A11: Number of Scrubbers | G11: Units | I11: Number of Scrubbers | O11: Units
A13: Please, enter information describing specific fermenters and beerwells | I13: Please, enter information describing specific fermenters and beerwells
B14: ID | C14: Emission Unit Name | D14: Fermenter or Beerwell | E14: Fermentation Type | F14: Control type | J14: ID | K14: Emission Unit Name | L14: Fermenter or Beerwell | M14: Fermentation Type | N14: Control type
A15: 1st Fermenter | I15: 1st Fermenter
A16: 2nd Fermenter | I16: 2nd Fermenter
A17: 3rd Fermenter | I17: 3rd Fermenter
A18: 4th Fermenter | I18: 4th Fermenter
A19: 5th Fermenter | I19: 5th Fermenter
A20: 6th Fermenter | I20: 6th Fermenter
A21: 7th Fermenter | I21: 7th Fermenter
A22: 8th Fermenter | I22: 8th Fermenter
A23: 9th Fermenter | I23: 9th Fermenter
A24: 10th Fermenter | I24: 10th Fermenter
A25: Please, enter information describing specific scrubbers | I25: Please, enter information describing specific scrubbers
B26: ID | C26: Emission Unit Name | D26: Water Flowrate | E26: Chemical Addition | F26: Chem. Flowrate | J26: ID | K26: Emission Unit Name | L26: Water Flowrate | M26: Chemical Addition | N26: Chem. Flowrate
A27: 1st Scrubber | I27: 1st Scrubber
A28: 2nd Scrubber | I28: 2nd Scrubber
A29: 3rd Scrubber | I29: 3rd Scrubber
A30: 4th Scrubber | I30: 4th Scrubber
A31: 5th Scrubber | I31: 5th Scrubber
A32: 6th Scrubber | I32: 6th Scrubber
A33: 7th Scrubber | I33: 7th Scrubber
A34: 8th Scrubber | I34: 8th Scrubber
A35: 9th Scrubber | I35: 9th Scrubber
A36: 10th Scrubber | I36: 10th Scrubber
A38: Please, enter information describing specific permit limits or source specific emissions stack test
A39: If the limit or data are in other units, please, convert them to lb/MMBtu
C40: 1st Fermenter PTE, lb/hr* | D40: 2nd Fermenter PTE, lb/hr* | E40: 3rd Fermenter PTE, lb/hr* | F40: 4th Fermenter PTE, lb/hr* | G40: 5th Fermenter PTE, lb/hr* | H40: 6th Fermenter PTE, lb/hr* | I40: 7th Fermenter PTE, lb/hr* | J40: 8th Fermenter PTE, lb/hr* | K40: 9th Fermenter PTE, lb/hr* | L40: 10th Fermenter PTE, lb/hr* | P40: 1st Fermenter PTE, ton/yr* | Q40: 2nd Fermenter PTE, ton/yr* | R40: 3rd Fermenter PTE, ton/yr* | S40: 4th Fermenter PTE, ton/yr* | T40: 5th Fermenter PTE, ton/yr* | U40: 6th Fermenter PTE, ton/yr* | V40: 7th Fermenter PTE, ton/yr* | W40: 8th Fermenter PTE, ton/yr* | X40: 9th Fermenter PTE, ton/yr* | Y40: 10th Fermenter PTE, ton/yr*
A41: PMfilterable | N41: PMfilterable
A42: PM10 | N42: PM10
A43: PM2.5 | N43: PM2.5
A44: SO2 | N44: SO2
A45: NOx | N45: NOx
A46: CO | N46: CO
A47: VOC | N47: VOC
A48: Individual HAP | N48: Individual HAP
A49: Acetaldehyde | N49: Acetaldehyde
A50: Acrolein | N50: Acrolein
A51: Formaldehyde | N51: Formaldehyde
A52: Methanol | N52: Methanol
A53: Benzene | N53: Benzene
A54: Dichlorobenzene | N54: Dichlorobenzene
A55: Hexane | N55: Hexane
A56: Lead Compounds | N56: Lead Compounds
A57: Naphthalene | N57: Naphthalene
A58: Polycyclic Organic Matter | N58: Polycyclic Organic Matter
A59: Toluene | N59: Toluene
A60: Arsenic Compounds | N60: Arsenic Compounds
A61: Beryllium Compounds | N61: Beryllium Compounds
A62: Cadmium Compounds | N62: Cadmium Compounds
A63: Chromium Compounds | N63: Chromium Compounds
A64: Cobalt Compounds | N64: Cobalt Compounds
A65: Manganese Compounds | N65: Manganese Compounds
A66: Mercury Compounds | N66: Mercury Compounds
A67: Nickel Compounds | N67: Nickel Compounds
A68: Selenium Compounds | N68: Selenium Compounds
A69: Total HAPs | N69: Total HAPs
A70: GHGs | N70: GHGs
A71: Carbon Dioxide (CO2) | N71: Carbon Dioxide (CO2)
A72: Methane (CH4) | N72: Methane (CH4)
A73: Nitrous Oxide (N2O) | N73: Nitrous Oxide (N2O)
C80: 1st Fermenter PTE, lb/hr* | D80: 2nd Fermenter PTE, lb/hr* | E80: 3rd Fermenter PTE, lb/hr* | F80: 4th Fermenter PTE, lb/hr* | G80: 5th Fermenter PTE, lb/hr* | H80: 6th Fermenter PTE, lb/hr* | I80: 7th Fermenter PTE, lb/hr* | J80: 8th Fermenter PTE, lb/hr* | K80: 9th Fermenter PTE, lb/hr* | L80: 10th Fermenter PTE, lb/hr* | P80: 1st Fermenter PTE, ton/yr* | Q80: 2nd Fermenter PTE, ton/yr* | R80: 3rd Fermenter PTE, ton/yr* | S80: 4th Fermenter PTE, ton/yr* | T80: 5th Fermenter PTE, ton/yr* | U80: 6th Fermenter PTE, ton/yr* | V80: 7th Fermenter PTE, ton/yr* | W80: 8th Fermenter PTE, ton/yr* | X80: 9th Fermenter PTE, ton/yr* | Y80: 10th Fermenter PTE, ton/yr*
A81: PMfilterable | N81: PMfilterable
A82: PM10 | N82: PM10
A83: PM2.5 | N83: PM2.5
A84: SO2 | N84: SO2
A85: NOx | N85: NOx
A86: CO | N86: CO
A87: VOC | N87: VOC
A88: Individual HAP | N88: Individual HAP
A89: Acetaldehyde | N89: Acetaldehyde
A90: Formaldehyde | N90: Formaldehyde
A91: Acrolein | N91: Acrolein
A92: Methanol | N92: Methanol
A93: Benzene | N93: Benzene
A94: Dichlorobenzene | N94: Dichlorobenzene
A95: Hexane | N95: Hexane
A96: Lead Compounds | N96: Lead Compounds
A97: Naphthalene | N97: Naphthalene
A98: Polycyclic Organic Matter | N98: Polycyclic Organic Matter
A99: Toluene | N99: Toluene
A100: Arsenic Compounds | N100: Arsenic Compounds
A101: Beryllium Compounds | N101: Beryllium Compounds
A102: Cadmium Compounds | N102: Cadmium Compounds
A103: Chromium Compounds | N103: Chromium Compounds
A104: Cobalt Compounds | N104: Cobalt Compounds
A105: Manganese Compounds | N105: Manganese Compounds
A106: Mercury Compounds | N106: Mercury Compounds
A107: Nickel Compounds | N107: Nickel Compounds
A108: Selenium Compounds | N108: Selenium Compounds
A109: Total HAPs | N109: Total HAPs
A110: GHGs | N110: GHGs
A111: Carbon Dioxide (CO2) | N111: Carbon Dioxide (CO2)
A112: Methane (CH4) | N112: Methane (CH4)
A113: Nitrous Oxide (N2O) | N113: Nitrous Oxide (N2O)
A114: * If the fermenter is followed by a scrubber, this will be the scrubber emissions. If more than one fermenter are routed ot the same scrubber, please, include only the scrubber emissions and leave the fermenters blank

Sheet 8) DDGS Dryer
Q1: Essential Unit Conversion
A2: Universal Calculation Spreadsheets applicable for the Emissions of Ethanol Industry
A3: DDGS Dryer | Q3: From | S3: To
R4: MMSCF | S4: =Q4*1020 -> 0 | T4: MMBtu
A5: Please, enter information describing the DDGS Dryer
R6: lb/MMSCF | S6: =Q6/1020 -> 0 | T6: lb/MMBtu
D7: Current Capacity | L7: Maximum Proposed Capacity
A8: ='2) Production Rates'!B15 -> Dry Distilled Grain Soluble (DDGS) - 15% H2O | D8: ='2) Production Rates'!C15 -> 0 | G8: ='2) Production Rates'!D15 -> tons/year | I8: ='2) Production Rates'!B15 -> Dry Distilled Grain Soluble (DDGS) - 15% H2O | L8: ='2) Production Rates'!E15 -> 0 | O8: ='2) Production Rates'!F15 -> tons/year | R8: lb/hr | S8: =Q8/Q9 -> 0 | T8: lb/MMBtu
Q9: 1 | R9: MMBtu/hr
A10: Number of DDGS Dryer | G10: Units | I10: Number of DDGS Dryer | O10: Units
A12: Number of RTO | G12: Units | I12: Number of RTO | O12: Units
A14: Please, enter information describing specific DDGS dryer properties
B15: ID | C15: Emission Unit Name | D15: Capacity, tons/hr | E15: Control Type* | F15: Maximum Rated Capacity, MMBtu/hr | G15: Control type | H15: Maximum permitted annual throughput, ton/yr | J15: ID | K15: Emission Unit Name | L15: Capacity, tons/hr | M15: Control Type* | N15: Maximum Rated Capacity, MMBtu/hr | O15: Control type | P15: Maximum permitted annual throughput, ton/yr
A16: 1st Dryer | I16: 1st Dryer
A17: 2nd Dryer | I17: 2nd Dryer
A18: 3rd Dryer | I18: 3rd Dryer
A19: 4th Dryer | I19: 4th Dryer
A20: 5th Dryer | I20: 5th Dryer
A21: 6th Dryer | I21: 6th Dryer
A22: 7th Dryer | I22: 7th Dryer
A23: 8th Dryer | I23: 8th Dryer
A24: 9th Dryer | I24: 9th Dryer
A25: 10th Dryer | I25: 10th Dryer
A26: * If the dryer is controlled by an RTO, please, enter its Maximum Rated Capacity in MMBtu/hr equals zero and indicate its actual capacity to the permit writer seperatly. Additionally, please include the combined emissions of the dryer and the RTO in the Ferm Tab under RTO emission factors.
A27: Please, enter information describing specific RTOs | I27: Please, enter information describing specific RTOs
B28: ID | C28: Emission Unit Name | D28: Maximum Rated Capacity, MMBtu/hr | E28: Control Type | F28: NSPS* | G28: Hourly limit, hr/yr (If applicable) | J28: ID | K28: Emission Unit Name | L28: Maximum Rated Capacity, MMBtu/hr | M28: Control Type | N28: NSPS* | O28: Hourly limit, hr/yr (If applicable)
A29: 1st RTO | I29: 1st RTO
A30: 2nd RTO | I30: 2nd RTO
A31: 3rd RTO | I31: 3rd RTO
A32: 4th RTO | I32: 4th RTO
A33: 5th RTO | I33: 5th RTO
A34: 6th RTO | I34: 6th RTO
A35: 7th RTO | I35: 7th RTO
A36: 8th RTO | I36: 8th RTO
A37: 9th RTO | I37: 9th RTO
A38: 10th RTO | I38: 10th RTO
A39: * Post-NSPS units are boilers with greater than 250 MMBtu/hr of heat input that commenced construction modification, or reconstruction after August 17, 1971, and units with heat input capacities between 100 and 250 MMBtu/hr that commenced construction modification, or reconstruction after June 19, 1984. | I39: * Post-NSPS units are boilers with greater than 250 MMBtu/hr of heat input that commenced construction modification, or reconstruction after August 17, 1971, and units with heat input capacities between 100 and 250 MMBtu/hr that commenced construction modification, or reconstruction after June 19, 1984.
A43: Please, enter information describing specific permit limits or source specific emissions. If the limit or data are in other units, please, convert them to lb/MMBtu
C44: 1st Dryer Limit (lb/MMBtu) | D44: 2nd Dryer Limit (lb/MMBtu) | E44: 3rd Dryer Limit (lb/MMBtu) | F44: 4th Dryer Limit (lb/MMBtu) | G44: 5th Dryer Limit (lb/MMBtu) | H44: 6th Dryer Limit (lb/MMBtu) | I44: 7th Dryer Limit (lb/MMBtu) | J44: 8th Dryer Limit (lb/MMBtu) | K44: 9th Dryer Limit (lb/MMBtu) | L44: 10th Dryer Limit (lb/MMBtu) | P44: 1st RTO emission factors, lb/MMBtu | Q44: 2nd RTO emission factors, lb/MMBtu | R44: 3rd RTO emission factors, lb/MMBtu | S44: 4th RTO emission factors, lb/MMBtu | T44: 5th RTO emission factors, lb/MMBtu | U44: 6th RTO emission factors, lb/MMBtu | V44: 7th RTO emission factors, lb/MMBtu | W44: 8th RTO emission factors, lb/MMBtu | X44: 9th RTO emission factors, lb/MMBtu | Y44: 10th RTO emission factors, lb/MMBtu
A45: PMfilterable | N45: PMfilterable
A46: PM10 | N46: PM10
A47: PM2.5 | N47: PM2.5
A48: SO2 | N48: SO2
A49: NOx | N49: NOx
A50: CO | N50: CO
A51: VOC | N51: VOC
A52: Individual HAP | N52: Individual HAP
A53: Acetaldehyde | N53: Acetaldehyde
A54: Formaldehyde | N54: Formaldehyde
A55: Acrolein | N55: Acrolein
A56: Methanol | N56: Methanol
A57: Benzene | N57: Benzene
A58: Dichlorobenzene | N58: Dichlorobenzene
A59: Hexane | N59: Hexane
A60: Lead Compounds | N60: Lead Compounds
A61: Naphthalene | N61: Naphthalene
A62: Polycyclic Organic Matter | N62: Polycyclic Organic Matter
A63: Toluene | N63: Toluene
A64: Arsenic Compounds | N64: Arsenic Compounds
A65: Beryllium Compounds | N65: Beryllium Compounds
A66: Cadmium Compounds | N66: Cadmium Compounds
A67: Chromium Compounds | N67: Chromium Compounds
A68: Cobalt Compounds | N68: Cobalt Compounds
A69: Manganese Compounds | N69: Manganese Compounds
A70: Mercury Compounds | N70: Mercury Compounds
A71: Nickel Compounds | N71: Nickel Compounds
A72: Selenium Compounds | N72: Selenium Compounds
A73: Total HAPs | N73: Total HAPs
A74: GHGs | N74: GHGs
A75: Carbon Dioxide (CO2) | N75: Carbon Dioxide (CO2)
A76: Methane (CH4) | N76: Methane (CH4)
A77: Nitrous Oxide (N2O) | N77: Nitrous Oxide (N2O)
A79: Please, enter information describing specific permit limits or source specific emissions. If the limit or data are in other units, please, convert them to lb/MMBtu
C80: 1st Dryer Limit (lb/MMBtu) | D80: 2nd Dryer Limit (lb/MMBtu) | E80: 3rd Dryer Limit (lb/MMBtu) | F80: 4th Dryer Limit (lb/MMBtu) | G80: 5th Dryer Limit (lb/MMBtu) | H80: 6th Dryer Limit (lb/MMBtu) | I80: 7th Dryer Limit (lb/MMBtu) | J80: 8th Dryer Limit (lb/MMBtu) | K80: 9th Dryer Limit (lb/MMBtu) | L80: 10th Dryer Limit (lb/MMBtu) | P80: 1st RTO emission factors, lb/MMBtu | Q80: 2nd RTO emission factors, lb/MMBtu | R80: 3rd RTO emission factors, lb/MMBtu | S80: 4th RTO emission factors, lb/MMBtu | T80: 5th RTO emission factors, lb/MMBtu | U80: 6th RTO emission factors, lb/MMBtu | V80: 7th RTO emission factors, lb/MMBtu | W80: 8th RTO emission factors, lb/MMBtu | X80: 9th RTO emission factors, lb/MMBtu | Y80: 10th RTO emission factors, lb/MMBtu
A81: PMfilterable | N81: PMfilterable
A82: PM10 | N82: PM10
A83: PM2.5 | N83: PM2.5
A84: SO2 | N84: SO2
A85: NOx | N85: NOx
A86: CO | N86: CO
A87: VOC | N87: VOC
A88: Individual HAP | N88: Individual HAP
A89: Acetaldehyde | N89: Acetaldehyde
A90: Formaldehyde | N90: Formaldehyde
A91: Acrolein | N91: Acrolein
A92: Methanol | N92: Methanol
A93: Benzene | N93: Benzene
A94: Dichlorobenzene | N94: Dichlorobenzene
A95: Hexane | N95: Hexane
A96: Lead Compounds | N96: Lead Compounds
A97: Naphthalene | N97: Naphthalene
A98: Polycyclic Organic Matter | N98: Polycyclic Organic Matter
A99: Toluene | N99: Toluene
A100: Arsenic Compounds | N100: Arsenic Compounds
A101: Beryllium Compounds | N101: Beryllium Compounds
A102: Cadmium Compounds | N102: Cadmium Compounds
A103: Chromium Compounds | N103: Chromium Compounds
A104: Cobalt Compounds | N104: Cobalt Compounds
A105: Manganese Compounds | N105: Manganese Compounds
A106: Mercury Compounds | N106: Mercury Compounds
A107: Nickel Compounds | N107: Nickel Compounds
A108: Selenium Compounds | N108: Selenium Compounds
A109: Total HAPs | N109: Total HAPs
A110: GHGs | N110: GHGs
A111: Carbon Dioxide (CO2) | N111: Carbon Dioxide (CO2)
A112: Methane (CH4) | N112: Methane (CH4)
A113: Nitrous Oxide (N2O) | N113: Nitrous Oxide (N2O)

Sheet 9) Solids Loadout
A2: Universal Calculation Spreadsheets applicable for the Emissions of Ethanol Industry
A3: Solids Loadout
D6: Current Capacity | L6: Maximum Proposed Capacity
A7: Grain throughput based on maximum production | D7: ='2) Production Rates'!C16 -> 0 | G7: tons/year | I7: Grain throughput based on maximum production | L7: ='2) Production Rates'!E16 -> 0 | O7: tons/year
A8: Permitted DDGS throughput | D8: ='2) Production Rates'!C15 -> 0 | G8: tons/year | I8: Permitted DDGS throughput | L8: ='2) Production Rates'!E15 -> 0 | O8: tons/year
A9: Permitted WDGS throughput (including MWDGS) | D9: ='2) Production Rates'!C14+'2) Production Rates'!C13 -> 0 | G9: tons/year | I9: Permitted WDGS throughput (including MWDGS) | L9: ='2) Production Rates'!E13+'2) Production Rates'!E14 -> 0 | O9: tons/year
A11: Spouts | G11: Units | I11: Spouts | O11: Units
B13: ID | C13: Emission Unit Name | D13: Maximum throughput rate (lb/hr) | E13: Type of solids | F13: Baghouse airflow, acfm | J13: ID | K13: Emission Unit Name | L13: Maximum throughput rate (lb/hr) | M13: Type of solids | N13: Baghouse airflow, acfm
A14: 1st Spout | I14: 1st Spout
A15: 2nd Spout | I15: 2nd Spout
A16: 3rd Spout | I16: 3rd Spout
A17: 4th Spout | I17: 4th Spout
A18: 5th Spout | I18: 5th Spout
A19: 6th Spout | I19: 6th Spout
A20: 7th Spout | I20: 7th Spout
A21: 8th Spout | I21: 8th Spout
A22: 9th Spout | I22: 9th Spout
A23: 10th Spout | I23: 10th Spout

Sheet 10) Liquid Loadout
A2: Universal Calculation Spreadsheets applicable for the Emissions of Ethanol Industry
A3: Liquid Loadout and Vapor Recovery
B6: Questions | E6: Current Capacity | J6: Maximum Proposed Capacity
B7: Anhydrous Ethanol | E7: ='2) Production Rates'!C12 -> 0 | H7: MMgal/yr | J7: ='2) Production Rates'!E12 -> 0 | M7: MMgal/yr
B8: Denaturant | E8: =E9-E7 -> 0 | H8: MMgal/yr | J8: =J9-J7 -> 0 | M8: MMgal/yr
B9: Denatured Ethanol | E9: ='2) Production Rates'!C10 -> 0 | H9: MMgal/yr | J9: ='2) Production Rates'!E10 -> 0 | M9: MMgal/yr
B11: Type of Loadout | E11: Truck
B12: Loading Type
B13: Truck loadout throughput limitation, MMgal/yr
B14: Rail loadout throughput limitation, MMgal/yr
B16: Number of Flares | E16: 2 | H16: Units | M16: Units
C18: ID | D18: Emission Unit Name | E18: Throughput controlled (Mmgal/yr) | F18: Maximum flare rated capacity (MMBtu/hr) | G18: Maximum pilot rated capacity (MMBtu/hr) | H18: Operating hours limits (hr) | K18: ID | L18: Emission Unit Name | M18: Throughput controlled (Mmgal/yr) | N18: Maximum flare rated capacity (MMBtu/hr) | O18: Maximum pilot rated capacity (MMBtu/hr) | P18: Operating hours limits (hr)
B19: 1st Flare | J19: 1st Flare
B20: 2nd Flare | J20: 2nd Flare
B21: 3rd Flare | J21: 3rd Flare
B22: 4th Flare | J22: 4th Flare
B23: 5th Flare | J23: 5th Flare
B24: 6th Flare | J24: 6th Flare
B25: 7th Flare | J25: 7th Flare
B26: 8th Flare | J26: 8th Flare
B27: 9th Flare | J27: 9th Flare
B28: 10th Flare | J28: 10th Flare

Sheet 11) Tanks
A2: Universal Calculation Spreadsheets applicable for the Emissions of Ethanol Industry
A3: Tanks
D6: Current Capacity | I6: Maximum Proposed Capacity
A7: Tanks | G7: Units | L7: Units | T7: Material | U7: Anhydrous Ethanol | W7: Denaturant | AD7: Corrosion Inhibitor
T8: HAP Weight Fraction | U8: 0.0129 | V8: 0.0018 | W8: 0.0029 | X8: 2e-05 | Y8: 0.0001 | Z8: 5e-05 | AA8: 0.0121 | AB8: 0.0018 | AC8: 0.0005 | AD8: 0.25 | AE8: 0.1
B9: ID | C9: Emission Unit Name | D9: Tank Content | E9: Maximum Tank Capacity (Gal) | F9: Maximum Working Volume (Gal) | G9: Throughput (Gal/yr) | H9: Turnovers | I9: Height (ft) | J9: Length (ft) | K9: Diameter (ft) | L9: Tank Orientation | M9: Tank Location | N9: Type of Tank | O9: Type of Primary Seal | P9: VOC, lb/ yr | R9: Amount of VOC from Ethanol | S9: Amount of VOC from Denaturant | T9: Hazardous Air Pollutant | U9: Acetaldehyde | V9: Methanol | W9: Benzene | X9: Carbon disulfide | Y9: Cumene | Z9: Ethyl Benzene | AA9: n-Hexane | AB9: Toluene | AC9: Xylenes | AD9: Methanol | AE9: Xylenes
A10: 1st Tank | R10: =IF(D10=Datasets!$R$2,P10,IF(D10=Datasets!$R$4,0.95*P10,0)) -> 0 | S10: =IF(D10=Datasets!$R$3,P10,IF(D10=Datasets!$R$4,0.05*P10,0)) -> 0 | U10: =R10*U$8 -> 0 | V10: =R10*V$8 -> 0 | W10: =S10*W$8 -> 0 | X10: =S10*X$8 -> 0 | Y10: =S10*Y$8 -> 0 | Z10: =S10*Z$8 -> 0 | AA10: =S10*AA$8 -> 0 | AB10: =S10*AB$8 -> 0 | AC10: =S10*AC$8 -> 0 | AD10: =(P10-R10-S10)*AD$8 -> 0 | AE10: =(P10-R10-S10)*AE$8 -> 0
A11: 2nd Tank | R11: =IF(D11=Datasets!$R$2,P11,IF(D11=Datasets!$R$4,0.95*P11,0)) -> 0 | S11: =IF(D11=Datasets!$R$3,P11,IF(D11=Datasets!$R$4,0.05*P11,0)) -> 0 | U11: 0 | V11: 0 | W11: 0 | X11: 0 | Y11: 0 | Z11: 0 | AA11: 0 | AB11: 0 | AC11: 0 | AD11: 0 | AE11: 0
A12: 3rd Tank | R12: =IF(D12=Datasets!$R$2,P12,IF(D12=Datasets!$R$4,0.95*P12,0)) -> 0 | S12: =IF(D12=Datasets!$R$3,P12,IF(D12=Datasets!$R$4,0.05*P12,0)) -> 0 | U12: 0 | V12: 0 | W12: 0 | X12: 0 | Y12: 0 | Z12: 0 | AA12: 0 | AB12: 0 | AC12: 0 | AD12: 0 | AE12: 0
A13: 4th Tank | R13: =IF(D13=Datasets!$R$2,P13,IF(D13=Datasets!$R$4,0.95*P13,0)) -> 0 | S13: =IF(D13=Datasets!$R$3,P13,IF(D13=Datasets!$R$4,0.05*P13,0)) -> 0 | U13: 0 | V13: 0 | W13: 0 | X13: 0 | Y13: 0 | Z13: 0 | AA13: 0 | AB13: 0 | AC13: 0 | AD13: 0 | AE13: 0
A14: 5th Tank | R14: =IF(D14=Datasets!$R$2,P14,IF(D14=Datasets!$R$4,0.95*P14,0)) -> 0 | S14: =IF(D14=Datasets!$R$3,P14,IF(D14=Datasets!$R$4,0.05*P14,0)) -> 0 | U14: 0 | V14: 0 | W14: 0 | X14: 0 | Y14: 0 | Z14: 0 | AA14: 0 | AB14: 0 | AC14: 0 | AD14: 0 | AE14: 0
A15: 6th Tank | R15: =IF(D15=Datasets!$R$2,P15,IF(D15=Datasets!$R$4,0.95*P15,0)) -> 0 | S15: =IF(D15=Datasets!$R$3,P15,IF(D15=Datasets!$R$4,0.05*P15,0)) -> 0 | U15: 0 | V15: 0 | W15: 0 | X15: 0 | Y15: 0 | Z15: 0 | AA15: 0 | AB15: 0 | AC15: 0 | AD15: 0 | AE15: 0
A16: 7th Tank | R16: =IF(D16=Datasets!$R$2,P16,IF(D16=Datasets!$R$4,0.95*P16,0)) -> 0 | S16: =IF(D16=Datasets!$R$3,P16,IF(D16=Datasets!$R$4,0.05*P16,0)) -> 0 | U16: 0 | V16: 0 | W16: 0 | X16: 0 | Y16: 0 | Z16: 0 | AA16: 0 | AB16: 0 | AC16: 0 | AD16: 0 | AE16: 0
A17: 8th Tank | R17: =IF(D17=Datasets!$R$2,P17,IF(D17=Datasets!$R$4,0.95*P17,0)) -> 0 | S17: =IF(D17=Datasets!$R$3,P17,IF(D17=Datasets!$R$4,0.05*P17,0)) -> 0 | U17: 0 | V17: 0 | W17: 0 | X17: 0 | Y17: 0 | Z17: 0 | AA17: 0 | AB17: 0 | AC17: 0 | AD17: 0 | AE17: 0
A18: 9th Tank | R18: =IF(D18=Datasets!$R$2,P18,IF(D18=Datasets!$R$4,0.95*P18,0)) -> 0 | S18: =IF(D18=Datasets!$R$3,P18,IF(D18=Datasets!$R$4,0.05*P18,0)) -> 0 | U18: 0 | V18: 0 | W18: 0 | X18: 0 | Y18: 0 | Z18: 0 | AA18: 0 | AB18: 0 | AC18: 0 | AD18: 0 | AE18: 0
A19: 10th Tank | R19: =IF(D19=Datasets!$R$2,P19,IF(D19=Datasets!$R$4,0.95*P19,0)) -> 0 | S19: =IF(D19=Datasets!$R$3,P19,IF(D19=Datasets!$R$4,0.05*P19,0)) -> 0 | U19: 0 | V19: 0 | W19: 0 | X19: 0 | Y19: 0 | Z19: 0 | AA19: 0 | AB19: 0 | AC19: 0 | AD19: 0 | AE19: 0
T21: Material | U21: Anhydrous Ethanol | W21: Denaturant | AD21: Corrosion Inhibitor
T22: HAP Weight Fraction | U22: 0.0129 | V22: 0.0018 | W22: 0.0029 | X22: 2e-05 | Y22: 0.0001 | Z22: 5e-05 | AA22: 0.0121 | AB22: 0.0018 | AC22: 0.0005 | AD22: 0.25 | AE22: 0.1
B23: ID | C23: Emission Unit Name | D23: Tank Content | E23: Maximum Tank Capacity (Gal) | F23: Maximum Working Volume (Gal) | G23: Throughput (Gal/yr) | H23: Turnovers | I23: Height (ft) | J23: Length (ft) | K23: Diameter (ft) | L23: Tank Orientation | M23: Tank Location | N23: Type of Tank | O23: Type of Primary Seal | P23: VOC, lb/yr | R23: Amount of VOC from Ethanol | S23: Amount of VOC from Denaturant | T23: Hazardous Air Pollutant | U23: Acetaldehyde | V23: Methanol | W23: Benzene | X23: Carbon disulfide | Y23: Cumene | Z23: Ethyl Benzene | AA23: n-Hexane | AB23: Toluene | AC23: Xylenes | AD23: Methanol | AE23: Xylenes
A24: 1st Tank | R24: =IF(D24=Datasets!$R$2,P24,IF(D24=Datasets!$R$4,0.95*P24,0)) -> 0 | S24: =IF(D24=Datasets!$R$3,P24,IF(D24=Datasets!$R$4,0.05*P24,0)) -> 0 | U24: =R24*U$8 -> 0 | V24: =R24*V$8 -> 0 | W24: =S24*W$8 -> 0 | X24: =S24*X$8 -> 0 | Y24: =S24*Y$8 -> 0 | Z24: =S24*Z$8 -> 0 | AA24: =S24*AA$8 -> 0 | AB24: =S24*AB$8 -> 0 | AC24: =S24*AC$8 -> 0 | AD24: =(P24-R24-S24)*AD$8 -> 0 | AE24: =(P24-R24-S24)*AE$8 -> 0
A25: 2nd Tank | R25: =IF(D25=Datasets!$R$2,P25,IF(D25=Datasets!$R$4,0.95*P25,0)) -> 0 | S25: =IF(D25=Datasets!$R$3,P25,IF(D25=Datasets!$R$4,0.05*P25,0)) -> 0 | U25: 0 | V25: 0 | W25: 0 | X25: 0 | Y25: 0 | Z25: 0 | AA25: 0 | AB25: 0 | AC25: 0 | AD25: 0 | AE25: 0
A26: 3rd Tank | R26: =IF(D26=Datasets!$R$2,P26,IF(D26=Datasets!$R$4,0.95*P26,0)) -> 0 | S26: =IF(D26=Datasets!$R$3,P26,IF(D26=Datasets!$R$4,0.05*P26,0)) -> 0 | U26: 0 | V26: 0 | W26: 0 | X26: 0 | Y26: 0 | Z26: 0 | AA26: 0 | AB26: 0 | AC26: 0 | AD26: 0 | AE26: 0
A27: 4th Tank | R27: =IF(D27=Datasets!$R$2,P27,IF(D27=Datasets!$R$4,0.95*P27,0)) -> 0 | S27: =IF(D27=Datasets!$R$3,P27,IF(D27=Datasets!$R$4,0.05*P27,0)) -> 0 | U27: 0 | V27: 0 | W27: 0 | X27: 0 | Y27: 0 | Z27: 0 | AA27: 0 | AB27: 0 | AC27: 0 | AD27: 0 | AE27: 0
A28: 5th Tank | R28: =IF(D28=Datasets!$R$2,P28,IF(D28=Datasets!$R$4,0.95*P28,0)) -> 0 | S28: =IF(D28=Datasets!$R$3,P28,IF(D28=Datasets!$R$4,0.05*P28,0)) -> 0 | U28: 0 | V28: 0 | W28: 0 | X28: 0 | Y28: 0 | Z28: 0 | AA28: 0 | AB28: 0 | AC28: 0 | AD28: 0 | AE28: 0
A29: 6th Tank | R29: =IF(D29=Datasets!$R$2,P29,IF(D29=Datasets!$R$4,0.95*P29,0)) -> 0 | S29: =IF(D29=Datasets!$R$3,P29,IF(D29=Datasets!$R$4,0.05*P29,0)) -> 0 | U29: 0 | V29: 0 | W29: 0 | X29: 0 | Y29: 0 | Z29: 0 | AA29: 0 | AB29: 0 | AC29: 0 | AD29: 0 | AE29: 0
A30: 7th Tank | R30: =IF(D30=Datasets!$R$2,P30,IF(D30=Datasets!$R$4,0.95*P30,0)) -> 0 | S30: =IF(D30=Datasets!$R$3,P30,IF(D30=Datasets!$R$4,0.05*P30,0)) -> 0 | U30: 0 | V30: 0 | W30: 0 | X30: 0 | Y30: 0 | Z30: 0 | AA30: 0 | AB30: 0 | AC30: 0 | AD30: 0 | AE30: 0
A31: 8th Tank | R31: =IF(D31=Datasets!$R$2,P31,IF(D31=Datasets!$R$4,0.95*P31,0)) -> 0 | S31: =IF(D31=Datasets!$R$3,P31,IF(D31=Datasets!$R$4,0.05*P31,0)) -> 0 | U31: 0 | V31: 0 | W31: 0 | X31: 0 | Y31: 0 | Z31: 0 | AA31: 0 | AB31: 0 | AC31: 0 | AD31: 0 | AE31: 0
A32: 9th Tank | R32: =IF(D32=Datasets!$R$2,P32,IF(D32=Datasets!$R$4,0.95*P32,0)) -> 0 | S32: =IF(D32=Datasets!$R$3,P32,IF(D32=Datasets!$R$4,0.05*P32,0)) -> 0 | U32: 0 | V32: 0 | W32: 0 | X32: 0 | Y32: 0 | Z32: 0 | AA32: 0 | AB32: 0 | AC32: 0 | AD32: 0 | AE32: 0
A33: 10th Tank | R33: =IF(D33=Datasets!$R$2,P33,IF(D33=Datasets!$R$4,0.95*P33,0)) -> 0 | S33: =IF(D33=Datasets!$R$3,P33,IF(D33=Datasets!$R$4,0.05*P33,0)) -> 0 | U33: 0 | V33: 0 | W33: 0 | X33: 0 | Y33: 0 | Z33: 0 | AA33: 0 | AB33: 0 | AC33: 0 | AD33: 0 | AE33: 0
B40: Total Individual HAPs | G40: Total Individual HAPs
B41: lb/year | C41: lb/hr | D41: tons/yr | G41: lb/year | H41: lb/hr | I41: tons/yr
A42: VOC | B42: =SUM(P10:P19) -> 0 | C42: =B42/8760 -> 0 | D42: =B42/2000 -> 0 | F42: VOC | G42: =SUM(P24:P33) -> 0 | H42: =G42/8760 -> 0 | I42: =G42/2000 -> 0
A43: Acetaldehyde | B43: =SUM(U10:U19) -> 0 | C43: =B43/8760 -> 0 | D43: =B43/2000 -> 0 | F43: Acetaldehyde | G43: =SUM(U24:U33) -> 0 | H43: =G43/8760 -> 0 | I43: =G43/2000 -> 0
A44: Methanol | B44: =SUM(V10:V19)+SUM(AD10:AD19) -> 0 | C44: 0 | D44: 0 | F44: Methanol | G44: =SUM(V24:V33)+SUM(AD24:AD33) -> 0 | H44: 0 | I44: 0
A45: Benzene | B45: =SUM(W10:W19) -> 0 | C45: 0 | D45: 0 | F45: Benzene | G45: =SUM(W24:W33) -> 0 | H45: 0 | I45: 0
A46: Carbon disulfide | B46: =SUM(X10:X19) -> 0 | C46: 0 | D46: 0 | F46: Carbon disulfide | G46: =SUM(X24:X33) -> 0 | H46: 0 | I46: 0
A47: Cumene | B47: =SUM(Y10:Y19) -> 0 | C47: 0 | D47: 0 | F47: Cumene | G47: =SUM(Y24:Y33) -> 0 | H47: 0 | I47: 0
A48: Ethyl Benzene | B48: =SUM(Z10:Z19) -> 0 | C48: 0 | D48: 0 | F48: Ethyl Benzene | G48: =SUM(Z24:Z33) -> 0 | H48: 0 | I48: 0
A49: n-Hexane | B49: =SUM(AA10:AA19) -> 0 | C49: 0 | D49: 0 | F49: n-Hexane | G49: =SUM(AA24:AA33) -> 0 | H49: 0 | I49: 0
A50: Toluene | B50: =SUM(AB10:AB19) -> 0 | C50: 0 | D50: 0 | F50: Toluene | G50: =SUM(AB24:AB33) -> 0 | H50: 0 | I50: 0
A51: Xylenes | B51: =SUM(AC10:AC19)+SUM(AE10:AE19) -> 0 | C51: 0 | D51: 0 | F51: Xylenes | G51: =SUM(AC24:AC33)+SUM(AE24:AE33) -> 0 | H51: 0 | I51: 0
A52: Total | B52: =SUM(B43:B51) -> 0 | C52: 0 | D52: =B52/2000 -> 0 | F52: Total | G52: =SUM(G43:G51) -> 0 | H52: 0 | I52: =G52/2000 -> 0

Sheet 12) Haul Roads
A2: Universal Calculation Spreadsheets applicable for the Emissions of Ethanol Industry
A3: Haul Road Emissions
A7: Paved roads {AP-42 Chapter 13.2.1 (1/11)} | I7: Unpaved roads {AP-42 Chapter 13.2.2 (11/06)} | U7: Paved roads {AP-42 Chapter 13.2.1 (1/11)} | AC7: Unpaved roads {AP-42 Chapter 13.2.2 (11/06)}
A9: Equation (2): | I9: Equation (1a): | U9: Equation (2): | AC9: Equation (1a):
I10: (Modified) | AC10: (Modified)
C12: k | K12: k | L12: a | M12: b | N12: d | W12: k | AE12: k | AF12: a | AG12: b | AH12: d
B13: PM | C13: 0.011 | J13: PM | K13: 4.9 | L13: 0.7 | M13: 0.45 | N13: 0.3 | V13: PM | W13: 0.011 | AD13: PM | AE13: 4.9 | AF13: 0.7 | AG13: 0.45 | AH13: 0.3
B14: PM10 | C14: 0.0022 | J14: PM10 | K14: 1.5 | L14: 0.9 | M14: 0.45 | N14: 0.5 | V14: PM10 | W14: 0.0022 | AD14: PM10 | AE14: 1.5 | AF14: 0.9 | AG14: 0.45 | AH14: 0.5
B15: PM2.5 | C15: 0.00054 | J15: PM2.5 | K15: 0.15 | L15: 0.9 | M15: 0.45 | N15: 0.5 | V15: PM2.5 | W15: 0.00054 | AD15: PM2.5 | AE15: 0.15 | AF15: 0.9 | AG15: 0.45 | AH15: 0.5
A17: Haul Road / Traffic Parameters | U17: Haul Road / Traffic Parameters
A18: Activity / Road Description | D18: Input Road Type | F18: Road Type / Silt Value | H18: Roundtrip Length (feet) | J18: Truck Weight (tons) | M18: Ave. Speed (mph) | N18: Unrestricted Maximum Throughput (units/yr) | P18: Ave. Truck Capacity (units/truck) | R18: Annual VMT | U18: Activity / Road Description | X18: Input Road Type | Z18: Road Type / Silt Value | AB18: Roundtrip Length (feet) | AD18: Truck Weight (tons) | AG18: Ave. Speed (mph) | AH18: Unrestricted Maximum Throughput (units/yr) | AJ18: Ave. Truck Capacity (units/truck) | AL18: Annual VMT
H19: empty | I19: full | J19: empty | K19: full | L19: Ave. | AB19: empty | AC19: full | AD19: empty | AE19: full | AF19: Ave.
A20: Grain Delivery | F20: =IF(D20="","",IF(OR(D20=Datasets!$AI$2,D20=Datasets!$AI$3,D20=Datasets!$AI$4),"U","P")) ->  | G20: =IF(D20="","",IF(OR(D20=Datasets!$AI$2,D20=Datasets!$AI$5),3,IF(OR(D20=Datasets!$AI$3,D20=Datasets!$AI$6),6,10))) ->  | J20: 15 | K20: 40 | L20: =IF(H20+I20=0,"",(H20*J20+I20*K20)/(H20+I20)) ->  | M20: 15 | P20: 28 | Q20: ton | R20: =IF(H20+I20=0,"-",(N20/P20)*((H20+I20)/5280)) -> - | U20: Grain Delivery | Z20: =IF(X20="","",IF(OR(X20=Datasets!$AI$2,X20=Datasets!$AI$3,X20=Datasets!$AI$4),"U","P")) ->  | AA20: =IF(X20="","",IF(OR(X20=Datasets!$AI$2,X20=Datasets!$AI$5),3,IF(OR(X20=Datasets!$AI$3,X20=Datasets!$AI$6),6,10))) ->  | AD20: 15 | AE20: 40 | AF20: =IF(AB20+AC20=0,"",(AB20*AD20+AC20*AE20)/(AB20+AC20)) ->  | AG20: 15 | AJ20: 28 | AK20: ton | AL20: =IF(AB20+AC20=0,"-",(AH20/AJ20)*((AB20+AC20)/5280)) -> -
A21: Grain to Pile | F21: =IF(D21="","",IF(OR(D21=Datasets!$AI$2,D21=Datasets!$AI$3,D21=Datasets!$AI$4),"U","P")) ->  | G21: =IF(D21="","",IF(OR(D21=Datasets!$AI$2,D21=Datasets!$AI$5),3,IF(OR(D21=Datasets!$AI$3,D21=Datasets!$AI$6),6,10))) ->  | J21: 15 | K21: 40 | M21: 15 | P21: 28 | Q21: ton | R21: =IF(H21+I21=0,"-",(N21/P21)*((H21+I21)/5280)) -> - | U21: Grain to Pile | Z21: =IF(X21="","",IF(OR(X21=Datasets!$AI$2,X21=Datasets!$AI$3,X21=Datasets!$AI$4),"U","P")) ->  | AA21: =IF(X21="","",IF(OR(X21=Datasets!$AI$2,X21=Datasets!$AI$5),3,IF(OR(X21=Datasets!$AI$3,X21=Datasets!$AI$6),6,10))) ->  | AD21: 15 | AE21: 40 | AG21: 15 | AJ21: 28 | AK21: ton | AL21: =IF(AB21+AC21=0,"-",(AH21/AJ21)*((AB21+AC21)/5280)) -> -
A22: Grain from Pile | F22: =IF(D22="","",IF(OR(D22=Datasets!$AI$2,D22=Datasets!$AI$3,D22=Datasets!$AI$4),"U","P")) ->  | G22: =IF(D22="","",IF(OR(D22=Datasets!$AI$2,D22=Datasets!$AI$5),3,IF(OR(D22=Datasets!$AI$3,D22=Datasets!$AI$6),6,10))) ->  | J22: 15 | K22: 40 | M22: 15 | P22: 28 | Q22: ton | R22: =IF(H22+I22=0,"-",(N22/P22)*((H22+I22)/5280)) -> - | U22: Grain from Pile | Z22: =IF(X22="","",IF(OR(X22=Datasets!$AI$2,X22=Datasets!$AI$3,X22=Datasets!$AI$4),"U","P")) ->  | AA22: =IF(X22="","",IF(OR(X22=Datasets!$AI$2,X22=Datasets!$AI$5),3,IF(OR(X22=Datasets!$AI$3,X22=Datasets!$AI$6),6,10))) ->  | AD22: 15 | AE22: 40 | AG22: 15 | AJ22: 28 | AK22: ton | AL22: =IF(AB22+AC22=0,"-",(AH22/AJ22)*((AB22+AC22)/5280)) -> -
A23: Denaturant | F23: =IF(D23="","",IF(OR(D23=Datasets!$AI$2,D23=Datasets!$AI$3,D23=Datasets!$AI$4),"U","P")) ->  | G23: =IF(D23="","",IF(OR(D23=Datasets!$AI$2,D23=Datasets!$AI$5),3,IF(OR(D23=Datasets!$AI$3,D23=Datasets!$AI$6),6,10))) ->  | J23: 15 | K23: 40 | M23: 15 | P23: 7900 | Q23: gal | R23: - | U23: Denaturant | Z23: =IF(X23="","",IF(OR(X23=Datasets!$AI$2,X23=Datasets!$AI$3,X23=Datasets!$AI$4),"U","P")) ->  | AA23: =IF(X23="","",IF(OR(X23=Datasets!$AI$2,X23=Datasets!$AI$5),3,IF(OR(X23=Datasets!$AI$3,X23=Datasets!$AI$6),6,10))) ->  | AD23: 15 | AE23: 40 | AG23: 15 | AJ23: 7900 | AK23: gal | AL23: -
A24: Ethanol Loadout | F24: =IF(D24="","",IF(OR(D24=Datasets!$AI$2,D24=Datasets!$AI$3,D24=Datasets!$AI$4),"U","P")) ->  | G24: =IF(D24="","",IF(OR(D24=Datasets!$AI$2,D24=Datasets!$AI$5),3,IF(OR(D24=Datasets!$AI$3,D24=Datasets!$AI$6),6,10))) ->  | J24: 15 | K24: 40 | M24: 15 | P24: 7900 | Q24: gal | R24: - | U24: Ethanol Loadout | Z24: =IF(X24="","",IF(OR(X24=Datasets!$AI$2,X24=Datasets!$AI$3,X24=Datasets!$AI$4),"U","P")) ->  | AA24: =IF(X24="","",IF(OR(X24=Datasets!$AI$2,X24=Datasets!$AI$5),3,IF(OR(X24=Datasets!$AI$3,X24=Datasets!$AI$6),6,10))) ->  | AD24: 15 | AE24: 40 | AG24: 15 | AJ24: 7900 | AK24: gal | AL24: -
A25: WDGS | F25: =IF(D25="","",IF(OR(D25=Datasets!$AI$2,D25=Datasets!$AI$3,D25=Datasets!$AI$4),"U","P")) ->  | G25: =IF(D25="","",IF(OR(D25=Datasets!$AI$2,D25=Datasets!$AI$5),3,IF(OR(D25=Datasets!$AI$3,D25=Datasets!$AI$6),6,10))) ->  | J25: 15 | K25: 40 | M25: 15 | P25: 28 | Q25: ton | R25: =IF(H25+I25=0,"-",(N25/P25)*((H25+I25)/5280)) -> - | U25: WDGS | Z25: =IF(X25="","",IF(OR(X25=Datasets!$AI$2,X25=Datasets!$AI$3,X25=Datasets!$AI$4),"U","P")) ->  | AA25: =IF(X25="","",IF(OR(X25=Datasets!$AI$2,X25=Datasets!$AI$5),3,IF(OR(X25=Datasets!$AI$3,X25=Datasets!$AI$6),6,10))) ->  | AD25: 15 | AE25: 40 | AG25: 15 | AJ25: 28 | AK25: ton | AL25: =IF(AB25+AC25=0,"-",(AH25/AJ25)*((AB25+AC25)/5280)) -> -
A26: Anhydrous Ammonia | F26: =IF(D26="","",IF(OR(D26=Datasets!$AI$2,D26=Datasets!$AI$3,D26=Datasets!$AI$4),"U","P")) ->  | G26: =IF(D26="","",IF(OR(D26=Datasets!$AI$2,D26=Datasets!$AI$5),3,IF(OR(D26=Datasets!$AI$3,D26=Datasets!$AI$6),6,10))) ->  | J26: 15 | K26: 40 | M26: 15 | P26: 8150 | Q26: gal | R26: - | U26: Anhydrous Ammonia | Z26: =IF(X26="","",IF(OR(X26=Datasets!$AI$2,X26=Datasets!$AI$3,X26=Datasets!$AI$4),"U","P")) ->  | AA26: =IF(X26="","",IF(OR(X26=Datasets!$AI$2,X26=Datasets!$AI$5),3,IF(OR(X26=Datasets!$AI$3,X26=Datasets!$AI$6),6,10))) ->  | AD26: 15 | AE26: 40 | AG26: 15 | AJ26: 8150 | AK26: gal | AL26: =IF(AB26+AC26=0,"-",(AH26/AJ26)*((AB26+AC26)/5280)) -> -
A27: Corrosion Inhibitor | F27: =IF(D27="","",IF(OR(D27=Datasets!$AI$2,D27=Datasets!$AI$3,D27=Datasets!$AI$4),"U","P")) ->  | G27: =IF(D27="","",IF(OR(D27=Datasets!$AI$2,D27=Datasets!$AI$5),3,IF(OR(D27=Datasets!$AI$3,D27=Datasets!$AI$6),6,10))) ->  | J27: 15 | K27: 40 | M27: 15 | P27: 1500 | Q27: gal | R27: - | U27: Corrosion Inhibitor | Z27: =IF(X27="","",IF(OR(X27=Datasets!$AI$2,X27=Datasets!$AI$3,X27=Datasets!$AI$4),"U","P")) ->  | AA27: =IF(X27="","",IF(OR(X27=Datasets!$AI$2,X27=Datasets!$AI$5),3,IF(OR(X27=Datasets!$AI$3,X27=Datasets!$AI$6),6,10))) ->  | AD27: 15 | AE27: 40 | AG27: 15 | AJ27: 1500 | AK27: gal | AL27: -
A28: Caustic Soda | F28: =IF(D28="","",IF(OR(D28=Datasets!$AI$2,D28=Datasets!$AI$3,D28=Datasets!$AI$4),"U","P")) ->  | G28: =IF(D28="","",IF(OR(D28=Datasets!$AI$2,D28=Datasets!$AI$5),3,IF(OR(D28=Datasets!$AI$3,D28=Datasets!$AI$6),6,10))) ->  | J28: 15 | K28: 40 | M28: 15 | P28: 5000 | Q28: gal | R28: - | U28: Caustic Soda | Z28: =IF(X28="","",IF(OR(X28=Datasets!$AI$2,X28=Datasets!$AI$3,X28=Datasets!$AI$4),"U","P")) ->  | AA28: =IF(X28="","",IF(OR(X28=Datasets!$AI$2,X28=Datasets!$AI$5),3,IF(OR(X28=Datasets!$AI$3,X28=Datasets!$AI$6),6,10))) ->  | AD28: 15 | AE28: 40 | AG28: 15 | AJ28: 5000 | AK28: gal | AL28: -
A29: Sulfuric Acid | F29: =IF(D29="","",IF(OR(D29=Datasets!$AI$2,D29=Datasets!$AI$3,D29=Datasets!$AI$4),"U","P")) ->  | G29: =IF(D29="","",IF(OR(D29=Datasets!$AI$2,D29=Datasets!$AI$5),3,IF(OR(D29=Datasets!$AI$3,D29=Datasets!$AI$6),6,10))) ->  | J29: 15 | K29: 40 | M29: 15 | P29: 2900 | Q29: gal | R29: =IF(H29+I29=0,"-",(N29/P29)*((H29+I29)/5280)) -> - | U29: Sulfuric Acid | Z29: =IF(X29="","",IF(OR(X29=Datasets!$AI$2,X29=Datasets!$AI$3,X29=Datasets!$AI$4),"U","P")) ->  | AA29: =IF(X29="","",IF(OR(X29=Datasets!$AI$2,X29=Datasets!$AI$5),3,IF(OR(X29=Datasets!$AI$3,X29=Datasets!$AI$6),6,10))) ->  | AD29: 15 | AE29: 40 | AG29: 15 | AJ29: 2900 | AK29: gal | AL29: =IF(AB29+AC29=0,"-",(AH29/AJ29)*((AB29+AC29)/5280)) -> -
A30: Other1 | F30: =IF(D30="","",IF(OR(D30=Datasets!$AI$2,D30=Datasets!$AI$3,D30=Datasets!$AI$4),"U","P")) ->  | G30: =IF(D30="","",IF(OR(D30=Datasets!$AI$2,D30=Datasets!$AI$5),3,IF(OR(D30=Datasets!$AI$3,D30=Datasets!$AI$6),6,10))) ->  | J30: 15 | K30: 40 | L30: =IF(H30+I30=0,"",(H30*J30+I30*K30)/(H30+I30)) ->  | M30: 15 | P30: 28 | Q30: ton | R30: =IF(H30+I30=0,"-",(N30/P30)*((H30+I30)/5280)) -> - | U30: Other1 | Z30: =IF(X30="","",IF(OR(X30=Datasets!$AI$2,X30=Datasets!$AI$3,X30=Datasets!$AI$4),"U","P")) ->  | AA30: =IF(X30="","",IF(OR(X30=Datasets!$AI$2,X30=Datasets!$AI$5),3,IF(OR(X30=Datasets!$AI$3,X30=Datasets!$AI$6),6,10))) ->  | AD30: 15 | AE30: 40 | AF30: =IF(AB30+AC30=0,"",(AB30*AD30+AC30*AE30)/(AB30+AC30)) ->  | AG30: 15 | AJ30: 28 | AK30: ton | AL30: =IF(AB30+AC30=0,"-",(AH30/AJ30)*((AB30+AC30)/5280)) -> -
A31: Other2 | F31: =IF(D31="","",IF(OR(D31=Datasets!$AI$2,D31=Datasets!$AI$3,D31=Datasets!$AI$4),"U","P")) ->  | G31: =IF(D31="","",IF(OR(D31=Datasets!$AI$2,D31=Datasets!$AI$5),3,IF(OR(D31=Datasets!$AI$3,D31=Datasets!$AI$6),6,10))) ->  | J31: 15 | K31: 40 | M31: 15 | P31: 28 | Q31: ton | R31: =IF(H31+I31=0,"-",(N31/P31)*((H31+I31)/5280)) -> - | U31: Other2 | Z31: =IF(X31="","",IF(OR(X31=Datasets!$AI$2,X31=Datasets!$AI$3,X31=Datasets!$AI$4),"U","P")) ->  | AA31: =IF(X31="","",IF(OR(X31=Datasets!$AI$2,X31=Datasets!$AI$5),3,IF(OR(X31=Datasets!$AI$3,X31=Datasets!$AI$6),6,10))) ->  | AD31: 15 | AE31: 40 | AG31: 15 | AJ31: 28 | AK31: ton | AL31: =IF(AB31+AC31=0,"-",(AH31/AJ31)*((AB31+AC31)/5280)) -> -
O32: Total VMT: | P32: =SUM(R20:S31) -> 0 | AI32: Total VMT: | AJ32: =SUM(AL20:AM31) -> 0
D33: Emission Calculations | X33: Emission Calculations
D34: Emission Factors (lb/VMT) | G34: Potential Emissions (tons/yr) | X34: Emission Factors (lb/VMT) | AA34: Potential Emissions (tons/yr)
K35: Description of Constants/Variables | AE35: Description of Constants/Variables
K36: E: | L36: haul road emissions (lb/VMT) | AE36: E: | AF36: haul road emissions (lb/VMT)
D37: PM | E37: PM10 | F37: PM2.5 | G37: PM | H37: PM10 | I37: PM2.5 | K37: k, d: | L37: dimensionless constants from Draft AP-42 | X37: PM | Y37: PM10 | Z37: PM2.5 | AA37: PM | AB37: PM10 | AC37: PM2.5 | AE37: k, d: | AF37: dimensionless constants from Draft AP-42
A38: =IF(A20="","",A20) -> Grain Delivery | D38: =IF($F20="p",IF($M20>=1,$C$13*($G20^0.91)*($L20^1.02)*(1-($M$45/(4*365))),"error"),IF($F20="u",IF(M20>=10,$K$13*(($G20/12)^$L$13)*(($L20/3)^$M$13)*((365-$M$45)/365)*(($M20/30)^$N$13)*(1-$M$49/100),"error"),IF($F20="","","error"))) ->  | E38: =IF($F20="p",IF($M20>=1,$C$14*($G20^0.91)*($L20^1.02)*(1-($M$45/(4*365))),"error"),IF($F20="u",IF(M20>=10,$K$14*(($G20/12)^$L$14)*(($L20/3)^$M$14)*((365-$M$45)/365)*(($M20/30)^$N$14)*(1-$M$49/100),"error"),IF($F20="","","error"))) ->  | F38: =IF($F20="p",IF($M20>=1,$C$15*($G20^0.91)*($L20^1.02)*(1-($M$45/(4*365))),"error"),IF($F20="u",IF(M20>=10,$K$15*(($G20/12)^$L$15)*(($L20/3)^$M$15)*((365-$M$45)/365)*(($M20/30)^$N$15)*(1-$M$49/100),"error"),IF($F20="","","error"))) ->  | G38: =IF(D38="","",$R20*D38/2000) ->  | L38: Chapter 13.IV (paved) | U38: =IF(U20="","",U20) -> Grain Delivery | X38: =IF($Z20="p",IF($AG20>=1,$W$13*($AA20^0.91)*($AF20^1.02)*(1-($AG$45/(4*365))),"error"),IF($Z20="u",IF(AG20>=10,$AE$13*(($AA20/12)^$AF$13)*(($AF20/3)^$AG$13)*((365-$AG$45)/365)*(($AG20/30)^$AH$13)*(1-$AG$49/100),"error"),IF($Z20="","","error"))) ->  | Y38: =IF($Z20="p",IF($AG20>=1,$W$14*($AA20^0.91)*($AF20^1.02)*(1-($AG$45/(4*365))),"error"),IF($Z20="u",IF(AG20>=10,$AE$14*(($AA20/12)^$AF$14)*(($AF20/3)^$AG$14)*((365-$AG$45)/365)*(($AG20/30)^$AH$14)*(1-$AG$49/100),"error"),IF($Z20="","","error"))) ->  | Z38: =IF($Z20="p",IF($AG20>=1,$W$15*($AA20^0.91)*($AF20^1.02)*(1-($AG$45/(4*365))),"error"),IF($Z20="u",IF(AG20>=10,$AE$15*(($AA20/12)^$AF$15)*(($AF20/3)^$AG$15)*((365-$AG$45)/365)*(($AG20/30)^$AH$15)*(1-$AG$49/100),"error"),IF($Z20="","","error"))) ->  | AA38: =IF(X38="","",$AL20*X38/2000) ->  | AB38: =IF(Y38="","",$AL20*Y38/2000) ->  | AC38: =IF(Z38="","",$AL20*Z38/2000) ->  | AF38: Chapter 13.IV (paved)
A39: =IF(A21="","",A21) -> Grain to Pile | D39: =IF($F21="p",IF($M21>=1,$C$13*($G21^0.91)*($L21^1.02)*(1-($M$45/(4*365))),"error"),IF($F21="u",IF(M21>=10,$K$13*(($G21/12)^$L$13)*(($L21/3)^$M$13)*((365-$M$45)/365)*(($M21/30)^$N$13)*(1-$M$49/100),"error"),IF($F21="","","error"))) ->  | E39: =IF($F21="p",IF($M21>=1,$C$14*($G21^0.91)*($L21^1.02)*(1-($M$45/(4*365))),"error"),IF($F21="u",IF(M21>=10,$K$14*(($G21/12)^$L$14)*(($L21/3)^$M$14)*((365-$M$45)/365)*(($M21/30)^$N$14)*(1-$M$49/100),"error"),IF($F21="","","error"))) ->  | F39: =IF($F21="p",IF($M21>=1,$C$15*($G21^0.91)*($L21^1.02)*(1-($M$45/(4*365))),"error"),IF($F21="u",IF(M21>=10,$K$15*(($G21/12)^$L$15)*(($L21/3)^$M$15)*((365-$M$45)/365)*(($M21/30)^$N$15)*(1-$M$49/100),"error"),IF($F21="","","error"))) ->  | K39: k, a, b, c, d: | L39: dimensionless constants from AP-42 | U39: =IF(U21="","",U21) -> Grain to Pile | X39: =IF($Z21="p",IF($AG21>=1,$W$13*($AA21^0.91)*($AF21^1.02)*(1-($AG$45/(4*365))),"error"),IF($Z21="u",IF(AG21>=10,$AE$13*(($AA21/12)^$AF$13)*(($AF21/3)^$AG$13)*((365-$AG$45)/365)*(($AG21/30)^$AH$13)*(1-$AG$49/100),"error"),IF($Z21="","","error"))) ->  | Y39: =IF($Z21="p",IF($AG21>=1,$W$14*($AA21^0.91)*($AF21^1.02)*(1-($AG$45/(4*365))),"error"),IF($Z21="u",IF(AG21>=10,$AE$14*(($AA21/12)^$AF$14)*(($AF21/3)^$AG$14)*((365-$AG$45)/365)*(($AG21/30)^$AH$14)*(1-$AG$49/100),"error"),IF($Z21="","","error"))) ->  | Z39: =IF($Z21="p",IF($AG21>=1,$W$15*($AA21^0.91)*($AF21^1.02)*(1-($AG$45/(4*365))),"error"),IF($Z21="u",IF(AG21>=10,$AE$15*(($AA21/12)^$AF$15)*(($AF21/3)^$AG$15)*((365-$AG$45)/365)*(($AG21/30)^$AH$15)*(1-$AG$49/100),"error"),IF($Z21="","","error"))) ->  | AA39: =IF(X39="","",$AL21*X39/2000) ->  | AE39: k, a, b, c, d: | AF39: dimensionless constants from AP-42
A40: =IF(A22="","",A22) -> Grain from Pile | D40: =IF($F22="p",IF($M22>=1,$C$13*($G22^0.91)*($L22^1.02)*(1-($M$45/(4*365))),"error"),IF($F22="u",IF(M22>=10,$K$13*(($G22/12)^$L$13)*(($L22/3)^$M$13)*((365-$M$45)/365)*(($M22/30)^$N$13)*(1-$M$49/100),"error"),IF($F22="","","error"))) ->  | E40: =IF($F22="p",IF($M22>=1,$C$14*($G22^0.91)*($L22^1.02)*(1-($M$45/(4*365))),"error"),IF($F22="u",IF(M22>=10,$K$14*(($G22/12)^$L$14)*(($L22/3)^$M$14)*((365-$M$45)/365)*(($M22/30)^$N$14)*(1-$M$49/100),"error"),IF($F22="","","error"))) ->  | F40: =IF($F22="p",IF($M22>=1,$C$15*($G22^0.91)*($L22^1.02)*(1-($M$45/(4*365))),"error"),IF($F22="u",IF(M22>=10,$K$15*(($G22/12)^$L$15)*(($L22/3)^$M$15)*((365-$M$45)/365)*(($M22/30)^$N$15)*(1-$M$49/100),"error"),IF($F22="","","error"))) ->  | L40: Tables 13.2.1-1 & 13.2.2-2 (unpaved) | U40: =IF(U22="","",U22) -> Grain from Pile | AA40: =IF(X40="","",$AL22*X40/2000) ->  | AF40: Tables 13.2.1-1 & 13.2.2-2 (unpaved)
A41: =IF(A23="","",A23) -> Denaturant | D41: =IF($F23="p",IF($M23>=1,$C$13*($G23^0.91)*($L23^1.02)*(1-($M$45/(4*365))),"error"),IF($F23="u",IF(M23>=10,$K$13*(($G23/12)^$L$13)*(($L23/3)^$M$13)*((365-$M$45)/365)*(($M23/30)^$N$13)*(1-$M$49/100),"error"),IF($F23="","","error"))) ->  | E41: =IF($F23="p",IF($M23>=1,$C$14*($G23^0.91)*($L23^1.02)*(1-($M$45/(4*365))),"error"),IF($F23="u",IF(M23>=10,$K$14*(($G23/12)^$L$14)*(($L23/3)^$M$14)*((365-$M$45)/365)*(($M23/30)^$N$14)*(1-$M$49/100),"error"),IF($F23="","","error"))) ->  | F41: =IF($F23="p",IF($M23>=1,$C$15*($G23^0.91)*($L23^1.02)*(1-($M$45/(4*365))),"error"),IF($F23="u",IF(M23>=10,$K$15*(($G23/12)^$L$15)*(($L23/3)^$M$15)*((365-$M$45)/365)*(($M23/30)^$N$15)*(1-$M$49/100),"error"),IF($F23="","","error"))) ->  | K41: sL: | L41: silt loading (g/m2) of paved road surface | U41: =IF(U23="","",U23) -> Denaturant | AA41: =IF(X41="","",$AL23*X41/2000) ->  | AE41: sL: | AF41: silt loading (g/m2) of paved road surface
A42: =IF(A24="","",A24) -> Ethanol Loadout | D42: =IF($F24="p",IF($M24>=1,$C$13*($G24^0.91)*($L24^1.02)*(1-($M$45/(4*365))),"error"),IF($F24="u",IF(M24>=10,$K$13*(($G24/12)^$L$13)*(($L24/3)^$M$13)*((365-$M$45)/365)*(($M24/30)^$N$13)*(1-$M$49/100),"error"),IF($F24="","","error"))) ->  | E42: =IF($F24="p",IF($M24>=1,$C$14*($G24^0.91)*($L24^1.02)*(1-($M$45/(4*365))),"error"),IF($F24="u",IF(M24>=10,$K$14*(($G24/12)^$L$14)*(($L24/3)^$M$14)*((365-$M$45)/365)*(($M24/30)^$N$14)*(1-$M$49/100),"error"),IF($F24="","","error"))) ->  | F42: =IF($F24="p",IF($M24>=1,$C$15*($G24^0.91)*($L24^1.02)*(1-($M$45/(4*365))),"error"),IF($F24="u",IF(M24>=10,$K$15*(($G24/12)^$L$15)*(($L24/3)^$M$15)*((365-$M$45)/365)*(($M24/30)^$N$15)*(1-$M$49/100),"error"),IF($F24="","","error"))) ->  | K42: sC: | L42: silt content (%) of unpaved road surface | U42: =IF(U24="","",U24) -> Ethanol Loadout | AA42: =IF(X42="","",$AL24*X42/2000) ->  | AE42: sC: | AF42: silt content (%) of unpaved road surface
A43: =IF(A25="","",A25) -> WDGS | D43: =IF($F25="p",IF($M25>=1,$C$13*($G25^0.91)*($L25^1.02)*(1-($M$45/(4*365))),"error"),IF($F25="u",IF(M25>=10,$K$13*(($G25/12)^$L$13)*(($L25/3)^$M$13)*((365-$M$45)/365)*(($M25/30)^$N$13)*(1-$M$49/100),"error"),IF($F25="","","error"))) ->  | E43: =IF($F25="p",IF($M25>=1,$C$14*($G25^0.91)*($L25^1.02)*(1-($M$45/(4*365))),"error"),IF($F25="u",IF(M25>=10,$K$14*(($G25/12)^$L$14)*(($L25/3)^$M$14)*((365-$M$45)/365)*(($M25/30)^$N$14)*(1-$M$49/100),"error"),IF($F25="","","error"))) ->  | F43: =IF($F25="p",IF($M25>=1,$C$15*($G25^0.91)*($L25^1.02)*(1-($M$45/(4*365))),"error"),IF($F25="u",IF(M25>=10,$K$15*(($G25/12)^$L$15)*(($L25/3)^$M$15)*((365-$M$45)/365)*(($M25/30)^$N$15)*(1-$M$49/100),"error"),IF($F25="","","error"))) ->  | G43: =IF(D43="","",$R25*D43/2000) ->  | K43: W: | L43: average vehicle weight (tons) | U43: =IF(U25="","",U25) -> WDGS | AA43: =IF(X43="","",$AL25*X43/2000) ->  | AE43: W: | AF43: average vehicle weight (tons)
A44: Anhydrous Ammonia | G44: =IF(D44="","",$R26*D44/2000) ->  | K44: P: | L44: days/yr with at least 0.01" of precipitation | U44: Anhydrous Ammonia | AA44: =IF(X44="","",$AL26*X44/2000) ->  | AE44: P: | AF44: days/yr with at least 0.01" of precipitation
A45: Corrosion Inhibitor | G45: =IF(D45="","",$R27*D45/2000) ->  | L45: P = | M45: 90 | N45: default = 90 | U45: Corrosion Inhibitor | AA45: =IF(X45="","",$AL27*X45/2000) ->  | AF45: P = | AG45: 90 | AH45: default = 90
A46: Caustic Soda | G46: =IF(D46="","",$R28*D46/2000) ->  | K46: S: | L46: mean vehicle speed on road (mph) | U46: Caustic Soda | AA46: =IF(X46="","",$AL28*X46/2000) ->  | AE46: S: | AF46: mean vehicle speed on road (mph)
A47: Sulfuric Acid | G47: =IF(D47="","",$R29*D47/2000) ->  | L47: default = 30, minimum =15 | U47: Sulfuric Acid | AA47: =IF(X47="","",$AL29*X47/2000) ->  | AF47: default = 30, minimum =15
A48: Other1 | G48: =IF(D48="","",$R30*D48/2000) ->  | K48: CE: | L48: unpaved road, dust control efficiency | U48: Other1 | AA48: =IF(X48="","",$AL30*X48/2000) ->  | AE48: CE: | AF48: unpaved road, dust control efficiency
A49: Other2 | G49: =IF(D49="","",$R31*D49/2000) ->  | L49: CE = | M49: 0 | N49: default = 0% | U49: Other2 | AA49: =IF(X49="","",$AL31*X49/2000) ->  | AF49: CE = | AG49: 0 | AH49: default = 0%
F50: Total Annual Emissions: | G50: =SUM(G38:G49) -> 0 | H50: =SUM(H38:H49) -> 0 | I50: =SUM(I38:I49) -> 0 | K50: VMT: | L50: vehicle miles traveled | Z50: Total Annual Emissions: | AA50: =SUM(AA38:AA49) -> 0 | AB50: =SUM(AB38:AB49) -> 0 | AC50: =SUM(AC38:AC49) -> 0 | AE50: VMT: | AF50: vehicle miles traveled

Sheet 13) Cooling Tower
A2: Universal Calculation Spreadsheets applicable for the Emissions of Ethanol Industry
A3: Cooling Towers
A8: Potential to Emit Calculations for Emissions from the Cooling Tower (Max. 4) | H8: Potential to Emit Calculations for Emissions from the Cooling Tower (Max. 4)
A9: Number of cooling towers | B9: 1 | I9: 1
A10: Circulation rate: | F10: gal/hr | H10: Circulation rate: | M10: gal/hr
B11: =B10*8760/1000 -> 0 | C11: =C10*8760/1000 -> 0 | D11: 0 | E11: 0 | F11: Mgal/yr (based on 8,760 hrs/yr) | I11: =I10*8760/1000 -> 0 | J11: =J10*8760/1000 -> 0 | K11: 0 | L11: 0 | M11: Mgal/yr (based on 8,760 hrs/yr)
A12: Biocide used: | B12: NO | C12: NO | D12: NO | E12: NO | H12: Biocide used: | I12: NO | J12: NO | K12: NO | L12: NO
A14: Drift loss percent: | B14: 0.005 | C14: 0.005 | D14: 0.005 | E14: 0.005 | F14: % | H14: Drift loss percent: | I14: 0.005 | J14: 0.005 | K14: 0.005 | L14: 0.005 | M14: %
A15: Water density: | B15: 8.34 | C15: 8.34 | D15: 8.34 | E15: 8.34 | F15: lbs/gal | H15: Water density: | I15: 8.34 | J15: 8.34 | K15: 8.34 | L15: 8.34 | M15: lbs/gal
A17: TDS concentration: | B17: 2000 | C17: 2000 | D17: 2000 | E17: 2000 | F17: ppm single sample event | H17: TDS concentration: | I17: 2000 | J17: 2000 | K17: 2000 | L17: 2000 | M17: ppm single sample event
B18: 2000 | C18: 2000 | D18: 2000 | E18: 2000 | F18: ppm average annual rate | I18: 2000 | J18: 2000 | K18: 2000 | L18: 2000 | M18: ppm average annual rate
A20: Emission Factor Calculation for PM and PM10 | H20: Emission Factor Calculation for PM and PM10
A22: Emission factor equation from AP-42, Section 13.4-2 (01/1995) | H22: Emission factor equation from AP-42, Section 13.4-2 (01/1995)
A24: PM/PM10 emission factor = | H24: PM/PM10 emission factor =
B27: 0.000834 | C27: lbs/Mgal single sample event (highest hourly rate) | I27: 0.000834 | J27: lbs/Mgal single sample event (highest hourly rate)
B28: 0.000834 | C28: lbs/Mgal average annual rate | I28: 0.000834 | J28: lbs/Mgal average annual rate
A30: Hourly Emissions = (lbs/Mgal single sample event)(hourly throughput gal/hr)(1 Mgal/1,000 gal) | H30: Hourly Emissions = (lbs/Mgal single sample event)(hourly throughput gal/hr)(1 Mgal/1,000 gal)
A31: Annual Emissions = (lbs/Mgal average annual rate)(annual throughput Mgal/yr)/(2,000 lbs/ton) | H31: Annual Emissions = (lbs/Mgal average annual rate)(annual throughput Mgal/yr)/(2,000 lbs/ton)
A33: Cooling Tower Emission Summary | H33: Cooling Tower Emission Summary
A34: Pollutant | B34: Hourly PTE | C34: Annual PTE | H34: Pollutant | I34: Hourly PTE | J34: Annual PTE
B35: (lbs/hr) | C35: (tons/year) | I35: (lbs/hr) | J35: (tons/year)
A36: PM | B36: =$B$27*(($B$10+$C$10+$D$10+$E$10)/1000) -> 0 | C36: =$B$28*SUM($B$11:$E$11)/2000 -> 0 | H36: PM | I36: =$I$27*((I10+J10+K10+L10)/1000) -> 0 | J36: =$I$28*SUM($I$11:$L$11)/2000 -> 0
A37: PM10 | B37: =($B$27*(($B$10+$C$10+$D$10+$E$10)/1000)*0.7) -> 0 | C37: =$B$28*SUM($B$11:$E$11)/2000*0.7 -> 0 | H37: PM10 | I37: =($I$27*((I10+J10+K10+L10)/1000)*0.7) -> 0 | J37: =$I$28*SUM($I$11:$L$11)/2000*0.7 -> 0
A38: PM2.5 | B38: =($B$27*(($B$10+$C$10+$D$10+$E$10)/1000)*0.42) -> 0 | C38: =$B$28*SUM($B$11:$E$11)/2000*0.42 -> 0 | H38: PM2.5 | I38: =($I$27*((I10+J10+K10+L10)/1000)*0.42) -> 0 | J38: =$I$28*SUM($I$11:$L$11)/2000*0.42 -> 0
A39: PM10 and PM2.5 emissions estimated to be 70% and 42% (respectively) of total PM emissions based on Appendix A to Particulate Matter (PM) 2.5 Significance Thresholds and Calculation Methodology published by the South Coast Air Quality Management District | H39: PM10 and PM2.5 emissions estimated to be 70% and 42% (respectively) of total PM emissions based on Appendix A to Particulate Matter (PM) 2.5 Significance Thresholds and Calculation Methodology published by the South Coast Air Quality Management District
A43: Emission Factor Calculation for VOCs
A44: Bioside | H44: Bioside
B45: =IF(B12=Datasets!$D$2,1,0) -> 0 | C45: =IF(C12=Datasets!$D$2,1,0) -> 0 | D45: =IF(D12=Datasets!$D$2,1,0) -> 0 | E45: =IF(E12=Datasets!$D$2,1,0) -> 0 | I45: =IF(I12=Datasets!$D$2,1,0) -> 0 | J45: =IF(J12=Datasets!$D$2,1,0) -> 0 | K45: =IF(K12=Datasets!$D$2,1,0) -> 0 | L45: =IF(L12=Datasets!$D$2,1,0) -> 0
A46: Biocide Content (ppmv) | B46: 10 | C46: 10 | D46: 10 | E46: 10 | H46: Biocide Content (ppmv) | I46: 10 | J46: 10 | K46: 10 | L46: 10
A47: Biocide VOC Fraction (Unitless) | B47: 0.01 | C47: 0.01 | D47: 0.01 | E47: 0.01 | H47: Biocide VOC Fraction (Unitless) | I47: 0.01 | J47: 0.01 | K47: 0.01 | L47: 0.01
A48: Biocide Density (lb/gal) | B48: 12.1 | C48: 12.1 | D48: 12.1 | E48: 12.1 | H48: Biocide Density (lb/gal) | I48: 12.1 | J48: 12.1 | K48: 12.1 | L48: 12.1
A49: Biocide Use (gal/yr) | B49: =B46*B10*8760/1000000 -> 0 | C49: =C46*C10*8760/1000000 -> 0 | D49: 0 | E49: 0 | H49: Biocide Use (gal/yr) | I49: =I46*I10*8760/1000000 -> 0 | J49: =J46*J10*8760/1000000 -> 0 | K49: 0 | L49: 0
A50: Biocide Use (ton/yr) | B50: =B49*B48/2000 -> 0 | C50: =C49*C48/2000 -> 0 | D50: 0 | E50: 0 | H50: Biocide Use (ton/yr) | I50: =I49*I48/2000 -> 0 | J50: =J49*J48/2000 -> 0 | K50: =K49*K48/2000 -> 0 | L50: =L49*L48/2000 -> 0
A51: VOC Emission Rate (lb/hr) | B51: =(B46*B47*B48*B10*B45)/1000000 -> 0 | C51: =(C46*C47*C48*C10*C45)/1000000 -> 0 | D51: =(D46*D47*D48*D10*D45)/1000000 -> 0 | E51: =(E46*E47*E48*E10*E45)/1000000 -> 0 | H51: VOC Emission Rate (lb/hr) | I51: =(I46*I47*I48*I10*I45)/1000000 -> 0 | J51: =(J46*J47*J48*J10*J45)/1000000 -> 0 | K51: =(K46*K47*K48*K10*K45)/1000000 -> 0 | L51: =(L46*L47*L48*L10*L45/1000000) -> 0
A52: VOC Emission Rate (ton/yr) | B52: =B51*8760/2000 -> 0 | C52: =C51*8760/2000 -> 0 | D52: 0 | E52: 0 | H52: VOC Emission Rate (ton/yr) | I52: =I51*8760/2000 -> 0 | J52: =J51*8760/2000 -> 0 | K52: =K51*8760/2000 -> 0 | L52: =L51*8760/2000 -> 0
A54: Antiscalant | H54: Antiscalant
A55: Additive Rate (gal/day) | B55: 20 | C55: 20 | D55: 20 | E55: 20 | H55: Additive Rate (gal/day) | I55: 20 | J55: 20 | K55: 20 | L55: 20
A56: Density (lb/gal) | B56: 15 | C56: 15 | D56: 15 | E56: 15 | H56: Density (lb/gal) | I56: 15 | J56: 15 | K56: 15 | L56: 15
A57: VOC Fraction | B57: 0.6 | C57: 0.6 | D57: 0.6 | E57: 0.6 | H57: VOC Fraction | I57: 0.6 | J57: 0.6 | K57: 0.6 | L57: 0.6
A58: HAP Fraction | B58: 0.01 | C58: 0.01 | D58: 0.01 | E58: 0.01 | H58: HAP Fraction | I58: 0.01 | J58: 0.01 | K58: 0.01 | L58: 0.01
A59: VOC Emission Rate (lb/hr) | B59: =B55*B56*B57*B45/24 -> 0 | C59: =C55*C56*C57*C45/24 -> 0 | D59: =D55*D56*D57*D45/24 -> 0 | E59: =E55*E56*E57*E45/24 -> 0 | H59: VOC Emission Rate (lb/hr) | I59: =I55*I56*I57*I45/24 -> 0 | J59: =J55*J56*J57*J45/24 -> 0 | K59: =K55*K56*K57*K45/24 -> 0 | L59: =L55*L56*L57*L45/24 -> 0
A60: VOC Emission Rate (ton/yr) | B60: =B59*8760/2000 -> 0 | C60: =C59*8760/2000 -> 0 | D60: =D59*8760/2000 -> 0 | E60: =E59*8760/2000 -> 0 | H60: VOC Emission Rate (ton/yr) | I60: =I59*8760/2000 -> 0 | J60: =J59*8760/2000 -> 0 | K60: =K59*8760/2000 -> 0 | L60: =L59*8760/2000 -> 0
A61: HAP Emissions (lb/hr) | B61: =B55*B56*B58/24*B45 -> 0 | C61: =C55*C56*C58/24*C45 -> 0 | D61: =D55*D56*D58/24*D45 -> 0 | E61: =E55*E56*E58/24*E45 -> 0 | H61: HAP Emissions (lb/hr) | I61: =I55*I56*I58/24*I45 -> 0 | J61: =J55*J56*J58/24*J45 -> 0 | K61: =K55*K56*K58/24*K45 -> 0 | L61: =L55*L56*L58*L45/24 -> 0
A62: HAP Emissions (ton/yr) | B62: =B61*8760/2000 -> 0 | C62: =C61*8760/2000 -> 0 | D62: 0 | E62: 0 | H62: HAP Emissions (ton/yr) | I62: =I61*8760/2000 -> 0 | J62: =J61*8760/2000 -> 0 | K62: =K61*8760/2000 -> 0 | L62: =L61*8760/2000 -> 0
A65: Cooling Tower Emission Summary | H65: Cooling Tower Emission Summary
A66: Pollutant | B66: Hourly PTE | C66: Annual PTE | H66: Pollutant | I66: Hourly PTE | J66: Annual PTE
B67: (lbs/hr) | C67: (tons/year) | I67: (lbs/hr) | J67: (tons/year)
A68: VOC | B68: =SUM(B51:E51)+SUM(B59:E59) -> 0 | C68: =SUM(B52:E52)+SUM(B60:E60) -> 0 | H68: VOC | I68: =SUM(I51:L51)+SUM(I59:L59) -> 0 | J68: =SUM(I52:L52)+SUM(I60:L60) -> 0
A69: HAP | B69: =SUM(B61:E61) -> 0 | C69: =SUM(B62:E62) -> 0 | H69: HAP | I69: =SUM(I61:L61) -> 0 | J69: =SUM(I62:L62) -> 0

Sheet 14) Equipment Leaks
A2: Universal Calculation Spreadsheets applicable for the Emissions of Ethanol Industry
A3: Equipment Leaks
A5: Type of Component | B5: Service | C5: (A) Number of Components (VV) | D5: (B) Number of Components (VVa) | E5: (A) Number of Components (VV) | F5: (B) Number of Components (VVa) | G5: (C) LDAR, VV (cont.eff. %) | H5: (C) LDAR, VVa (cont.eff. %) | I5: (D) Leaking Emission Factor, VV (kg/hr/source) | J5: (D) Leaking Emission Factor, VVa (kg/hr/source) | L5: VOC Uncontrolled Emissions, VV | N5: VOC Controlled Emissions, VV | P5: VOC Uncontrolled Emissions, VVa | R5: VOC Controlled Emissions, VVa | T5: VOC Uncontrolled Emissions, VV | V5: VOC Controlled Emissions, VV | X5: VOC Uncontrolled Emissions, VVa | Z5: VOC Controlled Emissions, VVa
L6: (E) = (A)x(C)x2.21 (lb/hr) | M6: (F) = (E)x8760/2000 (ton/year) | N6: (G) = (E)x[1-(C)] (lb/hr) | O6: (H) = (F)x[1-(C)] (ton/year) | P6: (E) = (A)x(C)x2.21 (lb/hr) | Q6: (F) = (E)x8760/2000 (ton/year) | R6: (G) = (E)x[1-(C)] (lb/hr) | S6: (H) = (F)x[1-(C)] (ton/year) | T6: (E) = (A)x(C)x2.21 (lb/hr) | U6: (F) = (E)x8760/2000 (ton/year) | V6: (G) = (E)x[1-(C)] (lb/hr) | W6: (H) = (F)x[1-(C)] (ton/year) | X6: (E) = (A)x(C)x2.21 (lb/hr) | Y6: (F) = (E)x8760/2000 (ton/year) | Z6: (G) = (E)x[1-(C)] (lb/hr) | AA6: (H) = (F)x[1-(C)] (ton/year)
A7: Valves/ Check valves/Control Valves | B7: Gas | G7: 0.87 | H7: 0.92 | I7: 0.00597 | J7: 0.00597 | L7: =C7*I7*2.21 -> 0 | M7: =L7*8760/2000 -> 0 | N7: =L7*(1-G7) -> 0 | O7: =M7*(1-G7) -> 0 | P7: =D7*J7*2.21 -> 0 | Q7: =P7*8760/2000 -> 0 | R7: =P7*(1-H7) -> 0 | S7: =Q7*(1-H7) -> 0 | T7: =E7*I7*2.21 -> 0 | U7: =T7*8760/2000 -> 0 | V7: =T7*(1-G7) -> 0 | W7: =U7*(1-G7) -> 0 | X7: =F7*J7*2.21 -> 0 | Y7: =X7*8760/2000 -> 0 | Z7: =X7*(1-H7) -> 0 | AA7: =Y7*(1-H7) -> 0
B8: Light liquid | G8: 0.84 | H8: 0.88 | I8: 0.00403 | J8: 0.00403 | L8: 0 | M8: =L8*8760/2000 -> 0 | N8: =L8*(1-G8) -> 0 | O8: =M8*(1-G8) -> 0 | P8: =D8*J8*2.21 -> 0 | Q8: =P8*8760/2000 -> 0 | R8: =P8*(1-H8) -> 0 | S8: =Q8*(1-H8) -> 0 | T8: 0 | U8: =T8*8760/2000 -> 0 | V8: 0 | W8: 0 | X8: =F8*J8*2.21 -> 0 | Y8: =X8*8760/2000 -> 0 | Z8: =X8*(1-H8) -> 0 | AA8: =Y8*(1-H8) -> 0
A9: Pump seals | B9: Light liquid | G9: 0.77 | H9: 0.78 | I9: 0.0199 | J9: 0.0199 | L9: 0 | M9: 0 | N9: =L9*(1-G9) -> 0 | O9: =M9*(1-G9) -> 0 | P9: 0 | Q9: 0 | R9: 0 | S9: 0 | T9: 0 | U9: 0 | V9: 0 | W9: 0 | X9: 0 | Y9: 0 | Z9: 0 | AA9: 0
A10: Compressor seals | B10: Gas | G10: 0 | H10: 0 | I10: 0.228 | J10: 0.228 | L10: 0 | M10: 0 | N10: =L10*(1-G10) -> 0 | O10: =M10*(1-G10) -> 0 | P10: 0 | Q10: 0 | R10: 0 | S10: 0 | T10: 0 | U10: 0 | V10: 0 | W10: 0 | X10: 0 | Y10: 0 | Z10: 0 | AA10: 0
A11: Pressure Relief Valves | B11: Gas | G11: 0.87 | H11: 0.92 | I11: 0.104 | J11: 0.104 | L11: 0 | M11: 0 | N11: 0 | O11: 0 | P11: 0 | Q11: 0 | R11: 0 | S11: 0 | T11: 0 | U11: 0 | V11: 0 | W11: 0 | X11: 0 | Y11: 0 | Z11: 0 | AA11: 0
A12: Connectors | B12: All | G12: 0 | H12: 0 | I12: 0.015 | J12: 0.015 | L12: 0 | M12: 0 | N12: 0 | O12: 0 | P12: 0 | Q12: 0 | R12: 0 | S12: 0 | T12: 0 | U12: 0 | V12: 0 | W12: 0 | X12: 0 | Y12: 0 | Z12: 0 | AA12: 0
A13: Open-ended lines | B13: All | G13: 0 | H13: 0 | I13: 0.0017 | J13: 0.0017 | L13: 0 | M13: 0 | N13: 0 | O13: 0 | P13: 0 | Q13: 0 | R13: 0 | S13: 0 | T13: 0 | U13: 0 | V13: 0 | W13: 0 | X13: 0 | Y13: 0 | Z13: 0 | AA13: 0
A14: Sampling connections | B14: All | G14: 0.86 | H14: 0.93 | I14: 0.00183 | J14: 0.00183 | L14: 0 | M14: 0 | N14: 0 | O14: 0 | P14: 0 | Q14: 0 | R14: 0 | S14: 0 | T14: 0 | U14: 0 | V14: 0 | W14: 0 | X14: 0 | Y14: 0 | Z14: 0 | AA14: 0
A15: VOC Emissions are calculated from Protocol for Leak Emission Estimates, EPA-453/R-95-017, November 1995.
A17: Total VOC Emissions | B17: VV | C17: VVa | D17: Total | F17: VV | G17: VVa | H17: Total
B18: =SUM(N7:N14) -> 0 | C18: =SUM(R7:R14) -> 0 | D18: =B18+C18 -> 0 | E18: lb/hr | F18: =SUM(V7:V14) -> 0 | G18: =SUM(Z7:Z14) -> 0 | H18: =F18+G18 -> 0 | I18: lb/hr
B19: =SUM(O7:O14) -> 0 | C19: =SUM(S7:S14) -> 0 | D19: =B19+C19 -> 0 | E19: ton/year | F19: =SUM(W7:W14) -> 0 | G19: =SUM(AA7:AA14) -> 0 | H19: =F19+G19 -> 0 | I19: ton/year
A22: Hazardous Air Pollutant | B22: Mass Fraction of HAP | C22: HAP Emissions | I22: HAP Emissions
C23: lb/hr (VV) | D23: lb/hr (VVa) | E23: lb/hr (Total) | F23: ton/year (VV) | G23: ton/year (VVa) | H23: ton/year (Total) | I23: lb/hr (VV) | J23: lb/hr (VVa) | K23: lb/hr (Total) | L23: ton/year (VV) | M23: ton/year (VVa) | N23: ton/year (Total)
A24: Acetaldehyde | B24: 0.0002 | C24: =$B$18*B24 -> 0 | D24: =$C$18*B24 -> 0 | E24: =C24+D24 -> 0 | F24: =$B$19*B24 -> 0 | G24: =$C$19*B24 -> 0 | H24: =F24+G24 -> 0 | I24: =$F$18*B24 -> 0 | J24: =$G$18*B24 -> 0 | K24: =I24+J24 -> 0 | L24: =$F$19*B24 -> 0 | M24: =$G$19*B24 -> 0 | N24: =L24+M24 -> 0
A25: Acrolein | B25: 0.0002 | C25: =$B$18*B25 -> 0 | D25: =$C$18*B25 -> 0 | E25: =C25+D25 -> 0 | F25: =$B$19*B25 -> 0 | G25: =$C$19*B25 -> 0 | H25: =F25+G25 -> 0 | I25: =$F$18*B25 -> 0 | J25: =$G$18*B25 -> 0 | K25: =I25+J25 -> 0 | L25: =$F$19*B25 -> 0 | M25: =$G$19*B25 -> 0 | N25: =L25+M25 -> 0
A26: Formaldehyde | B26: 0.0001 | C26: =$B$18*B26 -> 0 | D26: 0 | E26: 0 | F26: =$B$19*B26 -> 0 | G26: =$C$19*B26 -> 0 | H26: 0 | I26: =$F$18*B26 -> 0 | J26: =$G$18*B26 -> 0 | K26: 0 | L26: =$F$19*B26 -> 0 | M26: =$G$19*B26 -> 0 | N26: 0
A27: Methanol | B27: 0.0002 | C27: =$B$18*B27 -> 0 | D27: 0 | E27: 0 | F27: =$B$19*B27 -> 0 | G27: =$C$19*B27 -> 0 | H27: 0 | I27: =$F$18*B27 -> 0 | J27: =$G$18*B27 -> 0 | K27: 0 | L27: =$F$19*B27 -> 0 | M27: =$G$19*B27 -> 0 | N27: 0
A28: Total HAPs | B28: - | C28: =SUM(C24:C27) -> 0 | D28: =SUM(D24:D27) -> 0 | E28: 0 | F28: =SUM(F24:F27) -> 0 | G28: =SUM(G24:G27) -> 0 | H28: 0 | I28: =SUM(I24:I27) -> 0 | J28: =SUM(J24:J27) -> 0 | K28: 0 | L28: =SUM(L24:L27) -> 0 | M28: =SUM(M24:M27) -> 0 | N28: 0

Sheet 15) Engines
AT1: Essential Unit Conversion
A2: Universal Calculation Spreadsheets applicable for the Emissions of Ethanol Industry | U2: Please, enter information describing specific permit limits or source specific emissions guarantee. If the limit or data are in other units, please, convert them to lb/mmBtu
A3: Engines | AT3: From | AV3: To
W4: 1st Compression Engine | X4: 2nd Compression Engine | Y4: 3rd Compression Engine | Z4: 4th Compression Engine | AA4: 5th Compression Engine | AB4: 6th Compression Engine | AC4: 7th Compression Engine | AD4: 8th Compression Engine | AE4: 9th Compression Engine | AF4: 10th Compression Engine | AI4: 1st Compression Engine | AJ4: 2nd Spark Ignition Engine | AK4: 3rd Spark Ignition Engine | AL4: 4th Spark Ignition Engine | AM4: 5th Spark Ignition Engine | AN4: 6th Spark Ignition Engine | AO4: 7th Spark Ignition Engine | AP4: 8th Spark Ignition Engine | AQ4: 9th Spark Ignition Engine | AR4: 10th Spark Ignition Engine | AU4: MMSCF | AV4: =AT4*1020 -> 0 | AW4: MMBtu
U5: PMfilterable | AG5: PMfilterable
U6: PM10 | AG6: PM10 | AU6: lb/MMSCF | AV6: =AT6/1020 -> 0 | AW6: lb/MMBtu
A7: Questions | D7: Current Capacity | N7: Maximum Proposed Capacity | U7: PM2.5 | AG7: PM2.5
U8: SO2 | AG8: SO2 | AU8: lb/hr | AV8: =AT8/AT9 -> 0 | AW8: lb/MMBtu
U9: NOx | AG9: NOx | AT9: 1 | AU9: MMBtu/hr
A10: Number of Compression Engines | G10: Units | K10: Number of Compression Engines | Q10: Units | U10: CO | AG10: CO
U11: VOC | AG11: VOC
A12: Number of Spark Ignition Engines | G12: Units | K12: Number of Spark Ignition Engines | Q12: Units | U12: Individual HAP | AG12: Individual HAP
U13: Acetaldehyde | AG13: Acetaldehyde
U14: Acrolein | AG14: Acrolein
B15: ID | C15: Emission Unit Name | D15: Engine Rating (hp) | E15: Maximum Fuel Capacity (gal/hr) | F15: Manufacturer Emission's Gurantee Available | G15: Restricted operating hours | L15: ID | M15: Emission Unit Name | N15: Engine Rating (hp) | O15: Maximum Fuel Capacity (gal/hr) | P15: Manufacturer Emission's Gurantee Available | Q15: Restricted operating hours | U15: Arsenic compounds | AG15: Arsenic compounds
A16: 1st Compression Engine | G16: 8760 | K16: 1st Compression Engine | Q16: 8760 | U16: Benzene | AG16: Benzene
A17: 2nd Compression Engine | G17: 8760 | K17: 2nd Compression Engine | Q17: 8760 | U17: Benzyl chloride | AG17: Benzyl chloride
A18: 3rd Compression Engine | G18: 8760 | K18: 3rd Compression Engine | Q18: 8760 | U18: Beryllium compounds | AG18: Beryllium compounds
A19: 4th Compression Engine | G19: 8760 | K19: 4th Compression Engine | Q19: 8760 | U19: Cadmium compounds | AG19: Cadmium compounds
A20: 5th Compression Engine | G20: 8760 | K20: 5th Compression Engine | Q20: 8760 | U20: Cyanide compounds | AG20: Cyanide compounds
A21: 6th Compression Engine | G21: 8760 | K21: 6th Compression Engine | Q21: 8760 | U21: Formaldehyde | AG21: Formaldehyde
A22: 7th Compression Engine | G22: 8760 | K22: 7th Compression Engine | Q22: 8760 | U22: n-Hexane | AG22: n-Hexane
A23: 8th Compression Engine | G23: 8760 | K23: 8th Compression Engine | Q23: 8760 | U23: Hydrochloric acid | AG23: Hydrochloric acid
A24: 9th Compression Engine | G24: 8760 | K24: 9th Compression Engine | Q24: 8760 | U24: Lead Compounds | AG24: Lead Compounds
A25: 10th Compression Engine | G25: 8760 | K25: 10th Compression Engine | Q25: 8760 | U25: Mercury compounds | AG25: Mercury compounds
U26: Methanol | AG26: Methanol
U27: Methyl hydrazine | AG27: Methyl hydrazine
B28: ID | C28: Emission Unit Name | D28: Engine Rating (hp) | E28: Fuel Use Factor (Btu/hp-hr) | F28: Manufacturer Emission's Gurantee Available | G28: Fuel Type | H28: Engine Configuration | I28: Restricted operating hours | L28: ID | M28: Emission Unit Name | N28: Engine Rating (hp) | O28: Fuel Use Factor (Btu/hp-hr) | P28: Manufacturer Emission's Gurantee Available | Q28: Fuel Type | R28: Engine Configuration | S28: Restricted operating hours | U28: Selenium compounds | AG28: Selenium compounds
A29: 1st Spark Ignition Engine | I29: 8760 | K29: 1st Spark Ignition Engine | S29: 8760 | U29: Other HAPs | AG29: Other HAPs
A30: 2nd Spark Ignition Engine | I30: 8760 | K30: 2nd Spark Ignition Engine | S30: 8760 | U30: Total HAPs | AG30: Total HAPs
A31: 3rd Spark Ignition Engine | I31: 8760 | K31: 3rd Spark Ignition Engine | S31: 8760 | U31: Green House Gasses | AG31: Green House Gasses
A32: 4th Spark Ignition Engine | I32: 8760 | K32: 4th Spark Ignition Engine | S32: 8760 | U32: Carbon Dioxide (CO2) | AG32: Carbon Dioxide (CO2)
A33: 5th Spark Ignition Engine | I33: 8760 | K33: 5th Spark Ignition Engine | S33: 8760 | U33: Methane (CH4) | AG33: Methane (CH4)
A34: 6th Spark Ignition Engine | I34: 8760 | K34: 6th Spark Ignition Engine | S34: 8760 | U34: Nitrous Oxide (N2O) | AG34: Nitrous Oxide (N2O)
A35: 7th Spark Ignition Engine | I35: 8760 | K35: 7th Spark Ignition Engine | S35: 8760
A36: 8th Spark Ignition Engine | I36: 8760 | K36: 8th Spark Ignition Engine | S36: 8760
A37: 9th Spark Ignition Engine | I37: 8760 | K37: 9th Spark Ignition Engine | S37: 8760
A38: 10th Spark Ignition Engine | I38: 8760 | K38: 10th Spark Ignition Engine | S38: 8760
W42: 1st Compression Engine | X42: 2nd Compression Engine | Y42: 3rd Compression Engine | Z42: 4th Compression Engine | AA42: 5th Compression Engine | AB42: 6th Compression Engine | AC42: 7th Compression Engine | AD42: 8th Compression Engine | AE42: 9th Compression Engine | AF42: 10th Compression Engine | AI42: 1st Compression Engine | AJ42: 2nd Spark Ignition Engine | AK42: 3rd Spark Ignition Engine | AL42: 4th Spark Ignition Engine | AM42: 5th Spark Ignition Engine | AN42: 6th Spark Ignition Engine | AO42: 7th Spark Ignition Engine | AP42: 8th Spark Ignition Engine | AQ42: 9th Spark Ignition Engine | AR42: 10th Spark Ignition Engine
U43: PMfilterable | AG43: PMfilterable
U44: PM10 | AG44: PM10
U45: PM2.5 | AG45: PM2.5
U46: SO2 | AG46: SO2
U47: NOx | AG47: NOx
U48: CO | AG48: CO
U49: VOC | AG49: VOC
U50: Individual HAP | AG50: Individual HAP
U51: Acetaldehyde | AG51: Acetaldehyde
U52: Acrolein | AG52: Acrolein
U53: Arsenic compounds | AG53: Arsenic compounds
U54: Benzene | AG54: Benzene
U55: Benzyl chloride | AG55: Benzyl chloride
U56: Beryllium compounds | AG56: Beryllium compounds
U57: Cadmium compounds | AG57: Cadmium compounds
U58: Cyanide compounds | AG58: Cyanide compounds
U59: Formaldehyde | AG59: Formaldehyde
U60: n-Hexane | AG60: n-Hexane
U61: Hydrochloric acid | AG61: Hydrochloric acid
U62: Lead Compounds | AG62: Lead Compounds
U63: Mercury compounds | AG63: Mercury compounds
U64: Methanol | AG64: Methanol
U65: Methyl hydrazine | AG65: Methyl hydrazine
U66: Selenium compounds | AG66: Selenium compounds
U67: Other HAPs | AG67: Other HAPs
U68: Total HAPs | AG68: Total HAPs
U69: Green House Gasses | AG69: Green House Gasses
U70: Carbon Dioxide (CO2) | AG70: Carbon Dioxide (CO2)
U71: Methane (CH4) | AG71: Methane (CH4)
U72: Nitrous Oxide (N2O) | AG72: Nitrous Oxide (N2O)

Sheet 16) Others
A2: Universal Calculation Spreadsheets applicable for the Emissions of Ethanol Industry
A3: Supplemental Units
A5: Please, enter information describing the supplemental units
D7: Current Capacity | L7: Maximum Proposed Capacity
A9: Number of Supplemental Units | G9: Units | I9: Number of Supplemental Units | O9: Units
A11: Please, enter information describing unit. These could cover all the units that are not included in the sheet | I11: Please, enter information describing unit. These could cover all the units that are not included in the sheet
B12: ID | C12: Emission Unit Name | J12: ID | K12: Emission Unit Name
A13: 1st Suppl. Unit | I13: 1st Suppl. Unit
A14: 2nd Suppl. Unit | I14: 2nd Suppl. Unit
A15: 3rd Suppl. Unit | I15: 3rd Suppl. Unit
A16: 4th Suppl. Unit | I16: 4th Suppl. Unit
A17: 5th Suppl. Unit | I17: 5th Suppl. Unit
A18: 6th Suppl. Unit | I18: 6th Suppl. Unit
A19: 7th Suppl. Unit | I19: 7th Suppl. Unit
A20: 8th Suppl. Unit | I20: 8th Suppl. Unit
A21: 9th Suppl. Unit | I21: 9th Suppl. Unit
A22: 10th Suppl. Unit | I22: 10th Suppl. Unit
A24: Please, enter the emissions of the units in lb/hr and ton/yr
C26: lb/hr | M26: ton/yr | Z26: lb/hr | AJ26: ton/yr
C27: =B13 -> 0 | D27: =B14 -> 0 | E27: =B15 -> 0 | F27: =B16 -> 0 | G27: =B17 -> 0 | H27: =B18 -> 0 | I27: =B19 -> 0 | J27: =B20 -> 0 | K27: =B21 -> 0 | L27: =B22 -> 0 | M27: =B13 -> 0 | N27: =B14 -> 0 | O27: =B15 -> 0 | P27: =B16 -> 0 | Q27: =B17 -> 0 | R27: =B18 -> 0 | S27: =B19 -> 0 | T27: =B20 -> 0 | U27: =B21 -> 0 | V27: =B22 -> 0 | Z27: =J13 -> 0 | AA27: =J14 -> 0 | AB27: =J15 -> 0 | AC27: =J16 -> 0 | AD27: =J17 -> 0 | AE27: =J18 -> 0 | AF27: =J19 -> 0 | AG27: =J20 -> 0 | AH27: =J21 -> 0 | AI27: =J22 -> 0 | AJ27: =J13 -> 0 | AK27: =J14 -> 0 | AL27: =J15 -> 0 | AM27: =J16 -> 0 | AN27: =J17 -> 0 | AO27: =J18 -> 0 | AP27: =J19 -> 0 | AQ27: =J20 -> 0 | AR27: =J21 -> 0 | AS27: =J22 -> 0
A28: PMfilterable | X28: PMfilterable
A29: PM10 | X29: PM10
A30: PM2.5 | X30: PM2.5
A31: SO2 | X31: SO2
A32: NOx | X32: NOx
A33: CO | X33: CO
A34: VOC | X34: VOC
A35: Individual HAP | X35: Individual HAP
A36: Acetaldehyde | X36: Acetaldehyde
A37: Formaldehyde | X37: Formaldehyde
A38: Acrolein | X38: Acrolein
A39: Methanol | X39: Methanol
A40: Benzene | X40: Benzene
A41: Dichlorobenzene | X41: Dichlorobenzene
A42: Hexane | X42: Hexane
A43: Lead Compounds | X43: Lead Compounds
A44: Naphthalene | X44: Naphthalene
A45: Polycyclic Organic Matter | X45: Polycyclic Organic Matter
A46: Toluene | X46: Toluene
A47: Arsenic Compounds | X47: Arsenic Compounds
A48: Beryllium Compounds | X48: Beryllium Compounds
A49: Cadmium Compounds | X49: Cadmium Compounds
A50: Chromium Compounds | X50: Chromium Compounds
A51: Cobalt Compounds | X51: Cobalt Compounds
A52: Manganese Compounds | X52: Manganese Compounds
A53: Mercury Compounds | X53: Mercury Compounds
A54: Nickel Compounds | X54: Nickel Compounds
A55: Selenium Compounds | X55: Selenium Compounds
A56: Total HAPs | X56: Total HAPs
A57: Greenhouse gasses | X57: Greenhouse gasses
A58: Carbon Dioxide (CO2) | X58: Carbon Dioxide (CO2)
A59: Methane (CH4) | X59: Methane (CH4)
A60: Nitrous Oxide (N2O) | X60: Nitrous Oxide (N2O)

Sheet Results
A2: Universal Calculation Spreadsheets applicable for the Emissions of Ethanol Industry
A3: Results | S3: Results Summary | AK3: Results Summary | AR3: Results Summary
A4: Current PTE, (lb/hr) | S4: Current PTE, (ton/yr) | AK4: Current Fugitive PTE, (lb/hr) | AR4: Current Fugitive PTE, (ton/yr)
A5: Pollutants | B5: Grain Receiving | C5: Grain Handling | D5: Dryers | E5: Fermenters | F5: DDGS dryers | G5: Solids storage | H5: Scalpers | I5: Hammer Mills | J5: Flares | K5: Solids shipping | L5: liquid loadout and vapour recovery | M5: tanks | N5: Cooling Tower | O5: Engines | P5: boilers/rto | Q5: Suppl. Units | S5: Pollutants | T5: Grain Receiving | U5: Grain Handling | V5: Dryers | W5: Fermenters | X5: DDGS dryers | Y5: Solids storage | Z5: Scalpers | AA5: Hammer Mills | AB5: Flares | AC5: Solids shipping | AD5: liquid loadout and vapour recovery | AE5: tanks | AF5: Cooling Tower | AG5: Engines | AH5: boilers/rto | AI5: Suppl. Units | AK5: Pollutants | AL5: Grain Receiving | AM5: Grain Handling | AN5: Solids storage | AO5: Equipment leaks | AP5: haul roads | AR5: Pollutants | AS5: Grain Receiving | AT5: Grain Handling | AU5: Solids storage | AV5: Equipment leaks | AW5: haul roads
B6: (lb/hr) | T6: (tons/yr) | AL6: (lb/hr) | AS6: (tons/yr)
A7: PMfilterable | B7: ='3) Calculations'!O37 -> 0 | C7: ='3) Calculations'!AG59 -> 0 | D7: ='5) Calculations'!CJ7 -> 0 | E7: =SUM('7) Ferm'!C41:L41) -> 0 | F7: ='8) Calculations'!AJ8 -> 0 | G7: ='4) Calculations'!I14 -> 0 | H7: ='6) Calculations'!E24 -> 0 | I7: ='6) Calculations'!E41 -> 0 | J7: ='10) Calc Flares'!C52 -> 0 | K7: ='9) Calculations'!C8 -> 0 | N7: ='13) Cooling Tower'!B36 -> 0 | O7: ='15) Calculations'!F204 -> 0 | P7: ='7) Calculations'!AS5 -> 0 | Q7: =SUM('16) Others'!C28:L28) -> 0 | S7: PMfilterable | T7: ='3) Calculations'!P37 -> 0 | U7: ='3) Calculations'!AJ59 -> 0 | V7: ='5) Calculations'!CW7 -> 0 | W7: =SUM('7) Ferm'!P41:Y41) -> 0 | X7: ='8) Calculations'!AW8 -> 0 | Y7: ='4) Calculations'!J14 -> 0 | Z7: ='6) Calculations'!H24 -> 0 | AA7: ='6) Calculations'!H41 -> 0 | AB7: ='10) Calc Flares'!D52 -> 0 | AC7: ='9) Calculations'!D8 -> 0 | AF7: ='13) Cooling Tower'!C36 -> 0 | AG7: ='15) Calculations'!G204 -> 0 | AH7: =P7*8760/2000 -> 0 | AI7: =SUM('16) Others'!M28:V28) -> 0 | AK7: PMfilterable | AL7: ='3) Calculations'!E78 -> 0 | AM7: ='3) Calculations'!AA59 -> 0 | AN7: =AU7*2000/8760 -> 0 | AP7: =AW7*2000/8760 -> 0 | AR7: PMfilterable | AS7: ='3) Calculations'!H78 -> 0 | AT7: ='3) Calculations'!AD59 -> 0 | AU7: ='4) Calculations'!B46 -> 0 | AW7: ='12) Haul Roads'!G50 -> 0
A8: PM10 | B8: ='3) Calculations'!Q37 -> 0 | C8: ='3) Calculations'!AH59 -> 0 | D8: ='5) Calculations'!CJ8 -> 0 | E8: =SUM('7) Ferm'!C42:L42) -> 0 | F8: ='8) Calculations'!AJ9 -> 0 | G8: ='4) Calculations'!I15 -> 0 | H8: ='6) Calculations'!F24 -> 0 | I8: ='6) Calculations'!F41 -> 0 | J8: ='10) Calc Flares'!C53 -> 0 | K8: ='9) Calculations'!C9 -> 0 | N8: ='13) Cooling Tower'!B37 -> 0 | O8: ='15) Calculations'!F205 -> 0 | P8: ='7) Calculations'!AS6 -> 0 | Q8: =SUM('16) Others'!C29:L29) -> 0 | S8: PM10 | T8: ='3) Calculations'!R37 -> 0 | U8: ='3) Calculations'!AK59 -> 0 | V8: ='5) Calculations'!CW8 -> 0 | W8: =SUM('7) Ferm'!P42:Y42) -> 0 | X8: ='8) Calculations'!AW9 -> 0 | Y8: ='4) Calculations'!J15 -> 0 | Z8: ='6) Calculations'!I24 -> 0 | AA8: ='6) Calculations'!I41 -> 0 | AB8: ='10) Calc Flares'!D53 -> 0 | AC8: ='9) Calculations'!D9 -> 0 | AF8: ='13) Cooling Tower'!C37 -> 0 | AG8: ='15) Calculations'!G205 -> 0 | AH8: 0 | AI8: =SUM('16) Others'!M29:V29) -> 0 | AK8: PM10 | AL8: ='3) Calculations'!F78 -> 0 | AM8: ='3) Calculations'!AB59 -> 0 | AN8: =AU8*2000/8760 -> 0 | AP8: =AW8*2000/8760 -> 0 | AR8: PM10 | AS8: ='3) Calculations'!I78 -> 0 | AT8: ='3) Calculations'!AE59 -> 0 | AU8: ='4) Calculations'!B49 -> 0 | AW8: ='12) Haul Roads'!H50 -> 0
A9: PM2.5 | B9: ='3) Calculations'!S37 -> 0 | C9: ='3) Calculations'!AI59 -> 0 | D9: ='5) Calculations'!CJ9 -> 0 | E9: =SUM('7) Ferm'!C43:L43) -> 0 | F9: ='8) Calculations'!AJ10 -> 0 | G9: ='4) Calculations'!I16 -> 0 | H9: ='6) Calculations'!G24 -> 0 | I9: ='6) Calculations'!G41 -> 0 | J9: ='10) Calc Flares'!C54 -> 0 | K9: ='9) Calculations'!C10 -> 0 | N9: ='13) Cooling Tower'!B38 -> 0 | O9: ='15) Calculations'!F206 -> 0 | P9: ='7) Calculations'!AS7 -> 0 | Q9: =SUM('16) Others'!C30:L30) -> 0 | S9: PM2.5 | T9: ='3) Calculations'!T37 -> 0 | U9: ='3) Calculations'!AL59 -> 0 | V9: ='5) Calculations'!CW9 -> 0 | W9: =SUM('7) Ferm'!P43:Y43) -> 0 | X9: ='8) Calculations'!AW10 -> 0 | Y9: ='4) Calculations'!J16 -> 0 | Z9: ='6) Calculations'!J24 -> 0 | AA9: ='6) Calculations'!J41 -> 0 | AB9: ='10) Calc Flares'!D54 -> 0 | AC9: ='9) Calculations'!D10 -> 0 | AF9: ='13) Cooling Tower'!C38 -> 0 | AG9: ='15) Calculations'!G206 -> 0 | AH9: 0 | AI9: =SUM('16) Others'!M30:V30) -> 0 | AK9: PM2.5 | AL9: ='3) Calculations'!G78 -> 0 | AM9: ='3) Calculations'!AC59 -> 0 | AN9: 0 | AP9: 0 | AR9: PM2.5 | AS9: ='3) Calculations'!J78 -> 0 | AT9: ='3) Calculations'!AF59 -> 0 | AU9: ='4) Calculations'!B52 -> 0 | AW9: ='12) Haul Roads'!I50 -> 0
A10: SO2 | D10: ='5) Calculations'!CJ10 -> 0 | E10: =SUM('7) Ferm'!C44:L44) -> 0 | F10: ='8) Calculations'!AJ11 -> 0 | J10: ='10) Calc Flares'!C55 -> 0 | O10: ='15) Calculations'!F207 -> 0 | P10: ='7) Calculations'!AS8 -> 0 | Q10: =SUM('16) Others'!C31:L31) -> 0 | S10: SO2 | V10: =D10*8760/2000 -> 0 | W10: =SUM('7) Ferm'!P44:Y44) -> 0 | X10: ='8) Calculations'!AW11 -> 0 | AB10: ='10) Calc Flares'!D55 -> 0 | AG10: ='15) Calculations'!G207 -> 0 | AH10: 0 | AI10: =SUM('16) Others'!M31:V31) -> 0 | AK10: SO2 | AR10: SO2
A11: NOx | D11: ='5) Calculations'!CJ11 -> 0 | E11: =SUM('7) Ferm'!C45:L45) -> 0 | F11: ='8) Calculations'!AJ12 -> 0 | J11: ='10) Calc Flares'!C57 -> 0 | O11: ='15) Calculations'!F208 -> 0 | P11: ='7) Calculations'!AS9 -> 0 | Q11: =SUM('16) Others'!C32:L32) -> 0 | S11: NOx | V11: 0 | W11: =SUM('7) Ferm'!P45:Y45) -> 0 | X11: ='8) Calculations'!AW12 -> 0 | AB11: ='10) Calc Flares'!D57 -> 0 | AG11: ='15) Calculations'!G208 -> 0 | AH11: 0 | AI11: =SUM('16) Others'!M32:V32) -> 0 | AK11: NOx | AR11: NOx
A12: CO | D12: ='5) Calculations'!CJ12 -> 0 | E12: =SUM('7) Ferm'!C46:L46) -> 0 | F12: ='8) Calculations'!AJ13 -> 0 | J12: ='10) Calc Flares'!C58 -> 0 | O12: ='15) Calculations'!F209 -> 0 | P12: ='7) Calculations'!AS10 -> 0 | Q12: =SUM('16) Others'!C33:L33) -> 0 | S12: CO | V12: 0 | W12: =SUM('7) Ferm'!P46:Y46) -> 0 | X12: ='8) Calculations'!AW13 -> 0 | AB12: ='10) Calc Flares'!D58 -> 0 | AG12: ='15) Calculations'!G209 -> 0 | AH12: 0 | AI12: =SUM('16) Others'!M33:V33) -> 0 | AK12: CO | AR12: CO
A13: VOC | D13: ='5) Calculations'!CJ13 -> 0 | E13: =SUM('7) Ferm'!C47:L47) -> 0 | F13: ='8) Calculations'!AJ14 -> 0 | K13: ='9) Calculations'!C16 -> 0 | L13: ='10) Calculation'!M76/8760 -> 0 | M13: ='11) Tanks'!C42 -> 0 | N13: ='13) Cooling Tower'!B68 -> 0 | O13: ='15) Calculations'!F210 -> 0 | P13: ='7) Calculations'!AS11 -> 0 | Q13: =SUM('16) Others'!C34:L34) -> 0 | S13: VOC | V13: 0 | W13: =SUM('7) Ferm'!P47:Y47) -> 0 | X13: ='8) Calculations'!AW14 -> 0 | AC13: ='9) Calculations'!D16 -> 0 | AD13: ='10) Calculation'!M76 -> 0 | AE13: ='11) Tanks'!D42 -> 0 | AF13: ='13) Cooling Tower'!C68 -> 0 | AG13: ='15) Calculations'!G210 -> 0 | AH13: 0 | AI13: =SUM('16) Others'!M34:V34) -> 0 | AK13: VOC | AO13: ='14) Equipment Leaks'!D18 -> 0 | AR13: VOC | AV13: ='14) Equipment Leaks'!D19 -> 0
A14: Hydrogen Sulfide | O14: ='15) Calculations'!F211 -> 0 | S14: Hydrogen Sulfide | AG14: ='15) Calculations'!G211 -> 0 | AH14: 0 | AK14: Hydrogen Sulfide | AR14: Hydrogen Sulfide
A15: Sulfuric Acid | O15: ='15) Calculations'!F212 -> 0 | S15: Sulfuric Acid | AG15: ='15) Calculations'!G212 -> 0 | AH15: 0 | AK15: Sulfuric Acid | AR15: Sulfuric Acid
A16: Fluorides | O16: ='15) Calculations'!F213 -> 0 | S16: Fluorides | AG16: ='15) Calculations'!G213 -> 0 | AH16: 0 | AK16: Fluorides | AR16: Fluorides
A17: Individual HAP | O17: ='15) Calculations'!F214 -> 0 | S17: Individual HAP | AG17: ='15) Calculations'!G214 -> 0 | AK17: Individual HAP | AR17: Individual HAP
A18: Acetaldehyde | E18: =SUM('7) Ferm'!C49:L49) -> 0 | F18: ='8) Calculations'!AJ16 -> 0 | K18: ='9) Calculations'!C18 -> 0 | L18: ='10) Calculation'!E82/8760 -> 0 | M18: ='11) Tanks'!C43 -> 0 | O18: ='15) Calculations'!F215 -> 0 | P18: ='7) Calculations'!AS13 -> 0 | Q18: =SUM('16) Others'!C36:L36) -> 0 | S18: Acetaldehyde | W18: =SUM('7) Ferm'!P49:Y49) -> 0 | X18: ='8) Calculations'!AW16 -> 0 | AC18: ='9) Calculations'!D18 -> 0 | AD18: ='10) Calculation'!E82 -> 0 | AE18: ='11) Tanks'!D43 -> 0 | AG18: ='15) Calculations'!G215 -> 0 | AH18: =P18*8760/2000 -> 0 | AI18: =SUM('16) Others'!M36:V36) -> 0 | AK18: Acetaldehyde | AO18: ='14) Equipment Leaks'!E24 -> 0 | AR18: Acetaldehyde | AV18: ='14) Equipment Leaks'!H24 -> 0
A19: Acrolein | E19: =SUM('7) Ferm'!C51:L51) -> 0 | F19: ='8) Calculations'!AJ18 -> 0 | K19: ='9) Calculations'!C19 -> 0 | O19: ='15) Calculations'!F216 -> 0 | P19: ='7) Calculations'!AS14 -> 0 | Q19: =SUM('16) Others'!C38:L38) -> 0 | S19: Acrolein | W19: =SUM('7) Ferm'!P51:Y51) -> 0 | X19: ='8) Calculations'!AW18 -> 0 | AC19: ='9) Calculations'!D19 -> 0 | AG19: ='15) Calculations'!G216 -> 0 | AH19: 0 | AI19: =SUM('16) Others'!M38:V38) -> 0 | AK19: Acrolein | AO19: ='14) Equipment Leaks'!E25 -> 0 | AR19: Acrolein | AV19: ='14) Equipment Leaks'!H25 -> 0
A20: Arsenic compounds | D20: ='5) Calculations'!CJ22 -> 0 | E20: =SUM('7) Ferm'!C60:L60) -> 0 | F20: ='8) Calculations'!AJ27 -> 0 | O20: ='15) Calculations'!F217 -> 0 | P20: ='7) Calculations'!AS24 -> 0 | S20: Arsenic compounds | V20: =D20*8760/2000 -> 0 | W20: =SUM('7) Ferm'!P60:Y60) -> 0 | X20: ='8) Calculations'!AW27 -> 0 | AG20: ='15) Calculations'!G217 -> 0 | AH20: 0 | AK20: Arsenic compounds | AR20: Arsenic compounds
A21: Benzene | D21: ='5) Calculations'!CJ15 -> 0 | E21: =SUM('7) Ferm'!C53:L53) -> 0 | F21: ='8) Calculations'!AJ20 -> 0 | J21: ='10) Calc Flares'!C60 -> 0 | L21: ='10) Calculation'!E83/8760 -> 0 | M21: ='11) Tanks'!C45 -> 0 | O21: ='15) Calculations'!F218 -> 0 | P21: ='7) Calculations'!AS17 -> 0 | Q21: =SUM('16) Others'!C40:L40) -> 0 | S21: Benzene | V21: 0 | W21: =SUM('7) Ferm'!P53:Y53) -> 0 | X21: ='8) Calculations'!AW20 -> 0 | AB21: ='10) Calc Flares'!D60 -> 0 | AD21: ='10) Calculation'!E83 -> 0 | AE21: ='11) Tanks'!D45 -> 0 | AG21: ='15) Calculations'!G218 -> 0 | AH21: 0 | AI21: =SUM('16) Others'!M40:V40) -> 0 | AK21: Benzene | AR21: Benzene
A22: Benzyl chloride | O22: ='15) Calculations'!F219 -> 0 | S22: Benzyl chloride | AG22: ='15) Calculations'!G219 -> 0 | AH22: 0 | AK22: Benzyl chloride | AR22: Benzyl chloride
A23: Beryllium compounds | D23: ='5) Calculations'!CJ23 -> 0 | E23: =SUM('7) Ferm'!C61:L61) -> 0 | F23: ='8) Calculations'!AJ28 -> 0 | O23: ='15) Calculations'!F220 -> 0 | P23: ='7) Calculations'!AS25 -> 0 | Q23: =SUM('16) Others'!C48:L48) -> 0 | S23: Beryllium compounds | V23: 0 | W23: =SUM('7) Ferm'!P61:Y61) -> 0 | X23: ='8) Calculations'!AW28 -> 0 | AG23: ='15) Calculations'!G220 -> 0 | AH23: 0 | AI23: =SUM('16) Others'!M48:V48) -> 0 | AK23: Beryllium compounds | AR23: Beryllium compounds
A24: Cadmium compounds | D24: ='5) Calculations'!CJ24 -> 0 | E24: =SUM('7) Ferm'!C62:L62) -> 0 | F24: ='8) Calculations'!AJ29 -> 0 | O24: ='15) Calculations'!F221 -> 0 | P24: ='7) Calculations'!AS26 -> 0 | Q24: =SUM('16) Others'!C49:L49) -> 0 | S24: Cadmium compounds | V24: 0 | W24: =SUM('7) Ferm'!P62:Y62) -> 0 | X24: ='8) Calculations'!AW29 -> 0 | AG24: ='15) Calculations'!G221 -> 0 | AH24: 0 | AI24: =SUM('16) Others'!M49:V49) -> 0 | AK24: Cadmium compounds | AR24: Cadmium compounds
A25: Cyanide compounds | O25: ='15) Calculations'!F222 -> 0 | S25: Cyanide compounds | AG25: ='15) Calculations'!G222 -> 0 | AH25: 0 | AK25: Cyanide compounds | AR25: Cyanide compounds
A26: Formaldehyde | E26: =SUM('7) Ferm'!C50:L50) -> 0 | F26: ='8) Calculations'!AJ17 -> 0 | J26: ='10) Calc Flares'!C62 -> 0 | K26: ='9) Calculations'!C20 -> 0 | O26: ='15) Calculations'!F223 -> 0 | P26: ='7) Calculations'!AS15 -> 0 | Q26: =SUM('16) Others'!C37:L37) -> 0 | S26: Formaldehyde | W26: =SUM('7) Ferm'!P50:Y50) -> 0 | X26: ='8) Calculations'!AW17 -> 0 | AB26: ='10) Calc Flares'!D62 -> 0 | AC26: ='9) Calculations'!D20 -> 0 | AG26: ='15) Calculations'!G223 -> 0 | AH26: 0 | AI26: =SUM('16) Others'!M37:V37) -> 0 | AK26: Formaldehyde | AO26: ='14) Equipment Leaks'!E26 -> 0 | AR26: Formaldehyde | AV26: ='14) Equipment Leaks'!H26 -> 0
A27: Hexane | D27: ='5) Calculations'!CJ17 -> 0 | E27: =SUM('7) Ferm'!C55:L55) -> 0 | F27: ='8) Calculations'!AJ22 -> 0 | J27: ='10) Calc Flares'!C63 -> 0 | L27: ='10) Calculation'!E87/8760 -> 0 | M27: ='11) Tanks'!C49 -> 0 | O27: ='15) Calculations'!F224 -> 0 | P27: ='7) Calculations'!AS19 -> 0 | Q27: =SUM('16) Others'!C42:L42) -> 0 | S27: Hexane | V27: 0 | W27: =SUM('7) Ferm'!P55:Y55) -> 0 | X27: ='8) Calculations'!AW22 -> 0 | AB27: ='10) Calc Flares'!D63 -> 0 | AD27: ='10) Calculation'!E87 -> 0 | AE27: ='11) Tanks'!D49 -> 0 | AG27: ='15) Calculations'!G224 -> 0 | AH27: 0 | AI27: =SUM('16) Others'!M42:V42) -> 0 | AK27: Hexane | AR27: Hexane
A28: Hydrochloric acid | O28: ='15) Calculations'!F225 -> 0 | S28: Hydrochloric acid | AG28: ='15) Calculations'!G225 -> 0 | AH28: 0 | AK28: Hydrochloric acid | AR28: Hydrochloric acid
A29: Lead Compounds | J29: ='10) Calc Flares'!C64 -> 0 | O29: ='15) Calculations'!F226 -> 0 | Q29: =SUM('16) Others'!C43:L43) -> 0 | S29: Lead Compounds | AB29: ='10) Calc Flares'!D64 -> 0 | AG29: ='15) Calculations'!G226 -> 0 | AH29: 0 | AI29: =SUM('16) Others'!M43:V43) -> 0 | AK29: Lead Compounds | AR29: Lead Compounds
A30: Mercury compounds | D30: ='5) Calculations'!CJ28 -> 0 | E30: =SUM('7) Ferm'!C66:L66) -> 0 | F30: ='8) Calculations'!AJ33 -> 0 | O30: ='15) Calculations'!F227 -> 0 | P30: ='7) Calculations'!AS30 -> 0 | Q30: =SUM('16) Others'!C53:L53) -> 0 | S30: Mercury compounds | V30: 0 | W30: =SUM('7) Ferm'!P66:Y66) -> 0 | X30: ='8) Calculations'!AW33 -> 0 | AG30: ='15) Calculations'!G227 -> 0 | AH30: 0 | AI30: =SUM('16) Others'!M53:V53) -> 0 | AK30: Mercury compounds | AR30: Mercury compounds
A31: Methanol | E31: =SUM('7) Ferm'!C52:L52) -> 0 | F31: ='8) Calculations'!AJ19 -> 0 | K31: ='9) Calculations'!C21 -> 0 | L31: ='10) Calculation'!E88/8760 -> 0 | M31: ='11) Tanks'!C44 -> 0 | O31: ='15) Calculations'!F228 -> 0 | P31: ='7) Calculations'!AS16 -> 0 | Q31: =SUM('16) Others'!C39:L39) -> 0 | S31: Methanol | W31: =SUM('7) Ferm'!P52:Y52) -> 0 | X31: ='8) Calculations'!AW19 -> 0 | AC31: ='9) Calculations'!D21 -> 0 | AD31: ='10) Calculation'!E88 -> 0 | AE31: ='11) Tanks'!D45 -> 0 | AG31: ='15) Calculations'!G228 -> 0 | AH31: 0 | AI31: =SUM('16) Others'!M39:V39) -> 0 | AK31: Methanol | AO31: ='14) Equipment Leaks'!E27 -> 0 | AR31: Methanol | AV31: ='14) Equipment Leaks'!H27 -> 0
A32: Methyl hydrazine | O32: ='15) Calculations'!F229 -> 0 | S32: Methyl hydrazine | AG32: ='15) Calculations'!G229 -> 0 | AH32: 0 | AK32: Methyl hydrazine | AR32: Methyl hydrazine
A33: Selenium compounds | D33: ='5) Calculations'!CJ30 -> 0 | E33: =SUM('7) Ferm'!C68:L68) -> 0 | F33: ='8) Calculations'!AJ35 -> 0 | J33: ='10) Calc Flares'!C76 -> 0 | O33: ='15) Calculations'!F230 -> 0 | P33: ='7) Calculations'!AS32 -> 0 | Q33: =SUM('16) Others'!C55:L55) -> 0 | S33: Selenium compounds | V33: 0 | W33: =SUM('7) Ferm'!P68:Y68) -> 0 | X33: ='8) Calculations'!AW35 -> 0 | AB33: ='10) Calc Flares'!D76 -> 0 | AG33: ='15) Calculations'!G230 -> 0 | AH33: 0 | AI33: =SUM('16) Others'!M55:V55) -> 0 | AK33: Selenium compounds | AR33: Selenium compounds
A34: Other HAPs | D34: =D35-SUM(D18:D33) -> 0 | E34: =E35-SUM(E18:E33) -> 0 | F34: =F35-SUM(F18:F33) -> 0 | J34: =J35-SUM(J18:J33) -> 0 | L34: =(L35-SUM(L18:L33)) -> 0 | M34: ='11) Tanks'!C46+'11) Tanks'!C47+'11) Tanks'!C48+'11) Tanks'!C51+'11) Tanks'!C50 -> 0 | O34: ='15) Calculations'!F231 -> 0 | P34: =P35-SUM(P18:P19) -> 0 | Q34: =SUM('16) Others'!C44:L44)+SUM('16) Others'!C41:L41)+SUM('16) Others'!C45:L45)+SUM('16) Others'!C47:L47)+SUM('16) Others'!C46:L46)+SUM('16) Others'!C50:L50)+SUM('16) Others'!C51:L51)+SUM('16) Others'!C52:L52)+SUM('16) Others'!C54:L54) -> 0 | S34: Other HAPs | V34: 0 | W34: =W35-SUM(W18:W33) -> 0 | X34: =X35-SUM(X18:X33) -> 0 | AB34: =AB35-SUM(AB18:AB33) -> 0 | AD34: =AD35-SUM(AD18:AD33) -> 0 | AE34: ='11) Tanks'!D46+'11) Tanks'!D47+'11) Tanks'!D48+'11) Tanks'!D50+'11) Tanks'!D51 -> 0 | AG34: ='15) Calculations'!G231 -> 0 | AH34: 0 | AI34: =SUM('16) Others'!M44:V44)+SUM('16) Others'!M41:V41)+SUM('16) Others'!M45:V45)+SUM('16) Others'!M47:V47)+SUM('16) Others'!M46:V46)+SUM('16) Others'!M50:V50)+SUM('16) Others'!M51:V51)+SUM('16) Others'!M52:V52)+SUM('16) Others'!M54:V54) -> 0 | AK34: Other HAPs | AR34: Other HAPs
A35: Total HAPs | D35: ='5) Calculations'!CJ31 -> 0 | E35: =SUM('7) Ferm'!C69:L69) -> 0 | F35: ='8) Calculations'!AJ36 -> 0 | J35: ='10) Calc Flares'!C77 -> 0 | K35: ='9) Calculations'!C22 -> 0 | L35: ='10) Calculation'!E91/8760 -> 0 | M35: ='11) Tanks'!C52 -> 0 | N35: ='13) Cooling Tower'!B69 -> 0 | O35: ='15) Calculations'!F232 -> 0 | P35: ='7) Calculations'!AS33 -> 0 | Q35: =SUM(Q18:Q34) -> 0 | S35: Total HAPs | V35: 0 | W35: =SUM('7) Ferm'!P69:Y69) -> 0 | X35: ='8) Calculations'!AW36 -> 0 | AB35: ='10) Calc Flares'!D77 -> 0 | AC35: ='9) Calculations'!D22 -> 0 | AD35: ='10) Calculation'!E91 -> 0 | AE35: ='11) Tanks'!D52 -> 0 | AF35: ='13) Cooling Tower'!C69 -> 0 | AG35: ='15) Calculations'!G232 -> 0 | AH35: 0 | AI35: =SUM(AI18:AI34) -> 0 | AK35: Total HAPs | AO35: ='14) Equipment Leaks'!E28 -> 0 | AR35: Total HAPs | AV35: ='14) Equipment Leaks'!H28 -> 0
A36: Greenhouse Gases (GHG) (Mass Basis) | O36: ='15) Calculations'!F233 -> 0 | S36: Greenhouse Gases (GHG) (Mass Basis) | AG36: ='15) Calculations'!G233 -> 0 | AK36: Greenhouse Gases (GHG) (Mass Basis) | AR36: Greenhouse Gases (GHG) (Mass Basis)
A37: Carbon Dioxide | D37: ='5) Calculations'!CJ33 -> 0 | E37: =SUM('7) Ferm'!C71:L71) -> 0 | F37: ='8) Calculations'!AJ38 -> 0 | J37: =AB37/8760*2000 -> 0 | O37: ='15) Calculations'!F234 -> 0 | P37: ='7) Calculations'!AS35 -> 0 | Q37: =SUM('16) Others'!C58:L58) -> 0 | S37: Carbon Dioxide | V37: =D37*8760/2000 -> 0 | W37: =SUM('7) Ferm'!U71:AD71) -> 0 | X37: ='8) Calculations'!AW38 -> 0 | AB37: ='10) Calc Flares'!C79 -> 0 | AD37: =L37*8760/2000 -> 0 | AG37: ='15) Calculations'!G234 -> 0 | AH37: =P37*8760/2000 -> 0 | AI37: =SUM('16) Others'!M58:V58) -> 0 | AK37: Carbon Dioxide | AR37: Carbon Dioxide
A38: Methane | D38: ='5) Calculations'!CJ34 -> 0 | E38: =SUM('7) Ferm'!C72:L72) -> 0 | F38: ='8) Calculations'!AJ39 -> 0 | J38: =AB38/8760*2000 -> 0 | O38: ='15) Calculations'!F235 -> 0 | P38: ='7) Calculations'!AS36 -> 0 | Q38: =SUM('16) Others'!C59:L59) -> 0 | S38: Methane | V38: =D38*8760/2000 -> 0 | W38: =SUM('7) Ferm'!U72:AD72) -> 0 | X38: ='8) Calculations'!AW39 -> 0 | AB38: ='10) Calc Flares'!C80 -> 0 | AD38: =L38*8760/2000 -> 0 | AG38: ='15) Calculations'!G235 -> 0 | AH38: =P38*8760/2000 -> 0 | AI38: =SUM('16) Others'!M59:V59) -> 0 | AK38: Methane | AR38: Methane
A39: Nitrous Oxide | D39: ='5) Calculations'!CJ35 -> 0 | E39: =SUM('7) Ferm'!C73:L73) -> 0 | F39: ='8) Calculations'!AJ40 -> 0 | J39: 0 | O39: ='15) Calculations'!F236 -> 0 | P39: ='7) Calculations'!AS37 -> 0 | Q39: =SUM('16) Others'!C60:L60) -> 0 | S39: Nitrous Oxide | V39: =D39*8760/2000 -> 0 | W39: =SUM('7) Ferm'!U73:AD73) -> 0 | X39: ='8) Calculations'!AW40 -> 0 | AB39: ='10) Calc Flares'!C81 -> 0 | AD39: =L39*8760/2000 -> 0 | AG39: ='15) Calculations'!G236 -> 0 | AH39: =P39*8760/2000 -> 0 | AI39: =SUM('16) Others'!M60:V60) -> 0 | AK39: Nitrous Oxide | AR39: Nitrous Oxide
A40: Total GHGs | D40: ='5) Calculations'!CJ36 -> 0 | E40: =SUM('7) Ferm'!C74:L74) -> 0 | F40: ='8) Calculations'!AJ41 -> 0 | J40: 0 | O40: ='15) Calculations'!F237 -> 0 | P40: ='7) Calculations'!AS38 -> 0 | Q40: =SUM(Q37:Q39) -> 0 | S40: Total GHGs | V40: =D40*8760/2000 -> 0 | W40: =SUM('7) Ferm'!U74:AD74) -> 0 | X40: ='8) Calculations'!AW41 -> 0 | AB40: ='10) Calc Flares'!C82 -> 0 | AD40: =L40*8760/2000 -> 0 | AG40: ='15) Calculations'!G237 -> 0 | AH40: =P40*8760/2000 -> 0 | AI40: =SUM(AI37:AI39) -> 0 | AK40: Total GHGs | AR40: Total GHGs
A41: Greenhouse Gases (GHG) (CO2 Equilvalent Basis) | J41: 0 | O41: ='15) Calculations'!F238 -> 0 | P41: ='7) Calculations'!AS39 -> 0 | S41: Greenhouse Gases (GHG) (CO2 Equilvalent Basis) | AG41: ='15) Calculations'!G238 -> 0 | AK41: Greenhouse Gases (GHG) (CO2 Equilvalent Basis) | AR41: Greenhouse Gases (GHG) (CO2 Equilvalent Basis)
A42: Carbon Dioxide | D42: ='5) Calculations'!CJ38 -> 0 | E42: =E37 -> 0 | F42: ='8) Calculations'!AJ43 -> 0 | J42: 0 | O42: ='15) Calculations'!F239 -> 0 | P42: ='7) Calculations'!AS40 -> 0 | Q42: =Q37 -> 0 | S42: Carbon Dioxide | V42: =D42*8760/2000 -> 0 | W42: =W37 -> 0 | X42: ='8) Calculations'!AW43 -> 0 | AB42: ='10) Calc Flares'!D79 -> 0 | AD42: =L42*8760/2000 -> 0 | AG42: ='15) Calculations'!G239 -> 0 | AH42: =P42*8760/2000 -> 0 | AI42: =AI37 -> 0 | AK42: Carbon Dioxide | AR42: Carbon Dioxide
A43: Methane | D43: ='5) Calculations'!CJ39 -> 0 | E43: =E38*25 -> 0 | F43: ='8) Calculations'!AJ44 -> 0 | J43: 0 | O43: ='15) Calculations'!F240 -> 0 | P43: ='7) Calculations'!AS41 -> 0 | Q43: =Q38*25 -> 0 | S43: Methane | V43: =D43*8760/2000 -> 0 | W43: =W38*25 -> 0 | X43: ='8) Calculations'!AW44 -> 0 | AB43: ='10) Calc Flares'!D80 -> 0 | AD43: =L43*8760/2000 -> 0 | AG43: ='15) Calculations'!G240 -> 0 | AH43: =P43*8760/2000 -> 0 | AI43: =AI38*25 -> 0 | AK43: Methane | AR43: Methane
A44: Nitrous Oxide | D44: ='5) Calculations'!CJ40 -> 0 | E44: =E39*298 -> 0 | F44: ='8) Calculations'!AJ45 -> 0 | J44: 0 | O44: ='15) Calculations'!F241 -> 0 | P44: ='7) Calculations'!AS42 -> 0 | Q44: =Q39*298 -> 0 | S44: Nitrous Oxide | V44: =D44*8760/2000 -> 0 | W44: =W39*298 -> 0 | X44: ='8) Calculations'!AW45 -> 0 | AB44: ='10) Calc Flares'!D81 -> 0 | AD44: =L44*8760/2000 -> 0 | AG44: ='15) Calculations'!G241 -> 0 | AH44: =P44*8760/2000 -> 0 | AI44: =AI39*298 -> 0 | AK44: Nitrous Oxide | AR44: Nitrous Oxide
A45: Total GHGs | D45: ='5) Calculations'!CJ41 -> 0 | E45: =SUM(E42:E44) -> 0 | F45: ='8) Calculations'!AJ46 -> 0 | J45: 0 | O45: ='15) Calculations'!F242 -> 0 | P45: ='7) Calculations'!AS43 -> 0 | Q45: =SUM(Q42:Q44) -> 0 | S45: Total GHGs | V45: =D45*8760/2000 -> 0 | W45: =SUM(W42:W44) -> 0 | X45: ='8) Calculations'!AW46 -> 0 | AB45: ='10) Calc Flares'!D82 -> 0 | AD45: =L45*8760/2000 -> 0 | AG45: ='15) Calculations'!G242 -> 0 | AH45: =P45*8760/2000 -> 0 | AI45: =SUM(AI42:AI44) -> 0 | AK45: Total GHGs | AR45: Total GHGs
A47: PTE after the project, (lb/hr) | S47: PTE after the project, (ton/yr) | AK47: Fugitive PTE after the project, (lb/hr) | AR47: Fugitive PTE after the project, (ton/yr)
A48: Pollutants | B48: Grain Receiving | C48: Grain Handling | D48: Dryers | E48: Fermenters | F48: DDGS dryers | G48: Solids storage | H48: Scalpers | I48: Hammer Mills | J48: Flares | K48: Solids shipping | L48: liquid loadout and vapour recovery | M48: tanks | N48: Cooling Tower | O48: Engines | P48: boilers/rto | Q48: Suppl. Units | S48: Pollutants | T48: Grain Receiving | U48: Grain Handling | V48: Dryers | W48: Fermenters | X48: DDGS dryers | Y48: Solids storage | Z48: Scalpers | AA48: Hammer Mills | AB48: Flares | AC48: Solids shipping | AD48: liquid loadout and vapour recovery | AE48: tanks | AF48: Cooling Tower | AG48: Engines | AH48: boilers/rto | AI48: Suppl. Units | AK48: Pollutants | AL48: Grain Receiving | AM48: Grain Handling | AN48: Solids storage | AO48: Equipment leaks | AP48: haul roads | AR48: Pollutants | AS48: Grain Receiving | AT48: Grain Handling | AU48: Solids storage | AV48: Equipment leaks | AW48: haul roads
B49: (lb/hr) | T49: (tons/yr) | AL49: (lb/hr) | AS49: (tons/yr)
A50: PMfilterable | B50: ='3) Calculations'!O101 -> 0 | C50: ='3) Calculations'!AG123 -> 0 | D50: ='5) Calculations'!CJ48 -> 0 | E50: =SUM('7) Ferm'!C81:L81) -> 0 | F50: ='8) Calculations'!AJ54 -> 0 | G50: ='4) Calculations'!O14 -> 0 | H50: ='6) Calculations'!E58 -> 0 | I50: ='6) Calculations'!E75 -> 0 | J50: ='10) Calc Flares'!H52 -> 0 | K50: ='9) Calculations'!H8 -> 0 | N50: ='13) Cooling Tower'!I36 -> 0 | O50: ='15) Calculations'!M204 -> 0 | P50: ='7) Calculations'!AS49 -> 0 | Q50: =SUM('16) Others'!Z28:AI28) -> 0 | S50: PMfilterable | T50: ='3) Calculations'!P101 -> 0 | U50: ='3) Calculations'!AJ123 -> 0 | V50: ='5) Calculations'!CW7 -> 0 | W50: =SUM('7) Ferm'!P81:Y81) -> 0 | X50: ='8) Calculations'!AW54 -> 0 | Y50: ='4) Calculations'!P14 -> 0 | Z50: ='6) Calculations'!H58 -> 0 | AA50: ='6) Calculations'!H75 -> 0 | AB50: ='10) Calc Flares'!I52 -> 0 | AC50: ='9) Calculations'!I8 -> 0 | AF50: ='13) Cooling Tower'!J36 -> 0 | AG50: ='15) Calculations'!N204 -> 0 | AH50: =P50*8760/2000 -> 0 | AI50: =SUM('16) Others'!AJ28:AS28) -> 0 | AK50: PMfilterable | AL50: ='3) Calculations'!E142 -> 0 | AM50: ='3) Calculations'!AA123 -> 0 | AN50: =AU50*2000/8760 -> 0 | AP50: =AW50*2000/8760 -> 0 | AR50: PMfilterable | AS50: ='3) Calculations'!H142 -> 0 | AT50: ='3) Calculations'!AD123 -> 0 | AU50: ='4) Calculations'!H46 -> 0 | AW50: ='12) Haul Roads'!AA50 -> 0
A51: PM10 | B51: ='3) Calculations'!Q101 -> 0 | C51: ='3) Calculations'!AB123 -> 0 | D51: ='5) Calculations'!CJ49 -> 0 | E51: =SUM('7) Ferm'!C82:L82) -> 0 | F51: ='8) Calculations'!AJ55 -> 0 | G51: ='4) Calculations'!O15 -> 0 | H51: ='6) Calculations'!F58 -> 0 | I51: ='6) Calculations'!F75 -> 0 | J51: ='10) Calc Flares'!H53 -> 0 | K51: ='9) Calculations'!H9 -> 0 | N51: ='13) Cooling Tower'!I37 -> 0 | O51: ='15) Calculations'!M205 -> 0 | P51: ='7) Calculations'!AS50 -> 0 | Q51: =SUM('16) Others'!Z29:AI29) -> 0 | S51: PM10 | T51: ='3) Calculations'!R101 -> 0 | U51: ='3) Calculations'!AK123 -> 0 | V51: ='5) Calculations'!CW8 -> 0 | W51: =SUM('7) Ferm'!P82:Y82) -> 0 | X51: ='8) Calculations'!AW55 -> 0 | Y51: ='4) Calculations'!P15 -> 0 | Z51: ='6) Calculations'!I58 -> 0 | AA51: ='6) Calculations'!I75 -> 0 | AB51: ='10) Calc Flares'!I53 -> 0 | AC51: ='9) Calculations'!I9 -> 0 | AF51: ='13) Cooling Tower'!J37 -> 0 | AG51: ='15) Calculations'!N205 -> 0 | AH51: 0 | AI51: =SUM('16) Others'!AJ29:AS29) -> 0 | AK51: PM10 | AL51: ='3) Calculations'!F142 -> 0 | AM51: ='3) Calculations'!AB123 -> 0 | AN51: =AU51*2000/8760 -> 0 | AP51: =AW51*2000/8760 -> 0 | AR51: PM10 | AS51: ='3) Calculations'!I142 -> 0 | AT51: ='3) Calculations'!AE123 -> 0 | AU51: ='4) Calculations'!H49 -> 0 | AW51: ='12) Haul Roads'!AB50 -> 0
A52: PM2.5 | B52: ='3) Calculations'!S101 -> 0 | C52: ='3) Calculations'!AC123 -> 0 | D52: ='5) Calculations'!CJ50 -> 0 | E52: =SUM('7) Ferm'!C83:L83) -> 0 | F52: ='8) Calculations'!AJ56 -> 0 | G52: ='4) Calculations'!O16 -> 0 | H52: ='6) Calculations'!G58 -> 0 | I52: ='6) Calculations'!G75 -> 0 | J52: ='10) Calc Flares'!H54 -> 0 | K52: ='9) Calculations'!H10 -> 0 | N52: ='13) Cooling Tower'!I38 -> 0 | O52: ='15) Calculations'!M206 -> 0 | P52: ='7) Calculations'!AS51 -> 0 | Q52: =SUM('16) Others'!Z30:AI30) -> 0 | S52: PM2.5 | T52: ='3) Calculations'!T101 -> 0 | U52: ='3) Calculations'!AL123 -> 0 | V52: ='5) Calculations'!CW9 -> 0 | W52: =SUM('7) Ferm'!P83:Y83) -> 0 | X52: ='8) Calculations'!AW56 -> 0 | Y52: ='4) Calculations'!P16 -> 0 | Z52: ='6) Calculations'!J58 -> 0 | AA52: ='6) Calculations'!J75 -> 0 | AB52: ='10) Calc Flares'!I54 -> 0 | AC52: ='9) Calculations'!I10 -> 0 | AF52: ='13) Cooling Tower'!J38 -> 0 | AG52: ='15) Calculations'!N206 -> 0 | AH52: 0 | AI52: =SUM('16) Others'!AJ30:AS30) -> 0 | AK52: PM2.5 | AL52: ='3) Calculations'!G142 -> 0 | AM52: ='3) Calculations'!AC123 -> 0 | AN52: 0 | AP52: 0 | AR52: PM2.5 | AS52: ='3) Calculations'!J142 -> 0 | AT52: ='3) Calculations'!AF123 -> 0 | AU52: ='4) Calculations'!H52 -> 0 | AW52: ='12) Haul Roads'!AC50 -> 0
A53: SO2 | D53: ='5) Calculations'!CJ51 -> 0 | E53: =SUM('7) Ferm'!C84:L84) -> 0 | F53: ='8) Calculations'!AJ57 -> 0 | J53: ='10) Calc Flares'!H55 -> 0 | O53: ='15) Calculations'!M207 -> 0 | P53: ='7) Calculations'!AS52 -> 0 | Q53: =SUM('16) Others'!Z31:AI31) -> 0 | S53: SO2 | V53: =D53*8760/2000 -> 0 | W53: =SUM('7) Ferm'!P84:Y84) -> 0 | X53: ='8) Calculations'!AW57 -> 0 | AB53: ='10) Calc Flares'!I55 -> 0 | AG53: ='15) Calculations'!N207 -> 0 | AH53: 0 | AI53: =SUM('16) Others'!AJ31:AS31) -> 0 | AK53: SO2 | AR53: SO2
A54: NOx | D54: ='5) Calculations'!CJ52 -> 0 | E54: =SUM('7) Ferm'!C85:L85) -> 0 | F54: ='8) Calculations'!AJ58 -> 0 | J54: ='10) Calc Flares'!H57 -> 0 | O54: ='15) Calculations'!M208 -> 0 | P54: ='7) Calculations'!AS53 -> 0 | Q54: =SUM('16) Others'!Z32:AI32) -> 0 | S54: NOx | V54: 0 | W54: =SUM('7) Ferm'!P85:Y85) -> 0 | X54: ='8) Calculations'!AW58 -> 0 | AB54: ='10) Calc Flares'!I57 -> 0 | AG54: ='15) Calculations'!N208 -> 0 | AH54: 0 | AI54: =SUM('16) Others'!AJ32:AS32) -> 0 | AK54: NOx | AR54: NOx
A55: CO | D55: ='5) Calculations'!CJ53 -> 0 | E55: =SUM('7) Ferm'!C86:L86) -> 0 | F55: ='8) Calculations'!AJ59 -> 0 | J55: ='10) Calc Flares'!H58 -> 0 | O55: ='15) Calculations'!M209 -> 0 | P55: ='7) Calculations'!AS54 -> 0 | Q55: =SUM('16) Others'!Z33:AI33) -> 0 | S55: CO | V55: 0 | W55: =SUM('7) Ferm'!P86:Y86) -> 0 | X55: ='8) Calculations'!AW59 -> 0 | AB55: ='10) Calc Flares'!I58 -> 0 | AG55: ='15) Calculations'!N209 -> 0 | AH55: 0 | AI55: =SUM('16) Others'!AJ33:AS33) -> 0 | AK55: CO | AR55: CO
A56: VOC | D56: ='5) Calculations'!CJ54 -> 0 | E56: =SUM('7) Ferm'!C87:L87) -> 0 | F56: ='8) Calculations'!AJ60 -> 0 | K56: ='9) Calculations'!H16 -> 0 | L56: ='10) Calculation'!AA76/8760 -> 0 | M56: ='11) Tanks'!H42 -> 0 | N56: ='13) Cooling Tower'!I68 -> 0 | O56: ='15) Calculations'!M210 -> 0 | P56: ='7) Calculations'!AS55 -> 0 | Q56: =SUM('16) Others'!Z34:AI34) -> 0 | S56: VOC | V56: 0 | W56: =SUM('7) Ferm'!P87:Y87) -> 0 | X56: ='8) Calculations'!AW60 -> 0 | AC56: ='9) Calculations'!I16 -> 0 | AD56: ='10) Calculation'!AA76 -> 0 | AE56: ='11) Tanks'!I42 -> 0 | AF56: ='13) Cooling Tower'!J68 -> 0 | AG56: ='15) Calculations'!N210 -> 0 | AH56: 0 | AI56: =SUM('16) Others'!AJ34:AS34) -> 0 | AK56: VOC | AO56: ='14) Equipment Leaks'!H18 -> 0 | AR56: VOC | AV56: ='14) Equipment Leaks'!H19 -> 0
A57: Hydrogen Sulfide | O57: ='15) Calculations'!M211 -> 0 | S57: Hydrogen Sulfide | V57: 0 | AG57: ='15) Calculations'!N211 -> 0 | AH57: 0 | AK57: Hydrogen Sulfide | AR57: Hydrogen Sulfide
A58: Sulfuric Acid | O58: ='15) Calculations'!M212 -> 0 | S58: Sulfuric Acid | V58: 0 | AG58: ='15) Calculations'!N212 -> 0 | AH58: 0 | AK58: Sulfuric Acid | AR58: Sulfuric Acid
A59: Fluorides | O59: ='15) Calculations'!M213 -> 0 | S59: Fluorides | V59: 0 | AG59: ='15) Calculations'!N213 -> 0 | AH59: 0 | AK59: Fluorides | AR59: Fluorides
A60: Individual HAP | O60: ='15) Calculations'!M214 -> 0 | S60: Individual HAP | AG60: ='15) Calculations'!N214 -> 0 | AK60: Individual HAP | AR60: Individual HAP
A61: Acetaldehyde | E61: =SUM('7) Ferm'!C89:L89) -> 0 | F61: ='8) Calculations'!AJ62 -> 0 | K61: ='9) Calculations'!H18 -> 0 | L61: ='10) Calculation'!S82/8760 -> 0 | M61: ='11) Tanks'!H43 -> 0 | O61: ='15) Calculations'!M215 -> 0 | P61: ='7) Calculations'!AS57 -> 0 | Q61: =SUM('16) Others'!Z36:AI36) -> 0 | S61: Acetaldehyde | V61: =D61*8760/2000 -> 0 | W61: =SUM('7) Ferm'!P89:Y89) -> 0 | X61: ='8) Calculations'!AW62 -> 0 | AC61: ='9) Calculations'!I18 -> 0 | AD61: ='10) Calculation'!S82 -> 0 | AE61: ='11) Tanks'!I43 -> 0 | AG61: ='15) Calculations'!N215 -> 0 | AH61: =P61*8760/2000 -> 0 | AI61: =SUM('16) Others'!AJ36:AS36) -> 0 | AK61: Acetaldehyde | AO61: ='14) Equipment Leaks'!K24 -> 0 | AR61: Acetaldehyde | AV61: ='14) Equipment Leaks'!N24 -> 0
A62: Acrolein | E62: =SUM('7) Ferm'!C91:L91) -> 0 | F62: ='8) Calculations'!AJ64 -> 0 | K62: ='9) Calculations'!H19 -> 0 | O62: ='15) Calculations'!M216 -> 0 | P62: ='7) Calculations'!AS58 -> 0 | Q62: =SUM('16) Others'!Z38:AI38) -> 0 | S62: Acrolein | V62: 0 | W62: =SUM('7) Ferm'!P91:Y91) -> 0 | X62: ='8) Calculations'!AW64 -> 0 | AC62: ='9) Calculations'!I19 -> 0 | AG62: ='15) Calculations'!N216 -> 0 | AH62: 0 | AI62: =SUM('16) Others'!AJ38:AS38) -> 0 | AK62: Acrolein | AO62: ='14) Equipment Leaks'!K25 -> 0 | AR62: Acrolein | AV62: ='14) Equipment Leaks'!N25 -> 0
A63: Arsenic compounds | D63: ='5) Calculations'!CJ63 -> 0 | E63: =SUM('7) Ferm'!C100:L100) -> 0 | F63: ='8) Calculations'!AJ73 -> 0 | O63: ='15) Calculations'!M217 -> 0 | P63: ='7) Calculations'!AS68 -> 0 | S63: Arsenic compounds | V63: 0 | W63: =SUM('7) Ferm'!P100:Y100) -> 0 | X63: ='8) Calculations'!AW73 -> 0 | AG63: ='15) Calculations'!N217 -> 0 | AH63: 0 | AK63: Arsenic compounds | AR63: Arsenic compounds
A64: Benzene | D64: ='5) Calculations'!CJ56 -> 0 | E64: =SUM('7) Ferm'!C93:L93) -> 0 | F64: ='8) Calculations'!AJ66 -> 0 | J64: ='10) Calc Flares'!H60 -> 0 | L64: ='10) Calculation'!S83/8760 -> 0 | M64: ='11) Tanks'!H45 -> 0 | O64: ='15) Calculations'!M218 -> 0 | P64: ='7) Calculations'!AS61 -> 0 | Q64: =SUM('16) Others'!Z40:AI40) -> 0 | S64: Benzene | V64: 0 | W64: =SUM('7) Ferm'!P93:Y93) -> 0 | X64: ='8) Calculations'!AW66 -> 0 | AB64: ='10) Calc Flares'!I60 -> 0 | AD64: ='10) Calculation'!S83 -> 0 | AE64: ='11) Tanks'!I45 -> 0 | AG64: ='15) Calculations'!N218 -> 0 | AH64: 0 | AI64: =SUM('16) Others'!AJ40:AS40) -> 0 | AK64: Benzene | AR64: Benzene
A65: Benzyl chloride | O65: ='15) Calculations'!M219 -> 0 | S65: Benzyl chloride | V65: 0 | AG65: ='15) Calculations'!N219 -> 0 | AH65: 0 | AK65: Benzyl chloride | AR65: Benzyl chloride
A66: Beryllium compounds | D66: ='5) Calculations'!CJ64 -> 0 | E66: =SUM('7) Ferm'!C101:L101) -> 0 | F66: ='8) Calculations'!AJ74 -> 0 | O66: ='15) Calculations'!M220 -> 0 | P66: ='7) Calculations'!AS69 -> 0 | Q66: =SUM('16) Others'!Z48:AI48) -> 0 | S66: Beryllium compounds | V66: 0 | W66: =SUM('7) Ferm'!P101:Y101) -> 0 | X66: ='8) Calculations'!AW74 -> 0 | AG66: ='15) Calculations'!N220 -> 0 | AH66: 0 | AI66: =SUM('16) Others'!AJ48:AS48) -> 0 | AK66: Beryllium compounds | AR66: Beryllium compounds
A67: Cadmium compounds | D67: ='5) Calculations'!CJ65 -> 0 | E67: =SUM('7) Ferm'!C102:L102) -> 0 | F67: ='8) Calculations'!AJ75 -> 0 | O67: ='15) Calculations'!M221 -> 0 | P67: ='7) Calculations'!AS70 -> 0 | Q67: =SUM('16) Others'!Z49:AI49) -> 0 | S67: Cadmium compounds | V67: 0 | W67: =SUM('7) Ferm'!P102:Y102) -> 0 | X67: ='8) Calculations'!AW75 -> 0 | AG67: ='15) Calculations'!N221 -> 0 | AH67: 0 | AI67: =SUM('16) Others'!AJ49:AS49) -> 0 | AK67: Cadmium compounds | AR67: Cadmium compounds
A68: Cyanide compounds | O68: ='15) Calculations'!M222 -> 0 | S68: Cyanide compounds | V68: 0 | AG68: ='15) Calculations'!N222 -> 0 | AH68: 0 | AK68: Cyanide compounds | AR68: Cyanide compounds
A69: Formaldehyde | E69: =SUM('7) Ferm'!C90:L90) -> 0 | F69: ='8) Calculations'!AJ63 -> 0 | J69: ='10) Calc Flares'!H62 -> 0 | K69: ='9) Calculations'!H20 -> 0 | O69: ='15) Calculations'!M223 -> 0 | P69: ='7) Calculations'!AS59 -> 0 | Q69: =SUM('16) Others'!Z37:AI37) -> 0 | S69: Formaldehyde | V69: 0 | W69: =SUM('7) Ferm'!P90:Y90) -> 0 | X69: ='8) Calculations'!AW63 -> 0 | AB69: ='10) Calc Flares'!I62 -> 0 | AC69: ='9) Calculations'!I20 -> 0 | AG69: ='15) Calculations'!N223 -> 0 | AH69: 0 | AI69: =SUM('16) Others'!AJ37:AS37) -> 0 | AK69: Formaldehyde | AO69: ='14) Equipment Leaks'!K26 -> 0 | AR69: Formaldehyde | AV69: ='14) Equipment Leaks'!N26 -> 0
A70: Hexane | D70: ='5) Calculations'!CJ58 -> 0 | E70: =SUM('7) Ferm'!C95:L95) -> 0 | F70: ='8) Calculations'!AJ68 -> 0 | J70: ='10) Calc Flares'!H63 -> 0 | L70: ='10) Calculation'!S87/8760 -> 0 | M70: ='11) Tanks'!H49 -> 0 | O70: ='15) Calculations'!M224 -> 0 | P70: ='7) Calculations'!AS63 -> 0 | Q70: =SUM('16) Others'!Z42:AI42) -> 0 | S70: Hexane | V70: 0 | W70: =SUM('7) Ferm'!P95:Y95) -> 0 | X70: ='8) Calculations'!AW68 -> 0 | AB70: ='10) Calc Flares'!I63 -> 0 | AD70: ='10) Calculation'!S87 -> 0 | AE70: ='11) Tanks'!I49 -> 0 | AG70: ='15) Calculations'!N224 -> 0 | AH70: 0 | AI70: =SUM('16) Others'!AJ42:AS42) -> 0 | AK70: Hexane | AR70: Hexane
A71: Hydrochloric acid | O71: ='15) Calculations'!M225 -> 0 | S71: Hydrochloric acid | V71: 0 | AG71: ='15) Calculations'!N225 -> 0 | AH71: 0 | AK71: Hydrochloric acid | AR71: Hydrochloric acid
A72: Lead Compounds | J72: ='10) Calc Flares'!H64 -> 0 | O72: ='15) Calculations'!M226 -> 0 | Q72: =SUM('16) Others'!Z43:AI43) -> 0 | S72: Lead Compounds | V72: 0 | AB72: ='10) Calc Flares'!I64 -> 0 | AG72: ='15) Calculations'!N226 -> 0 | AH72: 0 | AI72: =SUM('16) Others'!AJ43:AS43) -> 0 | AK72: Lead Compounds | AR72: Lead Compounds
A73: Mercury compounds | D73: ='5) Calculations'!CJ69 -> 0 | E73: =SUM('7) Ferm'!C106:L106) -> 0 | F73: ='8) Calculations'!AJ79 -> 0 | O73: ='15) Calculations'!M227 -> 0 | P73: ='7) Calculations'!AS74 -> 0 | Q73: =SUM('16) Others'!Z53:AI53) -> 0 | S73: Mercury compounds | V73: 0 | W73: =SUM('7) Ferm'!P106:Y106) -> 0 | X73: ='8) Calculations'!AW79 -> 0 | AG73: ='15) Calculations'!N227 -> 0 | AH73: 0 | AI73: =SUM('16) Others'!AJ53:AS53) -> 0 | AK73: Mercury compounds | AR73: Mercury compounds
A74: Methanol | E74: =SUM('7) Ferm'!C92:L92) -> 0 | F74: ='8) Calculations'!AJ65 -> 0 | K74: ='9) Calculations'!H21 -> 0 | L74: ='10) Calculation'!S88/8760 -> 0 | M74: ='11) Tanks'!H44 -> 0 | O74: ='15) Calculations'!M228 -> 0 | P74: ='7) Calculations'!AS60 -> 0 | Q74: =SUM('16) Others'!Z39:AI39) -> 0 | S74: Methanol | V74: 0 | W74: =SUM('7) Ferm'!P92:Y92) -> 0 | X74: ='8) Calculations'!AW65 -> 0 | AC74: ='9) Calculations'!I21 -> 0 | AD74: ='10) Calculation'!S88 -> 0 | AE74: ='11) Tanks'!I44 -> 0 | AG74: ='15) Calculations'!N228 -> 0 | AH74: =P74*8760/2000 -> 0 | AI74: =SUM('16) Others'!AJ39:AS39) -> 0 | AK74: Methanol | AO74: ='14) Equipment Leaks'!K27 -> 0 | AR74: Methanol | AV74: ='14) Equipment Leaks'!N27 -> 0
A75: Methyl hydrazine | O75: ='15) Calculations'!M229 -> 0 | S75: Methyl hydrazine | V75: 0 | AG75: ='15) Calculations'!N229 -> 0 | AH75: 0 | AK75: Methyl hydrazine | AR75: Methyl hydrazine
A76: Selenium compounds | D76: ='5) Calculations'!CJ71 -> 0 | E76: =SUM('7) Ferm'!C108:L108) -> 0 | F76: ='8) Calculations'!AJ81 -> 0 | J76: ='10) Calc Flares'!H76 -> 0 | O76: ='15) Calculations'!M230 -> 0 | P76: ='7) Calculations'!AS76 -> 0 | Q76: =SUM('16) Others'!Z55:AI55) -> 0 | S76: Selenium compounds | V76: 0 | W76: =SUM('7) Ferm'!P108:Y108) -> 0 | X76: ='8) Calculations'!AW81 -> 0 | AB76: ='10) Calc Flares'!I76 -> 0 | AG76: ='15) Calculations'!N230 -> 0 | AH76: 0 | AI76: =SUM('16) Others'!AJ55:AS55) -> 0 | AK76: Selenium compounds | AR76: Selenium compounds
A77: Other HAPs | D77: =D78-SUM(D61:D76) -> 0 | E77: =E78-SUM(E61:E76) -> 0 | F77: =F78-SUM(F61:F76) -> 0 | J77: =J78-SUM(J61:J76) -> 0 | L77: =(L78-SUM(L61:L76)) -> 0 | M77: ='11) Tanks'!H46+'11) Tanks'!H47+'11) Tanks'!H48+'11) Tanks'!H50+'11) Tanks'!H51 -> 0 | O77: ='15) Calculations'!M231 -> 0 | P77: =P78-SUM(AT18:AT33) -> 0 | Q77: =SUM('16) Others'!Z56:AI56)-SUM(Q61:Q76) -> 0 | S77: Other HAPs | V77: 0 | W77: =W78-SUM(W61:W76) -> 0 | X77: =X78-SUM(X61:X76) -> 0 | AB77: =AB78-SUM(AB61:AB76) -> 0 | AD77: =AD78-SUM(AD61:AD76) -> 0 | AE77: ='11) Tanks'!I46+'11) Tanks'!I47+'11) Tanks'!I48+'11) Tanks'!I50+'11) Tanks'!I51 -> 0 | AG77: ='15) Calculations'!N231 -> 0 | AH77: 0 | AI77: =SUM('16) Others'!AJ56:AS56)-SUM(AI61:AI76) -> 0 | AK77: Other HAPs | AR77: Other HAPs
A78: Total HAPs | D78: ='5) Calculations'!CJ72 -> 0 | E78: =SUM('7) Ferm'!C109:L109) -> 0 | F78: ='8) Calculations'!AJ82 -> 0 | J78: ='10) Calc Flares'!H77 -> 0 | K78: ='9) Calculations'!H22 -> 0 | L78: ='10) Calculation'!S91/8760 -> 0 | M78: ='11) Tanks'!H52 -> 0 | N78: ='13) Cooling Tower'!I69 -> 0 | O78: ='15) Calculations'!M232 -> 0 | P78: ='7) Calculations'!AS77 -> 0 | Q78: =SUM(Q61:Q77) -> 0 | S78: Total HAPs | V78: 0 | W78: =SUM('7) Ferm'!P109:Y109) -> 0 | X78: ='8) Calculations'!AW82 -> 0 | AB78: ='10) Calc Flares'!I77 -> 0 | AC78: ='9) Calculations'!I22 -> 0 | AD78: ='10) Calculation'!S91 -> 0 | AE78: ='11) Tanks'!I52 -> 0 | AF78: ='13) Cooling Tower'!J69 -> 0 | AG78: ='15) Calculations'!N232 -> 0 | AH78: 0 | AI78: =SUM(AI61:AI77) -> 0 | AK78: Total HAPs | AO78: ='14) Equipment Leaks'!K28 -> 0 | AR78: Total HAPs | AV78: ='14) Equipment Leaks'!N28 -> 0
A79: Greenhouse Gases (GHG) (Mass Basis) | O79: ='15) Calculations'!M233 -> 0 | S79: Greenhouse Gases (GHG) (Mass Basis) | AG79: ='15) Calculations'!N233 -> 0 | AK79: Greenhouse Gases (GHG) (Mass Basis) | AR79: Greenhouse Gases (GHG) (Mass Basis)
A80: Carbon Dioxide | D80: ='5) Calculations'!CJ74 -> 0 | E80: =SUM('7) Ferm'!C111:L111) -> 0 | F80: ='8) Calculations'!AJ84 -> 0 | J80: =AB80/8760*2000 -> 0 | O80: ='15) Calculations'!M234 -> 0 | P80: ='7) Calculations'!AS79 -> 0 | Q80: =SUM('16) Others'!Z58:AI58) -> 0 | S80: Carbon Dioxide | V80: =D80*8760/2000 -> 0 | W80: =SUM('7) Ferm'!P111:Y111) -> 0 | X80: ='8) Calculations'!AW84 -> 0 | AB80: ='10) Calc Flares'!H79 -> 0 | AD80: =L80*8760/2000 -> 0 | AG80: ='15) Calculations'!N234 -> 0 | AH80: =P80*8760/2000 -> 0 | AI80: =SUM('16) Others'!AJ58:AS58) -> 0 | AK80: Carbon Dioxide | AR80: Carbon Dioxide
A81: Methane | D81: ='5) Calculations'!CJ75 -> 0 | E81: =SUM('7) Ferm'!C112:L112) -> 0 | F81: ='8) Calculations'!AJ85 -> 0 | J81: =AB81/8760*2000 -> 0 | O81: ='15) Calculations'!M235 -> 0 | P81: ='7) Calculations'!AS80 -> 0 | Q81: =SUM('16) Others'!Z59:AI59) -> 0 | S81: Methane | V81: =D81*8760/2000 -> 0 | W81: =SUM('7) Ferm'!P112:Y112) -> 0 | X81: ='8) Calculations'!AW85 -> 0 | AB81: ='10) Calc Flares'!H80 -> 0 | AD81: =L81*8760/2000 -> 0 | AG81: ='15) Calculations'!N235 -> 0 | AH81: =P81*8760/2000 -> 0 | AI81: =SUM('16) Others'!AJ59:AS59) -> 0 | AK81: Methane | AR81: Methane
A82: Nitrous Oxide | D82: ='5) Calculations'!CJ76 -> 0 | E82: =SUM('7) Ferm'!C113:L113) -> 0 | F82: ='8) Calculations'!AJ86 -> 0 | J82: 0 | O82: ='15) Calculations'!M236 -> 0 | P82: ='7) Calculations'!AS81 -> 0 | Q82: =SUM('16) Others'!Z60:AI60) -> 0 | S82: Nitrous Oxide | V82: =D82*8760/2000 -> 0 | W82: =SUM('7) Ferm'!P113:Y113) -> 0 | X82: ='8) Calculations'!AW86 -> 0 | AB82: ='10) Calc Flares'!H81 -> 0 | AD82: =L82*8760/2000 -> 0 | AG82: ='15) Calculations'!N236 -> 0 | AH82: =P82*8760/2000 -> 0 | AI82: =SUM('16) Others'!AJ60:AS60) -> 0 | AK82: Nitrous Oxide | AR82: Nitrous Oxide
A83: Total GHGs | D83: ='5) Calculations'!CJ77 -> 0 | E83: =SUM(E80:E82) -> 0 | F83: ='8) Calculations'!AJ87 -> 0 | J83: 0 | O83: ='15) Calculations'!M237 -> 0 | P83: ='7) Calculations'!AS82 -> 0 | Q83: =SUM(Q80:Q82) -> 0 | S83: Total GHGs | V83: =D83*8760/2000 -> 0 | W83: =SUM(W80:W82) -> 0 | X83: ='8) Calculations'!AW87 -> 0 | AB83: ='10) Calc Flares'!H82 -> 0 | AD83: =L83*8760/2000 -> 0 | AG83: ='15) Calculations'!N237 -> 0 | AH83: =P83*8760/2000 -> 0 | AI83: =SUM(AI80:AI82) -> 0 | AK83: Total GHGs | AR83: Total GHGs
A84: Greenhouse Gases (GHG) (CO2 Equilvalent Basis) | J84: 0 | O84: ='15) Calculations'!M238 -> 0 | P84: ='7) Calculations'!AS83 -> 0 | S84: Greenhouse Gases (GHG) (CO2 Equilvalent Basis) | AG84: ='15) Calculations'!N238 -> 0 | AK84: Greenhouse Gases (GHG) (CO2 Equilvalent Basis) | AR84: Greenhouse Gases (GHG) (CO2 Equilvalent Basis)
A85: Carbon Dioxide | D85: ='5) Calculations'!CJ79 -> 0 | E85: =E80 -> 0 | F85: ='8) Calculations'!AJ89 -> 0 | J85: 0 | O85: ='15) Calculations'!M239 -> 0 | P85: ='7) Calculations'!AS84 -> 0 | Q85: =Q80 -> 0 | S85: Carbon Dioxide | V85: =D85*8760/2000 -> 0 | W85: =W80 -> 0 | X85: ='8) Calculations'!AW89 -> 0 | AB85: ='10) Calc Flares'!I79 -> 0 | AD85: =L85*8760/2000 -> 0 | AG85: ='15) Calculations'!N239 -> 0 | AH85: =P85*8760/2000 -> 0 | AI85: =AI80 -> 0 | AK85: Carbon Dioxide | AR85: Carbon Dioxide
A86: Methane | D86: ='5) Calculations'!CJ80 -> 0 | E86: =E81*25 -> 0 | F86: ='8) Calculations'!AJ90 -> 0 | J86: 0 | O86: ='15) Calculations'!M240 -> 0 | P86: ='7) Calculations'!AS85 -> 0 | Q86: =Q81*25 -> 0 | S86: Methane | V86: =D86*8760/2000 -> 0 | W86: =W81*25 -> 0 | X86: ='8) Calculations'!AW90 -> 0 | AB86: ='10) Calc Flares'!I80 -> 0 | AD86: =L86*8760/2000 -> 0 | AG86: ='15) Calculations'!N240 -> 0 | AH86: =P86*8760/2000 -> 0 | AI86: =AI81*25 -> 0 | AK86: Methane | AR86: Methane
A87: Nitrous Oxide | D87: ='5) Calculations'!CJ81 -> 0 | E87: =E82*298 -> 0 | F87: ='8) Calculations'!AJ91 -> 0 | J87: 0 | O87: ='15) Calculations'!M241 -> 0 | P87: ='7) Calculations'!AS86 -> 0 | Q87: =Q82*298 -> 0 | S87: Nitrous Oxide | V87: =D87*8760/2000 -> 0 | W87: =W82*298 -> 0 | X87: ='8) Calculations'!AW91 -> 0 | AB87: ='10) Calc Flares'!I81 -> 0 | AD87: =L87*8760/2000 -> 0 | AG87: ='15) Calculations'!N241 -> 0 | AH87: =P87*8760/2000 -> 0 | AI87: =AI82*298 -> 0 | AK87: Nitrous Oxide | AR87: Nitrous Oxide
A88: Total GHGs | D88: ='5) Calculations'!CJ82 -> 0 | E88: =SUM(E85:E87) -> 0 | F88: ='8) Calculations'!AJ92 -> 0 | J88: 0 | O88: ='15) Calculations'!M242 -> 0 | P88: ='7) Calculations'!AS87 -> 0 | Q88: =SUM(Q85:Q87) -> 0 | S88: Total GHGs | V88: =D88*8760/2000 -> 0 | W88: =SUM(W85:W87) -> 0 | X88: ='8) Calculations'!AW92 -> 0 | AB88: ='10) Calc Flares'!I82 -> 0 | AD88: =L88*8760/2000 -> 0 | AG88: ='15) Calculations'!N242 -> 0 | AH88: =P88*8760/2000 -> 0 | AI88: =SUM(AI85:AI87) -> 0 | AK88: Total GHGs | AR88: Total GHGs
A90: Project PTE, (lb/hr) | S90: Project PTE, (ton/yr) | AK90: Project Fugitive PTE, (lb/hr) | AR90: Project PTE, (ton/yr)
A91: Pollutants | B91: Grain Receiving | C91: Grain Handling | D91: Dryers | E91: Fermenters | F91: DDGS dryers | G91: Solids storage | H91: Scalpers | I91: Hammer Mills | J91: Flares | K91: Solids shipping | L91: liquid loadout and vapour recovery | M91: tanks | N91: Cooling Tower | O91: Engines | P91: boilers/rto | Q91: Suppl. Units | S91: Pollutants | T91: Grain Receiving | U91: Grain Handling | V91: Dryers | W91: Fermenters | X91: DDGS dryers | Y91: Solids storage | Z91: Scalpers | AA91: Hammer Mills | AB91: Flares | AC91: Solids shipping | AD91: liquid loadout and vapour recovery | AE91: tanks | AF91: Cooling Tower | AG91: Engines | AH91: boilers/rto | AI91: Suppl. Units | AK91: Pollutants | AL91: Grain Receiving | AM91: Grain Handling | AN91: Solids storage | AO91: Equipment leaks | AP91: haul roads | AR91: Pollutants | AS91: Grain Receiving | AT91: Grain Handling | AU91: Solids storage | AV91: Equipment leaks | AW91: haul roads
B92: (lb/hr) | T92: (tons/yr) | AL92: (lb/hr) | AS92: (tons/yr)
A93: PMfilterable | B93: =B50-B7 -> 0 | C93: 0 | D93: 0 | E93: 0 | F93: 0 | G93: 0 | H93: 0 | I93: 0 | J93: 0 | K93: 0 | L93: 0 | N93: =N50-N7 -> 0 | O93: 0 | P93: 0 | Q93: =Q50-Q7 -> 0 | S93: PMfilterable | T93: =T50-T7 -> 0 | U93: 0 | V93: =V50-V7 -> 0 | W93: 0 | X93: =X50-X7 -> 0 | Y93: =Y50-Y7 -> 0 | Z93: 0 | AA93: 0 | AB93: 0 | AC93: 0 | AF93: =AF50-AF7 -> 0 | AG93: 0 | AH93: 0 | AI93: =AI50-AI7 -> 0 | AK93: PMfilterable | AL93: =AL50-AL7 -> 0 | AM93: 0 | AN93: =AN50-AN7 -> 0 | AO93: =AO50-AO7 -> 0 | AP93: 0 | AR93: PMfilterable | AS93: =AS50-AS7 -> 0 | AT93: =AT50-AT7 -> 0 | AU93: =AU50-AU7 -> 0 | AW93: =AW50-AW7 -> 0
A94: PM10 | B94: =B51-B8 -> 0 | C94: 0 | D94: 0 | E94: 0 | F94: 0 | G94: 0 | H94: 0 | I94: 0 | J94: 0 | K94: 0 | L94: 0 | N94: 0 | O94: 0 | P94: 0 | Q94: =Q51-Q8 -> 0 | S94: PM10 | T94: 0 | U94: 0 | V94: =V51-V8 -> 0 | W94: 0 | X94: =X51-X8 -> 0 | Y94: 0 | Z94: 0 | AA94: 0 | AB94: 0 | AC94: 0 | AF94: 0 | AG94: 0 | AH94: 0 | AI94: =AI51-AI8 -> 0 | AK94: PM10 | AL94: 0 | AM94: 0 | AN94: 0 | AO94: 0 | AP94: 0 | AR94: PM10 | AS94: =AS51-AS8 -> 0 | AT94: =AT51-AT8 -> 0 | AU94: 0 | AW94: 0
A95: PM2.5 | B95: =B52-B9 -> 0 | C95: 0 | D95: 0 | E95: 0 | F95: 0 | G95: 0 | H95: 0 | I95: 0 | J95: 0 | K95: 0 | L95: 0 | N95: 0 | O95: 0 | P95: 0 | Q95: =Q52-Q9 -> 0 | S95: PM2.5 | T95: 0 | U95: 0 | V95: =V52-V9 -> 0 | W95: 0 | X95: =X52-X9 -> 0 | Y95: 0 | Z95: 0 | AA95: 0 | AB95: 0 | AC95: 0 | AF95: 0 | AG95: 0 | AH95: 0 | AI95: =AI52-AI9 -> 0 | AK95: PM2.5 | AL95: 0 | AM95: 0 | AN95: 0 | AO95: 0 | AP95: 0 | AR95: PM2.5 | AS95: 0 | AT95: 0 | AU95: 0 | AW95: 0
A96: SO2 | D96: =D53-D10 -> 0 | E96: 0 | F96: 0 | G96: 0 | H96: 0 | I96: 0 | J96: 0 | K96: 0 | L96: 0 | N96: 0 | O96: 0 | P96: 0 | Q96: =Q53-Q10 -> 0 | S96: SO2 | V96: =V53-V10 -> 0 | W96: 0 | X96: =X53-X10 -> 0 | AB96: 0 | AC96: 0 | AD96: =AD53-AD10 -> 0 | AE96: 0 | AF96: 0 | AG96: 0 | AH96: 0 | AI96: =AI53-AI10 -> 0 | AK96: SO2 | AN96: 0 | AO96: 0 | AP96: 0 | AR96: SO2
A97: NOx | D97: =D54-D11 -> 0 | E97: 0 | F97: 0 | G97: 0 | H97: 0 | I97: 0 | J97: 0 | K97: 0 | L97: 0 | N97: 0 | O97: 0 | P97: 0 | Q97: =Q54-Q11 -> 0 | S97: NOx | V97: =V54-V11 -> 0 | W97: 0 | X97: =X54-X11 -> 0 | AB97: 0 | AC97: 0 | AD97: =AD54-AD11 -> 0 | AE97: 0 | AF97: 0 | AG97: 0 | AH97: 0 | AI97: =AI54-AI11 -> 0 | AK97: NOx | AN97: 0 | AO97: 0 | AP97: 0 | AR97: NOx
A98: CO | D98: =D55-D12 -> 0 | E98: 0 | F98: 0 | G98: 0 | H98: 0 | I98: 0 | J98: 0 | K98: 0 | L98: 0 | N98: 0 | O98: 0 | P98: 0 | Q98: =Q55-Q12 -> 0 | S98: CO | V98: =V55-V12 -> 0 | W98: 0 | X98: =X55-X12 -> 0 | AB98: 0 | AC98: 0 | AD98: =AD55-AD12 -> 0 | AE98: 0 | AF98: 0 | AG98: 0 | AH98: 0 | AI98: =AI55-AI12 -> 0 | AK98: CO | AN98: 0 | AO98: 0 | AP98: 0 | AR98: CO
A99: VOC | D99: =D56-D13 -> 0 | E99: 0 | F99: 0 | G99: 0 | H99: 0 | I99: 0 | J99: 0 | K99: 0 | L99: 0 | N99: 0 | O99: 0 | P99: 0 | Q99: =Q56-Q13 -> 0 | S99: VOC | V99: =V56-V13 -> 0 | W99: 0 | X99: =X56-X13 -> 0 | AB99: 0 | AC99: 0 | AD99: =AD56-AD13 -> 0 | AE99: 0 | AF99: 0 | AG99: 0 | AH99: 0 | AI99: =AI56-AI13 -> 0 | AK99: VOC | AN99: 0 | AO99: 0 | AP99: 0 | AR99: VOC | AV99: 0
A100: Hydrogen Sulfide | D100: =D57-D14 -> 0 | E100: 0 | F100: 0 | G100: 0 | H100: 0 | I100: 0 | J100: 0 | K100: 0 | L100: 0 | N100: 0 | O100: 0 | P100: 0 | Q100: =Q57-Q14 -> 0 | S100: Hydrogen Sulfide | V100: =V57-V14 -> 0 | W100: 0 | X100: =X57-X14 -> 0 | AB100: 0 | AC100: 0 | AD100: =AD57-AD14 -> 0 | AE100: 0 | AF100: 0 | AG100: 0 | AH100: 0 | AI100: =AI57-AI14 -> 0 | AK100: Hydrogen Sulfide | AN100: 0 | AO100: 0 | AP100: 0 | AR100: Hydrogen Sulfide
A101: Sulfuric Acid | D101: =D58-D15 -> 0 | E101: =E58-E18 -> 0 | F101: 0 | G101: 0 | H101: 0 | I101: 0 | J101: 0 | K101: 0 | L101: 0 | N101: 0 | O101: 0 | P101: 0 | Q101: =Q58-Q15 -> 0 | S101: Sulfuric Acid | V101: =V58-V15 -> 0 | W101: 0 | X101: =X58-X15 -> 0 | AB101: 0 | AC101: 0 | AD101: =AD58-AD15 -> 0 | AE101: 0 | AF101: 0 | AG101: 0 | AH101: 0 | AI101: =AI58-AI15 -> 0 | AK101: Sulfuric Acid | AN101: 0 | AO101: 0 | AP101: 0 | AR101: Sulfuric Acid
A102: Fluorides | D102: =D59-D16 -> 0 | E102: 0 | F102: 0 | G102: 0 | H102: 0 | I102: 0 | J102: 0 | K102: 0 | L102: 0 | N102: 0 | O102: 0 | P102: 0 | Q102: =Q59-Q16 -> 0 | S102: Fluorides | V102: =V59-V16 -> 0 | W102: 0 | X102: =X59-X16 -> 0 | AB102: 0 | AC102: 0 | AD102: =AD59-AD16 -> 0 | AE102: 0 | AF102: 0 | AG102: 0 | AH102: 0 | AI102: =AI59-AI16 -> 0 | AK102: Fluorides | AN102: 0 | AO102: 0 | AP102: 0 | AR102: Fluorides
A103: Individual HAP | S103: Individual HAP | AK103: Individual HAP | AR103: Individual HAP
A104: Acetaldehyde | D104: =D61-D18 -> 0 | E104: =E61-E18 -> 0 | F104: 0 | G104: 0 | H104: 0 | I104: 0 | J104: 0 | K104: 0 | L104: 0 | N104: =N61-N18 -> 0 | O104: 0 | P104: 0 | Q104: =Q61-Q18 -> 0 | S104: Acetaldehyde | V104: =V61-V18 -> 0 | W104: 0 | X104: =X61-X18 -> 0 | AB104: =AB61-AB18 -> 0 | AC104: 0 | AD104: =AD61-AD18 -> 0 | AE104: 0 | AF104: =AF61-AF18 -> 0 | AG104: 0 | AH104: 0 | AI104: =AI61-AI18 -> 0 | AK104: Acetaldehyde | AN104: =AN61-AN18 -> 0 | AO104: =AO61-AO18 -> 0 | AP104: 0 | AR104: Acetaldehyde | AV104: =AV61-AV18 -> 0
A105: Acrolein | D105: 0 | E105: 0 | F105: 0 | G105: 0 | H105: 0 | I105: 0 | J105: 0 | K105: 0 | L105: 0 | N105: 0 | O105: 0 | P105: 0 | Q105: =Q62-Q19 -> 0 | S105: Acrolein | V105: =V62-V19 -> 0 | W105: 0 | X105: =X62-X19 -> 0 | AB105: 0 | AC105: 0 | AD105: =AD62-AD19 -> 0 | AE105: 0 | AF105: 0 | AG105: 0 | AH105: 0 | AI105: =AI62-AI19 -> 0 | AK105: Acrolein | AN105: 0 | AO105: 0 | AP105: 0 | AR105: Acrolein | AV105: 0
A106: Arsenic compounds | D106: =D63-D20 -> 0 | E106: 0 | F106: 0 | G106: 0 | H106: 0 | I106: 0 | J106: 0 | K106: 0 | L106: 0 | N106: 0 | O106: 0 | P106: 0 | Q106: =Q63-Q20 -> 0 | S106: Arsenic compounds | V106: =V63-V20 -> 0 | W106: 0 | X106: =X63-X20 -> 0 | AB106: 0 | AC106: 0 | AD106: =AD63-AD20 -> 0 | AE106: 0 | AF106: 0 | AG106: 0 | AH106: 0 | AI106: =AI63-AI20 -> 0 | AK106: Arsenic compounds | AN106: 0 | AO106: 0 | AP106: 0 | AR106: Arsenic compounds | AV106: 0
A107: Benzene | D107: =D64-D21 -> 0 | E107: 0 | F107: 0 | G107: 0 | H107: 0 | I107: 0 | J107: 0 | K107: 0 | L107: 0 | N107: 0 | O107: 0 | P107: 0 | Q107: =Q64-Q21 -> 0 | S107: Benzene | V107: =V64-V21 -> 0 | W107: 0 | X107: =X64-X21 -> 0 | AB107: 0 | AC107: 0 | AD107: =AD64-AD21 -> 0 | AE107: 0 | AF107: 0 | AG107: 0 | AH107: 0 | AI107: =AI64-AI21 -> 0 | AK107: Benzene | AN107: 0 | AO107: 0 | AP107: 0 | AR107: Benzene | AV107: 0
A108: Benzyl chloride | D108: =D65-D22 -> 0 | E108: 0 | F108: 0 | G108: 0 | H108: 0 | I108: 0 | J108: 0 | K108: 0 | L108: 0 | N108: 0 | O108: 0 | P108: 0 | Q108: =Q65-Q22 -> 0 | S108: Benzyl chloride | V108: =V65-V22 -> 0 | W108: 0 | X108: =X65-X22 -> 0 | AB108: 0 | AC108: 0 | AD108: =AD65-AD22 -> 0 | AE108: 0 | AF108: 0 | AG108: 0 | AH108: 0 | AI108: =AI65-AI22 -> 0 | AK108: Benzyl chloride | AN108: 0 | AO108: 0 | AP108: 0 | AR108: Benzyl chloride | AV108: 0
A109: Beryllium compounds | D109: =D66-D23 -> 0 | E109: 0 | F109: 0 | G109: 0 | H109: 0 | I109: 0 | J109: 0 | K109: 0 | L109: 0 | N109: 0 | O109: 0 | P109: 0 | Q109: =Q66-Q23 -> 0 | S109: Beryllium compounds | V109: =V66-V23 -> 0 | W109: 0 | X109: =X66-X23 -> 0 | AB109: 0 | AC109: 0 | AD109: =AD66-AD23 -> 0 | AE109: 0 | AF109: 0 | AG109: 0 | AH109: 0 | AI109: =AI66-AI23 -> 0 | AK109: Beryllium compounds | AN109: 0 | AO109: 0 | AP109: 0 | AR109: Beryllium compounds | AV109: 0
A110: Cadmium compounds | D110: =D67-D24 -> 0 | E110: 0 | F110: 0 | G110: 0 | H110: 0 | I110: 0 | J110: 0 | K110: 0 | L110: 0 | N110: 0 | O110: 0 | P110: 0 | Q110: =Q67-Q24 -> 0 | S110: Cadmium compounds | V110: =V67-V24 -> 0 | W110: 0 | X110: =X67-X24 -> 0 | AB110: 0 | AC110: 0 | AD110: =AD67-AD24 -> 0 | AE110: 0 | AF110: 0 | AG110: 0 | AH110: 0 | AI110: =AI67-AI24 -> 0 | AK110: Cadmium compounds | AN110: 0 | AO110: 0 | AP110: 0 | AR110: Cadmium compounds | AV110: 0
A111: Cyanide compounds | D111: =D68-D25 -> 0 | E111: 0 | F111: 0 | G111: 0 | H111: 0 | I111: 0 | J111: 0 | K111: 0 | L111: 0 | N111: 0 | O111: 0 | P111: 0 | Q111: =Q68-Q25 -> 0 | S111: Cyanide compounds | V111: =V68-V25 -> 0 | W111: 0 | X111: =X68-X25 -> 0 | AB111: 0 | AC111: 0 | AD111: =AD68-AD25 -> 0 | AE111: 0 | AF111: 0 | AG111: 0 | AH111: 0 | AI111: =AI68-AI25 -> 0 | AK111: Cyanide compounds | AN111: 0 | AO111: 0 | AP111: 0 | AR111: Cyanide compounds | AV111: 0
A112: Formaldehyde | D112: =D69-D26 -> 0 | E112: 0 | F112: 0 | G112: 0 | H112: 0 | I112: 0 | J112: 0 | K112: 0 | L112: 0 | N112: 0 | O112: 0 | P112: 0 | Q112: =Q69-Q26 -> 0 | S112: Formaldehyde | V112: =V69-V26 -> 0 | W112: 0 | X112: =X69-X26 -> 0 | AB112: 0 | AC112: 0 | AD112: =AD69-AD26 -> 0 | AE112: 0 | AF112: 0 | AG112: 0 | AH112: 0 | AI112: =AI69-AI26 -> 0 | AK112: Formaldehyde | AN112: 0 | AO112: 0 | AP112: 0 | AR112: Formaldehyde | AV112: 0
A113: Hexane | D113: =D70-D27 -> 0 | E113: 0 | F113: 0 | G113: 0 | H113: 0 | I113: 0 | J113: 0 | K113: 0 | L113: 0 | N113: 0 | O113: 0 | P113: 0 | Q113: =Q70-Q27 -> 0 | S113: Hexane | V113: =V70-V27 -> 0 | W113: 0 | X113: =X70-X27 -> 0 | AB113: 0 | AC113: 0 | AD113: =AD70-AD27 -> 0 | AE113: 0 | AF113: 0 | AG113: 0 | AH113: 0 | AI113: =AI70-AI27 -> 0 | AK113: Hexane | AN113: 0 | AO113: 0 | AP113: 0 | AR113: Hexane | AV113: 0
A114: Hydrochloric acid | D114: =D71-D28 -> 0 | E114: 0 | F114: 0 | G114: 0 | H114: 0 | I114: 0 | J114: 0 | K114: 0 | L114: 0 | N114: 0 | O114: 0 | P114: 0 | Q114: =Q71-Q28 -> 0 | S114: Hydrochloric acid | V114: =V71-V28 -> 0 | W114: 0 | X114: =X71-X28 -> 0 | AB114: =AB71-AB28 -> 0 | AC114: 0 | AD114: =AD71-AD28 -> 0 | AE114: 0 | AF114: 0 | AG114: 0 | AH114: 0 | AI114: =AI71-AI28 -> 0 | AK114: Hydrochloric acid | AN114: 0 | AO114: 0 | AP114: 0 | AR114: Hydrochloric acid | AV114: 0
A115: Lead Compounds | D115: =D72-D29 -> 0 | E115: 0 | F115: 0 | G115: 0 | H115: 0 | I115: 0 | J115: 0 | K115: 0 | L115: 0 | N115: 0 | O115: 0 | P115: 0 | Q115: =Q72-Q29 -> 0 | S115: Lead Compounds | V115: =V72-V29 -> 0 | W115: 0 | X115: =X72-X29 -> 0 | AB115: 0 | AC115: 0 | AD115: =AD72-AD29 -> 0 | AE115: 0 | AF115: 0 | AG115: 0 | AH115: 0 | AI115: =AI72-AI29 -> 0 | AK115: Lead Compounds | AN115: 0 | AO115: 0 | AP115: 0 | AR115: Lead Compounds | AV115: 0
A116: Mercury compounds | D116: =D73-D30 -> 0 | E116: 0 | F116: 0 | G116: 0 | H116: 0 | I116: 0 | J116: 0 | K116: 0 | L116: 0 | N116: 0 | O116: 0 | P116: 0 | Q116: =Q73-Q30 -> 0 | S116: Mercury compounds | V116: =V73-V30 -> 0 | W116: 0 | X116: =X73-X30 -> 0 | AB116: 0 | AC116: 0 | AD116: =AD73-AD30 -> 0 | AE116: 0 | AF116: 0 | AG116: 0 | AH116: 0 | AI116: =AI73-AI30 -> 0 | AK116: Mercury compounds | AN116: 0 | AO116: 0 | AP116: 0 | AR116: Mercury compounds | AV116: 0
A117: Methanol | D117: =D74-D31 -> 0 | E117: 0 | F117: 0 | G117: 0 | H117: 0 | I117: 0 | J117: 0 | K117: 0 | L117: 0 | N117: 0 | O117: 0 | P117: 0 | Q117: =Q74-Q31 -> 0 | S117: Methanol | V117: =V74-V31 -> 0 | W117: 0 | X117: =X74-X31 -> 0 | AB117: 0 | AC117: 0 | AD117: =AD74-AD31 -> 0 | AE117: 0 | AF117: 0 | AG117: 0 | AH117: 0 | AI117: =AI74-AI31 -> 0 | AK117: Methanol | AN117: 0 | AO117: 0 | AP117: 0 | AR117: Methanol | AV117: 0
A118: Methyl hydrazine | D118: =D75-D32 -> 0 | E118: 0 | F118: 0 | G118: 0 | H118: 0 | I118: 0 | J118: 0 | K118: 0 | L118: 0 | N118: 0 | O118: 0 | P118: 0 | Q118: =Q75-Q32 -> 0 | S118: Methyl hydrazine | V118: =V75-V32 -> 0 | W118: 0 | X118: =X75-X32 -> 0 | AB118: 0 | AC118: 0 | AD118: =AD75-AD32 -> 0 | AE118: 0 | AF118: 0 | AG118: 0 | AH118: 0 | AI118: =AI75-AI32 -> 0 | AK118: Methyl hydrazine | AN118: 0 | AO118: 0 | AP118: 0 | AR118: Methyl hydrazine | AV118: 0
A119: Selenium compounds | D119: =D76-D33 -> 0 | E119: 0 | F119: 0 | G119: 0 | H119: 0 | I119: 0 | J119: 0 | K119: 0 | L119: 0 | N119: 0 | O119: 0 | P119: 0 | Q119: =Q76-Q33 -> 0 | S119: Selenium compounds | V119: =V76-V33 -> 0 | W119: 0 | X119: =X76-X33 -> 0 | AB119: 0 | AC119: 0 | AD119: =AD76-AD33 -> 0 | AE119: 0 | AF119: 0 | AG119: 0 | AH119: 0 | AI119: =AI76-AI33 -> 0 | AK119: Selenium compounds | AN119: 0 | AO119: 0 | AP119: 0 | AR119: Selenium compounds | AV119: 0
A120: Other HAPs | D120: =D77-D34 -> 0 | E120: 0 | F120: 0 | G120: 0 | H120: 0 | I120: 0 | J120: 0 | K120: 0 | L120: 0 | N120: 0 | O120: 0 | P120: 0 | Q120: =Q77-Q34 -> 0 | S120: Other HAPs | V120: =V77-V34 -> 0 | W120: 0 | X120: =X77-X34 -> 0 | AB120: 0 | AC120: 0 | AD120: =AD77-AD34 -> 0 | AE120: 0 | AF120: 0 | AG120: 0 | AH120: 0 | AI120: =AI77-AI34 -> 0 | AK120: Other HAPs | AN120: 0 | AO120: 0 | AP120: 0 | AR120: Other HAPs | AV120: 0
A121: Total HAPs | D121: =D78-D35 -> 0 | E121: 0 | F121: 0 | G121: 0 | H121: 0 | I121: 0 | J121: 0 | K121: 0 | L121: 0 | N121: 0 | O121: 0 | P121: 0 | Q121: =Q78-Q35 -> 0 | S121: Total HAPs | V121: =V78-V35 -> 0 | W121: 0 | X121: =X78-X35 -> 0 | AB121: 0 | AC121: 0 | AD121: =AD78-AD35 -> 0 | AE121: 0 | AF121: 0 | AG121: 0 | AH121: 0 | AI121: =AI78-AI35 -> 0 | AK121: Total HAPs | AN121: 0 | AO121: 0 | AP121: 0 | AR121: Total HAPs | AV121: 0
A122: Greenhouse Gases (GHG) (Mass Basis) | S122: Greenhouse Gases (GHG) (Mass Basis) | AK122: Greenhouse Gases (GHG) (Mass Basis) | AR122: Greenhouse Gases (GHG) (Mass Basis)
A123: Carbon Dioxide | D123: =D80-D37 -> 0 | E123: 0 | F123: 0 | G123: 0 | H123: 0 | I123: 0 | J123: 0 | K123: 0 | L123: 0 | N123: =N80-N37 -> 0 | O123: 0 | P123: 0 | Q123: =Q80-Q37 -> 0 | S123: Carbon Dioxide | V123: =D123*8760/2000 -> 0 | W123: 0 | X123: 0 | AB123: =AB80-AB37 -> 0 | AC123: 0 | AD123: =AD80-AD37 -> 0 | AE123: 0 | AF123: =AF80-AF37 -> 0 | AG123: 0 | AH123: 0 | AI123: =AI80-AI37 -> 0 | AK123: Carbon Dioxide | AN123: =AN80-AN37 -> 0 | AO123: =AO80-AO37 -> 0 | AP123: 0 | AR123: Carbon Dioxide | AV123: =AV80-AV37 -> 0
A124: Methane | D124: =D81-D38 -> 0 | E124: 0 | F124: 0 | G124: 0 | H124: 0 | I124: 0 | J124: 0 | K124: 0 | L124: 0 | N124: 0 | O124: 0 | P124: 0 | Q124: =Q81-Q38 -> 0 | S124: Methane | V124: 0 | W124: 0 | X124: 0 | AB124: 0 | AC124: 0 | AD124: =AD81-AD38 -> 0 | AE124: 0 | AF124: 0 | AG124: 0 | AH124: 0 | AI124: =AI81-AI38 -> 0 | AK124: Methane | AN124: =AN81-AN38 -> 0 | AO124: 0 | AP124: 0 | AR124: Methane | AV124: 0
A125: Nitrous Oxide | D125: =D82-D39 -> 0 | E125: 0 | F125: 0 | G125: 0 | H125: 0 | I125: 0 | J125: 0 | K125: 0 | L125: 0 | N125: 0 | O125: 0 | P125: 0 | Q125: =Q82-Q39 -> 0 | S125: Nitrous Oxide | V125: 0 | W125: 0 | X125: 0 | AB125: 0 | AC125: 0 | AD125: =AD82-AD39 -> 0 | AE125: 0 | AF125: 0 | AG125: 0 | AH125: 0 | AI125: =AI82-AI39 -> 0 | AK125: Nitrous Oxide | AN125: =AN82-AN39 -> 0 | AO125: 0 | AP125: 0 | AR125: Nitrous Oxide | AV125: 0
A126: Total GHGs | D126: =D83-D40 -> 0 | E126: 0 | F126: 0 | G126: 0 | H126: 0 | I126: 0 | J126: 0 | K126: 0 | L126: 0 | N126: 0 | O126: 0 | P126: 0 | Q126: =Q83-Q40 -> 0 | S126: Total GHGs | V126: 0 | W126: 0 | X126: 0 | AB126: 0 | AC126: 0 | AD126: =AD83-AD40 -> 0 | AE126: 0 | AF126: 0 | AG126: 0 | AH126: 0 | AI126: =AI83-AI40 -> 0 | AK126: Total GHGs | AN126: =AN83-AN40 -> 0 | AO126: 0 | AP126: 0 | AR126: Total GHGs | AV126: 0
A127: Greenhouse Gases (GHG) (CO2 Equilvalent Basis) | S127: Greenhouse Gases (GHG) (CO2 Equilvalent Basis) | AK127: Greenhouse Gases (GHG) (CO2 Equilvalent Basis) | AR127: Greenhouse Gases (GHG) (CO2 Equilvalent Basis)
A128: Carbon Dioxide | D128: 0 | E128: 0 | F128: 0 | G128: 0 | H128: 0 | I128: 0 | J128: 0 | K128: 0 | L128: 0 | N128: 0 | O128: 0 | P128: 0 | Q128: 0 | S128: Carbon Dioxide | V128: =D128*8760/2000 -> 0 | W128: 0 | X128: 0 | AB128: 0 | AC128: 0 | AD128: 0 | AE128: 0 | AF128: 0 | AG128: 0 | AH128: 0 | AI128: 0 | AK128: Carbon Dioxide | AN128: 0 | AO128: 0 | AP128: 0 | AR128: Carbon Dioxide | AV128: 0
A129: Methane | D129: 0 | E129: 0 | F129: 0 | G129: 0 | H129: 0 | I129: 0 | J129: 0 | K129: 0 | L129: 0 | N129: 0 | O129: 0 | P129: 0 | Q129: 0 | S129: Methane | V129: 0 | W129: 0 | X129: 0 | AB129: 0 | AC129: 0 | AD129: 0 | AE129: 0 | AF129: 0 | AG129: 0 | AH129: 0 | AI129: 0 | AK129: Methane | AN129: 0 | AO129: 0 | AP129: 0 | AR129: Methane | AV129: 0
A130: Nitrous Oxide | D130: 0 | E130: 0 | F130: 0 | G130: 0 | H130: 0 | I130: 0 | J130: 0 | K130: 0 | L130: 0 | N130: 0 | O130: 0 | P130: 0 | Q130: 0 | S130: Nitrous Oxide | V130: 0 | W130: 0 | X130: 0 | AB130: 0 | AC130: 0 | AD130: 0 | AE130: 0 | AF130: 0 | AG130: 0 | AH130: 0 | AI130: 0 | AK130: Nitrous Oxide | AN130: 0 | AO130: 0 | AP130: 0 | AR130: Nitrous Oxide | AV130: 0
A131: Total GHGs | D131: 0 | E131: 0 | F131: 0 | G131: 0 | H131: 0 | I131: 0 | J131: 0 | K131: 0 | L131: 0 | N131: 0 | O131: 0 | P131: 0 | Q131: 0 | S131: Total GHGs | V131: 0 | W131: 0 | X131: 0 | AB131: 0 | AC131: 0 | AD131: 0 | AE131: 0 | AF131: 0 | AG131: 0 | AH131: 0 | AI131: 0 | AK131: Total GHGs | AN131: 0 | AO131: 0 | AP131: 0 | AR131: Total GHGs | AV131: 0

Sheet Results Summary
A2: Universal Calculation Spreadsheets applicable for the Emissions of Ethanol Industry
A3: Results Summary
A5: Non-Fugitive PTE | N5: Fugitive PTE
A6: Pollutants | B6: Current PTE | E6: Pollutants | F6: Total PTE after Project | G6: DDGS dryers | I6: Pollutants | J6: Project PTE | N6: Pollutants | O6: Current PTE | R6: Pollutants | S6: Total PTE after Project | T6: DDGS dryers | V6: Pollutants | W6: Project PTE
B7: (lb/hr) | C7: (ton/yr) | F7: (lb/hr) | G7: (ton/yr) | J7: (lb/hr) | K7: (ton/yr) | O7: (lb/hr) | P7: (ton/yr) | S7: (lb/hr) | T7: (ton/yr) | W7: (lb/hr) | X7: (ton/yr)
A8: PMfilterable | B8: =SUM(Results!B7:Q7) -> 0 | C8: =SUM(Results!T7:AI7) -> 0 | E8: PMfilterable | F8: =SUM(Results!B50:Q50) -> 0 | G8: =SUM(Results!T50:AI50) -> 0 | I8: PMfilterable | J8: =SUM(Results!B93:Q93) -> 0 | K8: =SUM(Results!T93:AI93) -> 0 | N8: PMfilterable | O8: =SUM(Results!AL7:AP7) -> 0 | P8: =SUM(Results!AS7:AW7) -> 0 | R8: PMfilterable | S8: =SUM(Results!AL50:AP50) -> 0 | T8: =SUM(Results!AS50:AW50) -> 0 | V8: PMfilterable | W8: =SUM(Results!AL93:AP93) -> 0 | X8: =SUM(Results!AS93:AW93) -> 0
A9: PM10 | B9: =SUM(Results!B8:Q8) -> 0 | C9: =SUM(Results!T8:AI8) -> 0 | E9: PM10 | F9: =SUM(Results!B51:Q51) -> 0 | G9: =SUM(Results!T51:AI51) -> 0 | I9: PM10 | J9: =SUM(Results!B94:Q94) -> 0 | K9: =SUM(Results!T94:AI94) -> 0 | N9: PM10 | O9: =SUM(Results!AL8:AP8) -> 0 | P9: =SUM(Results!AS8:AW8) -> 0 | R9: PM10 | S9: =SUM(Results!AL51:AP51) -> 0 | T9: =SUM(Results!AS51:AW51) -> 0 | V9: PM10 | W9: =SUM(Results!AL94:AP94) -> 0 | X9: =SUM(Results!AS94:AW94) -> 0
A10: PM2.5 | B10: =SUM(Results!B9:Q9) -> 0 | C10: =SUM(Results!T9:AI9) -> 0 | E10: PM2.5 | F10: =SUM(Results!B52:Q52) -> 0 | G10: =SUM(Results!T52:AI52) -> 0 | I10: PM2.5 | J10: =SUM(Results!B95:Q95) -> 0 | K10: =SUM(Results!T95:AI95) -> 0 | N10: PM2.5 | O10: =SUM(Results!AL9:AP9) -> 0 | P10: =SUM(Results!AS9:AW9) -> 0 | R10: PM2.5 | S10: =SUM(Results!AL52:AP52) -> 0 | T10: =SUM(Results!AS52:AW52) -> 0 | V10: PM2.5 | W10: =SUM(Results!AL95:AP95) -> 0 | X10: =SUM(Results!AS95:AW95) -> 0
A11: SO2 | B11: =SUM(Results!B10:Q10) -> 0 | C11: =SUM(Results!T10:AI10) -> 0 | E11: SO2 | F11: =SUM(Results!B53:Q53) -> 0 | G11: =SUM(Results!T53:AI53) -> 0 | I11: SO2 | J11: =SUM(Results!B96:Q96) -> 0 | K11: =SUM(Results!T96:AI96) -> 0 | N11: SO2 | O11: =SUM(Results!AL10:AP10) -> 0 | P11: =SUM(Results!AS10:AW10) -> 0 | R11: SO2 | S11: =SUM(Results!AL53:AP53) -> 0 | T11: =SUM(Results!AS53:AW53) -> 0 | V11: SO2 | W11: =SUM(Results!AL96:AP96) -> 0 | X11: =SUM(Results!AS96:AW96) -> 0
A12: NOx | B12: =SUM(Results!B11:Q11) -> 0 | C12: =SUM(Results!T11:AI11) -> 0 | E12: NOx | F12: =SUM(Results!B54:Q54) -> 0 | G12: =SUM(Results!T54:AI54) -> 0 | I12: NOx | J12: =SUM(Results!B97:Q97) -> 0 | K12: =SUM(Results!T97:AI97) -> 0 | N12: NOx | O12: =SUM(Results!AL11:AP11) -> 0 | P12: =SUM(Results!AS11:AW11) -> 0 | R12: NOx | S12: =SUM(Results!AL54:AP54) -> 0 | T12: =SUM(Results!AS54:AW54) -> 0 | V12: NOx | W12: =SUM(Results!AL97:AP97) -> 0 | X12: =SUM(Results!AS97:AW97) -> 0
A13: CO | B13: =SUM(Results!B12:Q12) -> 0 | C13: =SUM(Results!T12:AI12) -> 0 | E13: CO | F13: =SUM(Results!B55:Q55) -> 0 | G13: =SUM(Results!T55:AI55) -> 0 | I13: CO | J13: =SUM(Results!B98:Q98) -> 0 | K13: =SUM(Results!T98:AI98) -> 0 | N13: CO | O13: =SUM(Results!AL12:AP12) -> 0 | P13: =SUM(Results!AS12:AW12) -> 0 | R13: CO | S13: =SUM(Results!AL55:AP55) -> 0 | T13: =SUM(Results!AS55:AW55) -> 0 | V13: CO | W13: =SUM(Results!AL98:AP98) -> 0 | X13: =SUM(Results!AS98:AW98) -> 0
A14: VOC | B14: =SUM(Results!B13:Q13) -> 0 | C14: =SUM(Results!T13:AI13) -> 0 | E14: VOC | F14: =SUM(Results!B56:Q56) -> 0 | G14: =SUM(Results!T56:AI56) -> 0 | I14: VOC | J14: =SUM(Results!B99:Q99) -> 0 | K14: =SUM(Results!T99:AI99) -> 0 | N14: VOC | O14: =SUM(Results!AL13:AP13) -> 0 | P14: =SUM(Results!AS13:AW13) -> 0 | R14: VOC | S14: =SUM(Results!AL56:AP56) -> 0 | T14: =SUM(Results!AS56:AW56) -> 0 | V14: VOC | W14: =SUM(Results!AL99:AP99) -> 0 | X14: =SUM(Results!AS99:AW99) -> 0
A15: Hydrogen Sulfide | B15: 0 | C15: 0 | E15: Hydrogen Sulfide | G15: ='8) Calculations'!AJ15 -> 0 | I15: Hydrogen Sulfide | N15: Hydrogen Sulfide | O15: 0 | P15: 0 | R15: Hydrogen Sulfide | T15: ='8) Calculations'!AW15 -> 0 | V15: Hydrogen Sulfide
A16: Sulfuric Acid | B16: 0 | C16: 0 | E16: Sulfuric Acid | G16: ='8) Calculations'!AJ20 -> 0 | I16: Sulfuric Acid | N16: Sulfuric Acid | O16: 0 | P16: 0 | R16: Sulfuric Acid | T16: ='8) Calculations'!AW20 -> 0 | V16: Sulfuric Acid
A17: Fluorides | B17: 0 | C17: 0 | E17: Fluorides | G17: ='8) Calculations'!AJ21 -> 0 | I17: Fluorides | N17: Fluorides | O17: 0 | P17: 0 | R17: Fluorides | T17: ='8) Calculations'!AW21 -> 0 | V17: Fluorides
A18: Individual HAP | E18: Individual HAP | I18: Individual HAP | N18: Individual HAP | R18: Individual HAP | V18: Individual HAP
A19: Acetaldehyde | B19: =SUM(Results!B18:Q18) -> 0 | C19: =SUM(Results!T18:AI18) -> 0 | E19: Acetaldehyde | F19: =SUM(Results!B61:Q61) -> 0 | G19: =SUM(Results!T61:AI61) -> 0 | I19: Acetaldehyde | J19: =SUM(Results!B104:Q104) -> 0 | K19: =SUM(Results!T104:AI104) -> 0 | N19: Acetaldehyde | O19: =SUM(Results!AL18:AP18) -> 0 | P19: =SUM(Results!AS18:AW18) -> 0 | R19: Acetaldehyde | S19: =SUM(Results!AL61:AP61) -> 0 | T19: =SUM(Results!AS61:AW61) -> 0 | V19: Acetaldehyde | W19: =SUM(Results!AL104:AP104) -> 0 | X19: =SUM(Results!AS104:AW104) -> 0
A20: Acrolein | B20: =SUM(Results!B19:Q19) -> 0 | C20: =SUM(Results!T19:AI19) -> 0 | E20: Acrolein | F20: =SUM(Results!B62:Q62) -> 0 | G20: =SUM(Results!T62:AI62) -> 0 | I20: Acrolein | J20: =SUM(Results!B105:Q105) -> 0 | K20: =SUM(Results!T105:AI105) -> 0 | N20: Acrolein | O20: =SUM(Results!AL19:AP19) -> 0 | P20: =SUM(Results!AS19:AW19) -> 0 | R20: Acrolein | S20: =SUM(Results!AL62:AP62) -> 0 | T20: =SUM(Results!AS62:AW62) -> 0 | V20: Acrolein | W20: =SUM(Results!AL105:AP105) -> 0 | X20: =SUM(Results!AS105:AW105) -> 0
A21: Arsenic compounds | B21: =SUM(Results!B20:Q20) -> 0 | C21: =SUM(Results!T20:AI20) -> 0 | E21: Arsenic compounds | F21: =SUM(Results!B63:Q63) -> 0 | G21: =SUM(Results!T63:AI63) -> 0 | I21: Arsenic compounds | J21: =SUM(Results!B106:Q106) -> 0 | K21: =SUM(Results!T106:AI106) -> 0 | N21: Arsenic compounds | O21: =SUM(Results!AL20:AP20) -> 0 | P21: =SUM(Results!AS20:AW20) -> 0 | R21: Arsenic compounds | S21: =SUM(Results!AL63:AP63) -> 0 | T21: =SUM(Results!AS63:AW63) -> 0 | V21: Arsenic compounds | W21: =SUM(Results!AL106:AP106) -> 0 | X21: =SUM(Results!AS106:AW106) -> 0
A22: Benzene | B22: =SUM(Results!B21:Q21) -> 0 | C22: =SUM(Results!T21:AI21) -> 0 | E22: Benzene | F22: =SUM(Results!B64:Q64) -> 0 | G22: =SUM(Results!T64:AI64) -> 0 | I22: Benzene | J22: =SUM(Results!B107:Q107) -> 0 | K22: =SUM(Results!T107:AI107) -> 0 | N22: Benzene | O22: =SUM(Results!AL21:AP21) -> 0 | P22: =SUM(Results!AS21:AW21) -> 0 | R22: Benzene | S22: =SUM(Results!AL64:AP64) -> 0 | T22: =SUM(Results!AS64:AW64) -> 0 | V22: Benzene | W22: =SUM(Results!AL107:AP107) -> 0 | X22: =SUM(Results!AS107:AW107) -> 0
A23: Benzyl chloride | B23: =SUM(Results!B22:Q22) -> 0 | C23: =SUM(Results!T22:AI22) -> 0 | E23: Benzyl chloride | F23: =SUM(Results!B65:Q65) -> 0 | G23: =SUM(Results!T65:AI65) -> 0 | I23: Benzyl chloride | J23: =SUM(Results!B108:Q108) -> 0 | K23: =SUM(Results!T108:AI108) -> 0 | N23: Benzyl chloride | O23: =SUM(Results!AL22:AP22) -> 0 | P23: =SUM(Results!AS22:AW22) -> 0 | R23: Benzyl chloride | S23: =SUM(Results!AL65:AP65) -> 0 | T23: =SUM(Results!AS65:AW65) -> 0 | V23: Benzyl chloride | W23: =SUM(Results!AL108:AP108) -> 0 | X23: =SUM(Results!AS108:AW108) -> 0
A24: Beryllium compounds | B24: =SUM(Results!B23:Q23) -> 0 | C24: =SUM(Results!T23:AI23) -> 0 | E24: Beryllium compounds | F24: =SUM(Results!B66:Q66) -> 0 | G24: =SUM(Results!T66:AI66) -> 0 | I24: Beryllium compounds | J24: =SUM(Results!B109:Q109) -> 0 | K24: =SUM(Results!T109:AI109) -> 0 | N24: Beryllium compounds | O24: =SUM(Results!AL23:AP23) -> 0 | P24: =SUM(Results!AS23:AW23) -> 0 | R24: Beryllium compounds | S24: =SUM(Results!AL66:AP66) -> 0 | T24: =SUM(Results!AS66:AW66) -> 0 | V24: Beryllium compounds | W24: =SUM(Results!AL109:AP109) -> 0 | X24: =SUM(Results!AS109:AW109) -> 0
A25: Cadmium compounds | B25: =SUM(Results!B24:Q24) -> 0 | C25: =SUM(Results!T24:AI24) -> 0 | E25: Cadmium compounds | F25: =SUM(Results!B67:Q67) -> 0 | G25: =SUM(Results!T67:AI67) -> 0 | I25: Cadmium compounds | J25: =SUM(Results!B110:Q110) -> 0 | K25: =SUM(Results!T110:AI110) -> 0 | N25: Cadmium compounds | O25: =SUM(Results!AL24:AP24) -> 0 | P25: =SUM(Results!AS24:AW24) -> 0 | R25: Cadmium compounds | S25: =SUM(Results!AL67:AP67) -> 0 | T25: =SUM(Results!AS67:AW67) -> 0 | V25: Cadmium compounds | W25: =SUM(Results!AL110:AP110) -> 0 | X25: =SUM(Results!AS110:AW110) -> 0
A26: Cyanide compounds | B26: =SUM(Results!B25:Q25) -> 0 | C26: =SUM(Results!T25:AI25) -> 0 | E26: Cyanide compounds | F26: =SUM(Results!B68:Q68) -> 0 | G26: =SUM(Results!T68:AI68) -> 0 | I26: Cyanide compounds | J26: =SUM(Results!B111:Q111) -> 0 | K26: =SUM(Results!T111:AI111) -> 0 | N26: Cyanide compounds | O26: =SUM(Results!AL25:AP25) -> 0 | P26: =SUM(Results!AS25:AW25) -> 0 | R26: Cyanide compounds | S26: =SUM(Results!AL68:AP68) -> 0 | T26: =SUM(Results!AS68:AW68) -> 0 | V26: Cyanide compounds | W26: =SUM(Results!AL111:AP111) -> 0 | X26: =SUM(Results!AS111:AW111) -> 0
A27: Formaldehyde | B27: =SUM(Results!B26:Q26) -> 0 | C27: =SUM(Results!T26:AI26) -> 0 | E27: Formaldehyde | F27: =SUM(Results!B69:Q69) -> 0 | G27: =SUM(Results!T69:AI69) -> 0 | I27: Formaldehyde | J27: =SUM(Results!B112:Q112) -> 0 | K27: =SUM(Results!T112:AI112) -> 0 | N27: Formaldehyde | O27: =SUM(Results!AL26:AP26) -> 0 | P27: =SUM(Results!AS26:AW26) -> 0 | R27: Formaldehyde | S27: =SUM(Results!AL69:AP69) -> 0 | T27: =SUM(Results!AS69:AW69) -> 0 | V27: Formaldehyde | W27: =SUM(Results!AL112:AP112) -> 0 | X27: =SUM(Results!AS112:AW112) -> 0
A28: Hexane | B28: =SUM(Results!B27:Q27) -> 0 | C28: =SUM(Results!T27:AI27) -> 0 | E28: Hexane | F28: =SUM(Results!B70:Q70) -> 0 | G28: =SUM(Results!T70:AI70) -> 0 | I28: Hexane | J28: =SUM(Results!B113:Q113) -> 0 | K28: =SUM(Results!T113:AI113) -> 0 | N28: Hexane | O28: =SUM(Results!AL27:AP27) -> 0 | P28: =SUM(Results!AS27:AW27) -> 0 | R28: Hexane | S28: =SUM(Results!AL70:AP70) -> 0 | T28: =SUM(Results!AS70:AW70) -> 0 | V28: Hexane | W28: =SUM(Results!AL113:AP113) -> 0 | X28: =SUM(Results!AS113:AW113) -> 0
A29: Hydrochloric acid | B29: =SUM(Results!B28:Q28) -> 0 | C29: =SUM(Results!T28:AI28) -> 0 | E29: Hydrochloric acid | F29: =SUM(Results!B71:Q71) -> 0 | G29: =SUM(Results!T71:AI71) -> 0 | I29: Hydrochloric acid | J29: =SUM(Results!B114:Q114) -> 0 | K29: =SUM(Results!T114:AI114) -> 0 | N29: Hydrochloric acid | O29: =SUM(Results!AL28:AP28) -> 0 | P29: =SUM(Results!AS28:AW28) -> 0 | R29: Hydrochloric acid | S29: =SUM(Results!AL71:AP71) -> 0 | T29: =SUM(Results!AS71:AW71) -> 0 | V29: Hydrochloric acid | W29: =SUM(Results!AL114:AP114) -> 0 | X29: =SUM(Results!AS114:AW114) -> 0
A30: Lead Compounds | B30: =SUM(Results!B29:Q29) -> 0 | C30: =SUM(Results!T29:AI29) -> 0 | E30: Lead Compounds | F30: =SUM(Results!B72:Q72) -> 0 | G30: =SUM(Results!T72:AI72) -> 0 | I30: Lead Compounds | J30: =SUM(Results!B115:Q115) -> 0 | K30: =SUM(Results!T115:AI115) -> 0 | N30: Lead Compounds | O30: =SUM(Results!AL29:AP29) -> 0 | P30: =SUM(Results!AS29:AW29) -> 0 | R30: Lead Compounds | S30: =SUM(Results!AL72:AP72) -> 0 | T30: =SUM(Results!AS72:AW72) -> 0 | V30: Lead Compounds | W30: =SUM(Results!AL115:AP115) -> 0 | X30: =SUM(Results!AS115:AW115) -> 0
A31: Mercury compounds | B31: =SUM(Results!B30:Q30) -> 0 | C31: =SUM(Results!T30:AI30) -> 0 | E31: Mercury compounds | F31: =SUM(Results!B73:Q73) -> 0 | G31: =SUM(Results!T73:AI73) -> 0 | I31: Mercury compounds | J31: =SUM(Results!B116:Q116) -> 0 | K31: =SUM(Results!T116:AI116) -> 0 | N31: Mercury compounds | O31: =SUM(Results!AL30:AP30) -> 0 | P31: =SUM(Results!AS30:AW30) -> 0 | R31: Mercury compounds | S31: =SUM(Results!AL73:AP73) -> 0 | T31: =SUM(Results!AS73:AW73) -> 0 | V31: Mercury compounds | W31: =SUM(Results!AL116:AP116) -> 0 | X31: =SUM(Results!AS116:AW116) -> 0
A32: Methanol | B32: =SUM(Results!B31:Q31) -> 0 | C32: =SUM(Results!T31:AI31) -> 0 | E32: Methanol | F32: =SUM(Results!B74:Q74) -> 0 | G32: =SUM(Results!T74:AI74) -> 0 | I32: Methanol | J32: =SUM(Results!B117:Q117) -> 0 | K32: =SUM(Results!T117:AI117) -> 0 | N32: Methanol | O32: =SUM(Results!AL31:AP31) -> 0 | P32: =SUM(Results!AS31:AW31) -> 0 | R32: Methanol | S32: =SUM(Results!AL74:AP74) -> 0 | T32: =SUM(Results!AS74:AW74) -> 0 | V32: Methanol | W32: =SUM(Results!AL117:AP117) -> 0 | X32: =SUM(Results!AS117:AW117) -> 0
A33: Methyl hydrazine | B33: =SUM(Results!B32:Q32) -> 0 | C33: =SUM(Results!T32:AI32) -> 0 | E33: Methyl hydrazine | F33: =SUM(Results!B75:Q75) -> 0 | G33: =SUM(Results!T75:AI75) -> 0 | I33: Methyl hydrazine | J33: =SUM(Results!B118:Q118) -> 0 | K33: =SUM(Results!T118:AI118) -> 0 | N33: Methyl hydrazine | O33: =SUM(Results!AL32:AP32) -> 0 | P33: =SUM(Results!AS32:AW32) -> 0 | R33: Methyl hydrazine | S33: =SUM(Results!AL75:AP75) -> 0 | T33: =SUM(Results!AS75:AW75) -> 0 | V33: Methyl hydrazine | W33: =SUM(Results!AL118:AP118) -> 0 | X33: =SUM(Results!AS118:AW118) -> 0
A34: Selenium compounds | B34: =SUM(Results!B33:Q33) -> 0 | C34: =SUM(Results!T33:AI33) -> 0 | E34: Selenium compounds | F34: =SUM(Results!B76:Q76) -> 0 | G34: =SUM(Results!T76:AI76) -> 0 | I34: Selenium compounds | J34: =SUM(Results!B119:Q119) -> 0 | K34: =SUM(Results!T119:AI119) -> 0 | N34: Selenium compounds | O34: =SUM(Results!AL33:AP33) -> 0 | P34: =SUM(Results!AS33:AW33) -> 0 | R34: Selenium compounds | S34: =SUM(Results!AL76:AP76) -> 0 | T34: =SUM(Results!AS76:AW76) -> 0 | V34: Selenium compounds | W34: =SUM(Results!AL119:AP119) -> 0 | X34: =SUM(Results!AS119:AW119) -> 0
A35: Other HAPs | B35: =SUM(Results!B34:Q34) -> 0 | C35: =SUM(Results!T34:AI34) -> 0 | E35: Other HAPs | F35: =SUM(Results!B77:Q77) -> 0 | G35: =SUM(Results!T77:AI77) -> 0 | I35: Other HAPs | J35: =SUM(Results!B120:Q120) -> 0 | K35: =SUM(Results!T120:AI120) -> 0 | N35: Other HAPs | O35: =SUM(Results!AL34:AP34) -> 0 | P35: =SUM(Results!AS34:AW34) -> 0 | R35: Other HAPs | S35: =SUM(Results!AL77:AP77) -> 0 | T35: =SUM(Results!AS77:AW77) -> 0 | V35: Other HAPs | W35: =SUM(Results!AL120:AP120) -> 0 | X35: =SUM(Results!AS120:AW120) -> 0
A36: Total HAPs | B36: =SUM(Results!B35:Q35) -> 0 | C36: =SUM(Results!T35:AI35) -> 0 | E36: Total HAPs | F36: =SUM(Results!B78:Q78) -> 0 | G36: =SUM(Results!T78:AI78) -> 0 | I36: Total HAPs | J36: =SUM(Results!B121:Q121) -> 0 | K36: =SUM(Results!T121:AI121) -> 0 | N36: Total HAPs | O36: =SUM(Results!AL35:AP35) -> 0 | P36: =SUM(Results!AS35:AW35) -> 0 | R36: Total HAPs | S36: =SUM(Results!AL78:AP78) -> 0 | T36: =SUM(Results!AS78:AW78) -> 0 | V36: Total HAPs | W36: =SUM(Results!AL121:AP121) -> 0 | X36: =SUM(Results!AS121:AW121) -> 0
A37: Greenhouse Gases (GHG) (Mass Basis) | E37: Greenhouse Gases (GHG) (Mass Basis) | I37: Greenhouse Gases (GHG) (Mass Basis) | N37: Greenhouse Gases (GHG) (Mass Basis) | R37: Greenhouse Gases (GHG) (Mass Basis) | V37: Greenhouse Gases (GHG) (Mass Basis)
A38: Carbon Dioxide | B38: =SUM(Results!B37:Q37) -> 0 | C38: =SUM(Results!T37:AI37) -> 0 | E38: Carbon Dioxide | F38: =SUM(Results!B80:Q80) -> 0 | G38: =SUM(Results!T80:AI80) -> 0 | I38: Carbon Dioxide | J38: =SUM(Results!B123:Q123) -> 0 | K38: =SUM(Results!T123:AI123) -> 0 | N38: Carbon Dioxide | O38: =SUM(Results!AL37:AP37) -> 0 | P38: =SUM(Results!AS37:AW37) -> 0 | R38: Carbon Dioxide | S38: =SUM(Results!AL80:AP80) -> 0 | T38: =SUM(Results!AS80:AW80) -> 0 | V38: Carbon Dioxide | W38: =SUM(Results!AL123:AP123) -> 0 | X38: =SUM(Results!AS123:AW123) -> 0
A39: Methane | B39: =SUM(Results!B38:Q38) -> 0 | C39: =SUM(Results!T38:AI38) -> 0 | E39: Methane | F39: =SUM(Results!B81:Q81) -> 0 | G39: =SUM(Results!T81:AI81) -> 0 | I39: Methane | J39: =SUM(Results!B124:Q124) -> 0 | K39: =SUM(Results!T124:AI124) -> 0 | N39: Methane | O39: =SUM(Results!AL38:AP38) -> 0 | P39: =SUM(Results!AS38:AW38) -> 0 | R39: Methane | S39: =SUM(Results!AL81:AP81) -> 0 | T39: =SUM(Results!AS81:AW81) -> 0 | V39: Methane | W39: =SUM(Results!AL124:AP124) -> 0 | X39: =SUM(Results!AS124:AW124) -> 0
A40: Nitrous Oxide | B40: =SUM(Results!B39:Q39) -> 0 | C40: =SUM(Results!T39:AI39) -> 0 | E40: Nitrous Oxide | F40: =SUM(Results!B82:Q82) -> 0 | G40: =SUM(Results!T82:AI82) -> 0 | I40: Nitrous Oxide | J40: =SUM(Results!B125:Q125) -> 0 | K40: =SUM(Results!T125:AI125) -> 0 | N40: Nitrous Oxide | O40: =SUM(Results!AL39:AP39) -> 0 | P40: =SUM(Results!AS39:AW39) -> 0 | R40: Nitrous Oxide | S40: =SUM(Results!AL82:AP82) -> 0 | T40: =SUM(Results!AS82:AW82) -> 0 | V40: Nitrous Oxide | W40: =SUM(Results!AL125:AP125) -> 0 | X40: =SUM(Results!AS125:AW125) -> 0
A41: Total GHGs | B41: =SUM(Results!B40:Q40) -> 0 | C41: =SUM(Results!T40:AI40) -> 0 | E41: Total GHGs | F41: =SUM(Results!B83:Q83) -> 0 | G41: =SUM(Results!T83:AI83) -> 0 | I41: Total GHGs | J41: =SUM(Results!B126:Q126) -> 0 | K41: =SUM(Results!T126:AI126) -> 0 | N41: Total GHGs | O41: =SUM(Results!AL40:AP40) -> 0 | P41: =SUM(Results!AS40:AW40) -> 0 | R41: Total GHGs | S41: =SUM(Results!AL83:AP83) -> 0 | T41: =SUM(Results!AS83:AW83) -> 0 | V41: Total GHGs | W41: =SUM(Results!AL126:AP126) -> 0 | X41: =SUM(Results!AS126:AW126) -> 0
A42: Greenhouse Gases (GHG) (CO2 Equivalent Basis) | E42: Greenhouse Gases (GHG) (CO2 Equivalent Basis) | I42: Greenhouse Gases (GHG) (CO2 Equivalent Basis) | N42: Greenhouse Gases (GHG) (CO2 Equivalent Basis) | R42: Greenhouse Gases (GHG) (CO2 Equivalent Basis) | V42: Greenhouse Gases (GHG) (CO2 Equivalent Basis)
A43: Carbon Dioxide | B43: =SUM(Results!B42:Q42) -> 0 | C43: =SUM(Results!T42:AI42) -> 0 | E43: Carbon Dioxide | F43: =SUM(Results!B85:Q85) -> 0 | G43: =SUM(Results!T85:AI85) -> 0 | I43: Carbon Dioxide | J43: =SUM(Results!B128:Q128) -> 0 | K43: =SUM(Results!T128:AI128) -> 0 | N43: Carbon Dioxide | O43: =SUM(Results!AL42:AP42) -> 0 | P43: =SUM(Results!AS42:AW42) -> 0 | R43: Carbon Dioxide | S43: =SUM(Results!AL85:AP85) -> 0 | T43: =SUM(Results!AS85:AW85) -> 0 | V43: Carbon Dioxide | W43: =SUM(Results!AL128:AP128) -> 0 | X43: =SUM(Results!AS128:AW128) -> 0
A44: Methane | B44: =SUM(Results!B43:Q43) -> 0 | C44: =SUM(Results!T43:AI43) -> 0 | E44: Methane | F44: =SUM(Results!B86:Q86) -> 0 | G44: =SUM(Results!T86:AI86) -> 0 | I44: Methane | J44: =SUM(Results!B129:Q129) -> 0 | K44: =SUM(Results!T129:AI129) -> 0 | N44: Methane | O44: =SUM(Results!AL43:AP43) -> 0 | P44: =SUM(Results!AS43:AW43) -> 0 | R44: Methane | S44: =SUM(Results!AL86:AP86) -> 0 | T44: =SUM(Results!AS86:AW86) -> 0 | V44: Methane | W44: =SUM(Results!AL129:AP129) -> 0 | X44: =SUM(Results!AS129:AW129) -> 0
A45: Nitrous Oxide | B45: =SUM(Results!B44:Q44) -> 0 | C45: =SUM(Results!T44:AI44) -> 0 | E45: Nitrous Oxide | F45: =SUM(Results!B87:Q87) -> 0 | G45: =SUM(Results!T87:AI87) -> 0 | I45: Nitrous Oxide | J45: =SUM(Results!B130:Q130) -> 0 | K45: =SUM(Results!T130:AI130) -> 0 | N45: Nitrous Oxide | O45: =SUM(Results!AL44:AP44) -> 0 | P45: =SUM(Results!AS44:AW44) -> 0 | R45: Nitrous Oxide | S45: =SUM(Results!AL87:AP87) -> 0 | T45: =SUM(Results!AS87:AW87) -> 0 | V45: Nitrous Oxide | W45: =SUM(Results!AL130:AP130) -> 0 | X45: =SUM(Results!AS130:AW130) -> 0
A46: Total GHGs | B46: =SUM(Results!B45:Q45) -> 0 | C46: =SUM(Results!T45:AI45) -> 0 | E46: Total GHGs | F46: =SUM(Results!B88:Q88) -> 0 | G46: =SUM(Results!T88:AI88) -> 0 | I46: Total GHGs | J46: =SUM(Results!B131:Q131) -> 0 | K46: =SUM(Results!T131:AI131) -> 0 | N46: Total GHGs | O46: =SUM(Results!AL45:AP45) -> 0 | P46: =SUM(Results!AS45:AW45) -> 0 | R46: Total GHGs | S46: =SUM(Results!AL88:AP88) -> 0 | T46: =SUM(Results!AS88:AW88) -> 0 | V46: Total GHGs | W46: =SUM(Results!AL131:AP131) -> 0 | X46: =SUM(Results!AS131:AW131) -> 0

Sheet Schematic
A2: Universal Calculation Spreadsheets applicable for the Emissions of Ethanol Industry
A3: Schematic
A4: Before the Project
A5: Dump Pits | F5: Grain Storage Bins | J5: Grain Storage Piles | N5: Scalper | R5: Hammermill | V5: Dryers | Z5: Fermenters and Beerwells | AD5: RTOs | AH5: DDGS Dryers | AL5: Solids Loadout | AO5: Liquid Loadout Flares | AR5: Tanks | AU5: Compression Engines | AX5: Spark Ignition Engines
A6: 1
A7: 1st : | B7: ='3) Dump Pit'!I33 -> 0 | C7: =(IF('3) Dump Pit'!C33="","Emission Unit Name",'3) Dump Pit'!C33)) -> Emission Unit Name | D7: ='3) Dump Pit'!G33 -> 0 | F7: 1st : | G7: =(IF('4) Grain Storage'!B18="","Emission Unit Name",'4) Grain Storage'!B18)) -> Emission Unit Name | H7: ='4) Grain Storage'!G18 -> 0 | J7: 1st : | K7: =(IF('4) Grain Storage'!B31="","Emission Unit Name",'4) Grain Storage'!B31)) -> Emission Unit Name | L7: ='4) Grain Storage'!G31 -> 0 | M7: 1 | N7: 1st : | O7: =(IF('6) Hammermill'!B15="","Emission Unit Name",'6) Hammermill'!B15)) -> Emission Unit Name | P7: ='6) Hammermill'!F15 -> 0 | R7: 1st : | S7: =(IF('6) Hammermill'!B28="","Emission Unit Name",'6) Hammermill'!B28)) -> Emission Unit Name | T7: ='6) Hammermill'!F28 -> 0 | V7: 1st : | W7: =(IF('5) Dryer'!B17="","Emission Unit Name",'5) Dryer'!B17)) -> Emission Unit Name | X7: ='5) Dryer'!E17 -> 0 | Z7: 1st : | AA7: =(IF('7) Ferm'!B15="","Emission Unit Name",'7) Ferm'!B15)) -> Emission Unit Name | AB7: ='7) Ferm'!F15 -> 0 | AD7: 1st : | AE7: =(IF('8) DDGS Dryer'!B29="","Emission Unit Name",'8) DDGS Dryer'!B29)) -> Emission Unit Name | AF7: ='8) DDGS Dryer'!E29 -> 0 | AH7: 1st : | AI7: =(IF('8) DDGS Dryer'!EJ16="","Emission Unit Name",'8) DDGS Dryer'!B16)) -> Emission Unit Name | AJ7: ='8) DDGS Dryer'!E16 -> 0 | AL7: 1st : | AM7: =(IF('9) Solids Loadout'!B14="","Emission Unit Name",'9) Solids Loadout'!B14)) -> Emission Unit Name | AO7: 1st : | AP7: =(IF('10) Liquid Loadout'!C19="","Emission Unit Name",'10) Liquid Loadout'!C19)) -> Emission Unit Name | AR7: 1st : | AS7: =(IF('11) Tanks'!B10="","Emission Unit Name",'11) Tanks'!B10)) -> Emission Unit Name | AU7: 1st : | AV7: =(IF('15) Engines'!B16="","Emission Unit Name",'15) Engines'!B16)) -> Emission Unit Name | AX7: 1st : | AY7: =(IF('15) Engines'!B29="","Emission Unit Name",'15) Engines'!B29)) -> Emission Unit Name
A8: 2nd : | B8: ='3) Dump Pit'!I34 -> 0 | C8: =(IF('3) Dump Pit'!C34="","Emission Unit Name",'3) Dump Pit'!C34)) -> Emission Unit Name | D8: ='3) Dump Pit'!G34 -> 0 | F8: 2nd : | G8: =(IF('4) Grain Storage'!B19="","Emission Unit Name",'4) Grain Storage'!B19)) -> Emission Unit Name | H8: ='4) Grain Storage'!G19 -> 0 | J8: 2nd : | K8: =(IF('4) Grain Storage'!B32="","Emission Unit Name",'4) Grain Storage'!B32)) -> Emission Unit Name | L8: ='4) Grain Storage'!G32 -> 0 | M8: 2 | N8: 2nd : | O8: =(IF('6) Hammermill'!B16="","Emission Unit Name",'6) Hammermill'!B16)) -> Emission Unit Name | P8: ='6) Hammermill'!F16 -> 0 | R8: 2nd : | S8: =(IF('6) Hammermill'!B29="","Emission Unit Name",'6) Hammermill'!B29)) -> Emission Unit Name | T8: ='6) Hammermill'!F29 -> 0 | V8: 2nd : | W8: =(IF('5) Dryer'!B18="","Emission Unit Name",'5) Dryer'!B18)) -> Emission Unit Name | X8: ='5) Dryer'!E18 -> 0 | Z8: 2nd : | AA8: =(IF('7) Ferm'!B16="","Emission Unit Name",'7) Ferm'!B16)) -> Emission Unit Name | AB8: ='7) Ferm'!F16 -> 0 | AD8: 2nd : | AE8: =(IF('8) DDGS Dryer'!B30="","Emission Unit Name",'8) DDGS Dryer'!B30)) -> Emission Unit Name | AF8: ='8) DDGS Dryer'!E30 -> 0 | AH8: 2nd : | AI8: =(IF('8) DDGS Dryer'!EJ17="","Emission Unit Name",'8) DDGS Dryer'!B17)) -> Emission Unit Name | AJ8: ='8) DDGS Dryer'!E17 -> 0 | AL8: 2nd : | AM8: =(IF('9) Solids Loadout'!B15="","Emission Unit Name",'9) Solids Loadout'!B15)) -> Emission Unit Name | AO8: 2nd : | AP8: =(IF('10) Liquid Loadout'!C20="","Emission Unit Name",'10) Liquid Loadout'!C20)) -> Emission Unit Name | AR8: 2nd : | AS8: =(IF('11) Tanks'!B11="","Emission Unit Name",'11) Tanks'!B11)) -> Emission Unit Name | AU8: 2nd : | AV8: =(IF('15) Engines'!B17="","Emission Unit Name",'15) Engines'!B17)) -> Emission Unit Name | AX8: 2nd : | AY8: =(IF('15) Engines'!B30="","Emission Unit Name",'15) Engines'!B30)) -> Emission Unit Name
A9: 3rd : | B9: ='3) Dump Pit'!I35 -> 0 | C9: =(IF('3) Dump Pit'!C35="","Emission Unit Name",'3) Dump Pit'!C35)) -> Emission Unit Name | D9: ='3) Dump Pit'!G35 -> 0 | F9: 3rd : | G9: =(IF('4) Grain Storage'!B20="","Emission Unit Name",'4) Grain Storage'!B20)) -> Emission Unit Name | H9: ='4) Grain Storage'!G20 -> 0 | J9: 3rd : | K9: =(IF('4) Grain Storage'!B33="","Emission Unit Name",'4) Grain Storage'!B33)) -> Emission Unit Name | L9: ='4) Grain Storage'!G33 -> 0 | M9: 3 | N9: 3rd : | O9: =(IF('6) Hammermill'!B17="","Emission Unit Name",'6) Hammermill'!B17)) -> Emission Unit Name | P9: ='6) Hammermill'!F17 -> 0 | R9: 3rd : | S9: =(IF('6) Hammermill'!B30="","Emission Unit Name",'6) Hammermill'!B30)) -> Emission Unit Name | T9: ='6) Hammermill'!F30 -> 0 | V9: 3rd : | W9: =(IF('5) Dryer'!B19="","Emission Unit Name",'5) Dryer'!B19)) -> Emission Unit Name | X9: ='5) Dryer'!E19 -> 0 | Z9: 3rd : | AA9: =(IF('7) Ferm'!B17="","Emission Unit Name",'7) Ferm'!B17)) -> Emission Unit Name | AB9: ='7) Ferm'!F17 -> 0 | AD9: 3rd : | AE9: =(IF('8) DDGS Dryer'!B31="","Emission Unit Name",'8) DDGS Dryer'!B31)) -> Emission Unit Name | AF9: ='8) DDGS Dryer'!E31 -> 0 | AH9: 3rd : | AI9: =(IF('8) DDGS Dryer'!EJ18="","Emission Unit Name",'8) DDGS Dryer'!B18)) -> Emission Unit Name | AJ9: ='8) DDGS Dryer'!E18 -> 0 | AL9: 3rd : | AM9: =(IF('9) Solids Loadout'!B16="","Emission Unit Name",'9) Solids Loadout'!B16)) -> Emission Unit Name | AO9: 3rd : | AP9: =(IF('10) Liquid Loadout'!C21="","Emission Unit Name",'10) Liquid Loadout'!C21)) -> Emission Unit Name | AR9: 3rd : | AS9: =(IF('11) Tanks'!B12="","Emission Unit Name",'11) Tanks'!B12)) -> Emission Unit Name | AU9: 3rd : | AV9: =(IF('15) Engines'!B18="","Emission Unit Name",'15) Engines'!B18)) -> Emission Unit Name | AX9: 3rd : | AY9: =(IF('15) Engines'!B31="","Emission Unit Name",'15) Engines'!B31)) -> Emission Unit Name
A10: 4th : | B10: ='3) Dump Pit'!I36 -> 0 | C10: =(IF('3) Dump Pit'!C36="","Emission Unit Name",'3) Dump Pit'!C36)) -> Emission Unit Name | D10: ='3) Dump Pit'!G36 -> 0 | F10: 4th : | G10: =(IF('4) Grain Storage'!B21="","Emission Unit Name",'4) Grain Storage'!B21)) -> Emission Unit Name | H10: ='4) Grain Storage'!G21 -> 0 | J10: 4th : | K10: =(IF('4) Grain Storage'!B34="","Emission Unit Name",'4) Grain Storage'!B34)) -> Emission Unit Name | L10: ='4) Grain Storage'!G34 -> 0 | M10: 4 | N10: 4th : | O10: =(IF('6) Hammermill'!B18="","Emission Unit Name",'6) Hammermill'!B18)) -> Emission Unit Name | P10: ='6) Hammermill'!F18 -> 0 | R10: 4th : | S10: =(IF('6) Hammermill'!B31="","Emission Unit Name",'6) Hammermill'!B31)) -> Emission Unit Name | T10: ='6) Hammermill'!F31 -> 0 | V10: 4th : | W10: =(IF('5) Dryer'!B20="","Emission Unit Name",'5) Dryer'!B20)) -> Emission Unit Name | X10: ='5) Dryer'!E20 -> 0 | Z10: 4th : | AA10: =(IF('7) Ferm'!B18="","Emission Unit Name",'7) Ferm'!B18)) -> Emission Unit Name | AB10: ='7) Ferm'!F18 -> 0 | AD10: 4th : | AE10: =(IF('8) DDGS Dryer'!B32="","Emission Unit Name",'8) DDGS Dryer'!B32)) -> Emission Unit Name | AF10: ='8) DDGS Dryer'!E32 -> 0 | AH10: 4th : | AI10: =(IF('8) DDGS Dryer'!EJ19="","Emission Unit Name",'8) DDGS Dryer'!B19)) -> Emission Unit Name | AJ10: ='8) DDGS Dryer'!E19 -> 0 | AL10: 4th : | AM10: =(IF('9) Solids Loadout'!B17="","Emission Unit Name",'9) Solids Loadout'!B17)) -> Emission Unit Name | AO10: 4th : | AP10: =(IF('10) Liquid Loadout'!C22="","Emission Unit Name",'10) Liquid Loadout'!C22)) -> Emission Unit Name | AR10: 4th : | AS10: =(IF('11) Tanks'!B13="","Emission Unit Name",'11) Tanks'!B13)) -> Emission Unit Name | AU10: 4th : | AV10: =(IF('15) Engines'!B19="","Emission Unit Name",'15) Engines'!B19)) -> Emission Unit Name | AX10: 4th : | AY10: =(IF('15) Engines'!B32="","Emission Unit Name",'15) Engines'!B32)) -> Emission Unit Name
A11: 5th : | B11: ='3) Dump Pit'!I37 -> 0 | C11: =(IF('3) Dump Pit'!C37="","Emission Unit Name",'3) Dump Pit'!C37)) -> Emission Unit Name | D11: ='3) Dump Pit'!G37 -> 0 | F11: 5th : | G11: =(IF('4) Grain Storage'!B22="","Emission Unit Name",'4) Grain Storage'!B22)) -> Emission Unit Name | H11: ='4) Grain Storage'!G22 -> 0 | J11: 5th : | K11: =(IF('4) Grain Storage'!B35="","Emission Unit Name",'4) Grain Storage'!B35)) -> Emission Unit Name | L11: ='4) Grain Storage'!G35 -> 0 | M11: 5 | N11: 5th : | O11: =(IF('6) Hammermill'!B19="","Emission Unit Name",'6) Hammermill'!B19)) -> Emission Unit Name | P11: ='6) Hammermill'!F19 -> 0 | R11: 5th : | S11: =(IF('6) Hammermill'!B32="","Emission Unit Name",'6) Hammermill'!B32)) -> Emission Unit Name | T11: ='6) Hammermill'!F32 -> 0 | V11: 5th : | W11: =(IF('5) Dryer'!B21="","Emission Unit Name",'5) Dryer'!B21)) -> Emission Unit Name | X11: ='5) Dryer'!E21 -> 0 | Z11: 5th : | AA11: =(IF('7) Ferm'!B19="","Emission Unit Name",'7) Ferm'!B19)) -> Emission Unit Name | AB11: ='7) Ferm'!F19 -> 0 | AD11: 5th : | AE11: =(IF('8) DDGS Dryer'!B33="","Emission Unit Name",'8) DDGS Dryer'!B33)) -> Emission Unit Name | AF11: ='8) DDGS Dryer'!E33 -> 0 | AH11: 5th : | AI11: =(IF('8) DDGS Dryer'!EJ20="","Emission Unit Name",'8) DDGS Dryer'!B20)) -> Emission Unit Name | AJ11: ='8) DDGS Dryer'!E20 -> 0 | AL11: 5th : | AM11: =(IF('9) Solids Loadout'!B18="","Emission Unit Name",'9) Solids Loadout'!B18)) -> Emission Unit Name | AO11: 5th : | AP11: =(IF('10) Liquid Loadout'!C23="","Emission Unit Name",'10) Liquid Loadout'!C23)) -> Emission Unit Name | AR11: 5th : | AS11: =(IF('11) Tanks'!B14="","Emission Unit Name",'11) Tanks'!B14)) -> Emission Unit Name | AU11: 5th : | AV11: =(IF('15) Engines'!B20="","Emission Unit Name",'15) Engines'!B20)) -> Emission Unit Name | AX11: 5th : | AY11: =(IF('15) Engines'!B33="","Emission Unit Name",'15) Engines'!B33)) -> Emission Unit Name
A12: 6th : | B12: ='3) Dump Pit'!I38 -> 0 | C12: =(IF('3) Dump Pit'!C38="","Emission Unit Name",'3) Dump Pit'!C38)) -> Emission Unit Name | D12: ='3) Dump Pit'!G38 -> 0 | F12: 6th : | G12: =(IF('4) Grain Storage'!B23="","Emission Unit Name",'4) Grain Storage'!B23)) -> Emission Unit Name | H12: ='4) Grain Storage'!G23 -> 0 | J12: 6th : | K12: =(IF('4) Grain Storage'!B36="","Emission Unit Name",'4) Grain Storage'!B36)) -> Emission Unit Name | L12: ='4) Grain Storage'!G36 -> 0 | M12: 6 | N12: 6th : | O12: =(IF('6) Hammermill'!B20="","Emission Unit Name",'6) Hammermill'!B20)) -> Emission Unit Name | P12: ='6) Hammermill'!F20 -> 0 | R12: 6th : | S12: =(IF('6) Hammermill'!B33="","Emission Unit Name",'6) Hammermill'!B33)) -> Emission Unit Name | T12: ='6) Hammermill'!F33 -> 0 | V12: 6th : | W12: =(IF('5) Dryer'!B22="","Emission Unit Name",'5) Dryer'!B22)) -> Emission Unit Name | X12: ='5) Dryer'!E22 -> 0 | Z12: 6th : | AA12: =(IF('7) Ferm'!B20="","Emission Unit Name",'7) Ferm'!B20)) -> Emission Unit Name | AB12: ='7) Ferm'!F20 -> 0 | AD12: 6th : | AE12: =(IF('8) DDGS Dryer'!B34="","Emission Unit Name",'8) DDGS Dryer'!B34)) -> Emission Unit Name | AF12: ='8) DDGS Dryer'!E34 -> 0 | AH12: 6th : | AI12: =(IF('8) DDGS Dryer'!EJ21="","Emission Unit Name",'8) DDGS Dryer'!B21)) -> Emission Unit Name | AJ12: ='8) DDGS Dryer'!E21 -> 0 | AL12: 6th : | AM12: =(IF('9) Solids Loadout'!B19="","Emission Unit Name",'9) Solids Loadout'!B19)) -> Emission Unit Name | AO12: 6th : | AP12: =(IF('10) Liquid Loadout'!C24="","Emission Unit Name",'10) Liquid Loadout'!C24)) -> Emission Unit Name | AR12: 6th : | AS12: =(IF('11) Tanks'!B15="","Emission Unit Name",'11) Tanks'!B15)) -> Emission Unit Name | AU12: 6th : | AV12: =(IF('15) Engines'!B21="","Emission Unit Name",'15) Engines'!B21)) -> Emission Unit Name | AX12: 6th : | AY12: =(IF('15) Engines'!B34="","Emission Unit Name",'15) Engines'!B34)) -> Emission Unit Name
A13: 7th : | B13: ='3) Dump Pit'!I39 -> 0 | C13: =(IF('3) Dump Pit'!C39="","Emission Unit Name",'3) Dump Pit'!C39)) -> Emission Unit Name | D13: ='3) Dump Pit'!G39 -> 0 | F13: 7th : | G13: =(IF('4) Grain Storage'!B24="","Emission Unit Name",'4) Grain Storage'!B24)) -> Emission Unit Name | H13: ='4) Grain Storage'!G24 -> 0 | J13: 7th : | K13: =(IF('4) Grain Storage'!B37="","Emission Unit Name",'4) Grain Storage'!B37)) -> Emission Unit Name | L13: ='4) Grain Storage'!G37 -> 0 | M13: 7 | N13: 7th : | O13: =(IF('6) Hammermill'!B21="","Emission Unit Name",'6) Hammermill'!B21)) -> Emission Unit Name | P13: ='6) Hammermill'!F21 -> 0 | R13: 7th : | S13: =(IF('6) Hammermill'!B34="","Emission Unit Name",'6) Hammermill'!B34)) -> Emission Unit Name | T13: ='6) Hammermill'!F34 -> 0 | V13: 7th : | W13: =(IF('5) Dryer'!B23="","Emission Unit Name",'5) Dryer'!B23)) -> Emission Unit Name | X13: ='5) Dryer'!E23 -> 0 | Z13: 7th : | AA13: =(IF('7) Ferm'!B21="","Emission Unit Name",'7) Ferm'!B21)) -> Emission Unit Name | AB13: ='7) Ferm'!F21 -> 0 | AD13: 7th : | AE13: =(IF('8) DDGS Dryer'!B35="","Emission Unit Name",'8) DDGS Dryer'!B35)) -> Emission Unit Name | AF13: ='8) DDGS Dryer'!E35 -> 0 | AH13: 7th : | AI13: =(IF('8) DDGS Dryer'!EJ22="","Emission Unit Name",'8) DDGS Dryer'!B22)) -> Emission Unit Name | AJ13: ='8) DDGS Dryer'!E22 -> 0 | AL13: 7th : | AM13: =(IF('9) Solids Loadout'!B20="","Emission Unit Name",'9) Solids Loadout'!B20)) -> Emission Unit Name | AO13: 7th : | AP13: =(IF('10) Liquid Loadout'!C25="","Emission Unit Name",'10) Liquid Loadout'!C25)) -> Emission Unit Name | AR13: 7th : | AS13: =(IF('11) Tanks'!B16="","Emission Unit Name",'11) Tanks'!B16)) -> Emission Unit Name | AU13: 7th : | AV13: =(IF('15) Engines'!B22="","Emission Unit Name",'15) Engines'!B22)) -> Emission Unit Name | AX13: 7th : | AY13: =(IF('15) Engines'!B35="","Emission Unit Name",'15) Engines'!B35)) -> Emission Unit Name
A14: 8th : | B14: ='3) Dump Pit'!I40 -> 0 | C14: =(IF('3) Dump Pit'!C40="","Emission Unit Name",'3) Dump Pit'!C40)) -> Emission Unit Name | D14: ='3) Dump Pit'!G40 -> 0 | F14: 8th : | G14: =(IF('4) Grain Storage'!B25="","Emission Unit Name",'4) Grain Storage'!B25)) -> Emission Unit Name | H14: ='4) Grain Storage'!G25 -> 0 | J14: 8th : | K14: =(IF('4) Grain Storage'!B38="","Emission Unit Name",'4) Grain Storage'!B38)) -> Emission Unit Name | L14: ='4) Grain Storage'!G38 -> 0 | M14: 8 | N14: 8th : | O14: =(IF('6) Hammermill'!B22="","Emission Unit Name",'6) Hammermill'!B22)) -> Emission Unit Name | P14: ='6) Hammermill'!F22 -> 0 | R14: 8th : | S14: =(IF('6) Hammermill'!B35="","Emission Unit Name",'6) Hammermill'!B35)) -> Emission Unit Name | T14: ='6) Hammermill'!F35 -> 0 | V14: 8th : | W14: =(IF('5) Dryer'!B24="","Emission Unit Name",'5) Dryer'!B24)) -> Emission Unit Name | X14: ='5) Dryer'!E24 -> 0 | Z14: 8th : | AA14: =(IF('7) Ferm'!B22="","Emission Unit Name",'7) Ferm'!B22)) -> Emission Unit Name | AB14: ='7) Ferm'!F22 -> 0 | AD14: 8th : | AE14: =(IF('8) DDGS Dryer'!B36="","Emission Unit Name",'8) DDGS Dryer'!B36)) -> Emission Unit Name | AF14: ='8) DDGS Dryer'!E36 -> 0 | AH14: 8th : | AI14: =(IF('8) DDGS Dryer'!EJ23="","Emission Unit Name",'8) DDGS Dryer'!B23)) -> Emission Unit Name | AJ14: ='8) DDGS Dryer'!E23 -> 0 | AL14: 8th : | AM14: =(IF('9) Solids Loadout'!B21="","Emission Unit Name",'9) Solids Loadout'!B21)) -> Emission Unit Name | AO14: 8th : | AP14: =(IF('10) Liquid Loadout'!C26="","Emission Unit Name",'10) Liquid Loadout'!C26)) -> Emission Unit Name | AR14: 8th : | AS14: =(IF('11) Tanks'!B17="","Emission Unit Name",'11) Tanks'!B17)) -> Emission Unit Name | AU14: 8th : | AV14: =(IF('15) Engines'!B23="","Emission Unit Name",'15) Engines'!B23)) -> Emission Unit Name | AX14: 8th : | AY14: =(IF('15) Engines'!B36="","Emission Unit Name",'15) Engines'!B36)) -> Emission Unit Name
A15: 9th : | B15: ='3) Dump Pit'!I41 -> 0 | C15: =(IF('3) Dump Pit'!C41="","Emission Unit Name",'3) Dump Pit'!C41)) -> Emission Unit Name | D15: ='3) Dump Pit'!G41 -> 0 | F15: 9th : | G15: =(IF('4) Grain Storage'!B26="","Emission Unit Name",'4) Grain Storage'!B26)) -> Emission Unit Name | H15: ='4) Grain Storage'!G26 -> 0 | J15: 9th : | K15: =(IF('4) Grain Storage'!B39="","Emission Unit Name",'4) Grain Storage'!B39)) -> Emission Unit Name | L15: ='4) Grain Storage'!G39 -> 0 | M15: 9 | N15: 9th : | O15: =(IF('6) Hammermill'!B23="","Emission Unit Name",'6) Hammermill'!B23)) -> Emission Unit Name | P15: ='6) Hammermill'!F23 -> 0 | R15: 9th : | S15: =(IF('6) Hammermill'!B36="","Emission Unit Name",'6) Hammermill'!B36)) -> Emission Unit Name | T15: ='6) Hammermill'!F36 -> 0 | V15: 9th : | W15: =(IF('5) Dryer'!B25="","Emission Unit Name",'5) Dryer'!B25)) -> Emission Unit Name | X15: ='5) Dryer'!E25 -> 0 | Z15: 9th : | AA15: =(IF('7) Ferm'!B23="","Emission Unit Name",'7) Ferm'!B23)) -> Emission Unit Name | AB15: ='7) Ferm'!F23 -> 0 | AD15: 9th : | AE15: =(IF('8) DDGS Dryer'!B37="","Emission Unit Name",'8) DDGS Dryer'!B37)) -> Emission Unit Name | AF15: ='8) DDGS Dryer'!E37 -> 0 | AH15: 9th : | AI15: =(IF('8) DDGS Dryer'!EJ24="","Emission Unit Name",'8) DDGS Dryer'!B24)) -> Emission Unit Name | AJ15: ='8) DDGS Dryer'!E24 -> 0 | AL15: 9th : | AM15: =(IF('9) Solids Loadout'!B22="","Emission Unit Name",'9) Solids Loadout'!B22)) -> Emission Unit Name | AO15: 9th : | AP15: =(IF('10) Liquid Loadout'!C27="","Emission Unit Name",'10) Liquid Loadout'!C27)) -> Emission Unit Name | AR15: 9th : | AS15: =(IF('11) Tanks'!B18="","Emission Unit Name",'11) Tanks'!B18)) -> Emission Unit Name | AU15: 9th : | AV15: =(IF('15) Engines'!B24="","Emission Unit Name",'15) Engines'!B24)) -> Emission Unit Name | AX15: 9th : | AY15: =(IF('15) Engines'!B37="","Emission Unit Name",'15) Engines'!B37)) -> Emission Unit Name
A16: 10th : | B16: ='3) Dump Pit'!I42 -> 0 | C16: =(IF('3) Dump Pit'!C42="","Emission Unit Name",'3) Dump Pit'!C42)) -> Emission Unit Name | D16: ='3) Dump Pit'!G42 -> 0 | F16: 10th : | G16: =(IF('4) Grain Storage'!B27="","Emission Unit Name",'4) Grain Storage'!B27)) -> Emission Unit Name | H16: ='4) Grain Storage'!G27 -> 0 | J16: 10th : | K16: =(IF('4) Grain Storage'!B40="","Emission Unit Name",'4) Grain Storage'!B40)) -> Emission Unit Name | L16: ='4) Grain Storage'!G40 -> 0 | M16: 10 | N16: 10th : | O16: =(IF('6) Hammermill'!B24="","Emission Unit Name",'6) Hammermill'!B24)) -> Emission Unit Name | P16: ='6) Hammermill'!F24 -> 0 | R16: 10th : | S16: =(IF('6) Hammermill'!B37="","Emission Unit Name",'6) Hammermill'!B37)) -> Emission Unit Name | T16: ='6) Hammermill'!F37 -> 0 | V16: 10th : | W16: =(IF('5) Dryer'!B26="","Emission Unit Name",'5) Dryer'!B26)) -> Emission Unit Name | X16: ='5) Dryer'!E26 -> 0 | Z16: 10th : | AA16: =(IF('7) Ferm'!B24="","Emission Unit Name",'7) Ferm'!B24)) -> Emission Unit Name | AB16: ='7) Ferm'!F24 -> 0 | AD16: 10th : | AE16: =(IF('8) DDGS Dryer'!B38="","Emission Unit Name",'8) DDGS Dryer'!B38)) -> Emission Unit Name | AF16: ='8) DDGS Dryer'!E38 -> 0 | AH16: 10th : | AI16: =(IF('8) DDGS Dryer'!EJ25="","Emission Unit Name",'8) DDGS Dryer'!B25)) -> Emission Unit Name | AJ16: ='8) DDGS Dryer'!E25 -> 0 | AL16: 10th : | AM16: =(IF('9) Solids Loadout'!B23="","Emission Unit Name",'9) Solids Loadout'!B23)) -> Emission Unit Name | AO16: 10th : | AP16: =(IF('10) Liquid Loadout'!C28="","Emission Unit Name",'10) Liquid Loadout'!C28)) -> Emission Unit Name | AR16: 10th : | AS16: =(IF('11) Tanks'!B19="","Emission Unit Name",'11) Tanks'!B19)) -> Emission Unit Name | AU16: 10th : | AV16: =(IF('15) Engines'!B25="","Emission Unit Name",'15) Engines'!B25)) -> Emission Unit Name | AX16: 10th : | AY16: =(IF('15) Engines'!B38="","Emission Unit Name",'15) Engines'!B38)) -> Emission Unit Name
A19: After the Project
A20: Dump Pits | F20: Grain Storage | J20: Grain Storage Piles | N20: Scalper | R20: Hammermill | V20: Dryers | Z20: Fermenters and Beerwells | AD20: RTOs | AH20: DDGS Dryers | AL20: Solids Loadout | AO20: Liquid Loadout Flares | AR20: Tanks | AU20: Compression Engines | AX20: Spark Ignition Engines
A22: 1st : | B22: ='3) Dump Pit'!R33 -> 0 | C22: =(IF('3) Dump Pit'!K33="","Emission Unit Name",'3) Dump Pit'!K33)) -> Emission Unit Name | D22: ='3) Dump Pit'!P33 -> 0 | F22: 1st : | G22: =(IF('4) Grain Storage'!I18="","Emission Unit Name",'4) Grain Storage'!I18)) -> Emission Unit Name | H22: ='4) Grain Storage'!N18 -> 0 | J22: 1st : | K22: =(IF('4) Grain Storage'!I31="","Emission Unit Name",'4) Grain Storage'!I31)) -> Emission Unit Name | L22: ='4) Grain Storage'!N31 -> 0 | N22: 1st : | O22: =(IF('6) Hammermill'!J15="","Emission Unit Name",'6) Hammermill'!J15)) -> Emission Unit Name | P22: ='6) Hammermill'!N15 -> 0 | R22: 1st : | S22: =(IF('6) Hammermill'!J28="","Emission Unit Name",'6) Hammermill'!J28)) -> Emission Unit Name | T22: ='6) Hammermill'!N28 -> 0 | V22: 1st : | W22: =(IF('5) Dryer'!K17="","Emission Unit Name",'5) Dryer'!K17)) -> Emission Unit Name | X22: ='5) Dryer'!N17 -> 0 | Z22: 1st : | AA22: =(IF('7) Ferm'!J15="","Emission Unit Name",'7) Ferm'!J15)) -> Emission Unit Name | AB22: ='7) Ferm'!N15 -> 0 | AD22: 1st : | AE22: =(IF('8) DDGS Dryer'!J29="","Emission Unit Name",'8) DDGS Dryer'!J29)) -> Emission Unit Name | AF22: ='8) DDGS Dryer'!M29 -> 0 | AH22: 1st : | AI22: =(IF('8) DDGS Dryer'!J16="","Emission Unit Name",'8) DDGS Dryer'!J16)) -> Emission Unit Name | AJ22: ='8) DDGS Dryer'!M16 -> 0 | AL22: 1st : | AM22: =(IF('9) Solids Loadout'!J14="","Emission Unit Name",'9) Solids Loadout'!J14)) -> Emission Unit Name | AO22: 1st : | AP22: =(IF('10) Liquid Loadout'!K19="","Emission Unit Name",'10) Liquid Loadout'!K19)) -> Emission Unit Name | AR22: 1st : | AS22: =(IF('11) Tanks'!B24="","Emission Unit Name",'11) Tanks'!B24)) -> Emission Unit Name | AU22: 1st : | AV22: =(IF('15) Engines'!L16="","Emission Unit Name",'15) Engines'!L16)) -> Emission Unit Name | AX22: 1st : | AY22: =(IF('15) Engines'!L29="","Emission Unit Name",'15) Engines'!L29)) -> Emission Unit Name
A23: 2nd : | B23: ='3) Dump Pit'!R34 -> 0 | C23: =(IF('3) Dump Pit'!K34="","Emission Unit Name",'3) Dump Pit'!K34)) -> Emission Unit Name | D23: ='3) Dump Pit'!P34 -> 0 | F23: 2nd : | G23: =(IF('4) Grain Storage'!I19="","Emission Unit Name",'4) Grain Storage'!I19)) -> Emission Unit Name | H23: ='4) Grain Storage'!N19 -> 0 | J23: 2nd : | K23: =(IF('4) Grain Storage'!I32="","Emission Unit Name",'4) Grain Storage'!I32)) -> Emission Unit Name | L23: ='4) Grain Storage'!N32 -> 0 | N23: 2nd : | O23: =(IF('6) Hammermill'!J16="","Emission Unit Name",'6) Hammermill'!J16)) -> Emission Unit Name | P23: ='6) Hammermill'!N16 -> 0 | R23: 2nd : | S23: =(IF('6) Hammermill'!J29="","Emission Unit Name",'6) Hammermill'!J29)) -> Emission Unit Name | T23: ='6) Hammermill'!N29 -> 0 | V23: 2nd : | W23: =(IF('5) Dryer'!K18="","Emission Unit Name",'5) Dryer'!K18)) -> Emission Unit Name | X23: ='5) Dryer'!N18 -> 0 | Z23: 2nd : | AA23: =(IF('7) Ferm'!J16="","Emission Unit Name",'7) Ferm'!J16)) -> Emission Unit Name | AB23: ='7) Ferm'!N16 -> 0 | AD23: 2nd : | AE23: =(IF('8) DDGS Dryer'!J30="","Emission Unit Name",'8) DDGS Dryer'!J30)) -> Emission Unit Name | AF23: ='8) DDGS Dryer'!M30 -> 0 | AH23: 2nd : | AI23: =(IF('8) DDGS Dryer'!J17="","Emission Unit Name",'8) DDGS Dryer'!J17)) -> Emission Unit Name | AJ23: ='8) DDGS Dryer'!M17 -> 0 | AL23: 2nd : | AM23: =(IF('9) Solids Loadout'!J15="","Emission Unit Name",'9) Solids Loadout'!J15)) -> Emission Unit Name | AO23: 2nd : | AP23: =(IF('10) Liquid Loadout'!K20="","Emission Unit Name",'10) Liquid Loadout'!K20)) -> Emission Unit Name | AR23: 2nd : | AS23: =(IF('11) Tanks'!B25="","Emission Unit Name",'11) Tanks'!B25)) -> Emission Unit Name | AU23: 2nd : | AV23: =(IF('15) Engines'!L17="","Emission Unit Name",'15) Engines'!L17)) -> Emission Unit Name | AX23: 2nd : | AY23: =(IF('15) Engines'!L30="","Emission Unit Name",'15) Engines'!L30)) -> Emission Unit Name
A24: 3rd : | B24: ='3) Dump Pit'!R35 -> 0 | C24: =(IF('3) Dump Pit'!K35="","Emission Unit Name",'3) Dump Pit'!K35)) -> Emission Unit Name | D24: ='3) Dump Pit'!P35 -> 0 | F24: 3rd : | G24: =(IF('4) Grain Storage'!I20="","Emission Unit Name",'4) Grain Storage'!I20)) -> Emission Unit Name | H24: ='4) Grain Storage'!N20 -> 0 | J24: 3rd : | K24: =(IF('4) Grain Storage'!I33="","Emission Unit Name",'4) Grain Storage'!I33)) -> Emission Unit Name | L24: ='4) Grain Storage'!N33 -> 0 | N24: 3rd : | O24: =(IF('6) Hammermill'!J17="","Emission Unit Name",'6) Hammermill'!J17)) -> Emission Unit Name | P24: ='6) Hammermill'!N17 -> 0 | R24: 3rd : | S24: =(IF('6) Hammermill'!J30="","Emission Unit Name",'6) Hammermill'!J30)) -> Emission Unit Name | T24: ='6) Hammermill'!N30 -> 0 | V24: 3rd : | W24: =(IF('5) Dryer'!K19="","Emission Unit Name",'5) Dryer'!K19)) -> Emission Unit Name | X24: ='5) Dryer'!N19 -> 0 | Z24: 3rd : | AA24: =(IF('7) Ferm'!J17="","Emission Unit Name",'7) Ferm'!J17)) -> Emission Unit Name | AB24: ='7) Ferm'!N17 -> 0 | AD24: 3rd : | AE24: =(IF('8) DDGS Dryer'!J31="","Emission Unit Name",'8) DDGS Dryer'!J31)) -> Emission Unit Name | AF24: ='8) DDGS Dryer'!M31 -> 0 | AH24: 3rd : | AI24: =(IF('8) DDGS Dryer'!J18="","Emission Unit Name",'8) DDGS Dryer'!J18)) -> Emission Unit Name | AJ24: ='8) DDGS Dryer'!M18 -> 0 | AL24: 3rd : | AM24: =(IF('9) Solids Loadout'!J16="","Emission Unit Name",'9) Solids Loadout'!J16)) -> Emission Unit Name | AO24: 3rd : | AP24: =(IF('10) Liquid Loadout'!K21="","Emission Unit Name",'10) Liquid Loadout'!K21)) -> Emission Unit Name | AR24: 3rd : | AS24: =(IF('11) Tanks'!B26="","Emission Unit Name",'11) Tanks'!B26)) -> Emission Unit Name | AU24: 3rd : | AV24: =(IF('15) Engines'!L18="","Emission Unit Name",'15) Engines'!L18)) -> Emission Unit Name | AX24: 3rd : | AY24: =(IF('15) Engines'!L31="","Emission Unit Name",'15) Engines'!L31)) -> Emission Unit Name
A25: 4th : | B25: ='3) Dump Pit'!R36 -> 0 | C25: =(IF('3) Dump Pit'!K36="","Emission Unit Name",'3) Dump Pit'!K36)) -> Emission Unit Name | D25: ='3) Dump Pit'!P36 -> 0 | F25: 4th : | G25: =(IF('4) Grain Storage'!I21="","Emission Unit Name",'4) Grain Storage'!I21)) -> Emission Unit Name | H25: ='4) Grain Storage'!N21 -> 0 | J25: 4th : | K25: =(IF('4) Grain Storage'!I34="","Emission Unit Name",'4) Grain Storage'!I34)) -> Emission Unit Name | L25: ='4) Grain Storage'!N34 -> 0 | N25: 4th : | O25: =(IF('6) Hammermill'!J18="","Emission Unit Name",'6) Hammermill'!J18)) -> Emission Unit Name | P25: ='6) Hammermill'!N18 -> 0 | R25: 4th : | S25: =(IF('6) Hammermill'!J31="","Emission Unit Name",'6) Hammermill'!J31)) -> Emission Unit Name | T25: ='6) Hammermill'!N31 -> 0 | V25: 4th : | W25: =(IF('5) Dryer'!K20="","Emission Unit Name",'5) Dryer'!K20)) -> Emission Unit Name | X25: ='5) Dryer'!N20 -> 0 | Z25: 4th : | AA25: =(IF('7) Ferm'!J18="","Emission Unit Name",'7) Ferm'!J18)) -> Emission Unit Name | AB25: ='7) Ferm'!N18 -> 0 | AD25: 4th : | AE25: =(IF('8) DDGS Dryer'!J32="","Emission Unit Name",'8) DDGS Dryer'!J32)) -> Emission Unit Name | AF25: ='8) DDGS Dryer'!M32 -> 0 | AH25: 4th : | AI25: =(IF('8) DDGS Dryer'!J19="","Emission Unit Name",'8) DDGS Dryer'!J19)) -> Emission Unit Name | AJ25: ='8) DDGS Dryer'!M19 -> 0 | AL25: 4th : | AM25: =(IF('9) Solids Loadout'!J17="","Emission Unit Name",'9) Solids Loadout'!J17)) -> Emission Unit Name | AO25: 4th : | AP25: =(IF('10) Liquid Loadout'!K22="","Emission Unit Name",'10) Liquid Loadout'!K22)) -> Emission Unit Name | AR25: 4th : | AS25: =(IF('11) Tanks'!B27="","Emission Unit Name",'11) Tanks'!B27)) -> Emission Unit Name | AU25: 4th : | AV25: =(IF('15) Engines'!L19="","Emission Unit Name",'15) Engines'!L19)) -> Emission Unit Name | AX25: 4th : | AY25: =(IF('15) Engines'!L32="","Emission Unit Name",'15) Engines'!L32)) -> Emission Unit Name
A26: 5th : | B26: ='3) Dump Pit'!R37 -> 0 | C26: =(IF('3) Dump Pit'!K37="","Emission Unit Name",'3) Dump Pit'!K37)) -> Emission Unit Name | D26: ='3) Dump Pit'!P37 -> 0 | F26: 5th : | G26: =(IF('4) Grain Storage'!I22="","Emission Unit Name",'4) Grain Storage'!I22)) -> Emission Unit Name | H26: ='4) Grain Storage'!N22 -> 0 | J26: 5th : | K26: =(IF('4) Grain Storage'!I35="","Emission Unit Name",'4) Grain Storage'!I35)) -> Emission Unit Name | L26: ='4) Grain Storage'!N35 -> 0 | N26: 5th : | O26: =(IF('6) Hammermill'!J19="","Emission Unit Name",'6) Hammermill'!J19)) -> Emission Unit Name | P26: ='6) Hammermill'!N19 -> 0 | R26: 5th : | S26: =(IF('6) Hammermill'!J32="","Emission Unit Name",'6) Hammermill'!J32)) -> Emission Unit Name | T26: ='6) Hammermill'!N32 -> 0 | V26: 5th : | W26: =(IF('5) Dryer'!K21="","Emission Unit Name",'5) Dryer'!K21)) -> Emission Unit Name | X26: ='5) Dryer'!N21 -> 0 | Z26: 5th : | AA26: =(IF('7) Ferm'!J19="","Emission Unit Name",'7) Ferm'!J19)) -> Emission Unit Name | AB26: ='7) Ferm'!N19 -> 0 | AD26: 5th : | AE26: =(IF('8) DDGS Dryer'!J33="","Emission Unit Name",'8) DDGS Dryer'!J33)) -> Emission Unit Name | AF26: ='8) DDGS Dryer'!M33 -> 0 | AH26: 5th : | AI26: =(IF('8) DDGS Dryer'!J20="","Emission Unit Name",'8) DDGS Dryer'!J20)) -> Emission Unit Name | AJ26: ='8) DDGS Dryer'!M20 -> 0 | AL26: 5th : | AM26: =(IF('9) Solids Loadout'!J18="","Emission Unit Name",'9) Solids Loadout'!J18)) -> Emission Unit Name | AO26: 5th : | AP26: =(IF('10) Liquid Loadout'!K23="","Emission Unit Name",'10) Liquid Loadout'!K23)) -> Emission Unit Name | AR26: 5th : | AS26: =(IF('11) Tanks'!B28="","Emission Unit Name",'11) Tanks'!B28)) -> Emission Unit Name | AU26: 5th : | AV26: =(IF('15) Engines'!L20="","Emission Unit Name",'15) Engines'!L20)) -> Emission Unit Name | AX26: 5th : | AY26: =(IF('15) Engines'!L33="","Emission Unit Name",'15) Engines'!L33)) -> Emission Unit Name
A27: 6th : | B27: ='3) Dump Pit'!R38 -> 0 | C27: =(IF('3) Dump Pit'!K38="","Emission Unit Name",'3) Dump Pit'!K38)) -> Emission Unit Name | D27: ='3) Dump Pit'!P38 -> 0 | F27: 6th : | G27: =(IF('4) Grain Storage'!I23="","Emission Unit Name",'4) Grain Storage'!I23)) -> Emission Unit Name | H27: ='4) Grain Storage'!N23 -> 0 | J27: 6th : | K27: =(IF('4) Grain Storage'!I36="","Emission Unit Name",'4) Grain Storage'!I36)) -> Emission Unit Name | L27: ='4) Grain Storage'!N36 -> 0 | N27: 6th : | O27: =(IF('6) Hammermill'!J20="","Emission Unit Name",'6) Hammermill'!J20)) -> Emission Unit Name | P27: ='6) Hammermill'!N20 -> 0 | R27: 6th : | S27: =(IF('6) Hammermill'!J33="","Emission Unit Name",'6) Hammermill'!J33)) -> Emission Unit Name | T27: ='6) Hammermill'!N33 -> 0 | V27: 6th : | W27: =(IF('5) Dryer'!K22="","Emission Unit Name",'5) Dryer'!K22)) -> Emission Unit Name | X27: ='5) Dryer'!N22 -> 0 | Z27: 6th : | AA27: =(IF('7) Ferm'!J20="","Emission Unit Name",'7) Ferm'!J20)) -> Emission Unit Name | AB27: ='7) Ferm'!N20 -> 0 | AD27: 6th : | AE27: =(IF('8) DDGS Dryer'!J34="","Emission Unit Name",'8) DDGS Dryer'!J34)) -> Emission Unit Name | AF27: ='8) DDGS Dryer'!M34 -> 0 | AH27: 6th : | AI27: =(IF('8) DDGS Dryer'!J21="","Emission Unit Name",'8) DDGS Dryer'!J21)) -> Emission Unit Name | AJ27: ='8) DDGS Dryer'!M21 -> 0 | AL27: 6th : | AM27: =(IF('9) Solids Loadout'!J19="","Emission Unit Name",'9) Solids Loadout'!J19)) -> Emission Unit Name | AO27: 6th : | AP27: =(IF('10) Liquid Loadout'!K24="","Emission Unit Name",'10) Liquid Loadout'!K24)) -> Emission Unit Name | AR27: 6th : | AS27: =(IF('11) Tanks'!B29="","Emission Unit Name",'11) Tanks'!B29)) -> Emission Unit Name | AU27: 6th : | AV27: =(IF('15) Engines'!L21="","Emission Unit Name",'15) Engines'!L21)) -> Emission Unit Name | AX27: 6th : | AY27: =(IF('15) Engines'!L34="","Emission Unit Name",'15) Engines'!L34)) -> Emission Unit Name
A28: 7th : | B28: ='3) Dump Pit'!R39 -> 0 | C28: =(IF('3) Dump Pit'!K39="","Emission Unit Name",'3) Dump Pit'!K39)) -> Emission Unit Name | D28: ='3) Dump Pit'!P39 -> 0 | F28: 7th : | G28: =(IF('4) Grain Storage'!I24="","Emission Unit Name",'4) Grain Storage'!I24)) -> Emission Unit Name | H28: ='4) Grain Storage'!N24 -> 0 | J28: 7th : | K28: =(IF('4) Grain Storage'!I37="","Emission Unit Name",'4) Grain Storage'!I37)) -> Emission Unit Name | L28: ='4) Grain Storage'!N37 -> 0 | N28: 7th : | O28: =(IF('6) Hammermill'!J21="","Emission Unit Name",'6) Hammermill'!J21)) -> Emission Unit Name | P28: ='6) Hammermill'!N21 -> 0 | R28: 7th : | S28: =(IF('6) Hammermill'!J34="","Emission Unit Name",'6) Hammermill'!J34)) -> Emission Unit Name | T28: ='6) Hammermill'!N34 -> 0 | V28: 7th : | W28: =(IF('5) Dryer'!K23="","Emission Unit Name",'5) Dryer'!K23)) -> Emission Unit Name | X28: ='5) Dryer'!N23 -> 0 | Z28: 7th : | AA28: =(IF('7) Ferm'!J21="","Emission Unit Name",'7) Ferm'!J21)) -> Emission Unit Name | AB28: ='7) Ferm'!N21 -> 0 | AD28: 7th : | AE28: =(IF('8) DDGS Dryer'!J35="","Emission Unit Name",'8) DDGS Dryer'!J35)) -> Emission Unit Name | AF28: ='8) DDGS Dryer'!M35 -> 0 | AH28: 7th : | AI28: =(IF('8) DDGS Dryer'!J22="","Emission Unit Name",'8) DDGS Dryer'!J22)) -> Emission Unit Name | AJ28: ='8) DDGS Dryer'!M22 -> 0 | AL28: 7th : | AM28: =(IF('9) Solids Loadout'!J20="","Emission Unit Name",'9) Solids Loadout'!J20)) -> Emission Unit Name | AO28: 7th : | AP28: =(IF('10) Liquid Loadout'!K25="","Emission Unit Name",'10) Liquid Loadout'!K25)) -> Emission Unit Name | AR28: 7th : | AS28: =(IF('11) Tanks'!B30="","Emission Unit Name",'11) Tanks'!B30)) -> Emission Unit Name | AU28: 7th : | AV28: =(IF('15) Engines'!L22="","Emission Unit Name",'15) Engines'!L22)) -> Emission Unit Name | AX28: 7th : | AY28: =(IF('15) Engines'!L35="","Emission Unit Name",'15) Engines'!L35)) -> Emission Unit Name
A29: 8th : | B29: ='3) Dump Pit'!R40 -> 0 | C29: =(IF('3) Dump Pit'!K40="","Emission Unit Name",'3) Dump Pit'!K40)) -> Emission Unit Name | D29: ='3) Dump Pit'!P40 -> 0 | F29: 8th : | G29: =(IF('4) Grain Storage'!I25="","Emission Unit Name",'4) Grain Storage'!I25)) -> Emission Unit Name | H29: ='4) Grain Storage'!N25 -> 0 | J29: 8th : | K29: =(IF('4) Grain Storage'!I38="","Emission Unit Name",'4) Grain Storage'!I38)) -> Emission Unit Name | L29: ='4) Grain Storage'!N38 -> 0 | N29: 8th : | O29: =(IF('6) Hammermill'!J22="","Emission Unit Name",'6) Hammermill'!J22)) -> Emission Unit Name | P29: ='6) Hammermill'!N22 -> 0 | R29: 8th : | S29: =(IF('6) Hammermill'!J35="","Emission Unit Name",'6) Hammermill'!J35)) -> Emission Unit Name | T29: ='6) Hammermill'!N35 -> 0 | V29: 8th : | W29: =(IF('5) Dryer'!K24="","Emission Unit Name",'5) Dryer'!K24)) -> Emission Unit Name | X29: ='5) Dryer'!N24 -> 0 | Z29: 8th : | AA29: =(IF('7) Ferm'!J22="","Emission Unit Name",'7) Ferm'!J22)) -> Emission Unit Name | AB29: ='7) Ferm'!N22 -> 0 | AD29: 8th : | AE29: =(IF('8) DDGS Dryer'!J36="","Emission Unit Name",'8) DDGS Dryer'!J36)) -> Emission Unit Name | AF29: ='8) DDGS Dryer'!M36 -> 0 | AH29: 8th : | AI29: =(IF('8) DDGS Dryer'!J23="","Emission Unit Name",'8) DDGS Dryer'!J23)) -> Emission Unit Name | AJ29: ='8) DDGS Dryer'!M23 -> 0 | AL29: 8th : | AM29: =(IF('9) Solids Loadout'!J21="","Emission Unit Name",'9) Solids Loadout'!J21)) -> Emission Unit Name | AO29: 8th : | AP29: =(IF('10) Liquid Loadout'!K26="","Emission Unit Name",'10) Liquid Loadout'!K26)) -> Emission Unit Name | AR29: 8th : | AS29: =(IF('11) Tanks'!B31="","Emission Unit Name",'11) Tanks'!B31)) -> Emission Unit Name | AU29: 8th : | AV29: =(IF('15) Engines'!L23="","Emission Unit Name",'15) Engines'!L23)) -> Emission Unit Name | AX29: 8th : | AY29: =(IF('15) Engines'!L36="","Emission Unit Name",'15) Engines'!L36)) -> Emission Unit Name
A30: 9th : | B30: ='3) Dump Pit'!R41 -> 0 | C30: =(IF('3) Dump Pit'!K41="","Emission Unit Name",'3) Dump Pit'!K41)) -> Emission Unit Name | D30: ='3) Dump Pit'!P41 -> 0 | F30: 9th : | G30: =(IF('4) Grain Storage'!I26="","Emission Unit Name",'4) Grain Storage'!I26)) -> Emission Unit Name | H30: ='4) Grain Storage'!N26 -> 0 | J30: 9th : | K30: =(IF('4) Grain Storage'!I39="","Emission Unit Name",'4) Grain Storage'!I39)) -> Emission Unit Name | L30: ='4) Grain Storage'!N39 -> 0 | N30: 9th : | O30: =(IF('6) Hammermill'!J23="","Emission Unit Name",'6) Hammermill'!J23)) -> Emission Unit Name | P30: ='6) Hammermill'!N23 -> 0 | R30: 9th : | S30: =(IF('6) Hammermill'!J36="","Emission Unit Name",'6) Hammermill'!J36)) -> Emission Unit Name | T30: ='6) Hammermill'!N36 -> 0 | V30: 9th : | W30: =(IF('5) Dryer'!K25="","Emission Unit Name",'5) Dryer'!K25)) -> Emission Unit Name | X30: ='5) Dryer'!N25 -> 0 | Z30: 9th : | AA30: =(IF('7) Ferm'!J23="","Emission Unit Name",'7) Ferm'!J23)) -> Emission Unit Name | AB30: ='7) Ferm'!N23 -> 0 | AD30: 9th : | AE30: =(IF('8) DDGS Dryer'!J37="","Emission Unit Name",'8) DDGS Dryer'!J37)) -> Emission Unit Name | AF30: ='8) DDGS Dryer'!M37 -> 0 | AH30: 9th : | AI30: =(IF('8) DDGS Dryer'!J24="","Emission Unit Name",'8) DDGS Dryer'!J24)) -> Emission Unit Name | AJ30: ='8) DDGS Dryer'!M24 -> 0 | AL30: 9th : | AM30: =(IF('9) Solids Loadout'!J22="","Emission Unit Name",'9) Solids Loadout'!J22)) -> Emission Unit Name | AO30: 9th : | AP30: =(IF('10) Liquid Loadout'!K27="","Emission Unit Name",'10) Liquid Loadout'!K27)) -> Emission Unit Name | AR30: 9th : | AS30: =(IF('11) Tanks'!B32="","Emission Unit Name",'11) Tanks'!B32)) -> Emission Unit Name | AU30: 9th : | AV30: =(IF('15) Engines'!L24="","Emission Unit Name",'15) Engines'!L24)) -> Emission Unit Name | AX30: 9th : | AY30: =(IF('15) Engines'!L37="","Emission Unit Name",'15) Engines'!L37)) -> Emission Unit Name
A31: 10th : | B31: ='3) Dump Pit'!R42 -> 0 | C31: =(IF('3) Dump Pit'!C57="","Emission Unit Name",'3) Dump Pit'!C57)) -> Emission Unit Name | D31: ='3) Dump Pit'!P42 -> 0 | F31: 10th : | G31: =(IF('4) Grain Storage'!B43="","Emission Unit Name",'4) Grain Storage'!B43)) -> Emission Unit Name | H31: ='4) Grain Storage'!N27 -> 0 | J31: 10th : | K31: =(IF('4) Grain Storage'!I40="","Emission Unit Name",'4) Grain Storage'!I40)) -> Emission Unit Name | L31: ='4) Grain Storage'!N40 -> 0 | N31: 10th : | O31: =(IF('6) Hammermill'!J24="","Emission Unit Name",'6) Hammermill'!J24)) -> Emission Unit Name | P31: ='6) Hammermill'!N24 -> 0 | R31: 10th : | S31: =(IF('6) Hammermill'!J37="","Emission Unit Name",'6) Hammermill'!J37)) -> Emission Unit Name | T31: ='6) Hammermill'!N37 -> 0 | V31: 10th : | W31: =(IF('5) Dryer'!K26="","Emission Unit Name",'5) Dryer'!K26)) -> Emission Unit Name | X31: ='5) Dryer'!N26 -> 0 | Z31: 10th : | AA31: =(IF('7) Ferm'!J24="","Emission Unit Name",'7) Ferm'!J24)) -> Emission Unit Name | AB31: ='7) Ferm'!N24 -> 0 | AD31: 10th : | AE31: =(IF('8) DDGS Dryer'!J38="","Emission Unit Name",'8) DDGS Dryer'!J38)) -> Emission Unit Name | AF31: ='8) DDGS Dryer'!M38 -> 0 | AH31: 10th : | AI31: =(IF('8) DDGS Dryer'!J25="","Emission Unit Name",'8) DDGS Dryer'!J25)) -> Emission Unit Name | AJ31: ='8) DDGS Dryer'!M25 -> 0 | AL31: 10th : | AM31: =(IF('9) Solids Loadout'!J23="","Emission Unit Name",'9) Solids Loadout'!J23)) -> Emission Unit Name | AO31: 10th : | AP31: =(IF('10) Liquid Loadout'!K28="","Emission Unit Name",'10) Liquid Loadout'!K28)) -> Emission Unit Name | AR31: 10th : | AS31: =(IF('11) Tanks'!B33="","Emission Unit Name",'11) Tanks'!B33)) -> Emission Unit Name | AU31: 10th : | AV31: =(IF('15) Engines'!L25="","Emission Unit Name",'15) Engines'!L25)) -> Emission Unit Name | AX31: 10th : | AY31: =(IF('15) Engines'!L38="","Emission Unit Name",'15) Engines'!L38)) -> Emission Unit Name

Sheet 3) Calculations
A1: Dry Mill: Grain Receiving and Processing | Q1: Emission Factors (lb/ton)[1]
A2: Emissions from Dry Mill's Grain Receiving, Processing, and Handling | P2: Straight | Q2: 0.18 | R2: 0.059 | S2: 0.01
J3: Capture Efficiency | M3: Control Efficiency | P3: Hopper | Q3: 0.035 | R3: 0.0078 | S3: 0.0013
A4: Grain throughput | C4: =MIN('3) Dump Pit'!D7:F7,'3) Dump Pit'!D8:F8) -> 0 | D4: tons/year | F4: =C4*2000/C5 -> 0 | H4: bushels/year | J4: Enclosed | K4: 1 | M4: Baghouse | N4: 0.95 | P4: Rail | Q4: 0.032 | R4: 0.0078 | S4: 0.0013
A5: Grain Density | C5: ='3) Dump Pit'!E9 -> 56 | D5: lb/bushel for Corn | J5: Partially Enclosed | K5: 0.7 | P5: Handling | Q5: 0.061 | R5: 0.034 | S5: 0.0058
A6: Maximum Grain Receiving Rate | J6: Choke-flow | K6: 0.99 | P6: 70/30[1] | Q6: =Q3*0.7+Q2*0.3 -> 0.0785 | R6: =R3*0.7+R2*0.3 -> 0.02316 | S6: 0.00391
B7: Truck Pit | C7: =SUM(IF('3) Dump Pit'!I33=Datasets!P2,'3) Dump Pit'!E33,0),IF('3) Dump Pit'!I34=Datasets!P2,'3) Dump Pit'!E34,0),IF('3) Dump Pit'!I35=Datasets!P2,'3) Dump Pit'!E35,0),IF('3) Dump Pit'!I36=Datasets!P2,'3) Dump Pit'!E36,0),IF('3) Dump Pit'!I37=Datasets!P2,'3) Dump Pit'!E37,0),IF('3) Dump Pit'!I38=Datasets!P2,'3) Dump Pit'!E38,0),IF('3) Dump Pit'!I39=Datasets!P2,'3) Dump Pit'!E39,0),IF('3) Dump Pit'!I40=Datasets!P2,'3) Dump Pit'!E40,0),IF('3) Dump Pit'!I41=Datasets!P2,'3) Dump Pit'!E41,0),IF('3) Dump Pit'!I42=Datasets!P2,'3) Dump Pit'!E42,0),IF('3) Dump Pit'!H43=Datasets!P2,'3) Dump Pit'!E43,0)) -> 0 | D7: bu/hr | E7: =C7*C5/2000 -> 0 | F7: tons/hour | P7: Storage | Q7: 0.025 | R7: 0.0063 | S7: 0.011
B8: Rail Pit | C8: =SUM(IF('3) Dump Pit'!I34=Datasets!P3,'3) Dump Pit'!E34,0),IF('3) Dump Pit'!I35=Datasets!P3,'3) Dump Pit'!E35,0),IF('3) Dump Pit'!I36=Datasets!P3,'3) Dump Pit'!E36,0),IF('3) Dump Pit'!I37=Datasets!P3,'3) Dump Pit'!E37,0),IF('3) Dump Pit'!I38=Datasets!P3,'3) Dump Pit'!E38,0),IF('3) Dump Pit'!I39=Datasets!P3,'3) Dump Pit'!E39,0),IF('3) Dump Pit'!I40=Datasets!P3,'3) Dump Pit'!E40,0),IF('3) Dump Pit'!I41=Datasets!P3,'3) Dump Pit'!E41,0),IF('3) Dump Pit'!I42=Datasets!P3,'3) Dump Pit'!E42,0),IF('3) Dump Pit'!H43=Datasets!P3,'3) Dump Pit'!E43,0),IF('3) Dump Pit'!I33=Datasets!P3,'3) Dump Pit'!E33,0)) -> 0 | D8: bu/hr | E8: =C8*C5/2000 -> 0 | F8: tons/hour | P8: Shipping
P9: Truck | Q9: 0.086 | R9: 0.029 | S9: 0.0049
A10: Color Code | P10: Storage | Q10: 0.025 | R10: 0.0063 | S10: 0.0011
B11: Before Project
B12: After Project | P12: Rail | Q12: 0.027 | R12: 0.0022 | S12: 0.0037
B13: Default Value of the NDEQ | P13: Scalper | Q13: 0.075 | R13: 0.019 | S13: 0.003
B14: Final PTE | P14: Handling x2.13 [3] | Q14: =Q5*2.13 -> 0.12993 | R14: =R5*2.13 -> 0.07242 | S14: =S5*2.13 -> 0.012354
B15: Calculations | P15: [1] Emission factors from AP-42 Chapter 9.9.1
B16: Carry over from user input or other calculated values | P16: [2] For Truck Receiving, 30% is received by straight trucks and 70% is received by hopper trucks.
A18: Total Emissions Before Project | P18: [3] 2.13 is the default NDEQ value averaging various grain processing activities
E20: Based on permit limit | I20: Based on AP-42 | O20: Final
A21: Item Number | B21: Control Equipment ID | C21: Control Equipment Name | E21: Controlled PM(filterable)/PM10 Emissions | G21: Controlled PM2.5 Emissions | I21: PM | K21: PM10 | M21: PM2.5 | O21: PM | Q21: PM10 | S21: PM2.5
E22: (A) (lb/hour) | F22: (B) (ton/year) | G22: (C) (lb/hour)[1] | H22: (D) (ton/year) | I22: (E) (lb/hour) | J22: (E) (ton/year) | K22: (E) (lb/hour) | L22: (E) (ton/year) | M22: (E) (lb/hour) | N22: (E) (ton/year) | O22: (F) (lb/hour) | P22: (F) (ton/year) | Q22: (F) (lb/hour) | R22: (F) (ton/year) | S22: (F) (lb/hour) | T22: (F) (ton/year)
A23: 1 | B23: ='3) Dump Pit'!B20 -> 0 | C23: ='3) Dump Pit'!C20 -> 0 | E23: ='3) Dump Pit'!F20*60/7000 -> 0 | F23: =E23*8760/2000 -> 0 | G23: =E23*0.17 -> 0 | H23: =G23*8760/2000 -> 0 | I23: =SUM(IF(B23=$G$46,$AG$46,0),IF(B23=$G$47,$AG$47,0),IF(B23=$G$48,$AG$48,0),IF(B23=$G$49,$AG$49,0),IF(B23=$G$50,$AG$50,0),IF(B23=$G$51,$AG$51,0),IF(B23=$G$52,$AG$52,0),IF(B23=$G$53,$AG$53,0),IF(B23=$G$54,$AG$54,0),IF(B23=$G$55,$AG$55,0)) -> 0 | J23: =SUM(IF(B23=$G$46,$AJ$46,0),IF(B23=$G$47,$AJ$47,0),IF(B23=$G$48,$AJ$48,0),IF(B23=$G$49,$AJ$49,0),IF(B23=$G$50,$AJ$50,0),IF(B23=$G$51,$AJ$51,0),IF(B23=$G$52,$AJ$52,0),IF(B23=$G$53,$AJ$53,0),IF(B23=$G$54,$AJ$54,0),IF(B23=$G$55,$AJ$55,0)) -> 0 | K23: =SUM(IF(B23=$G$46,$AH$46,0),IF(B23=$G$47,$AH$47,0),IF(B23=$G$48,$AH$48,0),IF(B23=$G$49,$AH$49,0),IF(B23=$G$50,$AH$50,0),IF(B23=$G$51,$AH$51,0),IF(B23=$G$52,$AH$52,0),IF(B23=$G$53,$AH$53,0),IF(B23=$G$54,$AH$54,0),IF(B23=$G$55,$AH$55,0)) -> 0 | L23: =SUM(IF(B23=$G$46,$AK$46,0),IF(B23=$G$47,$AK$47,0),IF(B23=$G$48,$AK$48,0),IF(B23=$G$49,$AK$49,0),IF(B23=$G$50,$AK$50,0),IF(B23=$G$51,$AK$51,0),IF(B23=$G$52,$AK$52,0),IF(B23=$G$53,$AK$53,0),IF(B23=$G$54,$AK$54,0),IF(B23=$G$55,$AK$55,0)) -> 0 | M23: =SUM(IF(B23=$G$46,$AI$46,0),IF(B23=$G$47,$AI$47,0),IF(B23=$G$48,$AI$48,0),IF(B23=$G$49,$AI$49,0),IF(B23=$G$50,$AI$50,0),IF(B23=$G$51,$AI$51,0),IF(B23=$G$52,$AI$52,0),IF(B23=$G$53,$AI$53,0),IF(B23=$G$54,$AI$54,0),IF(B23=$G$55,$AI$55,0)) -> 0 | N23: =SUM(IF(B23=$G$46,$AL$46,0),IF(B23=$G$47,$AL$47,0),IF(B23=$G$48,$AL$48,0),IF(B23=$G$49,$AL$49,0),IF(B23=$G$50,$AL$50,0),IF(B23=$G$51,$AL$51,0),IF(B23=$G$52,$AL$52,0),IF(B23=$G$53,$AL$53,0),IF(B23=$G$54,$AL$54,0),IF(B23=$G$55,$AL$55,0)) -> 0 | O23: =IF(E23=0,I23,E23) -> 0 | P23: =IF(F23=0,J23,F23) -> 0 | Q23: =IF(E23=0,K23,E23) -> 0 | R23: =IF(F23=0,L23,F23) -> 0 | S23: =IF(G23=0,M23,G23) -> 0 | T23: =IF(H23=0,N23,H23) -> 0
A24: 2 | B24: ='3) Dump Pit'!B21 -> 0 | C24: ='3) Dump Pit'!C21 -> 0 | E24: ='3) Dump Pit'!F21*60/7000 -> 0 | F24: =E24*8760/2000 -> 0 | G24: =E24*0.17 -> 0 | H24: 0 | I24: 0 | J24: 0 | K24: 0 | L24: 0 | M24: 0 | N24: 0 | O24: =IF(E24=0,I24,E24) -> 0 | P24: =IF(F24=0,J24,F24) -> 0 | Q24: =IF(E24=0,K24,E24) -> 0 | R24: =IF(F24=0,L24,F24) -> 0 | S24: =IF(G24=0,M24,G24) -> 0 | T24: =IF(H24=0,N24,H24) -> 0
A25: 3 | B25: ='3) Dump Pit'!B22 -> 0 | C25: ='3) Dump Pit'!C22 -> 0 | E25: ='3) Dump Pit'!F22*60/7000 -> 0 | F25: 0 | G25: 0 | H25: 0 | I25: 0 | J25: 0 | K25: 0 | L25: 0 | M25: 0 | N25: 0 | O25: 0 | P25: 0 | Q25: 0 | R25: 0 | S25: 0 | T25: 0
A26: 4 | B26: ='3) Dump Pit'!B23 -> 0 | C26: ='3) Dump Pit'!C23 -> 0 | E26: ='3) Dump Pit'!F23*60/7000 -> 0 | F26: 0 | G26: 0 | H26: 0 | I26: 0 | J26: 0 | K26: 0 | L26: 0 | M26: 0 | N26: 0 | O26: 0 | P26: 0 | Q26: 0 | R26: 0 | S26: 0 | T26: 0
A27: 5 | B27: ='3) Dump Pit'!B24 -> 0 | C27: ='3) Dump Pit'!C24 -> 0 | E27: ='3) Dump Pit'!F24*60/7000 -> 0 | F27: 0 | G27: 0 | H27: 0 | I27: 0 | J27: 0 | K27: 0 | L27: 0 | M27: 0 | N27: 0 | O27: 0 | P27: 0 | Q27: 0 | R27: 0 | S27: 0 | T27: 0
A28: 6 | B28: ='3) Dump Pit'!B25 -> 0 | C28: ='3) Dump Pit'!C25 -> 0 | E28: ='3) Dump Pit'!F25*60/7000 -> 0 | F28: 0 | G28: 0 | H28: 0 | I28: 0 | J28: 0 | K28: 0 | L28: 0 | M28: 0 | N28: 0 | O28: 0 | P28: 0 | Q28: 0 | R28: 0 | S28: 0 | T28: 0
A29: 7 | B29: ='3) Dump Pit'!B26 -> 0 | C29: ='3) Dump Pit'!C26 -> 0 | E29: ='3) Dump Pit'!F26*60/7000 -> 0 | F29: 0 | G29: 0 | H29: 0 | I29: 0 | J29: 0 | K29: 0 | L29: 0 | M29: 0 | N29: 0 | O29: 0 | P29: 0 | Q29: 0 | R29: 0 | S29: 0 | T29: 0
A30: 8 | B30: ='3) Dump Pit'!B27 -> 0 | C30: ='3) Dump Pit'!C27 -> 0 | E30: ='3) Dump Pit'!F27*60/7000 -> 0 | F30: 0 | G30: 0 | H30: 0 | I30: 0 | J30: 0 | K30: 0 | L30: 0 | M30: 0 | N30: 0 | O30: 0 | P30: 0 | Q30: 0 | R30: 0 | S30: 0 | T30: 0
A31: 9 | B31: ='3) Dump Pit'!B28 -> 0 | C31: ='3) Dump Pit'!C28 -> 0 | E31: ='3) Dump Pit'!F28*60/7000 -> 0 | F31: 0 | G31: 0 | H31: 0 | I31: 0 | J31: 0 | K31: 0 | L31: 0 | M31: 0 | N31: 0 | O31: 0 | P31: 0 | Q31: 0 | R31: 0 | S31: 0 | T31: 0
A32: 10 | B32: ='3) Dump Pit'!B29 -> 0 | C32: ='3) Dump Pit'!C29 -> 0 | E32: ='3) Dump Pit'!F29*60/7000 -> 0 | F32: 0 | G32: 0 | H32: 0 | I32: 0 | J32: 0 | K32: 0 | L32: 0 | M32: 0 | N32: 0 | O32: 0 | P32: 0 | Q32: 0 | R32: 0 | S32: 0 | T32: 0
A33: 11 [2] | B33: uncontrolled1 | E33: ='3) Dump Pit'!F30*60/7000 -> 0 | F33: 0 | G33: =E33*0.17 -> 0 | H33: 0 | I33: 0 | J33: 0 | K33: 0 | L33: 0 | M33: 0 | N33: 0 | O33: 0 | P33: 0 | Q33: 0 | R33: =IF(F33=0,L33,F33) -> 0 | S33: 0 | T33: 0
A34: 12 [3] | B34: uncontrolled2 | E34: ='3) Dump Pit'!F31*60/7000 -> 0 | F34: 0 | G34: 0 | H34: 0 | I34: 0 | J34: 0 | K34: 0 | L34: 0 | M34: 0 | N34: 0 | O34: 0 | P34: 0 | Q34: 0 | R34: 0 | S34: 0 | T34: 0
A35: 13 | B35: Uncontrolled Grain Handling | E35: ='3) Dump Pit'!F30*60/7000 -> 0 | F35: 0 | G35: =E35*0.17 -> 0 | H35: 0 | I35: =AG57 -> 0 | J35: =AH57 -> 0 | K35: =AH57 -> 0 | L35: =AK57 -> 0 | M35: =AI57 -> 0 | N35: =AL57 -> 0 | O35: =IF(E35=0,I35,E35) -> 0 | P35: 0 | Q35: 0 | R35: 0 | S35: 0 | T35: 0
A36: 14 | B36: controlled Grain Handling | I36: =AG58 -> 0 | J36: =AH58 -> 0 | K36: =AH58 -> 0 | L36: =AK58 -> 0 | M36: =AI58 -> 0 | N36: =AL58 -> 0 | O36: =IF(E36=0,I36,E36) -> 0 | P36: =IF(F36=0,J36,F36) -> 0 | Q36: =IF(E36=0,K36,E36) -> 0 | R36: =IF(F36=0,L36,F36) -> 0 | S36: =IF(G36=0,M36,G36) -> 0 | T36: =IF(H36=0,N36,H36) -> 0
A37: Total Non-Fugitive Emissions | E37: =SUM(E23:E34) -> 0 | F37: =SUM(F23:F34) -> 0 | G37: =SUM(G23:G34) -> 0 | H37: =SUM(H23:H34) -> 0 | I37: =SUM(I23:I34) -> 0 | J37: 0 | K37: 0 | L37: 0 | M37: 0 | N37: 0 | O37: =SUM(O23:O34) -> 0 | P37: =SUM(P23:P34) -> 0 | Q37: 0 | R37: 0 | S37: 0 | T37: =SUM(T23:T34) -> 0
A38: Total Fugitive Emissions | O38: =SUM(AA46:AA58) -> 0 | P38: =SUM(AD46:AD58) -> 0 | Q38: =SUM(AB46:AB58) -> 0 | R38: =SUM(AE46:AE58) -> 0 | S38: =SUM(AC46:AC58) -> 0 | T38: =SUM(AF46:AF58) -> 0
A39: [1] PM2.5 is 17% of PM10 per AP-42 Chapter 9.9.1 (May 2003)
A40: [2] Uncontrolled 1: it refers to uncontrolled truck dump pits | E40: Rules: | F40: (A) = Permit Limit, grains/min x 60 / 7000 | I40: (C) = (A) x 0.17 | K40: (E) Is controlled captured emissions from preceding table summed for a particular control Equipment | O40: (F) is the maximum emissions based on permit limit if available. Otherwise it is calculated out of AP-42
A41: [3] Uncontrolled 2: it refers to uncontrolled rail dump pits | F41: (B) = (A) x 8760 / 2000 | I41: (D) = (C) x 8760 / 2000
A43: Analysis | AN43: Grain Throughput* | AW43: Truck & Baghouse | BC43: Rail & Baghouse | BI43: Truck Uncontrolled | BO43: Rail Unctorolled
J44: Emission Factors (lb/ton) (A) | M44: Grain Throughput | O44: Total Emissions (lb/hr) (D) | R44: Total Emissions (ton/yr) (E) | U44: Captured Emissions (lb/hr) (F) | X44: Captured Emissions (ton/yr) (G) | AA44: Uncaptured Emissions (lb/hr) (H) | AD44: Uncaptured Emissions (ton/yr) (I) | AG44: Controlled Captured Emissions (lb/hr) (J) | AJ44: Controlled Captured Emissions (ton/yr) (K) | AN44: Truck & Baghouse | AP44: Rail & Baghouse | AR44: Truck Uncontrolled | AT44: Rail Unctorolled | AW44: Uncaptured Emissions (lb/hr) | AZ44: Uncaptured Emissions (ton/yr) | BC44: Uncaptured Emissions (lb/hr) | BF44: Uncaptured Emissions (ton/yr) | BI44: Uncaptured Emissions (lb/hr) | BL44: Uncaptured Emissions (ton/yr) | BO44: Uncaptured Emissions (lb/hr) | BR44: Uncaptured Emissions (ton/yr)
B45: ='3) Dump Pit'!B32 -> ID | C45: ='3) Dump Pit'!C32 -> Emission Unit Name | D45: ='3) Dump Pit'!D32 -> Enclosure | E45: ='3) Dump Pit'!E32 -> Maximum grain receiving rate (bu/hr) | F45: ='3) Dump Pit'!G32 -> Control type | G45: ='3) Dump Pit'!H32 -> Control Name | H45: ='3) Dump Pit'!I32 -> Truck or Rail | I45: Capture Efficiency | J45: PM | K45: PM10 | L45: PM2.5 | M45: (B) ton/hr | N45: (C) ton/yr | O45: PM | P45: PM10 | Q45: PM2.5 | R45: PM | S45: PM10 | T45: PM2.5 | U45: PM | V45: PM10 | W45: PM2.5 | X45: PM | Y45: PM10 | Z45: PM2.5 | AA45: PM | AB45: PM10 | AC45: PM2.5 | AD45: PM | AE45: PM10 | AF45: PM2.5 | AG45: PM | AH45: PM10 | AI45: PM2.5 | AJ45: PM | AK45: PM10 | AL45: PM2.5 | AN45: ton/hr | AO45: ton/yr | AP45: ton/hr | AQ45: ton/yr | AR45: ton/hr | AS45: ton/yr | AT45: ton/hr | AU45: ton/yr | AW45: PM | AX45: PM10 | AY45: PM2.5 | AZ45: PM | BA45: PM10 | BB45: PM2.5 | BC45: PM | BD45: PM10 | BE45: PM2.5 | BF45: PM | BG45: PM10 | BH45: PM2.5 | BI45: PM | BJ45: PM10 | BK45: PM2.5 | BL45: PM | BM45: PM10 | BN45: PM2.5 | BO45: PM | BP45: PM10 | BQ45: PM2.5 | BR45: PM | BS45: PM10 | BT45: PM2.5
A46: ='3) Dump Pit'!A33 -> 1st Dump Pit | B46: ='3) Dump Pit'!B33 -> 0 | C46: ='3) Dump Pit'!C33 -> 0 | D46: ='3) Dump Pit'!D33 -> 0 | E46: ='3) Dump Pit'!E33 -> 0 | F46: ='3) Dump Pit'!G33 -> 0 | G46: =IF(F46=Datasets!$C$2,IF(H46=Datasets!$P$2,"uncontrolled1","uncontrolled2"),'3) Dump Pit'!H33) -> 0 | H46: ='3) Dump Pit'!I33 -> 0 | I46: =IF(D46=$J$4,$K$4,IF(D46=$J$5,$K$5,IF(D46=$J$6,$K$6,1))) -> 1 | J46: =IF(H46=Datasets!$A$2,'3) Calculations'!$Q$6,'3) Calculations'!$Q$4) -> 0.032 | K46: =IF(H46=Datasets!$A$2,'3) Calculations'!$R$6,'3) Calculations'!$R$4) -> 0.0078 | L46: =IF(H46=Datasets!$A$2,'3) Calculations'!$S$6,'3) Calculations'!$S$4) -> 0.0013 | M46: =E46*'3) Dump Pit'!$E$9/2000 -> 0 | N46: =IF('3) Dump Pit'!F33=0,MIN(M46*8760,$C$4),MIN(M46*8760,$C$4,'3) Dump Pit'!F33)) -> 0 | O46: =M46*J46 -> 0 | P46: =M46*K46 -> 0 | Q46: =M46*L46 -> 0 | R46: =J46*N46/2000 -> 0 | S46: =K46*N46/2000 -> 0 | T46: =L46*N46/2000 -> 0 | U46: =O46*I46 -> 0 | V46: =P46*I46 -> 0 | W46: =Q46*I46 -> 0 | X46: =R46*I46 -> 0 | Y46: =S46*I46 -> 0 | Z46: =T46*I46 -> 0 | AA46: =O46-U46 -> 0 | AB46: =P46-V46 -> 0 | AC46: 0 | AD46: 0 | AE46: 0 | AF46: 0 | AG46: =IF(F46="Baghouse",U46*(1-$N$4),U46) -> 0 | AH46: =IF(F46="Baghouse",V46*(1-$N$4),V46) -> 0 | AI46: =IF(F46="Baghouse",W46*(1-$N$4),W46) -> 0 | AJ46: =IF(F46="Baghouse",X46*(1-$N$4),X46) -> 0 | AK46: =IF(F46="Baghouse",Y46*(1-$N$4),Y46) -> 0 | AL46: =IF(F46="Baghouse",Z46*(1-$N$4),Z46) -> 0 | AN46: =IF(F46=Datasets!$C$3,IF('3) Calculations'!H46=Datasets!$P$2,'3) Calculations'!M46,0),0) -> 0 | AO46: =IF(F46=Datasets!$C$3,IF('3) Calculations'!H46=Datasets!$P$2,'3) Calculations'!N46,0),0) -> 0 | AP46: =IF(F46=Datasets!$C$3,IF('3) Calculations'!H46=Datasets!$P$3,'3) Calculations'!M46,0),0) -> 0 | AQ46: =IF(F46=Datasets!$C$3,IF('3) Calculations'!H46=Datasets!$P$3,'3) Calculations'!N46,0),0) -> 0 | AR46: =IF(F46=Datasets!$C$2,IF('3) Calculations'!H46=Datasets!$P$2,'3) Calculations'!M46,0),0) -> 0 | AS46: =IF(F46=Datasets!$C$2,IF('3) Calculations'!H46=Datasets!$P$2,'3) Calculations'!N46,0),0) -> 0 | AT46: =IF(F46=Datasets!$C$2,IF('3) Calculations'!H46=Datasets!$P$3,'3) Calculations'!M46,0),0) -> 0 | AU46: =IF(F46=Datasets!$C$2,IF('3) Calculations'!H46=Datasets!$P$3,'3) Calculations'!N46,0),0) -> 0 | AW46: =IF(F46=Datasets!$C$3,IF('3) Calculations'!H46=Datasets!$P$2,'3) Calculations'!AA46,0),0) -> 0 | AX46: =IF(F46=Datasets!$C$3,IF('3) Calculations'!H46=Datasets!$P$2,'3) Calculations'!AB46,0),0) -> 0 | AY46: =IF(F46=Datasets!$C$3,IF('3) Calculations'!H46=Datasets!$P$2,'3) Calculations'!AC46,0),0) -> 0 | AZ46: =IF(F46=Datasets!$C$3,IF('3) Calculations'!H46=Datasets!$P$2,'3) Calculations'!AD46,0),0) -> 0 | BA46: =IF(F46=Datasets!$C$3,IF('3) Calculations'!H46=Datasets!$P$2,'3) Calculations'!AE46,0),0) -> 0 | BB46: =IF(F46=Datasets!$C$3,IF('3) Calculations'!H46=Datasets!$P$2,'3) Calculations'!AF46,0),0) -> 0 | BC46: =IF(F46=Datasets!$C$3,IF('3) Calculations'!H46=Datasets!$P$3,'3) Calculations'!AA46,0),0) -> 0 | BD46: =IF(F46=Datasets!$C$3,IF('3) Calculations'!H46=Datasets!$P$3,'3) Calculations'!AB46,0),0) -> 0 | BE46: =IF(F46=Datasets!$C$3,IF('3) Calculations'!H46=Datasets!$P$3,'3) Calculations'!AC46,0),0) -> 0 | BF46: =IF(F46=Datasets!$C$3,IF('3) Calculations'!H46=Datasets!$P$3,'3) Calculations'!AD46,0),0) -> 0 | BG46: =IF(F46=Datasets!$C$3,IF('3) Calculations'!H46=Datasets!$P$3,'3) Calculations'!AE46,0),0) -> 0 | BH46: =IF(F46=Datasets!$C$3,IF('3) Calculations'!H46=Datasets!$P$3,'3) Calculations'!AF46,0),0) -> 0 | BI46: =IF(F46=Datasets!$C$2,IF('3) Calculations'!H46=Datasets!$P$2,'3) Calculations'!AA46,0),0) -> 0 | BJ46: =IF(F46=Datasets!$C$2,IF('3) Calculations'!H46=Datasets!$P$2,'3) Calculations'!AB46,0),0) -> 0 | BK46: =IF(F46=Datasets!$C$2,IF('3) Calculations'!H46=Datasets!$P$2,'3) Calculations'!AC46,0),0) -> 0 | BL46: =IF(F46=Datasets!$C$2,IF('3) Calculations'!H46=Datasets!$P$2,'3) Calculations'!AD46,0),0) -> 0 | BM46: =IF(F46=Datasets!$C$2,IF('3) Calculations'!H46=Datasets!$P$2,'3) Calculations'!AE46,0),0) -> 0 | BN46: =IF(F46=Datasets!$C$2,IF('3) Calculations'!H46=Datasets!$P$2,'3) Calculations'!AF46,0),0) -> 0 | BO46: =IF(F46=Datasets!$C$2,IF('3) Calculations'!H46=Datasets!$P$3,'3) Calculations'!AA46,0),0) -> 0 | BP46: =IF(F46=Datasets!$C$2,IF('3) Calculations'!H46=Datasets!$P$3,'3) Calculations'!AB46,0),0) -> 0 | BQ46: =IF(F46=Datasets!$C$2,IF('3) Calculations'!H46=Datasets!$P$3,'3) Calculations'!AC46,0),0) -> 0 | BR46: =IF(F46=Datasets!$C$2,IF('3) Calculations'!H46=Datasets!$P$3,'3) Calculations'!AD46,0),0) -> 0 | BS46: =IF(F46=Datasets!$C$2,IF('3) Calculations'!H46=Datasets!$P$3,'3) Calculations'!AE46,0),0) -> 0 | BT46: =IF(F46=Datasets!$C$2,IF('3) Calculations'!H46=Datasets!$P$3,'3) Calculations'!AF46,0),0) -> 0
A47: ='3) Dump Pit'!A34 -> 2nd Dump Pit | B47: ='3) Dump Pit'!B34 -> 0 | C47: ='3) Dump Pit'!C34 -> 0 | D47: ='3) Dump Pit'!D34 -> 0 | E47: ='3) Dump Pit'!E34 -> 0 | F47: ='3) Dump Pit'!G34 -> 0 | G47: =IF(F47=Datasets!$C$2,IF(H47=Datasets!$P$2,"uncontrolled1","uncontrolled2"),'3) Dump Pit'!H34) -> 0 | H47: ='3) Dump Pit'!I34 -> 0 | I47: =IF(D47=$J$4,$K$4,IF(D47=$J$5,$K$5,IF(D47=$J$6,$K$6,1))) -> 1 | J47: =IF(H47=Datasets!$A$2,'3) Calculations'!$Q$6,'3) Calculations'!$Q$4) -> 0.032 | K47: =IF(H47=Datasets!$A$2,'3) Calculations'!$R$6,'3) Calculations'!$R$4) -> 0.0078 | L47: =IF(H47=Datasets!$A$2,'3) Calculations'!$S$6,'3) Calculations'!$S$4) -> 0.0013 | M47: =E47*'3) Dump Pit'!$E$9/2000 -> 0 | N47: =IF('3) Dump Pit'!F34=0,MIN(M47*8760,$C$4),MIN(M47*8760,$C$4,'3) Dump Pit'!F34)) -> 0 | O47: =M47*J47 -> 0 | P47: =M47*K47 -> 0 | Q47: 0 | R47: =J47*N47/2000 -> 0 | S47: =K47*N47/2000 -> 0 | T47: =L47*N47/2000 -> 0 | U47: =O47*I47 -> 0 | V47: 0 | W47: 0 | X47: 0 | Y47: 0 | Z47: 0 | AA47: =O47-U47 -> 0 | AB47: =P47-V47 -> 0 | AC47: =Q47-W47 -> 0 | AD47: =R47-X47 -> 0 | AE47: =S47-Y47 -> 0 | AF47: =T47-Z47 -> 0 | AG47: 0 | AH47: 0 | AI47: 0 | AJ47: 0 | AK47: 0 | AL47: 0 | AN47: =IF(F47=Datasets!$C$3,IF('3) Calculations'!H47=Datasets!$P$2,'3) Calculations'!M47,0),0) -> 0 | AO47: =IF(F47=Datasets!$C$3,IF('3) Calculations'!H47=Datasets!$P$2,'3) Calculations'!N47,0),0) -> 0 | AP47: =IF(F47=Datasets!$C$3,IF('3) Calculations'!H47=Datasets!$P$3,'3) Calculations'!M47,0),0) -> 0 | AQ47: =IF(F47=Datasets!$C$3,IF('3) Calculations'!H47=Datasets!$P$3,'3) Calculations'!N47,0),0) -> 0 | AR47: =IF(F47=Datasets!$C$2,IF('3) Calculations'!H47=Datasets!$P$2,'3) Calculations'!M47,0),0) -> 0 | AS47: =IF(F47=Datasets!$C$2,IF('3) Calculations'!H47=Datasets!$P$2,'3) Calculations'!N47,0),0) -> 0 | AT47: =IF(F47=Datasets!$C$2,IF('3) Calculations'!H47=Datasets!$P$3,'3) Calculations'!M47,0),0) -> 0 | AU47: =IF(F47=Datasets!$C$2,IF('3) Calculations'!H47=Datasets!$P$3,'3) Calculations'!N47,0),0) -> 0 | AW47: =IF(F47=Datasets!$C$3,IF('3) Calculations'!H47=Datasets!$P$2,'3) Calculations'!AA47,0),0) -> 0 | AX47: =IF(F47=Datasets!$C$3,IF('3) Calculations'!H47=Datasets!$P$2,'3) Calculations'!AB47,0),0) -> 0 | AY47: =IF(F47=Datasets!$C$3,IF('3) Calculations'!H47=Datasets!$P$2,'3) Calculations'!AC47,0),0) -> 0 | AZ47: =IF(F47=Datasets!$C$3,IF('3) Calculations'!H47=Datasets!$P$2,'3) Calculations'!AD47,0),0) -> 0 | BA47: =IF(F47=Datasets!$C$3,IF('3) Calculations'!H47=Datasets!$P$2,'3) Calculations'!AE47,0),0) -> 0 | BB47: =IF(F47=Datasets!$C$3,IF('3) Calculations'!H47=Datasets!$P$2,'3) Calculations'!AF47,0),0) -> 0 | BC47: =IF(F47=Datasets!$C$3,IF('3) Calculations'!H47=Datasets!$P$3,'3) Calculations'!AA47,0),0) -> 0 | BD47: =IF(F47=Datasets!$C$3,IF('3) Calculations'!H47=Datasets!$P$3,'3) Calculations'!AB47,0),0) -> 0 | BE47: =IF(F47=Datasets!$C$3,IF('3) Calculations'!H47=Datasets!$P$3,'3) Calculations'!AC47,0),0) -> 0 | BF47: =IF(F47=Datasets!$C$3,IF('3) Calculations'!H47=Datasets!$P$3,'3) Calculations'!AD47,0),0) -> 0 | BG47: =IF(F47=Datasets!$C$3,IF('3) Calculations'!H47=Datasets!$P$3,'3) Calculations'!AE47,0),0) -> 0 | BH47: =IF(F47=Datasets!$C$3,IF('3) Calculations'!H47=Datasets!$P$3,'3) Calculations'!AF47,0),0) -> 0 | BI47: =IF(F47=Datasets!$C$2,IF('3) Calculations'!H47=Datasets!$P$2,'3) Calculations'!AA47,0),0) -> 0 | BJ47: =IF(F47=Datasets!$C$2,IF('3) Calculations'!H47=Datasets!$P$2,'3) Calculations'!AB47,0),0) -> 0 | BK47: =IF(F47=Datasets!$C$2,IF('3) Calculations'!H47=Datasets!$P$2,'3) Calculations'!AC47,0),0) -> 0 | BL47: =IF(F47=Datasets!$C$2,IF('3) Calculations'!H47=Datasets!$P$2,'3) Calculations'!AD47,0),0) -> 0 | BM47: =IF(F47=Datasets!$C$2,IF('3) Calculations'!H47=Datasets!$P$2,'3) Calculations'!AE47,0),0) -> 0 | BN47: =IF(F47=Datasets!$C$2,IF('3) Calculations'!H47=Datasets!$P$2,'3) Calculations'!AF47,0),0) -> 0 | BO47: =IF(F47=Datasets!$C$2,IF('3) Calculations'!H47=Datasets!$P$3,'3) Calculations'!AA47,0),0) -> 0 | BP47: =IF(F47=Datasets!$C$2,IF('3) Calculations'!H47=Datasets!$P$3,'3) Calculations'!AB47,0),0) -> 0 | BQ47: =IF(F47=Datasets!$C$2,IF('3) Calculations'!H47=Datasets!$P$3,'3) Calculations'!AC47,0),0) -> 0 | BR47: =IF(F47=Datasets!$C$2,IF('3) Calculations'!H47=Datasets!$P$3,'3) Calculations'!AD47,0),0) -> 0 | BS47: =IF(F47=Datasets!$C$2,IF('3) Calculations'!H47=Datasets!$P$3,'3) Calculations'!AE47,0),0) -> 0 | BT47: =IF(F47=Datasets!$C$2,IF('3) Calculations'!H47=Datasets!$P$3,'3) Calculations'!AF47,0),0) -> 0
A48: ='3) Dump Pit'!A35 -> 3rd Dump Pit | B48: ='3) Dump Pit'!B35 -> 0 | C48: ='3) Dump Pit'!C35 -> 0 | D48: ='3) Dump Pit'!D35 -> 0 | E48: ='3) Dump Pit'!E35 -> 0 | F48: ='3) Dump Pit'!G35 -> 0 | G48: =IF(F48=Datasets!$C$2,IF(H48=Datasets!$P$2,"uncontrolled1","uncontrolled2"),'3) Dump Pit'!H35) -> 0 | H48: ='3) Dump Pit'!I35 -> 0 | I48: =IF(D48=$J$4,$K$4,IF(D48=$J$5,$K$5,IF(D48=$J$6,$K$6,1))) -> 1 | J48: =IF(H48=Datasets!$A$2,'3) Calculations'!$Q$6,'3) Calculations'!$Q$4) -> 0.032 | K48: =IF(H48=Datasets!$A$2,'3) Calculations'!$R$6,'3) Calculations'!$R$4) -> 0.0078 | L48: =IF(H48=Datasets!$A$2,'3) Calculations'!$S$6,'3) Calculations'!$S$4) -> 0.0013 | M48: =E48*'3) Dump Pit'!$E$9/2000 -> 0 | N48: =IF('3) Dump Pit'!F35=0,MIN(M48*8760,$C$4),MIN(M48*8760,$C$4,'3) Dump Pit'!F35)) -> 0 | O48: 0 | P48: 0 | Q48: 0 | R48: 0 | S48: 0 | T48: 0 | U48: 0 | V48: 0 | W48: 0 | X48: 0 | Y48: 0 | Z48: 0 | AA48: 0 | AB48: 0 | AC48: 0 | AD48: 0 | AE48: 0 | AF48: 0 | AG48: 0 | AH48: 0 | AI48: 0 | AJ48: 0 | AK48: 0 | AL48: 0 | AN48: =IF(F48=Datasets!$C$3,IF('3) Calculations'!H48=Datasets!$P$2,'3) Calculations'!M48,0),0) -> 0 | AO48: =IF(F48=Datasets!$C$3,IF('3) Calculations'!H48=Datasets!$P$2,'3) Calculations'!N48,0),0) -> 0 | AP48: =IF(F48=Datasets!$C$3,IF('3) Calculations'!H48=Datasets!$P$3,'3) Calculations'!M48,0),0) -> 0 | AQ48: =IF(F48=Datasets!$C$3,IF('3) Calculations'!H48=Datasets!$P$3,'3) Calculations'!N48,0),0) -> 0 | AR48: =IF(F48=Datasets!$C$2,IF('3) Calculations'!H48=Datasets!$P$2,'3) Calculations'!M48,0),0) -> 0 | AS48: =IF(F48=Datasets!$C$2,IF('3) Calculations'!H48=Datasets!$P$2,'3) Calculations'!N48,0),0) -> 0 | AT48: =IF(F48=Datasets!$C$2,IF('3) Calculations'!H48=Datasets!$P$3,'3) Calculations'!M48,0),0) -> 0 | AU48: =IF(F48=Datasets!$C$2,IF('3) Calculations'!H48=Datasets!$P$3,'3) Calculations'!N48,0),0) -> 0 | AW48: =IF(F48=Datasets!$C$3,IF('3) Calculations'!H48=Datasets!$P$2,'3) Calculations'!AA48,0),0) -> 0 | AX48: =IF(F48=Datasets!$C$3,IF('3) Calculations'!H48=Datasets!$P$2,'3) Calculations'!AB48,0),0) -> 0 | AY48: =IF(F48=Datasets!$C$3,IF('3) Calculations'!H48=Datasets!$P$2,'3) Calculations'!AC48,0),0) -> 0 | AZ48: =IF(F48=Datasets!$C$3,IF('3) Calculations'!H48=Datasets!$P$2,'3) Calculations'!AD48,0),0) -> 0 | BA48: =IF(F48=Datasets!$C$3,IF('3) Calculations'!H48=Datasets!$P$2,'3) Calculations'!AE48,0),0) -> 0 | BB48: =IF(F48=Datasets!$C$3,IF('3) Calculations'!H48=Datasets!$P$2,'3) Calculations'!AF48,0),0) -> 0 | BC48: =IF(F48=Datasets!$C$3,IF('3) Calculations'!H48=Datasets!$P$3,'3) Calculations'!AA48,0),0) -> 0 | BD48: =IF(F48=Datasets!$C$3,IF('3) Calculations'!H48=Datasets!$P$3,'3) Calculations'!AB48,0),0) -> 0 | BE48: =IF(F48=Datasets!$C$3,IF('3) Calculations'!H48=Datasets!$P$3,'3) Calculations'!AC48,0),0) -> 0 | BF48: =IF(F48=Datasets!$C$3,IF('3) Calculations'!H48=Datasets!$P$3,'3) Calculations'!AD48,0),0) -> 0 | BG48: =IF(F48=Datasets!$C$3,IF('3) Calculations'!H48=Datasets!$P$3,'3) Calculations'!AE48,0),0) -> 0 | BH48: =IF(F48=Datasets!$C$3,IF('3) Calculations'!H48=Datasets!$P$3,'3) Calculations'!AF48,0),0) -> 0 | BI48: =IF(F48=Datasets!$C$2,IF('3) Calculations'!H48=Datasets!$P$2,'3) Calculations'!AA48,0),0) -> 0 | BJ48: =IF(F48=Datasets!$C$2,IF('3) Calculations'!H48=Datasets!$P$2,'3) Calculations'!AB48,0),0) -> 0 | BK48: =IF(F48=Datasets!$C$2,IF('3) Calculations'!H48=Datasets!$P$2,'3) Calculations'!AC48,0),0) -> 0 | BL48: =IF(F48=Datasets!$C$2,IF('3) Calculations'!H48=Datasets!$P$2,'3) Calculations'!AD48,0),0) -> 0 | BM48: =IF(F48=Datasets!$C$2,IF('3) Calculations'!H48=Datasets!$P$2,'3) Calculations'!AE48,0),0) -> 0 | BN48: =IF(F48=Datasets!$C$2,IF('3) Calculations'!H48=Datasets!$P$2,'3) Calculations'!AF48,0),0) -> 0 | BO48: =IF(F48=Datasets!$C$2,IF('3) Calculations'!H48=Datasets!$P$3,'3) Calculations'!AA48,0),0) -> 0 | BP48: =IF(F48=Datasets!$C$2,IF('3) Calculations'!H48=Datasets!$P$3,'3) Calculations'!AB48,0),0) -> 0 | BQ48: =IF(F48=Datasets!$C$2,IF('3) Calculations'!H48=Datasets!$P$3,'3) Calculations'!AC48,0),0) -> 0 | BR48: =IF(F48=Datasets!$C$2,IF('3) Calculations'!H48=Datasets!$P$3,'3) Calculations'!AD48,0),0) -> 0 | BS48: =IF(F48=Datasets!$C$2,IF('3) Calculations'!H48=Datasets!$P$3,'3) Calculations'!AE48,0),0) -> 0 | BT48: =IF(F48=Datasets!$C$2,IF('3) Calculations'!H48=Datasets!$P$3,'3) Calculations'!AF48,0),0) -> 0
A49: ='3) Dump Pit'!A36 -> 4th Dump Pit | B49: ='3) Dump Pit'!B36 -> 0 | C49: ='3) Dump Pit'!C36 -> 0 | D49: ='3) Dump Pit'!D36 -> 0 | E49: ='3) Dump Pit'!E36 -> 0 | F49: ='3) Dump Pit'!G36 -> 0 | G49: =IF(F49=Datasets!$C$2,IF(H49=Datasets!$P$2,"uncontrolled1","uncontrolled2"),'3) Dump Pit'!H36) -> 0 | H49: ='3) Dump Pit'!I36 -> 0 | I49: =IF(D49=$J$4,$K$4,IF(D49=$J$5,$K$5,IF(D49=$J$6,$K$6,1))) -> 1 | J49: =IF(H49=Datasets!$A$2,'3) Calculations'!$Q$6,'3) Calculations'!$Q$4) -> 0.032 | K49: =IF(H49=Datasets!$A$2,'3) Calculations'!$R$6,'3) Calculations'!$R$4) -> 0.0078 | L49: =IF(H49=Datasets!$A$2,'3) Calculations'!$S$6,'3) Calculations'!$S$4) -> 0.0013 | M49: =E49*'3) Dump Pit'!$E$9/2000 -> 0 | N49: =IF('3) Dump Pit'!F36=0,MIN(M49*8760,$C$4),MIN(M49*8760,$C$4,'3) Dump Pit'!F36)) -> 0 | O49: 0 | P49: 0 | Q49: 0 | R49: 0 | S49: 0 | T49: 0 | U49: 0 | V49: 0 | W49: 0 | X49: 0 | Y49: 0 | Z49: 0 | AA49: 0 | AB49: 0 | AC49: 0 | AD49: 0 | AE49: 0 | AF49: 0 | AG49: 0 | AH49: 0 | AI49: 0 | AJ49: 0 | AK49: 0 | AL49: 0 | AN49: =IF(F49=Datasets!$C$3,IF('3) Calculations'!H49=Datasets!$P$2,'3) Calculations'!M49,0),0) -> 0 | AO49: =IF(F49=Datasets!$C$3,IF('3) Calculations'!H49=Datasets!$P$2,'3) Calculations'!N49,0),0) -> 0 | AP49: =IF(F49=Datasets!$C$3,IF('3) Calculations'!H49=Datasets!$P$3,'3) Calculations'!M49,0),0) -> 0 | AQ49: =IF(F49=Datasets!$C$3,IF('3) Calculations'!H49=Datasets!$P$3,'3) Calculations'!N49,0),0) -> 0 | AR49: =IF(F49=Datasets!$C$2,IF('3) Calculations'!H49=Datasets!$P$2,'3) Calculations'!M49,0),0) -> 0 | AS49: =IF(F49=Datasets!$C$2,IF('3) Calculations'!H49=Datasets!$P$2,'3) Calculations'!N49,0),0) -> 0 | AT49: =IF(F49=Datasets!$C$2,IF('3) Calculations'!H49=Datasets!$P$3,'3) Calculations'!M49,0),0) -> 0 | AU49: =IF(F49=Datasets!$C$2,IF('3) Calculations'!H49=Datasets!$P$3,'3) Calculations'!N49,0),0) -> 0 | AW49: =IF(F49=Datasets!$C$3,IF('3) Calculations'!H49=Datasets!$P$2,'3) Calculations'!AA49,0),0) -> 0 | AX49: =IF(F49=Datasets!$C$3,IF('3) Calculations'!H49=Datasets!$P$2,'3) Calculations'!AB49,0),0) -> 0 | AY49: =IF(F49=Datasets!$C$3,IF('3) Calculations'!H49=Datasets!$P$2,'3) Calculations'!AC49,0),0) -> 0 | AZ49: =IF(F49=Datasets!$C$3,IF('3) Calculations'!H49=Datasets!$P$2,'3) Calculations'!AD49,0),0) -> 0 | BA49: =IF(F49=Datasets!$C$3,IF('3) Calculations'!H49=Datasets!$P$2,'3) Calculations'!AE49,0),0) -> 0 | BB49: =IF(F49=Datasets!$C$3,IF('3) Calculations'!H49=Datasets!$P$2,'3) Calculations'!AF49,0),0) -> 0 | BC49: =IF(F49=Datasets!$C$3,IF('3) Calculations'!H49=Datasets!$P$3,'3) Calculations'!AA49,0),0) -> 0 | BD49: =IF(F49=Datasets!$C$3,IF('3) Calculations'!H49=Datasets!$P$3,'3) Calculations'!AB49,0),0) -> 0 | BE49: =IF(F49=Datasets!$C$3,IF('3) Calculations'!H49=Datasets!$P$3,'3) Calculations'!AC49,0),0) -> 0 | BF49: =IF(F49=Datasets!$C$3,IF('3) Calculations'!H49=Datasets!$P$3,'3) Calculations'!AD49,0),0) -> 0 | BG49: =IF(F49=Datasets!$C$3,IF('3) Calculations'!H49=Datasets!$P$3,'3) Calculations'!AE49,0),0) -> 0 | BH49: =IF(F49=Datasets!$C$3,IF('3) Calculations'!H49=Datasets!$P$3,'3) Calculations'!AF49,0),0) -> 0 | BI49: =IF(F49=Datasets!$C$2,IF('3) Calculations'!H49=Datasets!$P$2,'3) Calculations'!AA49,0),0) -> 0 | BJ49: =IF(F49=Datasets!$C$2,IF('3) Calculations'!H49=Datasets!$P$2,'3) Calculations'!AB49,0),0) -> 0 | BK49: =IF(F49=Datasets!$C$2,IF('3) Calculations'!H49=Datasets!$P$2,'3) Calculations'!AC49,0),0) -> 0 | BL49: =IF(F49=Datasets!$C$2,IF('3) Calculations'!H49=Datasets!$P$2,'3) Calculations'!AD49,0),0) -> 0 | BM49: =IF(F49=Datasets!$C$2,IF('3) Calculations'!H49=Datasets!$P$2,'3) Calculations'!AE49,0),0) -> 0 | BN49: =IF(F49=Datasets!$C$2,IF('3) Calculations'!H49=Datasets!$P$2,'3) Calculations'!AF49,0),0) -> 0 | BO49: =IF(F49=Datasets!$C$2,IF('3) Calculations'!H49=Datasets!$P$3,'3) Calculations'!AA49,0),0) -> 0 | BP49: =IF(F49=Datasets!$C$2,IF('3) Calculations'!H49=Datasets!$P$3,'3) Calculations'!AB49,0),0) -> 0 | BQ49: =IF(F49=Datasets!$C$2,IF('3) Calculations'!H49=Datasets!$P$3,'3) Calculations'!AC49,0),0) -> 0 | BR49: =IF(F49=Datasets!$C$2,IF('3) Calculations'!H49=Datasets!$P$3,'3) Calculations'!AD49,0),0) -> 0 | BS49: =IF(F49=Datasets!$C$2,IF('3) Calculations'!H49=Datasets!$P$3,'3) Calculations'!AE49,0),0) -> 0 | BT49: =IF(F49=Datasets!$C$2,IF('3) Calculations'!H49=Datasets!$P$3,'3) Calculations'!AF49,0),0) -> 0
A50: ='3) Dump Pit'!A37 -> 5th Dump Pit | B50: ='3) Dump Pit'!B37 -> 0 | C50: ='3) Dump Pit'!C37 -> 0 | D50: ='3) Dump Pit'!D37 -> 0 | E50: ='3) Dump Pit'!E37 -> 0 | F50: ='3) Dump Pit'!G37 -> 0 | G50: =IF(F50=Datasets!$C$2,IF(H50=Datasets!$P$2,"uncontrolled1","uncontrolled2"),'3) Dump Pit'!H37) -> 0 | H50: ='3) Dump Pit'!I37 -> 0 | I50: 1 | J50: =IF(H50=Datasets!$A$2,'3) Calculations'!$Q$6,'3) Calculations'!$Q$4) -> 0.032 | K50: =IF(H50=Datasets!$A$2,'3) Calculations'!$R$6,'3) Calculations'!$R$4) -> 0.0078 | L50: =IF(H50=Datasets!$A$2,'3) Calculations'!$S$6,'3) Calculations'!$S$4) -> 0.0013 | M50: =E50*'3) Dump Pit'!$E$9/2000 -> 0 | N50: =IF('3) Dump Pit'!F37=0,MIN(M50*8760,$C$4),MIN(M50*8760,$C$4,'3) Dump Pit'!F37)) -> 0 | O50: 0 | P50: 0 | Q50: 0 | R50: =J50*N50/2000 -> 0 | S50: =K50*N50/2000 -> 0 | T50: =L50*N50/2000 -> 0 | U50: 0 | V50: 0 | W50: 0 | X50: 0 | Y50: 0 | Z50: 0 | AA50: 0 | AB50: 0 | AC50: 0 | AD50: 0 | AE50: 0 | AF50: 0 | AG50: 0 | AH50: 0 | AI50: 0 | AJ50: 0 | AK50: 0 | AL50: 0 | AN50: =IF(F50=Datasets!$C$3,IF('3) Calculations'!H50=Datasets!$P$2,'3) Calculations'!M50,0),0) -> 0 | AO50: =IF(F50=Datasets!$C$3,IF('3) Calculations'!H50=Datasets!$P$2,'3) Calculations'!N50,0),0) -> 0 | AP50: =IF(F50=Datasets!$C$3,IF('3) Calculations'!H50=Datasets!$P$3,'3) Calculations'!M50,0),0) -> 0 | AQ50: =IF(F50=Datasets!$C$3,IF('3) Calculations'!H50=Datasets!$P$3,'3) Calculations'!N50,0),0) -> 0 | AR50: =IF(F50=Datasets!$C$2,IF('3) Calculations'!H50=Datasets!$P$2,'3) Calculations'!M50,0),0) -> 0 | AS50: =IF(F50=Datasets!$C$2,IF('3) Calculations'!H50=Datasets!$P$2,'3) Calculations'!N50,0),0) -> 0 | AT50: =IF(F50=Datasets!$C$2,IF('3) Calculations'!H50=Datasets!$P$3,'3) Calculations'!M50,0),0) -> 0 | AU50: =IF(F50=Datasets!$C$2,IF('3) Calculations'!H50=Datasets!$P$3,'3) Calculations'!N50,0),0) -> 0 | AW50: =IF(F50=Datasets!$C$3,IF('3) Calculations'!H50=Datasets!$P$2,'3) Calculations'!AA50,0),0) -> 0 | AX50: =IF(F50=Datasets!$C$3,IF('3) Calculations'!H50=Datasets!$P$2,'3) Calculations'!AB50,0),0) -> 0 | AY50: =IF(F50=Datasets!$C$3,IF('3) Calculations'!H50=Datasets!$P$2,'3) Calculations'!AC50,0),0) -> 0 | AZ50: =IF(F50=Datasets!$C$3,IF('3) Calculations'!H50=Datasets!$P$2,'3) Calculations'!AD50,0),0) -> 0 | BA50: =IF(F50=Datasets!$C$3,IF('3) Calculations'!H50=Datasets!$P$2,'3) Calculations'!AE50,0),0) -> 0 | BB50: =IF(F50=Datasets!$C$3,IF('3) Calculations'!H50=Datasets!$P$2,'3) Calculations'!AF50,0),0) -> 0 | BC50: =IF(F50=Datasets!$C$3,IF('3) Calculations'!H50=Datasets!$P$3,'3) Calculations'!AA50,0),0) -> 0 | BD50: =IF(F50=Datasets!$C$3,IF('3) Calculations'!H50=Datasets!$P$3,'3) Calculations'!AB50,0),0) -> 0 | BE50: =IF(F50=Datasets!$C$3,IF('3) Calculations'!H50=Datasets!$P$3,'3) Calculations'!AC50,0),0) -> 0 | BF50: =IF(F50=Datasets!$C$3,IF('3) Calculations'!H50=Datasets!$P$3,'3) Calculations'!AD50,0),0) -> 0 | BG50: =IF(F50=Datasets!$C$3,IF('3) Calculations'!H50=Datasets!$P$3,'3) Calculations'!AE50,0),0) -> 0 | BH50: =IF(F50=Datasets!$C$3,IF('3) Calculations'!H50=Datasets!$P$3,'3) Calculations'!AF50,0),0) -> 0 | BI50: =IF(F50=Datasets!$C$2,IF('3) Calculations'!H50=Datasets!$P$2,'3) Calculations'!AA50,0),0) -> 0 | BJ50: =IF(F50=Datasets!$C$2,IF('3) Calculations'!H50=Datasets!$P$2,'3) Calculations'!AB50,0),0) -> 0 | BK50: =IF(F50=Datasets!$C$2,IF('3) Calculations'!H50=Datasets!$P$2,'3) Calculations'!AC50,0),0) -> 0 | BL50: =IF(F50=Datasets!$C$2,IF('3) Calculations'!H50=Datasets!$P$2,'3) Calculations'!AD50,0),0) -> 0 | BM50: =IF(F50=Datasets!$C$2,IF('3) Calculations'!H50=Datasets!$P$2,'3) Calculations'!AE50,0),0) -> 0 | BN50: =IF(F50=Datasets!$C$2,IF('3) Calculations'!H50=Datasets!$P$2,'3) Calculations'!AF50,0),0) -> 0 | BO50: =IF(F50=Datasets!$C$2,IF('3) Calculations'!H50=Datasets!$P$3,'3) Calculations'!AA50,0),0) -> 0 | BP50: =IF(F50=Datasets!$C$2,IF('3) Calculations'!H50=Datasets!$P$3,'3) Calculations'!AB50,0),0) -> 0 | BQ50: =IF(F50=Datasets!$C$2,IF('3) Calculations'!H50=Datasets!$P$3,'3) Calculations'!AC50,0),0) -> 0 | BR50: =IF(F50=Datasets!$C$2,IF('3) Calculations'!H50=Datasets!$P$3,'3) Calculations'!AD50,0),0) -> 0 | BS50: =IF(F50=Datasets!$C$2,IF('3) Calculations'!H50=Datasets!$P$3,'3) Calculations'!AE50,0),0) -> 0 | BT50: =IF(F50=Datasets!$C$2,IF('3) Calculations'!H50=Datasets!$P$3,'3) Calculations'!AF50,0),0) -> 0
A51: ='3) Dump Pit'!A38 -> 6th Dump Pit | B51: ='3) Dump Pit'!B38 -> 0 | C51: ='3) Dump Pit'!C38 -> 0 | D51: ='3) Dump Pit'!D38 -> 0 | E51: ='3) Dump Pit'!E38 -> 0 | F51: ='3) Dump Pit'!G38 -> 0 | G51: =IF(F51=Datasets!$C$2,IF(H51=Datasets!$P$2,"uncontrolled1","uncontrolled2"),'3) Dump Pit'!H38) -> 0 | H51: ='3) Dump Pit'!I38 -> 0 | I51: 1 | J51: =IF(H51=Datasets!$A$2,'3) Calculations'!$Q$6,'3) Calculations'!$Q$4) -> 0.032 | K51: =IF(H51=Datasets!$A$2,'3) Calculations'!$R$6,'3) Calculations'!$R$4) -> 0.0078 | L51: =IF(H51=Datasets!$A$2,'3) Calculations'!$S$6,'3) Calculations'!$S$4) -> 0.0013 | M51: =E51*'3) Dump Pit'!$E$9/2000 -> 0 | N51: =IF('3) Dump Pit'!F38=0,MIN(M51*8760,$C$4),MIN(M51*8760,$C$4,'3) Dump Pit'!F38)) -> 0 | O51: 0 | P51: 0 | Q51: 0 | R51: 0 | S51: 0 | T51: 0 | U51: 0 | V51: 0 | W51: 0 | X51: 0 | Y51: 0 | Z51: 0 | AA51: 0 | AB51: 0 | AC51: 0 | AD51: 0 | AE51: 0 | AF51: 0 | AG51: 0 | AH51: 0 | AI51: 0 | AJ51: 0 | AK51: 0 | AL51: 0 | AN51: =IF(F51=Datasets!$C$3,IF('3) Calculations'!H51=Datasets!$P$2,'3) Calculations'!M51,0),0) -> 0 | AO51: =IF(F51=Datasets!$C$3,IF('3) Calculations'!H51=Datasets!$P$2,'3) Calculations'!N51,0),0) -> 0 | AP51: =IF(F51=Datasets!$C$3,IF('3) Calculations'!H51=Datasets!$P$3,'3) Calculations'!M51,0),0) -> 0 | AQ51: =IF(F51=Datasets!$C$3,IF('3) Calculations'!H51=Datasets!$P$3,'3) Calculations'!N51,0),0) -> 0 | AR51: =IF(F51=Datasets!$C$2,IF('3) Calculations'!H51=Datasets!$P$2,'3) Calculations'!M51,0),0) -> 0 | AS51: =IF(F51=Datasets!$C$2,IF('3) Calculations'!H51=Datasets!$P$2,'3) Calculations'!N51,0),0) -> 0 | AT51: =IF(F51=Datasets!$C$2,IF('3) Calculations'!H51=Datasets!$P$3,'3) Calculations'!M51,0),0) -> 0 | AU51: =IF(F51=Datasets!$C$2,IF('3) Calculations'!H51=Datasets!$P$3,'3) Calculations'!N51,0),0) -> 0 | AW51: =IF(F51=Datasets!$C$3,IF('3) Calculations'!H51=Datasets!$P$2,'3) Calculations'!AA51,0),0) -> 0 | AX51: =IF(F51=Datasets!$C$3,IF('3) Calculations'!H51=Datasets!$P$2,'3) Calculations'!AB51,0),0) -> 0 | AY51: =IF(F51=Datasets!$C$3,IF('3) Calculations'!H51=Datasets!$P$2,'3) Calculations'!AC51,0),0) -> 0 | AZ51: =IF(F51=Datasets!$C$3,IF('3) Calculations'!H51=Datasets!$P$2,'3) Calculations'!AD51,0),0) -> 0 | BA51: =IF(F51=Datasets!$C$3,IF('3) Calculations'!H51=Datasets!$P$2,'3) Calculations'!AE51,0),0) -> 0 | BB51: =IF(F51=Datasets!$C$3,IF('3) Calculations'!H51=Datasets!$P$2,'3) Calculations'!AF51,0),0) -> 0 | BC51: =IF(F51=Datasets!$C$3,IF('3) Calculations'!H51=Datasets!$P$3,'3) Calculations'!AA51,0),0) -> 0 | BD51: =IF(F51=Datasets!$C$3,IF('3) Calculations'!H51=Datasets!$P$3,'3) Calculations'!AB51,0),0) -> 0 | BE51: =IF(F51=Datasets!$C$3,IF('3) Calculations'!H51=Datasets!$P$3,'3) Calculations'!AC51,0),0) -> 0 | BF51: =IF(F51=Datasets!$C$3,IF('3) Calculations'!H51=Datasets!$P$3,'3) Calculations'!AD51,0),0) -> 0 | BG51: =IF(F51=Datasets!$C$3,IF('3) Calculations'!H51=Datasets!$P$3,'3) Calculations'!AE51,0),0) -> 0 | BH51: =IF(F51=Datasets!$C$3,IF('3) Calculations'!H51=Datasets!$P$3,'3) Calculations'!AF51,0),0) -> 0 | BI51: =IF(F51=Datasets!$C$2,IF('3) Calculations'!H51=Datasets!$P$2,'3) Calculations'!AA51,0),0) -> 0 | BJ51: =IF(F51=Datasets!$C$2,IF('3) Calculations'!H51=Datasets!$P$2,'3) Calculations'!AB51,0),0) -> 0 | BK51: =IF(F51=Datasets!$C$2,IF('3) Calculations'!H51=Datasets!$P$2,'3) Calculations'!AC51,0),0) -> 0 | BL51: =IF(F51=Datasets!$C$2,IF('3) Calculations'!H51=Datasets!$P$2,'3) Calculations'!AD51,0),0) -> 0 | BM51: =IF(F51=Datasets!$C$2,IF('3) Calculations'!H51=Datasets!$P$2,'3) Calculations'!AE51,0),0) -> 0 | BN51: =IF(F51=Datasets!$C$2,IF('3) Calculations'!H51=Datasets!$P$2,'3) Calculations'!AF51,0),0) -> 0 | BO51: =IF(F51=Datasets!$C$2,IF('3) Calculations'!H51=Datasets!$P$3,'3) Calculations'!AA51,0),0) -> 0 | BP51: =IF(F51=Datasets!$C$2,IF('3) Calculations'!H51=Datasets!$P$3,'3) Calculations'!AB51,0),0) -> 0 | BQ51: =IF(F51=Datasets!$C$2,IF('3) Calculations'!H51=Datasets!$P$3,'3) Calculations'!AC51,0),0) -> 0 | BR51: =IF(F51=Datasets!$C$2,IF('3) Calculations'!H51=Datasets!$P$3,'3) Calculations'!AD51,0),0) -> 0 | BS51: =IF(F51=Datasets!$C$2,IF('3) Calculations'!H51=Datasets!$P$3,'3) Calculations'!AE51,0),0) -> 0 | BT51: =IF(F51=Datasets!$C$2,IF('3) Calculations'!H51=Datasets!$P$3,'3) Calculations'!AF51,0),0) -> 0
A52: ='3) Dump Pit'!A39 -> 7th Dump Pit | B52: ='3) Dump Pit'!B39 -> 0 | C52: ='3) Dump Pit'!C39 -> 0 | D52: ='3) Dump Pit'!D39 -> 0 | E52: ='3) Dump Pit'!E39 -> 0 | F52: ='3) Dump Pit'!G39 -> 0 | G52: =IF(F52=Datasets!$C$2,IF(H52=Datasets!$P$2,"uncontrolled1","uncontrolled2"),'3) Dump Pit'!H39) -> 0 | H52: ='3) Dump Pit'!I39 -> 0 | I52: 1 | J52: =IF(H52=Datasets!$A$2,'3) Calculations'!$Q$6,'3) Calculations'!$Q$4) -> 0.032 | K52: =IF(H52=Datasets!$A$2,'3) Calculations'!$R$6,'3) Calculations'!$R$4) -> 0.0078 | L52: =IF(H52=Datasets!$A$2,'3) Calculations'!$S$6,'3) Calculations'!$S$4) -> 0.0013 | M52: =E52*'3) Dump Pit'!$E$9/2000 -> 0 | N52: =IF('3) Dump Pit'!F39=0,MIN(M52*8760,$C$4),MIN(M52*8760,$C$4,'3) Dump Pit'!F39)) -> 0 | O52: 0 | P52: 0 | Q52: 0 | R52: 0 | S52: 0 | T52: 0 | U52: 0 | V52: 0 | W52: 0 | X52: 0 | Y52: 0 | Z52: 0 | AA52: 0 | AB52: 0 | AC52: 0 | AD52: 0 | AE52: 0 | AF52: 0 | AG52: 0 | AH52: 0 | AI52: 0 | AJ52: 0 | AK52: 0 | AL52: 0 | AN52: =IF(F52=Datasets!$C$3,IF('3) Calculations'!H52=Datasets!$P$2,'3) Calculations'!M52,0),0) -> 0 | AO52: =IF(F52=Datasets!$C$3,IF('3) Calculations'!H52=Datasets!$P$2,'3) Calculations'!N52,0),0) -> 0 | AP52: =IF(F52=Datasets!$C$3,IF('3) Calculations'!H52=Datasets!$P$3,'3) Calculations'!M52,0),0) -> 0 | AQ52: =IF(F52=Datasets!$C$3,IF('3) Calculations'!H52=Datasets!$P$3,'3) Calculations'!N52,0),0) -> 0 | AR52: =IF(F52=Datasets!$C$2,IF('3) Calculations'!H52=Datasets!$P$2,'3) Calculations'!M52,0),0) -> 0 | AS52: =IF(F52=Datasets!$C$2,IF('3) Calculations'!H52=Datasets!$P$2,'3) Calculations'!N52,0),0) -> 0 | AT52: =IF(F52=Datasets!$C$2,IF('3) Calculations'!H52=Datasets!$P$3,'3) Calculations'!M52,0),0) -> 0 | AU52: =IF(F52=Datasets!$C$2,IF('3) Calculations'!H52=Datasets!$P$3,'3) Calculations'!N52,0),0) -> 0 | AW52: =IF(F52=Datasets!$C$3,IF('3) Calculations'!H52=Datasets!$P$2,'3) Calculations'!AA52,0),0) -> 0 | AX52: =IF(F52=Datasets!$C$3,IF('3) Calculations'!H52=Datasets!$P$2,'3) Calculations'!AB52,0),0) -> 0 | AY52: =IF(F52=Datasets!$C$3,IF('3) Calculations'!H52=Datasets!$P$2,'3) Calculations'!AC52,0),0) -> 0 | AZ52: =IF(F52=Datasets!$C$3,IF('3) Calculations'!H52=Datasets!$P$2,'3) Calculations'!AD52,0),0) -> 0 | BA52: =IF(F52=Datasets!$C$3,IF('3) Calculations'!H52=Datasets!$P$2,'3) Calculations'!AE52,0),0) -> 0 | BB52: =IF(F52=Datasets!$C$3,IF('3) Calculations'!H52=Datasets!$P$2,'3) Calculations'!AF52,0),0) -> 0 | BC52: =IF(F52=Datasets!$C$3,IF('3) Calculations'!H52=Datasets!$P$3,'3) Calculations'!AA52,0),0) -> 0 | BD52: =IF(F52=Datasets!$C$3,IF('3) Calculations'!H52=Datasets!$P$3,'3) Calculations'!AB52,0),0) -> 0 | BE52: =IF(F52=Datasets!$C$3,IF('3) Calculations'!H52=Datasets!$P$3,'3) Calculations'!AC52,0),0) -> 0 | BF52: =IF(F52=Datasets!$C$3,IF('3) Calculations'!H52=Datasets!$P$3,'3) Calculations'!AD52,0),0) -> 0 | BG52: =IF(F52=Datasets!$C$3,IF('3) Calculations'!H52=Datasets!$P$3,'3) Calculations'!AE52,0),0) -> 0 | BH52: =IF(F52=Datasets!$C$3,IF('3) Calculations'!H52=Datasets!$P$3,'3) Calculations'!AF52,0),0) -> 0 | BI52: =IF(F52=Datasets!$C$2,IF('3) Calculations'!H52=Datasets!$P$2,'3) Calculations'!AA52,0),0) -> 0 | BJ52: =IF(F52=Datasets!$C$2,IF('3) Calculations'!H52=Datasets!$P$2,'3) Calculations'!AB52,0),0) -> 0 | BK52: =IF(F52=Datasets!$C$2,IF('3) Calculations'!H52=Datasets!$P$2,'3) Calculations'!AC52,0),0) -> 0 | BL52: =IF(F52=Datasets!$C$2,IF('3) Calculations'!H52=Datasets!$P$2,'3) Calculations'!AD52,0),0) -> 0 | BM52: =IF(F52=Datasets!$C$2,IF('3) Calculations'!H52=Datasets!$P$2,'3) Calculations'!AE52,0),0) -> 0 | BN52: =IF(F52=Datasets!$C$2,IF('3) Calculations'!H52=Datasets!$P$2,'3) Calculations'!AF52,0),0) -> 0 | BO52: =IF(F52=Datasets!$C$2,IF('3) Calculations'!H52=Datasets!$P$3,'3) Calculations'!AA52,0),0) -> 0 | BP52: =IF(F52=Datasets!$C$2,IF('3) Calculations'!H52=Datasets!$P$3,'3) Calculations'!AB52,0),0) -> 0 | BQ52: =IF(F52=Datasets!$C$2,IF('3) Calculations'!H52=Datasets!$P$3,'3) Calculations'!AC52,0),0) -> 0 | BR52: =IF(F52=Datasets!$C$2,IF('3) Calculations'!H52=Datasets!$P$3,'3) Calculations'!AD52,0),0) -> 0 | BS52: =IF(F52=Datasets!$C$2,IF('3) Calculations'!H52=Datasets!$P$3,'3) Calculations'!AE52,0),0) -> 0 | BT52: =IF(F52=Datasets!$C$2,IF('3) Calculations'!H52=Datasets!$P$3,'3) Calculations'!AF52,0),0) -> 0
A53: ='3) Dump Pit'!A40 -> 8th Dump Pit | B53: ='3) Dump Pit'!B40 -> 0 | C53: ='3) Dump Pit'!C40 -> 0 | D53: ='3) Dump Pit'!D40 -> 0 | E53: ='3) Dump Pit'!E40 -> 0 | F53: ='3) Dump Pit'!G40 -> 0 | G53: =IF(F53=Datasets!$C$2,IF(H53=Datasets!$P$2,"uncontrolled1","uncontrolled2"),'3) Dump Pit'!H40) -> 0 | H53: ='3) Dump Pit'!I40 -> 0 | I53: 1 | J53: =IF(H53=Datasets!$A$2,'3) Calculations'!$Q$6,'3) Calculations'!$Q$4) -> 0.032 | K53: =IF(H53=Datasets!$A$2,'3) Calculations'!$R$6,'3) Calculations'!$R$4) -> 0.0078 | L53: =IF(H53=Datasets!$A$2,'3) Calculations'!$S$6,'3) Calculations'!$S$4) -> 0.0013 | M53: =E53*'3) Dump Pit'!$E$9/2000 -> 0 | N53: =IF('3) Dump Pit'!F40=0,MIN(M53*8760,$C$4),MIN(M53*8760,$C$4,'3) Dump Pit'!F40)) -> 0 | O53: 0 | P53: 0 | Q53: 0 | R53: 0 | S53: 0 | T53: 0 | U53: 0 | V53: 0 | W53: 0 | X53: 0 | Y53: 0 | Z53: 0 | AA53: 0 | AB53: 0 | AC53: 0 | AD53: 0 | AE53: 0 | AF53: 0 | AG53: 0 | AH53: 0 | AI53: 0 | AJ53: 0 | AK53: 0 | AL53: 0 | AN53: =IF(F53=Datasets!$C$3,IF('3) Calculations'!H53=Datasets!$P$2,'3) Calculations'!M53,0),0) -> 0 | AO53: =IF(F53=Datasets!$C$3,IF('3) Calculations'!H53=Datasets!$P$2,'3) Calculations'!N53,0),0) -> 0 | AP53: =IF(F53=Datasets!$C$3,IF('3) Calculations'!H53=Datasets!$P$3,'3) Calculations'!M53,0),0) -> 0 | AQ53: =IF(F53=Datasets!$C$3,IF('3) Calculations'!H53=Datasets!$P$3,'3) Calculations'!N53,0),0) -> 0 | AR53: =IF(F53=Datasets!$C$2,IF('3) Calculations'!H53=Datasets!$P$2,'3) Calculations'!M53,0),0) -> 0 | AS53: =IF(F53=Datasets!$C$2,IF('3) Calculations'!H53=Datasets!$P$2,'3) Calculations'!N53,0),0) -> 0 | AT53: =IF(F53=Datasets!$C$2,IF('3) Calculations'!H53=Datasets!$P$3,'3) Calculations'!M53,0),0) -> 0 | AU53: =IF(F53=Datasets!$C$2,IF('3) Calculations'!H53=Datasets!$P$3,'3) Calculations'!N53,0),0) -> 0 | AW53: =IF(F53=Datasets!$C$3,IF('3) Calculations'!H53=Datasets!$P$2,'3) Calculations'!AA53,0),0) -> 0 | AX53: =IF(F53=Datasets!$C$3,IF('3) Calculations'!H53=Datasets!$P$2,'3) Calculations'!AB53,0),0) -> 0 | AY53: =IF(F53=Datasets!$C$3,IF('3) Calculations'!H53=Datasets!$P$2,'3) Calculations'!AC53,0),0) -> 0 | AZ53: =IF(F53=Datasets!$C$3,IF('3) Calculations'!H53=Datasets!$P$2,'3) Calculations'!AD53,0),0) -> 0 | BA53: =IF(F53=Datasets!$C$3,IF('3) Calculations'!H53=Datasets!$P$2,'3) Calculations'!AE53,0),0) -> 0 | BB53: =IF(F53=Datasets!$C$3,IF('3) Calculations'!H53=Datasets!$P$2,'3) Calculations'!AF53,0),0) -> 0 | BC53: =IF(F53=Datasets!$C$3,IF('3) Calculations'!H53=Datasets!$P$3,'3) Calculations'!AA53,0),0) -> 0 | BD53: =IF(F53=Datasets!$C$3,IF('3) Calculations'!H53=Datasets!$P$3,'3) Calculations'!AB53,0),0) -> 0 | BE53: =IF(F53=Datasets!$C$3,IF('3) Calculations'!H53=Datasets!$P$3,'3) Calculations'!AC53,0),0) -> 0 | BF53: =IF(F53=Datasets!$C$3,IF('3) Calculations'!H53=Datasets!$P$3,'3) Calculations'!AD53,0),0) -> 0 | BG53: =IF(F53=Datasets!$C$3,IF('3) Calculations'!H53=Datasets!$P$3,'3) Calculations'!AE53,0),0) -> 0 | BH53: =IF(F53=Datasets!$C$3,IF('3) Calculations'!H53=Datasets!$P$3,'3) Calculations'!AF53,0),0) -> 0 | BI53: =IF(F53=Datasets!$C$2,IF('3) Calculations'!H53=Datasets!$P$2,'3) Calculations'!AA53,0),0) -> 0 | BJ53: =IF(F53=Datasets!$C$2,IF('3) Calculations'!H53=Datasets!$P$2,'3) Calculations'!AB53,0),0) -> 0 | BK53: =IF(F53=Datasets!$C$2,IF('3) Calculations'!H53=Datasets!$P$2,'3) Calculations'!AC53,0),0) -> 0 | BL53: =IF(F53=Datasets!$C$2,IF('3) Calculations'!H53=Datasets!$P$2,'3) Calculations'!AD53,0),0) -> 0 | BM53: =IF(F53=Datasets!$C$2,IF('3) Calculations'!H53=Datasets!$P$2,'3) Calculations'!AE53,0),0) -> 0 | BN53: =IF(F53=Datasets!$C$2,IF('3) Calculations'!H53=Datasets!$P$2,'3) Calculations'!AF53,0),0) -> 0 | BO53: =IF(F53=Datasets!$C$2,IF('3) Calculations'!H53=Datasets!$P$3,'3) Calculations'!AA53,0),0) -> 0 | BP53: =IF(F53=Datasets!$C$2,IF('3) Calculations'!H53=Datasets!$P$3,'3) Calculations'!AB53,0),0) -> 0 | BQ53: =IF(F53=Datasets!$C$2,IF('3) Calculations'!H53=Datasets!$P$3,'3) Calculations'!AC53,0),0) -> 0 | BR53: =IF(F53=Datasets!$C$2,IF('3) Calculations'!H53=Datasets!$P$3,'3) Calculations'!AD53,0),0) -> 0 | BS53: =IF(F53=Datasets!$C$2,IF('3) Calculations'!H53=Datasets!$P$3,'3) Calculations'!AE53,0),0) -> 0 | BT53: =IF(F53=Datasets!$C$2,IF('3) Calculations'!H53=Datasets!$P$3,'3) Calculations'!AF53,0),0) -> 0
A54: ='3) Dump Pit'!A41 -> 9th Dump Pit | B54: ='3) Dump Pit'!B41 -> 0 | C54: ='3) Dump Pit'!C41 -> 0 | D54: ='3) Dump Pit'!D41 -> 0 | E54: ='3) Dump Pit'!E41 -> 0 | F54: ='3) Dump Pit'!G41 -> 0 | G54: =IF(F54=Datasets!$C$2,IF(H54=Datasets!$P$2,"uncontrolled1","uncontrolled2"),'3) Dump Pit'!H41) -> 0 | H54: ='3) Dump Pit'!I41 -> 0 | I54: 1 | J54: =IF(H54=Datasets!$A$2,'3) Calculations'!$Q$6,'3) Calculations'!$Q$4) -> 0.032 | K54: =IF(H54=Datasets!$A$2,'3) Calculations'!$R$6,'3) Calculations'!$R$4) -> 0.0078 | L54: =IF(H54=Datasets!$A$2,'3) Calculations'!$S$6,'3) Calculations'!$S$4) -> 0.0013 | M54: =E54*'3) Dump Pit'!$E$9/2000 -> 0 | N54: =IF('3) Dump Pit'!F41=0,MIN(M54*8760,$C$4),MIN(M54*8760,$C$4,'3) Dump Pit'!F41)) -> 0 | O54: 0 | P54: 0 | Q54: 0 | R54: 0 | S54: 0 | T54: 0 | U54: 0 | V54: 0 | W54: 0 | X54: 0 | Y54: 0 | Z54: 0 | AA54: 0 | AB54: 0 | AC54: 0 | AD54: 0 | AE54: 0 | AF54: 0 | AG54: 0 | AH54: 0 | AI54: 0 | AJ54: 0 | AK54: 0 | AL54: 0 | AN54: =IF(F54=Datasets!$C$3,IF('3) Calculations'!H54=Datasets!$P$2,'3) Calculations'!M54,0),0) -> 0 | AO54: =IF(F54=Datasets!$C$3,IF('3) Calculations'!H54=Datasets!$P$2,'3) Calculations'!N54,0),0) -> 0 | AP54: =IF(F54=Datasets!$C$3,IF('3) Calculations'!H54=Datasets!$P$3,'3) Calculations'!M54,0),0) -> 0 | AQ54: =IF(F54=Datasets!$C$3,IF('3) Calculations'!H54=Datasets!$P$3,'3) Calculations'!N54,0),0) -> 0 | AR54: =IF(F54=Datasets!$C$2,IF('3) Calculations'!H54=Datasets!$P$2,'3) Calculations'!M54,0),0) -> 0 | AS54: =IF(F54=Datasets!$C$2,IF('3) Calculations'!H54=Datasets!$P$2,'3) Calculations'!N54,0),0) -> 0 | AT54: =IF(F54=Datasets!$C$2,IF('3) Calculations'!H54=Datasets!$P$3,'3) Calculations'!M54,0),0) -> 0 | AU54: =IF(F54=Datasets!$C$2,IF('3) Calculations'!H54=Datasets!$P$3,'3) Calculations'!N54,0),0) -> 0 | AW54: =IF(F54=Datasets!$C$3,IF('3) Calculations'!H54=Datasets!$P$2,'3) Calculations'!AA54,0),0) -> 0 | AX54: =IF(F54=Datasets!$C$3,IF('3) Calculations'!H54=Datasets!$P$2,'3) Calculations'!AB54,0),0) -> 0 | AY54: =IF(F54=Datasets!$C$3,IF('3) Calculations'!H54=Datasets!$P$2,'3) Calculations'!AC54,0),0) -> 0 | AZ54: =IF(F54=Datasets!$C$3,IF('3) Calculations'!H54=Datasets!$P$2,'3) Calculations'!AD54,0),0) -> 0 | BA54: =IF(F54=Datasets!$C$3,IF('3) Calculations'!H54=Datasets!$P$2,'3) Calculations'!AE54,0),0) -> 0 | BB54: =IF(F54=Datasets!$C$3,IF('3) Calculations'!H54=Datasets!$P$2,'3) Calculations'!AF54,0),0) -> 0 | BC54: =IF(F54=Datasets!$C$3,IF('3) Calculations'!H54=Datasets!$P$3,'3) Calculations'!AA54,0),0) -> 0 | BD54: =IF(F54=Datasets!$C$3,IF('3) Calculations'!H54=Datasets!$P$3,'3) Calculations'!AB54,0),0) -> 0 | BE54: =IF(F54=Datasets!$C$3,IF('3) Calculations'!H54=Datasets!$P$3,'3) Calculations'!AC54,0),0) -> 0 | BF54: =IF(F54=Datasets!$C$3,IF('3) Calculations'!H54=Datasets!$P$3,'3) Calculations'!AD54,0),0) -> 0 | BG54: =IF(F54=Datasets!$C$3,IF('3) Calculations'!H54=Datasets!$P$3,'3) Calculations'!AE54,0),0) -> 0 | BH54: =IF(F54=Datasets!$C$3,IF('3) Calculations'!H54=Datasets!$P$3,'3) Calculations'!AF54,0),0) -> 0 | BI54: =IF(F54=Datasets!$C$2,IF('3) Calculations'!H54=Datasets!$P$2,'3) Calculations'!AA54,0),0) -> 0 | BJ54: =IF(F54=Datasets!$C$2,IF('3) Calculations'!H54=Datasets!$P$2,'3) Calculations'!AB54,0),0) -> 0 | BK54: =IF(F54=Datasets!$C$2,IF('3) Calculations'!H54=Datasets!$P$2,'3) Calculations'!AC54,0),0) -> 0 | BL54: =IF(F54=Datasets!$C$2,IF('3) Calculations'!H54=Datasets!$P$2,'3) Calculations'!AD54,0),0) -> 0 | BM54: =IF(F54=Datasets!$C$2,IF('3) Calculations'!H54=Datasets!$P$2,'3) Calculations'!AE54,0),0) -> 0 | BN54: =IF(F54=Datasets!$C$2,IF('3) Calculations'!H54=Datasets!$P$2,'3) Calculations'!AF54,0),0) -> 0 | BO54: =IF(F54=Datasets!$C$2,IF('3) Calculations'!H54=Datasets!$P$3,'3) Calculations'!AA54,0),0) -> 0 | BP54: =IF(F54=Datasets!$C$2,IF('3) Calculations'!H54=Datasets!$P$3,'3) Calculations'!AB54,0),0) -> 0 | BQ54: =IF(F54=Datasets!$C$2,IF('3) Calculations'!H54=Datasets!$P$3,'3) Calculations'!AC54,0),0) -> 0 | BR54: =IF(F54=Datasets!$C$2,IF('3) Calculations'!H54=Datasets!$P$3,'3) Calculations'!AD54,0),0) -> 0 | BS54: =IF(F54=Datasets!$C$2,IF('3) Calculations'!H54=Datasets!$P$3,'3) Calculations'!AE54,0),0) -> 0 | BT54: =IF(F54=Datasets!$C$2,IF('3) Calculations'!H54=Datasets!$P$3,'3) Calculations'!AF54,0),0) -> 0
A55: ='3) Dump Pit'!A42 -> 10th Dump Pit | B55: ='3) Dump Pit'!B42 -> 0 | C55: ='3) Dump Pit'!C42 -> 0 | D55: ='3) Dump Pit'!D42 -> 0 | E55: ='3) Dump Pit'!E42 -> 0 | F55: ='3) Dump Pit'!G42 -> 0 | G55: =IF(F55=Datasets!$C$2,IF(H55=Datasets!$P$2,"uncontrolled1","uncontrolled2"),'3) Dump Pit'!H42) -> 0 | H55: ='3) Dump Pit'!I42 -> 0 | I55: 1 | J55: =IF(H55=Datasets!$A$2,'3) Calculations'!$Q$6,'3) Calculations'!$Q$4) -> 0.032 | K55: =IF(H55=Datasets!$A$2,'3) Calculations'!$R$6,'3) Calculations'!$R$4) -> 0.0078 | L55: =IF(H55=Datasets!$A$2,'3) Calculations'!$S$6,'3) Calculations'!$S$4) -> 0.0013 | M55: =E55*'3) Dump Pit'!$E$9/2000 -> 0 | N55: =IF('3) Dump Pit'!F42=0,MIN(M55*8760,$C$4),MIN(M55*8760,$C$4,'3) Dump Pit'!F42)) -> 0 | O55: 0 | P55: 0 | Q55: 0 | R55: 0 | S55: 0 | T55: 0 | U55: 0 | V55: 0 | W55: 0 | X55: 0 | Y55: 0 | Z55: 0 | AA55: 0 | AB55: 0 | AC55: 0 | AD55: 0 | AE55: 0 | AF55: 0 | AG55: 0 | AH55: 0 | AI55: 0 | AJ55: 0 | AK55: 0 | AL55: 0 | AN55: =IF(F55=Datasets!$C$3,IF('3) Calculations'!H55=Datasets!$P$2,'3) Calculations'!M55,0),0) -> 0 | AO55: =IF(F55=Datasets!$C$3,IF('3) Calculations'!H55=Datasets!$P$2,'3) Calculations'!N55,0),0) -> 0 | AP55: =IF(F55=Datasets!$C$3,IF('3) Calculations'!H55=Datasets!$P$3,'3) Calculations'!M55,0),0) -> 0 | AQ55: =IF(F55=Datasets!$C$3,IF('3) Calculations'!H55=Datasets!$P$3,'3) Calculations'!N55,0),0) -> 0 | AR55: =IF(F55=Datasets!$C$2,IF('3) Calculations'!H55=Datasets!$P$2,'3) Calculations'!M55,0),0) -> 0 | AS55: =IF(F55=Datasets!$C$2,IF('3) Calculations'!H55=Datasets!$P$2,'3) Calculations'!N55,0),0) -> 0 | AT55: =IF(F55=Datasets!$C$2,IF('3) Calculations'!H55=Datasets!$P$3,'3) Calculations'!M55,0),0) -> 0 | AU55: =IF(F55=Datasets!$C$2,IF('3) Calculations'!H55=Datasets!$P$3,'3) Calculations'!N55,0),0) -> 0 | AW55: =IF(F55=Datasets!$C$3,IF('3) Calculations'!H55=Datasets!$P$2,'3) Calculations'!AA55,0),0) -> 0 | AX55: =IF(F55=Datasets!$C$3,IF('3) Calculations'!H55=Datasets!$P$2,'3) Calculations'!AB55,0),0) -> 0 | AY55: =IF(F55=Datasets!$C$3,IF('3) Calculations'!H55=Datasets!$P$2,'3) Calculations'!AC55,0),0) -> 0 | AZ55: =IF(F55=Datasets!$C$3,IF('3) Calculations'!H55=Datasets!$P$2,'3) Calculations'!AD55,0),0) -> 0 | BA55: =IF(F55=Datasets!$C$3,IF('3) Calculations'!H55=Datasets!$P$2,'3) Calculations'!AE55,0),0) -> 0 | BB55: =IF(F55=Datasets!$C$3,IF('3) Calculations'!H55=Datasets!$P$2,'3) Calculations'!AF55,0),0) -> 0 | BC55: =IF(F55=Datasets!$C$3,IF('3) Calculations'!H55=Datasets!$P$3,'3) Calculations'!AA55,0),0) -> 0 | BD55: =IF(F55=Datasets!$C$3,IF('3) Calculations'!H55=Datasets!$P$3,'3) Calculations'!AB55,0),0) -> 0 | BE55: =IF(F55=Datasets!$C$3,IF('3) Calculations'!H55=Datasets!$P$3,'3) Calculations'!AC55,0),0) -> 0 | BF55: =IF(F55=Datasets!$C$3,IF('3) Calculations'!H55=Datasets!$P$3,'3) Calculations'!AD55,0),0) -> 0 | BG55: =IF(F55=Datasets!$C$3,IF('3) Calculations'!H55=Datasets!$P$3,'3) Calculations'!AE55,0),0) -> 0 | BH55: =IF(F55=Datasets!$C$3,IF('3) Calculations'!H55=Datasets!$P$3,'3) Calculations'!AF55,0),0) -> 0 | BI55: =IF(F55=Datasets!$C$2,IF('3) Calculations'!H55=Datasets!$P$2,'3) Calculations'!AA55,0),0) -> 0 | BJ55: =IF(F55=Datasets!$C$2,IF('3) Calculations'!H55=Datasets!$P$2,'3) Calculations'!AB55,0),0) -> 0 | BK55: =IF(F55=Datasets!$C$2,IF('3) Calculations'!H55=Datasets!$P$2,'3) Calculations'!AC55,0),0) -> 0 | BL55: =IF(F55=Datasets!$C$2,IF('3) Calculations'!H55=Datasets!$P$2,'3) Calculations'!AD55,0),0) -> 0 | BM55: =IF(F55=Datasets!$C$2,IF('3) Calculations'!H55=Datasets!$P$2,'3) Calculations'!AE55,0),0) -> 0 | BN55: =IF(F55=Datasets!$C$2,IF('3) Calculations'!H55=Datasets!$P$2,'3) Calculations'!AF55,0),0) -> 0 | BO55: =IF(F55=Datasets!$C$2,IF('3) Calculations'!H55=Datasets!$P$3,'3) Calculations'!AA55,0),0) -> 0 | BP55: =IF(F55=Datasets!$C$2,IF('3) Calculations'!H55=Datasets!$P$3,'3) Calculations'!AB55,0),0) -> 0 | BQ55: =IF(F55=Datasets!$C$2,IF('3) Calculations'!H55=Datasets!$P$3,'3) Calculations'!AC55,0),0) -> 0 | BR55: =IF(F55=Datasets!$C$2,IF('3) Calculations'!H55=Datasets!$P$3,'3) Calculations'!AD55,0),0) -> 0 | BS55: =IF(F55=Datasets!$C$2,IF('3) Calculations'!H55=Datasets!$P$3,'3) Calculations'!AE55,0),0) -> 0 | BT55: =IF(F55=Datasets!$C$2,IF('3) Calculations'!H55=Datasets!$P$3,'3) Calculations'!AF55,0),0) -> 0
A57: Uncontrolled Grain Handling Emissions | E57: ='3) Dump Pit'!D16:D16 -> 0 | I57: 1 | J57: 0.12993 | K57: 0.07242 | L57: 0.012354 | M57: =E57*'3) Dump Pit'!$E$9/2000 -> 0 | N57: =IF('3) Dump Pit'!F16=0,MIN(M57*8760,$C$4),MIN(M57*8760,$C$4,'3) Dump Pit'!F16)) -> 0 | O57: =M57*J57 -> 0 | P57: =M57*K57 -> 0 | Q57: =M57*L57 -> 0 | R57: =J57*N57/2000 -> 0 | S57: =K57*N57/2000 -> 0 | T57: =L57*N57/2000 -> 0 | U57: =O57*I57 -> 0 | V57: =P57*I57 -> 0 | W57: =Q57*I57 -> 0 | X57: =R57*I57 -> 0 | Y57: =S57*I57 -> 0 | Z57: =T57*I57 -> 0 | AA57: =O57-U57 -> 0 | AB57: 0 | AC57: 0 | AD57: 0 | AE57: 0 | AF57: 0 | AG57: =IF(F57="Baghouse",U57*(1-$N$4),U57) -> 0 | AH57: =IF(F57="Baghouse",V57*(1-$N$4),V57) -> 0 | AI57: =IF(F57="Baghouse",W57*(1-$N$4),W57) -> 0 | AJ57: =IF(F57="Baghouse",X57*(1-$N$4),X57) -> 0 | AK57: =IF(F57="Baghouse",Y57*(1-$N$4),Y57) -> 0 | AL57: =IF(F57="Baghouse",Z57*(1-$N$4),Z57) -> 0
A58: Controlled Grain Handling Emissions | E58: =SUM('3) Dump Pit'!G20:G29) -> 0 | F58: Baghouse | I58: 1 | J58: 0.12993 | K58: 0.07242 | L58: 0.012354 | M58: =E58*'3) Dump Pit'!$E$9/2000 -> 0 | N58: =SUM('3) Dump Pit'!H20:H29) -> 0 | O58: =M58*J58 -> 0 | P58: =M58*K58 -> 0 | Q58: =M58*L58 -> 0 | R58: =J58*N58/2000 -> 0 | S58: =K58*N58/2000 -> 0 | T58: =L58*N58/2000 -> 0 | U58: =O58*I58 -> 0 | V58: =P58*I58 -> 0 | W58: =Q58*I58 -> 0 | X58: =R58*I58 -> 0 | Y58: =S58*I58 -> 0 | Z58: =T58*I58 -> 0 | AA58: 0 | AB58: 0 | AC58: 0 | AD58: =R58-X58 -> 0 | AE58: =S58-Y58 -> 0 | AF58: =T58-Z58 -> 0 | AG58: =IF(F58="Baghouse",U58*(1-$N$4),U58) -> 0 | AH58: =IF(F58="Baghouse",V58*(1-$N$4),V58) -> 0 | AI58: =IF(F58="Baghouse",W58*(1-$N$4),W58) -> 0 | AJ58: =IF(F58="Baghouse",X58*(1-$N$4),X58) -> 0 | AK58: =IF(F58="Baghouse",Y58*(1-$N$4),Y58) -> 0 | AL58: =IF(F58="Baghouse",Z58*(1-$N$4),Z58) -> 0 | AN58: =SUM(AN46:AN55) -> 0 | AO58: =SUM(AO46:AO55) -> 0 | AP58: 0 | AQ58: 0 | AR58: 0 | AS58: 0 | AT58: 0 | AU58: 0 | AW58: 0 | AX58: 0 | AY58: 0 | AZ58: 0 | BA58: 0 | BB58: 0 | BC58: 0 | BD58: 0 | BE58: 0 | BF58: 0 | BG58: 0 | BH58: 0 | BI58: 0 | BJ58: 0 | BK58: 0 | BL58: 0 | BM58: 0 | BN58: 0 | BO58: 0 | BP58: 0 | BQ58: 0 | BR58: 0 | BS58: 0 | BT58: 0
A59: (A) = Default NDEQ Emission Factor from Table above | E59: (D) = (A) x (B) | G59: (H) = (D) - (F) | Y59: Sum | AA59: =SUM(AA57:AA58) -> 0 | AB59: 0 | AC59: 0 | AD59: 0 | AE59: 0 | AF59: 0 | AG59: =SUM(AG57:AG58) -> 0 | AH59: 0 | AI59: 0 | AJ59: 0 | AK59: 0 | AL59: 0 | AN59: * Summary by receiving type
A60: (B) = Max. grain receiving (bu/hr) x Corn density (56 lb/bu)/2000 | E60: (E) = (A) x (C) | G60: (I) = (E) - (G)
A61: (C) = Min. of permitted Grain Throughput per year & 8760 x (B) | E61: (F) = (D) x capture eff. | G61: (J) = (F) x (100% - Control Eff.)
E62: (G) = (E) x capture eff. | G62: (K) = (G) x (100% - Control Eff.)
A64: Emission Point Description * | C64: Hourly Throughput | D64: Annual Throughput | E64: Uncaptured Emissions (lb/hr) | H64: Uncaptured Emissions (ton/yr)
C65: (A) (tons/hour)[1] | D65: (B) (tons/year)[1] | E65: PM | F65: PM10 | G65: PM2.5 | H65: PM | I65: PM10 | J65: PM2.5
A66: Truck Grain Receiving Fugitives - Baghouse | C66: =AN58 -> 0 | D66: =AO58 -> 0 | E66: =AW58 -> 0 | F66: 0 | G66: 0 | H66: 0 | I66: 0 | J66: 0
A69: Rail Grain Receiving Fugitives - Baghouse | C69: =AP58 -> 0 | D69: =AQ58 -> 0 | E69: =BC58 -> 0 | F69: 0 | G69: 0 | H69: 0 | I69: 0 | J69: 0
A72: Truck Grain Receiving Fugitives - Uncontrolled | C72: =AR58 -> 0 | D72: =AS58 -> 0 | E72: =BI58 -> 0 | F72: 0 | G72: 0 | H72: 0 | I72: 0 | J72: 0
A75: Rail Grain Receiving Fugitives - Uncontrolled | C75: =AT58 -> 0 | D75: =AU58 -> 0 | E75: =BO58 -> 0 | F75: 0 | G75: 0 | H75: 0 | I75: 0 | J75: 0
A78: Total Receiving Fugitives | E78: =SUM(E66:E77) -> 0 | F78: =SUM(F66:F77) -> 0 | G78: 0 | H78: 0 | I78: 0 | J78: 0
A81: * Summary of Fugitive PTE
A83: Total Emissions After Project
E84: Based on permit limit | I84: Based on AP-42 | O84: Final
A85: Emission Point ID# | B85: Control Equipment ID | C85: Unit Name | E85: Controlled PM(filterable)/PM10 Emissions | G85: Controlled PM2.5 Emissions | I85: PM | K85: PM10 | M85: PM2.5 | O85: PM | Q85: PM10 | S85: PM2.5
E86: (A) (lb/hour) | F86: (B) (ton/year) | G86: (C) (lb/hour)[1] | H86: (D) (ton/year) | I86: (E) (lb/hour) | J86: (E) (ton/year) | K86: (E) (lb/hour) | L86: (E) (ton/year) | M86: (E) (lb/hour) | N86: (E) (ton/year) | O86: (F) (lb/hour) | P86: (F) (ton/year) | Q86: (F) (lb/hour) | R86: (F) (ton/year) | S86: (F) (lb/hour) | T86: (F) (ton/year)
A87: 1 | B87: ='3) Dump Pit'!B20 -> 0 | C87: ='3) Dump Pit'!C20 -> 0 | E87: ='3) Dump Pit'!O20*60/7000 -> 0 | F87: =E87*8760/2000 -> 0 | G87: =E87*0.17 -> 0 | H87: =G87*8760/2000 -> 0 | I87: =SUM(IF(B87=$G$110,$AG$110,0),IF(B87=$G$111,$AG$111,0),IF(B87=$G$112,$AG$112,0),IF(B87=$G$113,$AG$113,0),IF(B87=$G$114,$AG$114,0),IF(B87=$G$115,$AG$115,0),IF(B87=$G$116,$AG$116,0),IF(B87=$G$117,$AG$117,0),IF(B87=$G$118,$AG$118,0),IF(B87=$G$119,$AG$119,0)) -> 0 | J87: =SUM(IF(B87=$G$46,$AJ$46,0),IF(B87=$G$47,$AJ$47,0),IF(B87=$G$48,$AJ$48,0),IF(B87=$G$49,$AJ$49,0),IF(B87=$G$50,$AJ$50,0),IF(B87=$G$51,$AJ$51,0),IF(B87=$G$52,$AJ$52,0),IF(B87=$G$53,$AJ$53,0),IF(B87=$G$54,$AJ$54,0),IF(B87=$G$55,$AJ$55,0)) -> 0 | K87: =SUM(IF(B87=$G$46,$AH$46,0),IF(B87=$G$47,$AH$47,0),IF(B87=$G$48,$AH$48,0),IF(B87=$G$49,$AH$49,0),IF(B87=$G$50,$AH$50,0),IF(B87=$G$51,$AH$51,0),IF(B87=$G$52,$AH$52,0),IF(B87=$G$53,$AH$53,0),IF(B87=$G$54,$AH$54,0),IF(B87=$G$55,$AH$55,0)) -> 0 | L87: =SUM(IF(B87=$G$46,$AK$46,0),IF(B87=$G$47,$AK$47,0),IF(B87=$G$48,$AK$48,0),IF(B87=$G$49,$AK$49,0),IF(B87=$G$50,$AK$50,0),IF(B87=$G$51,$AK$51,0),IF(B87=$G$52,$AK$52,0),IF(B87=$G$53,$AK$53,0),IF(B87=$G$54,$AK$54,0),IF(B87=$G$55,$AK$55,0)) -> 0 | M87: =SUM(IF(B87=$G$46,$AI$46,0),IF(B87=$G$47,$AI$47,0),IF(B87=$G$48,$AI$48,0),IF(B87=$G$49,$AI$49,0),IF(B87=$G$50,$AI$50,0),IF(B87=$G$51,$AI$51,0),IF(B87=$G$52,$AI$52,0),IF(B87=$G$53,$AI$53,0),IF(B87=$G$54,$AI$54,0),IF(B87=$G$55,$AI$55,0)) -> 0 | N87: =SUM(IF(B87=$G$46,$AL$46,0),IF(B87=$G$47,$AL$47,0),IF(B87=$G$48,$AL$48,0),IF(B87=$G$49,$AL$49,0),IF(B87=$G$50,$AL$50,0),IF(B87=$G$51,$AL$51,0),IF(B87=$G$52,$AL$52,0),IF(B87=$G$53,$AL$53,0),IF(B87=$G$54,$AL$54,0),IF(B87=$G$55,$AL$55,0)) -> 0 | O87: =IF(E87=0,I87,E87) -> 0 | P87: =IF(F87=0,J87,F87) -> 0 | Q87: =IF(E87=0,K87,E87) -> 0 | R87: =IF(F87=0,L87,F87) -> 0 | S87: =IF(G87=0,M87,G87) -> 0 | T87: =IF(H87=0,N87,H87) -> 0
A88: 2 | B88: ='3) Dump Pit'!B21 -> 0 | C88: ='3) Dump Pit'!C21 -> 0 | E88: ='3) Dump Pit'!O21*60/7000 -> 0 | F88: 0 | G88: =E88*0.17 -> 0 | H88: =G88*8760/2000 -> 0 | I88: 0 | J88: 0 | K88: 0 | L88: 0 | M88: 0 | N88: 0 | O88: =IF(E88=0,I88,E88) -> 0 | P88: =IF(F88=0,J88,F88) -> 0 | Q88: =IF(E88=0,K88,E88) -> 0 | R88: =IF(F88=0,L88,F88) -> 0 | S88: =IF(G88=0,M88,G88) -> 0 | T88: =IF(H88=0,N88,H88) -> 0
A89: 3 | B89: ='3) Dump Pit'!B22 -> 0 | C89: ='3) Dump Pit'!C22 -> 0 | E89: ='3) Dump Pit'!O22*60/7000 -> 0 | F89: 0 | G89: 0 | H89: 0 | I89: 0 | J89: 0 | K89: 0 | L89: 0 | M89: 0 | N89: 0 | O89: 0 | P89: 0 | Q89: 0 | R89: 0 | S89: 0 | T89: 0
A90: 4 | B90: ='3) Dump Pit'!B23 -> 0 | C90: ='3) Dump Pit'!C23 -> 0 | E90: ='3) Dump Pit'!O23*60/7000 -> 0 | F90: 0 | G90: 0 | H90: 0 | I90: 0 | J90: 0 | K90: 0 | L90: 0 | M90: 0 | N90: 0 | O90: 0 | P90: 0 | Q90: 0 | R90: 0 | S90: 0 | T90: 0
A91: 5 | B91: ='3) Dump Pit'!B24 -> 0 | C91: ='3) Dump Pit'!C24 -> 0 | E91: ='3) Dump Pit'!O24*60/7000 -> 0 | F91: 0 | G91: 0 | H91: 0 | I91: 0 | J91: 0 | K91: 0 | L91: 0 | M91: 0 | N91: 0 | O91: 0 | P91: 0 | Q91: 0 | R91: 0 | S91: 0 | T91: 0
A92: 6 | B92: ='3) Dump Pit'!B25 -> 0 | C92: ='3) Dump Pit'!C25 -> 0 | E92: ='3) Dump Pit'!O25*60/7000 -> 0 | F92: 0 | G92: 0 | H92: 0 | I92: 0 | J92: 0 | K92: 0 | L92: 0 | M92: 0 | N92: 0 | O92: 0 | P92: 0 | Q92: 0 | R92: 0 | S92: 0 | T92: 0
A93: 7 | B93: ='3) Dump Pit'!B26 -> 0 | C93: ='3) Dump Pit'!C26 -> 0 | E93: ='3) Dump Pit'!O26*60/7000 -> 0 | F93: 0 | G93: 0 | H93: 0 | I93: 0 | J93: 0 | K93: 0 | L93: 0 | M93: 0 | N93: 0 | O93: 0 | P93: 0 | Q93: 0 | R93: 0 | S93: 0 | T93: 0
A94: 8 | B94: ='3) Dump Pit'!B27 -> 0 | C94: ='3) Dump Pit'!C27 -> 0 | E94: ='3) Dump Pit'!O27*60/7000 -> 0 | F94: 0 | G94: 0 | H94: 0 | I94: 0 | J94: 0 | K94: 0 | L94: 0 | M94: 0 | N94: 0 | O94: 0 | P94: 0 | Q94: 0 | R94: 0 | S94: 0 | T94: 0
A95: 9 | B95: ='3) Dump Pit'!B28 -> 0 | C95: ='3) Dump Pit'!C28 -> 0 | E95: ='3) Dump Pit'!O28*60/7000 -> 0 | F95: 0 | G95: 0 | H95: 0 | I95: 0 | J95: 0 | K95: 0 | L95: 0 | M95: 0 | N95: 0 | O95: 0 | P95: 0 | Q95: 0 | R95: 0 | S95: 0 | T95: 0
A96: 10 | B96: ='3) Dump Pit'!B29 -> 0 | C96: ='3) Dump Pit'!C29 -> 0 | E96: ='3) Dump Pit'!O29*60/7000 -> 0 | F96: 0 | G96: 0 | H96: 0 | I96: 0 | J96: 0 | K96: 0 | L96: 0 | M96: 0 | N96: 0 | O96: 0 | P96: 0 | Q96: 0 | R96: 0 | S96: 0 | T96: 0
A97: 11 | B97: uncontrolled1 | E97: ='3) Dump Pit'!O30*60/7000 -> 0 | F97: 0 | G97: 0 | H97: 0 | I97: =SUM(IF(B97=$G$46,$AG$46,0),IF(B97=$G$47,$AG$47,0),IF(B97=$G$48,$AG$48,0),IF(B97=$G$49,$AG$49,0),IF(B97=$G$50,$AG$50,0),IF(B97=$G$51,$AG$51,0),IF(B97=$G$52,$AG$52,0),IF(B97=$G$53,$AG$53,0),IF(B97=$G$54,$AG$54,0),IF(B97=$G$55,$AG$55,0)) -> 0 | J97: 0 | K97: 0 | L97: 0 | M97: 0 | N97: 0 | O97: 0 | P97: 0 | Q97: 0 | R97: =IF(F97=0,L97,F97) -> 0 | S97: 0 | T97: 0
A98: 12 | B98: uncontrolled2 | E98: ='3) Dump Pit'!O31*60/7000 -> 0 | F98: 0 | G98: 0 | H98: 0 | I98: 0 | J98: 0 | K98: 0 | L98: 0 | M98: 0 | N98: 0 | O98: 0 | P98: 0 | Q98: 0 | R98: =IF(F98=0,L98,F98) -> 0 | S98: 0 | T98: 0
A99: 13 | B99: Uncontrolled Grain Handling | E99: ='3) Dump Pit'!O30*60/7000 -> 0 | F99: =E99*8760/2000 -> 0 | G99: 0 | H99: 0 | I99: =AG127 -> 0 | J99: =AH127 -> 0 | K99: =AH127 -> 0 | L99: =AK127 -> 0 | M99: =AI127 -> 0 | N99: =AL127 -> 0 | O99: 0 | P99: 0 | Q99: 0 | R99: 0 | S99: 0 | T99: 0
A100: 14 | B100: controlled Grain Handling | I100: =AG128 -> 0 | J100: =AH128 -> 0 | K100: =AH128 -> 0 | L100: =AK128 -> 0 | M100: =AI128 -> 0 | N100: =AL128 -> 0 | O100: =IF(E100=0,I100,E100) -> 0 | P100: 0 | Q100: 0 | R100: 0 | S100: 0 | T100: 0
A101: Total Non-Fugitive Emissions | E101: =SUM(E87:E98) -> 0 | F101: =SUM(F87:F98) -> 0 | G101: 0 | H101: 0 | I101: 0 | J101: 0 | K101: 0 | L101: 0 | M101: 0 | N101: 0 | O101: =SUM(O87:O99) -> 0 | P101: =SUM(P87:P99) -> 0 | Q101: =SUM(Q87:Q99) -> 0 | R101: 0 | S101: 0 | T101: 0
A102: Total Fugitive Emissions | O102: =SUM(AA113:AA128) -> 0 | P102: =SUM(AD113:AD128) -> 0 | Q102: =SUM(AB113:AB128) -> 0 | R102: =SUM(AE113:AE128) -> 0 | S102: =SUM(AC113:AC128) -> 0 | T102: =SUM(AF113:AF128) -> 0
A103: [1] PM2.5 is 17% of PM10 per AP-42 Chapter 9.9.1 (May 2003)
A104: [2] Uncontrolled 1: it refers to uncontrolled truck dump pits | E104: Rules: | F104: (A) = Permit Limit, grains/min x 60 / 7000 | I104: (C) = (A) x 0.17 | K104: (E) Is controlled captured emissions from preceding table summed for a particular control Equipment | O104: (F) is the maximum emissions based on permit limit if available. Otherwise it is calculated out of AP-42
A105: [3] Uncontrolled 2: it refers to uncontrolled rail dump pits | F105: (B) = (A) x 8760 / 2000 | I105: (D) = (C) x 8760 / 2000
A107: Analysis | AN107: Grain Throughput* | AW107: Truck & Baghouse | BC107: Rail & Baghouse | BI107: Truck Uncontrolled | BO107: Rail Uncontrolled
J108: Emission Factors (lb/ton) | M108: Grain Throughput | O108: Total Emissions (lb/hr) | R108: Total Emissions (ton/yr) | U108: Captured Emissions (lb/hr) | X108: Captured Emissions (ton/yr) | AA108: Uncaptured Emissions (lb/hr) | AD108: Uncaptured Emissions (ton/yr) | AG108: Controlled Captured Emissions (lb/hr) | AJ108: Controlled Captured Emissions (ton/yr) | AN108: Truck & Baghouse | AP108: Rail & Baghouse | AR108: Truck Uncontrolled | AT108: Rail Uncontrolled | AW108: Uncaptured Emissions (lb/hr) | AZ108: Uncaptured Emissions (ton/yr) | BC108: Uncaptured Emissions (lb/hr) | BF108: Uncaptured Emissions (ton/yr) | BI108: Uncaptured Emissions (lb/hr) | BL108: Uncaptured Emissions (ton/yr) | BO108: Uncaptured Emissions (lb/hr) | BR108: Uncaptured Emissions (ton/yr)
B109: ID | C109: Emission Unit Name | D109: Enclosure | E109: Maximum grain receiving rate (bu/hr) | F109: Control type | G109: Control Name | H109: Truck or Rail | I109: Capture Efficiency | J109: PM | K109: PM10 | L109: PM2.5 | M109: ton/hr | N109: ton/yr | O109: PM | P109: PM10 | Q109: PM2.5 | R109: PM | S109: PM10 | T109: PM2.5 | U109: PM | V109: PM10 | W109: PM2.5 | X109: PM | Y109: PM10 | Z109: PM2.5 | AA109: PM | AB109: PM10 | AC109: PM2.5 | AD109: PM | AE109: PM10 | AF109: PM2.5 | AG109: PM | AH109: PM10 | AI109: PM2.5 | AJ109: PM | AK109: PM10 | AL109: PM2.5 | AN109: ton/hr | AO109: ton/yr | AP109: ton/hr | AQ109: ton/yr | AR109: ton/hr | AS109: ton/yr | AT109: ton/hr | AU109: ton/yr | AW109: PM | AX109: PM10 | AY109: PM2.5 | AZ109: PM | BA109: PM10 | BB109: PM2.5 | BC109: PM | BD109: PM10 | BE109: PM2.5 | BF109: PM | BG109: PM10 | BH109: PM2.5 | BI109: PM | BJ109: PM10 | BK109: PM2.5 | BL109: PM | BM109: PM10 | BN109: PM2.5 | BO109: PM | BP109: PM10 | BQ109: PM2.5 | BR109: PM | BS109: PM10 | BT109: PM2.5
A110: ='3) Dump Pit'!J33 -> 1st Dump Pit | B110: ='3) Dump Pit'!K33 -> 0 | C110: ='3) Dump Pit'!L33 -> 0 | D110: ='3) Dump Pit'!M33 -> 0 | E110: ='3) Dump Pit'!N33 -> 0 | F110: ='3) Dump Pit'!P33 -> 0 | G110: =IF(F46=Datasets!$C$2,IF(H46=Datasets!$P$2,"uncontrolled1","uncontrolled2"),'3) Dump Pit'!Q33) -> 0 | H110: ='3) Dump Pit'!R33 -> 0 | I110: =IF(D110=$J$4,$K$4,IF(D110=$J$5,$K$5,IF(D110=$J$6,$K$6,1))) -> 1 | J110: =IF(H110=Datasets!$A$2,'3) Calculations'!$Q$6,'3) Calculations'!$Q$4) -> 0.032 | K110: =IF(H110=Datasets!$A$2,'3) Calculations'!$R$6,'3) Calculations'!$R$4) -> 0.0078 | L110: =IF(H110=Datasets!$A$2,'3) Calculations'!$S$6,'3) Calculations'!$S$4) -> 0.0013 | M110: =E110*'3) Dump Pit'!$N$9/2000 -> 0 | N110: =IF('3) Dump Pit'!N33=0,MIN(M110*8760,$C$4),MIN(M110*8760,$C$4,'3) Dump Pit'!F33)) -> 0 | O110: =M110*J110 -> 0 | P110: =M110*K110 -> 0 | Q110: =M110*L110 -> 0 | R110: =J110*N110/2000 -> 0 | S110: =K110*N110/2000 -> 0 | T110: =L110*N110/2000 -> 0 | U110: =O110*I110 -> 0 | V110: =P110*I110 -> 0 | W110: =Q110*I110 -> 0 | X110: =R110*I110 -> 0 | Y110: =S110*I110 -> 0 | Z110: =T110*I110 -> 0 | AA110: =O110-U110 -> 0 | AB110: =P110-V110 -> 0 | AC110: =Q110-W110 -> 0 | AD110: =R110-X110 -> 0 | AE110: =S110-Y110 -> 0 | AF110: =T110-Z110 -> 0 | AG110: =IF(F110="Baghouse",U110*(1-$N$4),U110) -> 0 | AH110: =IF(F110="Baghouse",V110*(1-$N$4),V110) -> 0 | AI110: =IF(F110="Baghouse",W110*(1-$N$4),W110) -> 0 | AJ110: =IF(F110="Baghouse",X110*(1-$N$4),X110) -> 0 | AK110: =IF(F110="Baghouse",Y110*(1-$N$4),Y110) -> 0 | AL110: =IF(F110="Baghouse",Z110*(1-$N$4),Z110) -> 0 | AN110: =IF(F110=Datasets!$C$3,IF('3) Calculations'!H110=Datasets!$P$2,'3) Calculations'!M110,0),0) -> 0 | AO110: =IF(F110=Datasets!$C$3,IF('3) Calculations'!H110=Datasets!$P$2,'3) Calculations'!N110,0),0) -> 0 | AP110: =IF(F110=Datasets!$C$3,IF('3) Calculations'!H110=Datasets!$P$3,'3) Calculations'!M110,0),0) -> 0 | AQ110: =IF(F110=Datasets!$C$3,IF('3) Calculations'!H110=Datasets!$P$3,'3) Calculations'!N110,0),0) -> 0 | AR110: =IF(F110=Datasets!$C$2,IF('3) Calculations'!H110=Datasets!$P$2,'3) Calculations'!M110,0),0) -> 0 | AS110: =IF(F110=Datasets!$C$2,IF('3) Calculations'!H110=Datasets!$P$2,'3) Calculations'!N110,0),0) -> 0 | AT110: =IF(F110=Datasets!$C$2,IF('3) Calculations'!H110=Datasets!$P$3,'3) Calculations'!M110,0),0) -> 0 | AU110: =IF(F110=Datasets!$C$2,IF('3) Calculations'!H110=Datasets!$P$3,'3) Calculations'!N110,0),0) -> 0 | AW110: =IF(F110=Datasets!$C$3,IF('3) Calculations'!H110=Datasets!$P$2,'3) Calculations'!AA110,0),0) -> 0 | AX110: =IF(F110=Datasets!$C$3,IF('3) Calculations'!H110=Datasets!$P$2,'3) Calculations'!AB110,0),0) -> 0 | AY110: =IF(F110=Datasets!$C$3,IF('3) Calculations'!H110=Datasets!$P$2,'3) Calculations'!AC110,0),0) -> 0 | AZ110: =IF(F110=Datasets!$C$3,IF('3) Calculations'!H110=Datasets!$P$2,'3) Calculations'!AD110,0),0) -> 0 | BA110: =IF(F110=Datasets!$C$3,IF('3) Calculations'!H110=Datasets!$P$2,'3) Calculations'!AE110,0),0) -> 0 | BB110: =IF(F110=Datasets!$C$3,IF('3) Calculations'!H110=Datasets!$P$2,'3) Calculations'!AF110,0),0) -> 0 | BC110: =IF(F110=Datasets!$C$3,IF('3) Calculations'!H110=Datasets!$P$3,'3) Calculations'!AA110,0),0) -> 0 | BD110: =IF(F110=Datasets!$C$3,IF('3) Calculations'!H110=Datasets!$P$3,'3) Calculations'!AB110,0),0) -> 0 | BE110: =IF(F110=Datasets!$C$3,IF('3) Calculations'!H110=Datasets!$P$3,'3) Calculations'!AC110,0),0) -> 0 | BF110: =IF(F110=Datasets!$C$3,IF('3) Calculations'!H110=Datasets!$P$3,'3) Calculations'!AD110,0),0) -> 0 | BG110: =IF(F110=Datasets!$C$3,IF('3) Calculations'!H110=Datasets!$P$3,'3) Calculations'!AE110,0),0) -> 0 | BH110: =IF(F110=Datasets!$C$3,IF('3) Calculations'!H110=Datasets!$P$3,'3) Calculations'!AF110,0),0) -> 0 | BI110: =IF(F110=Datasets!$C$2,IF('3) Calculations'!H110=Datasets!$P$2,'3) Calculations'!AA110,0),0) -> 0 | BJ110: =IF(F110=Datasets!$C$2,IF('3) Calculations'!H110=Datasets!$P$2,'3) Calculations'!AB110,0),0) -> 0 | BK110: =IF(F110=Datasets!$C$2,IF('3) Calculations'!H110=Datasets!$P$2,'3) Calculations'!AC110,0),0) -> 0 | BL110: =IF(F110=Datasets!$C$2,IF('3) Calculations'!H110=Datasets!$P$2,'3) Calculations'!AD110,0),0) -> 0 | BM110: =IF(F110=Datasets!$C$2,IF('3) Calculations'!H110=Datasets!$P$2,'3) Calculations'!AE110,0),0) -> 0 | BN110: =IF(F110=Datasets!$C$2,IF('3) Calculations'!H110=Datasets!$P$2,'3) Calculations'!AF110,0),0) -> 0 | BO110: =IF(F110=Datasets!$C$2,IF('3) Calculations'!H110=Datasets!$P$3,'3) Calculations'!AA110,0),0) -> 0 | BP110: =IF(F110=Datasets!$C$2,IF('3) Calculations'!H110=Datasets!$P$3,'3) Calculations'!AB110,0),0) -> 0 | BQ110: =IF(F110=Datasets!$C$2,IF('3) Calculations'!H110=Datasets!$P$3,'3) Calculations'!AC110,0),0) -> 0 | BR110: =IF(F110=Datasets!$C$2,IF('3) Calculations'!H110=Datasets!$P$3,'3) Calculations'!AD110,0),0) -> 0 | BS110: =IF(F110=Datasets!$C$2,IF('3) Calculations'!H110=Datasets!$P$3,'3) Calculations'!AE110,0),0) -> 0 | BT110: =IF(F110=Datasets!$C$2,IF('3) Calculations'!H110=Datasets!$P$3,'3) Calculations'!AF110,0),0) -> 0
A111: ='3) Dump Pit'!J34 -> 2nd Dump Pit | B111: ='3) Dump Pit'!K34 -> 0 | C111: ='3) Dump Pit'!L34 -> 0 | D111: ='3) Dump Pit'!M34 -> 0 | E111: ='3) Dump Pit'!N34 -> 0 | F111: ='3) Dump Pit'!P34 -> 0 | G111: =IF(F47=Datasets!$C$2,IF(H47=Datasets!$P$2,"uncontrolled1","uncontrolled2"),'3) Dump Pit'!Q34) -> 0 | H111: ='3) Dump Pit'!R34 -> 0 | I111: =IF(D111=$J$4,$K$4,IF(D111=$J$5,$K$5,IF(D111=$J$6,$K$6,1))) -> 1 | J111: =IF(H111=Datasets!$A$2,'3) Calculations'!$Q$6,'3) Calculations'!$Q$4) -> 0.032 | K111: =IF(H111=Datasets!$A$2,'3) Calculations'!$R$6,'3) Calculations'!$R$4) -> 0.0078 | L111: =IF(H111=Datasets!$A$2,'3) Calculations'!$S$6,'3) Calculations'!$S$4) -> 0.0013 | M111: =E111*'3) Dump Pit'!$N$9/2000 -> 0 | N111: =IF('3) Dump Pit'!N34=0,MIN(M111*8760,$C$4),MIN(M111*8760,$C$4,'3) Dump Pit'!F34)) -> 0 | O111: =M111*J111 -> 0 | P111: 0 | Q111: 0 | R111: =J111*N111/2000 -> 0 | S111: =K111*N111/2000 -> 0 | T111: =L111*N111/2000 -> 0 | U111: =O111*I111 -> 0 | V111: 0 | W111: 0 | X111: 0 | Y111: 0 | Z111: 0 | AA111: =O111-U111 -> 0 | AB111: 0 | AC111: 0 | AD111: 0 | AE111: 0 | AF111: 0 | AG111: 0 | AH111: 0 | AI111: 0 | AJ111: 0 | AK111: 0 | AL111: 0 | AN111: =IF(F111=Datasets!$C$3,IF('3) Calculations'!H111=Datasets!$P$2,'3) Calculations'!M111,0),0) -> 0 | AO111: =IF(F111=Datasets!$C$3,IF('3) Calculations'!H111=Datasets!$P$2,'3) Calculations'!N111,0),0) -> 0 | AP111: =IF(F111=Datasets!$C$3,IF('3) Calculations'!H111=Datasets!$P$3,'3) Calculations'!M111,0),0) -> 0 | AQ111: =IF(F111=Datasets!$C$3,IF('3) Calculations'!H111=Datasets!$P$3,'3) Calculations'!N111,0),0) -> 0 | AR111: =IF(F111=Datasets!$C$2,IF('3) Calculations'!H111=Datasets!$P$2,'3) Calculations'!M111,0),0) -> 0 | AS111: =IF(F111=Datasets!$C$2,IF('3) Calculations'!H111=Datasets!$P$2,'3) Calculations'!N111,0),0) -> 0 | AT111: =IF(F111=Datasets!$C$2,IF('3) Calculations'!H111=Datasets!$P$3,'3) Calculations'!M111,0),0) -> 0 | AU111: =IF(F111=Datasets!$C$2,IF('3) Calculations'!H111=Datasets!$P$3,'3) Calculations'!N111,0),0) -> 0 | AW111: =IF(F111=Datasets!$C$3,IF('3) Calculations'!H111=Datasets!$P$2,'3) Calculations'!AA111,0),0) -> 0 | AX111: =IF(F111=Datasets!$C$3,IF('3) Calculations'!H111=Datasets!$P$2,'3) Calculations'!AB111,0),0) -> 0 | AY111: =IF(F111=Datasets!$C$3,IF('3) Calculations'!H111=Datasets!$P$2,'3) Calculations'!AC111,0),0) -> 0 | AZ111: =IF(F111=Datasets!$C$3,IF('3) Calculations'!H111=Datasets!$P$2,'3) Calculations'!AD111,0),0) -> 0 | BA111: =IF(F111=Datasets!$C$3,IF('3) Calculations'!H111=Datasets!$P$2,'3) Calculations'!AE111,0),0) -> 0 | BB111: =IF(F111=Datasets!$C$3,IF('3) Calculations'!H111=Datasets!$P$2,'3) Calculations'!AF111,0),0) -> 0 | BC111: =IF(F111=Datasets!$C$3,IF('3) Calculations'!H111=Datasets!$P$3,'3) Calculations'!AA111,0),0) -> 0 | BD111: =IF(F111=Datasets!$C$3,IF('3) Calculations'!H111=Datasets!$P$3,'3) Calculations'!AB111,0),0) -> 0 | BE111: =IF(F111=Datasets!$C$3,IF('3) Calculations'!H111=Datasets!$P$3,'3) Calculations'!AC111,0),0) -> 0 | BF111: =IF(F111=Datasets!$C$3,IF('3) Calculations'!H111=Datasets!$P$3,'3) Calculations'!AD111,0),0) -> 0 | BG111: =IF(F111=Datasets!$C$3,IF('3) Calculations'!H111=Datasets!$P$3,'3) Calculations'!AE111,0),0) -> 0 | BH111: =IF(F111=Datasets!$C$3,IF('3) Calculations'!H111=Datasets!$P$3,'3) Calculations'!AF111,0),0) -> 0 | BI111: =IF(F111=Datasets!$C$2,IF('3) Calculations'!H111=Datasets!$P$2,'3) Calculations'!AA111,0),0) -> 0 | BJ111: =IF(F111=Datasets!$C$2,IF('3) Calculations'!H111=Datasets!$P$2,'3) Calculations'!AB111,0),0) -> 0 | BK111: =IF(F111=Datasets!$C$2,IF('3) Calculations'!H111=Datasets!$P$2,'3) Calculations'!AC111,0),0) -> 0 | BL111: =IF(F111=Datasets!$C$2,IF('3) Calculations'!H111=Datasets!$P$2,'3) Calculations'!AD111,0),0) -> 0 | BM111: =IF(F111=Datasets!$C$2,IF('3) Calculations'!H111=Datasets!$P$2,'3) Calculations'!AE111,0),0) -> 0 | BN111: =IF(F111=Datasets!$C$2,IF('3) Calculations'!H111=Datasets!$P$2,'3) Calculations'!AF111,0),0) -> 0 | BO111: =IF(F111=Datasets!$C$2,IF('3) Calculations'!H111=Datasets!$P$3,'3) Calculations'!AA111,0),0) -> 0 | BP111: =IF(F111=Datasets!$C$2,IF('3) Calculations'!H111=Datasets!$P$3,'3) Calculations'!AB111,0),0) -> 0 | BQ111: =IF(F111=Datasets!$C$2,IF('3) Calculations'!H111=Datasets!$P$3,'3) Calculations'!AC111,0),0) -> 0 | BR111: =IF(F111=Datasets!$C$2,IF('3) Calculations'!H111=Datasets!$P$3,'3) Calculations'!AD111,0),0) -> 0 | BS111: =IF(F111=Datasets!$C$2,IF('3) Calculations'!H111=Datasets!$P$3,'3) Calculations'!AE111,0),0) -> 0 | BT111: =IF(F111=Datasets!$C$2,IF('3) Calculations'!H111=Datasets!$P$3,'3) Calculations'!AF111,0),0) -> 0
A112: ='3) Dump Pit'!J35 -> 3rd Dump Pit | B112: ='3) Dump Pit'!K35 -> 0 | C112: ='3) Dump Pit'!L35 -> 0 | D112: ='3) Dump Pit'!M35 -> 0 | E112: ='3) Dump Pit'!N35 -> 0 | F112: ='3) Dump Pit'!P35 -> 0 | G112: =IF(F48=Datasets!$C$2,IF(H48=Datasets!$P$2,"uncontrolled1","uncontrolled2"),'3) Dump Pit'!Q35) -> 0 | H112: ='3) Dump Pit'!R35 -> 0 | I112: =IF(D112=$J$4,$K$4,IF(D112=$J$5,$K$5,IF(D112=$J$6,$K$6,1))) -> 1 | J112: =IF(H112=Datasets!$A$2,'3) Calculations'!$Q$6,'3) Calculations'!$Q$4) -> 0.032 | K112: =IF(H112=Datasets!$A$2,'3) Calculations'!$R$6,'3) Calculations'!$R$4) -> 0.0078 | L112: =IF(H112=Datasets!$A$2,'3) Calculations'!$S$6,'3) Calculations'!$S$4) -> 0.0013 | M112: =E112*'3) Dump Pit'!$N$9/2000 -> 0 | N112: =IF('3) Dump Pit'!N35=0,MIN(M112*8760,$C$4),MIN(M112*8760,$C$4,'3) Dump Pit'!F35)) -> 0 | O112: 0 | P112: 0 | Q112: 0 | R112: 0 | S112: 0 | T112: 0 | U112: 0 | V112: 0 | W112: 0 | X112: 0 | Y112: 0 | Z112: 0 | AA112: 0 | AB112: 0 | AC112: 0 | AD112: 0 | AE112: 0 | AF112: 0 | AG112: 0 | AH112: 0 | AI112: 0 | AJ112: 0 | AK112: 0 | AL112: 0 | AN112: =IF(F112=Datasets!$C$3,IF('3) Calculations'!H112=Datasets!$P$2,'3) Calculations'!M112,0),0) -> 0 | AO112: =IF(F112=Datasets!$C$3,IF('3) Calculations'!H112=Datasets!$P$2,'3) Calculations'!N112,0),0) -> 0 | AP112: =IF(F112=Datasets!$C$3,IF('3) Calculations'!H112=Datasets!$P$3,'3) Calculations'!M112,0),0) -> 0 | AQ112: =IF(F112=Datasets!$C$3,IF('3) Calculations'!H112=Datasets!$P$3,'3) Calculations'!N112,0),0) -> 0 | AR112: =IF(F112=Datasets!$C$2,IF('3) Calculations'!H112=Datasets!$P$2,'3) Calculations'!M112,0),0) -> 0 | AS112: =IF(F112=Datasets!$C$2,IF('3) Calculations'!H112=Datasets!$P$2,'3) Calculations'!N112,0),0) -> 0 | AT112: =IF(F112=Datasets!$C$2,IF('3) Calculations'!H112=Datasets!$P$3,'3) Calculations'!M112,0),0) -> 0 | AU112: =IF(F112=Datasets!$C$2,IF('3) Calculations'!H112=Datasets!$P$3,'3) Calculations'!N112,0),0) -> 0 | AW112: =IF(F112=Datasets!$C$3,IF('3) Calculations'!H112=Datasets!$P$2,'3) Calculations'!AA112,0),0) -> 0 | AX112: =IF(F112=Datasets!$C$3,IF('3) Calculations'!H112=Datasets!$P$2,'3) Calculations'!AB112,0),0) -> 0 | AY112: =IF(F112=Datasets!$C$3,IF('3) Calculations'!H112=Datasets!$P$2,'3) Calculations'!AC112,0),0) -> 0 | AZ112: =IF(F112=Datasets!$C$3,IF('3) Calculations'!H112=Datasets!$P$2,'3) Calculations'!AD112,0),0) -> 0 | BA112: =IF(F112=Datasets!$C$3,IF('3) Calculations'!H112=Datasets!$P$2,'3) Calculations'!AE112,0),0) -> 0 | BB112: =IF(F112=Datasets!$C$3,IF('3) Calculations'!H112=Datasets!$P$2,'3) Calculations'!AF112,0),0) -> 0 | BC112: =IF(F112=Datasets!$C$3,IF('3) Calculations'!H112=Datasets!$P$3,'3) Calculations'!AA112,0),0) -> 0 | BD112: =IF(F112=Datasets!$C$3,IF('3) Calculations'!H112=Datasets!$P$3,'3) Calculations'!AB112,0),0) -> 0 | BE112: =IF(F112=Datasets!$C$3,IF('3) Calculations'!H112=Datasets!$P$3,'3) Calculations'!AC112,0),0) -> 0 | BF112: =IF(F112=Datasets!$C$3,IF('3) Calculations'!H112=Datasets!$P$3,'3) Calculations'!AD112,0),0) -> 0 | BG112: =IF(F112=Datasets!$C$3,IF('3) Calculations'!H112=Datasets!$P$3,'3) Calculations'!AE112,0),0) -> 0 | BH112: =IF(F112=Datasets!$C$3,IF('3) Calculations'!H112=Datasets!$P$3,'3) Calculations'!AF112,0),0) -> 0 | BI112: =IF(F112=Datasets!$C$2,IF('3) Calculations'!H112=Datasets!$P$2,'3) Calculations'!AA112,0),0) -> 0 | BJ112: =IF(F112=Datasets!$C$2,IF('3) Calculations'!H112=Datasets!$P$2,'3) Calculations'!AB112,0),0) -> 0 | BK112: =IF(F112=Datasets!$C$2,IF('3) Calculations'!H112=Datasets!$P$2,'3) Calculations'!AC112,0),0) -> 0 | BL112: =IF(F112=Datasets!$C$2,IF('3) Calculations'!H112=Datasets!$P$2,'3) Calculations'!AD112,0),0) -> 0 | BM112: =IF(F112=Datasets!$C$2,IF('3) Calculations'!H112=Datasets!$P$2,'3) Calculations'!AE112,0),0) -> 0 | BN112: =IF(F112=Datasets!$C$2,IF('3) Calculations'!H112=Datasets!$P$2,'3) Calculations'!AF112,0),0) -> 0 | BO112: =IF(F112=Datasets!$C$2,IF('3) Calculations'!H112=Datasets!$P$3,'3) Calculations'!AA112,0),0) -> 0 | BP112: =IF(F112=Datasets!$C$2,IF('3) Calculations'!H112=Datasets!$P$3,'3) Calculations'!AB112,0),0) -> 0 | BQ112: =IF(F112=Datasets!$C$2,IF('3) Calculations'!H112=Datasets!$P$3,'3) Calculations'!AC112,0),0) -> 0 | BR112: =IF(F112=Datasets!$C$2,IF('3) Calculations'!H112=Datasets!$P$3,'3) Calculations'!AD112,0),0) -> 0 | BS112: =IF(F112=Datasets!$C$2,IF('3) Calculations'!H112=Datasets!$P$3,'3) Calculations'!AE112,0),0) -> 0 | BT112: =IF(F112=Datasets!$C$2,IF('3) Calculations'!H112=Datasets!$P$3,'3) Calculations'!AF112,0),0) -> 0
A113: ='3) Dump Pit'!J36 -> 4th Dump Pit | B113: ='3) Dump Pit'!K36 -> 0 | C113: ='3) Dump Pit'!L36 -> 0 | D113: ='3) Dump Pit'!M36 -> 0 | E113: ='3) Dump Pit'!N36 -> 0 | F113: ='3) Dump Pit'!P36 -> 0 | G113: =IF(F49=Datasets!$C$2,IF(H49=Datasets!$P$2,"uncontrolled1","uncontrolled2"),'3) Dump Pit'!Q36) -> 0 | H113: ='3) Dump Pit'!R36 -> 0 | I113: =IF(D113=$J$4,$K$4,IF(D113=$J$5,$K$5,IF(D113=$J$6,$K$6,1))) -> 1 | J113: =IF(H113=Datasets!$A$2,'3) Calculations'!$Q$6,'3) Calculations'!$Q$4) -> 0.032 | K113: =IF(H113=Datasets!$A$2,'3) Calculations'!$R$6,'3) Calculations'!$R$4) -> 0.0078 | L113: =IF(H113=Datasets!$A$2,'3) Calculations'!$S$6,'3) Calculations'!$S$4) -> 0.0013 | M113: =E113*'3) Dump Pit'!$N$9/2000 -> 0 | N113: =IF('3) Dump Pit'!N36=0,MIN(M113*8760,$C$4),MIN(M113*8760,$C$4,'3) Dump Pit'!F36)) -> 0 | O113: 0 | P113: 0 | Q113: 0 | R113: 0 | S113: 0 | T113: 0 | U113: 0 | V113: 0 | W113: 0 | X113: 0 | Y113: 0 | Z113: 0 | AA113: 0 | AB113: 0 | AC113: 0 | AD113: 0 | AE113: 0 | AF113: 0 | AG113: 0 | AH113: 0 | AI113: 0 | AJ113: 0 | AK113: 0 | AL113: 0 | AN113: =IF(F113=Datasets!$C$3,IF('3) Calculations'!H113=Datasets!$P$2,'3) Calculations'!M113,0),0) -> 0 | AO113: =IF(F113=Datasets!$C$3,IF('3) Calculations'!H113=Datasets!$P$2,'3) Calculations'!N113,0),0) -> 0 | AP113: =IF(F113=Datasets!$C$3,IF('3) Calculations'!H113=Datasets!$P$3,'3) Calculations'!M113,0),0) -> 0 | AQ113: =IF(F113=Datasets!$C$3,IF('3) Calculations'!H113=Datasets!$P$3,'3) Calculations'!N113,0),0) -> 0 | AR113: =IF(F113=Datasets!$C$2,IF('3) Calculations'!H113=Datasets!$P$2,'3) Calculations'!M113,0),0) -> 0 | AS113: =IF(F113=Datasets!$C$2,IF('3) Calculations'!H113=Datasets!$P$2,'3) Calculations'!N113,0),0) -> 0 | AT113: =IF(F113=Datasets!$C$2,IF('3) Calculations'!H113=Datasets!$P$3,'3) Calculations'!M113,0),0) -> 0 | AU113: =IF(F113=Datasets!$C$2,IF('3) Calculations'!H113=Datasets!$P$3,'3) Calculations'!N113,0),0) -> 0 | AW113: =IF(F113=Datasets!$C$3,IF('3) Calculations'!H113=Datasets!$P$2,'3) Calculations'!AA113,0),0) -> 0 | AX113: =IF(F113=Datasets!$C$3,IF('3) Calculations'!H113=Datasets!$P$2,'3) Calculations'!AB113,0),0) -> 0 | AY113: =IF(F113=Datasets!$C$3,IF('3) Calculations'!H113=Datasets!$P$2,'3) Calculations'!AC113,0),0) -> 0 | AZ113: =IF(F113=Datasets!$C$3,IF('3) Calculations'!H113=Datasets!$P$2,'3) Calculations'!AD113,0),0) -> 0 | BA113: =IF(F113=Datasets!$C$3,IF('3) Calculations'!H113=Datasets!$P$2,'3) Calculations'!AE113,0),0) -> 0 | BB113: =IF(F113=Datasets!$C$3,IF('3) Calculations'!H113=Datasets!$P$2,'3) Calculations'!AF113,0),0) -> 0 | BC113: =IF(F113=Datasets!$C$3,IF('3) Calculations'!H113=Datasets!$P$3,'3) Calculations'!AA113,0),0) -> 0 | BD113: =IF(F113=Datasets!$C$3,IF('3) Calculations'!H113=Datasets!$P$3,'3) Calculations'!AB113,0),0) -> 0 | BE113: =IF(F113=Datasets!$C$3,IF('3) Calculations'!H113=Datasets!$P$3,'3) Calculations'!AC113,0),0) -> 0 | BF113: =IF(F113=Datasets!$C$3,IF('3) Calculations'!H113=Datasets!$P$3,'3) Calculations'!AD113,0),0) -> 0 | BG113: =IF(F113=Datasets!$C$3,IF('3) Calculations'!H113=Datasets!$P$3,'3) Calculations'!AE113,0),0) -> 0 | BH113: =IF(F113=Datasets!$C$3,IF('3) Calculations'!H113=Datasets!$P$3,'3) Calculations'!AF113,0),0) -> 0 | BI113: =IF(F113=Datasets!$C$2,IF('3) Calculations'!H113=Datasets!$P$2,'3) Calculations'!AA113,0),0) -> 0 | BJ113: =IF(F113=Datasets!$C$2,IF('3) Calculations'!H113=Datasets!$P$2,'3) Calculations'!AB113,0),0) -> 0 | BK113: =IF(F113=Datasets!$C$2,IF('3) Calculations'!H113=Datasets!$P$2,'3) Calculations'!AC113,0),0) -> 0 | BL113: =IF(F113=Datasets!$C$2,IF('3) Calculations'!H113=Datasets!$P$2,'3) Calculations'!AD113,0),0) -> 0 | BM113: =IF(F113=Datasets!$C$2,IF('3) Calculations'!H113=Datasets!$P$2,'3) Calculations'!AE113,0),0) -> 0 | BN113: =IF(F113=Datasets!$C$2,IF('3) Calculations'!H113=Datasets!$P$2,'3) Calculations'!AF113,0),0) -> 0 | BO113: =IF(F113=Datasets!$C$2,IF('3) Calculations'!H113=Datasets!$P$3,'3) Calculations'!AA113,0),0) -> 0 | BP113: =IF(F113=Datasets!$C$2,IF('3) Calculations'!H113=Datasets!$P$3,'3) Calculations'!AB113,0),0) -> 0 | BQ113: =IF(F113=Datasets!$C$2,IF('3) Calculations'!H113=Datasets!$P$3,'3) Calculations'!AC113,0),0) -> 0 | BR113: =IF(F113=Datasets!$C$2,IF('3) Calculations'!H113=Datasets!$P$3,'3) Calculations'!AD113,0),0) -> 0 | BS113: =IF(F113=Datasets!$C$2,IF('3) Calculations'!H113=Datasets!$P$3,'3) Calculations'!AE113,0),0) -> 0 | BT113: =IF(F113=Datasets!$C$2,IF('3) Calculations'!H113=Datasets!$P$3,'3) Calculations'!AF113,0),0) -> 0
A114: ='3) Dump Pit'!J37 -> 5th Dump Pit | B114: ='3) Dump Pit'!K37 -> 0 | C114: ='3) Dump Pit'!L37 -> 0 | D114: ='3) Dump Pit'!M37 -> 0 | E114: ='3) Dump Pit'!N37 -> 0 | F114: ='3) Dump Pit'!P37 -> 0 | G114: =IF(F50=Datasets!$C$2,IF(H50=Datasets!$P$2,"uncontrolled1","uncontrolled2"),'3) Dump Pit'!Q37) -> 0 | H114: ='3) Dump Pit'!R37 -> 0 | I114: 1 | J114: =IF(H114=Datasets!$A$2,'3) Calculations'!$Q$6,'3) Calculations'!$Q$4) -> 0.032 | K114: =IF(H114=Datasets!$A$2,'3) Calculations'!$R$6,'3) Calculations'!$R$4) -> 0.0078 | L114: =IF(H114=Datasets!$A$2,'3) Calculations'!$S$6,'3) Calculations'!$S$4) -> 0.0013 | M114: =E114*'3) Dump Pit'!$N$9/2000 -> 0 | N114: =IF('3) Dump Pit'!N37=0,MIN(M114*8760,$C$4),MIN(M114*8760,$C$4,'3) Dump Pit'!F37)) -> 0 | O114: 0 | P114: 0 | Q114: 0 | R114: 0 | S114: 0 | T114: 0 | U114: 0 | V114: 0 | W114: 0 | X114: 0 | Y114: 0 | Z114: 0 | AA114: 0 | AB114: 0 | AC114: 0 | AD114: 0 | AE114: 0 | AF114: 0 | AG114: 0 | AH114: 0 | AI114: 0 | AJ114: 0 | AK114: 0 | AL114: 0 | AN114: =IF(F114=Datasets!$C$3,IF('3) Calculations'!H114=Datasets!$P$2,'3) Calculations'!M114,0),0) -> 0 | AO114: =IF(F114=Datasets!$C$3,IF('3) Calculations'!H114=Datasets!$P$2,'3) Calculations'!N114,0),0) -> 0 | AP114: =IF(F114=Datasets!$C$3,IF('3) Calculations'!H114=Datasets!$P$3,'3) Calculations'!M114,0),0) -> 0 | AQ114: =IF(F114=Datasets!$C$3,IF('3) Calculations'!H114=Datasets!$P$3,'3) Calculations'!N114,0),0) -> 0 | AR114: =IF(F114=Datasets!$C$2,IF('3) Calculations'!H114=Datasets!$P$2,'3) Calculations'!M114,0),0) -> 0 | AS114: =IF(F114=Datasets!$C$2,IF('3) Calculations'!H114=Datasets!$P$2,'3) Calculations'!N114,0),0) -> 0 | AT114: =IF(F114=Datasets!$C$2,IF('3) Calculations'!H114=Datasets!$P$3,'3) Calculations'!M114,0),0) -> 0 | AU114: =IF(F114=Datasets!$C$2,IF('3) Calculations'!H114=Datasets!$P$3,'3) Calculations'!N114,0),0) -> 0 | AW114: =IF(F114=Datasets!$C$3,IF('3) Calculations'!H114=Datasets!$P$2,'3) Calculations'!AA114,0),0) -> 0 | AX114: =IF(F114=Datasets!$C$3,IF('3) Calculations'!H114=Datasets!$P$2,'3) Calculations'!AB114,0),0) -> 0 | AY114: =IF(F114=Datasets!$C$3,IF('3) Calculations'!H114=Datasets!$P$2,'3) Calculations'!AC114,0),0) -> 0 | AZ114: =IF(F114=Datasets!$C$3,IF('3) Calculations'!H114=Datasets!$P$2,'3) Calculations'!AD114,0),0) -> 0 | BA114: =IF(F114=Datasets!$C$3,IF('3) Calculations'!H114=Datasets!$P$2,'3) Calculations'!AE114,0),0) -> 0 | BB114: =IF(F114=Datasets!$C$3,IF('3) Calculations'!H114=Datasets!$P$2,'3) Calculations'!AF114,0),0) -> 0 | BC114: =IF(F114=Datasets!$C$3,IF('3) Calculations'!H114=Datasets!$P$3,'3) Calculations'!AA114,0),0) -> 0 | BD114: =IF(F114=Datasets!$C$3,IF('3) Calculations'!H114=Datasets!$P$3,'3) Calculations'!AB114,0),0) -> 0 | BE114: =IF(F114=Datasets!$C$3,IF('3) Calculations'!H114=Datasets!$P$3,'3) Calculations'!AC114,0),0) -> 0 | BF114: =IF(F114=Datasets!$C$3,IF('3) Calculations'!H114=Datasets!$P$3,'3) Calculations'!AD114,0),0) -> 0 | BG114: =IF(F114=Datasets!$C$3,IF('3) Calculations'!H114=Datasets!$P$3,'3) Calculations'!AE114,0),0) -> 0 | BH114: =IF(F114=Datasets!$C$3,IF('3) Calculations'!H114=Datasets!$P$3,'3) Calculations'!AF114,0),0) -> 0 | BI114: =IF(F114=Datasets!$C$2,IF('3) Calculations'!H114=Datasets!$P$2,'3) Calculations'!AA114,0),0) -> 0 | BJ114: =IF(F114=Datasets!$C$2,IF('3) Calculations'!H114=Datasets!$P$2,'3) Calculations'!AB114,0),0) -> 0 | BK114: =IF(F114=Datasets!$C$2,IF('3) Calculations'!H114=Datasets!$P$2,'3) Calculations'!AC114,0),0) -> 0 | BL114: =IF(F114=Datasets!$C$2,IF('3) Calculations'!H114=Datasets!$P$2,'3) Calculations'!AD114,0),0) -> 0 | BM114: =IF(F114=Datasets!$C$2,IF('3) Calculations'!H114=Datasets!$P$2,'3) Calculations'!AE114,0),0) -> 0 | BN114: =IF(F114=Datasets!$C$2,IF('3) Calculations'!H114=Datasets!$P$2,'3) Calculations'!AF114,0),0) -> 0 | BO114: =IF(F114=Datasets!$C$2,IF('3) Calculations'!H114=Datasets!$P$3,'3) Calculations'!AA114,0),0) -> 0 | BP114: =IF(F114=Datasets!$C$2,IF('3) Calculations'!H114=Datasets!$P$3,'3) Calculations'!AB114,0),0) -> 0 | BQ114: =IF(F114=Datasets!$C$2,IF('3) Calculations'!H114=Datasets!$P$3,'3) Calculations'!AC114,0),0) -> 0 | BR114: =IF(F114=Datasets!$C$2,IF('3) Calculations'!H114=Datasets!$P$3,'3) Calculations'!AD114,0),0) -> 0 | BS114: =IF(F114=Datasets!$C$2,IF('3) Calculations'!H114=Datasets!$P$3,'3) Calculations'!AE114,0),0) -> 0 | BT114: =IF(F114=Datasets!$C$2,IF('3) Calculations'!H114=Datasets!$P$3,'3) Calculations'!AF114,0),0) -> 0
